{"text_format":"1","workbook":"xlsx","n_sheets":17,"sheets":["Summary","A_Word","Well_Names","PRD_Profile_Gas","ADV_Profile_Gas","FRAC_Summary","DIR_SURVEY","Drilling_Events","FRAC_Descriptions","GAS_ANAL","ABANDON","CASINGS","PAY_ZONE","CODES","DBS_Location","Source","Search"],"not_rendered":{"charts":4,"images":1,"macros":1,"external_links":0,"defined_names":25,"comments":0,"pivot_tables":0},"unopened":[],"bounds":{"document_bytes":16777216,"sheet_cells":100000,"rows_first":2000,"rows_last":500,"rows_between":2000,"halvings":0,"cell_chars":16384,"cell_head_chars":4096},"cells_cut":0,"cells_raw":0,"read":"whole","date_system":"1900"}

{"sheet":"Summary","index":0,"n_rows":102,"n_cols":90,"rows_kept":102,"cut":false,"hidden":false,"merged":[[0,20,0,32],[0,55,0,57],[1,4,1,5],[4,12,4,14],[4,16,4,17],[1,32,10,32],[1,55,1,57],[2,3,2,8],[5,12,5,14],[10,12,10,14],[4,4,4,5],[4,7,4,8],[0,9,0,10],[0,12,0,18],[4,62,4,68],[5,0,6,1],[11,12,12,14],[8,12,8,14],[8,16,8,17],[9,12,9,14],[9,16,9,17],[5,16,5,17],[2,55,2,57],[6,12,6,14],[6,16,6,17],[3,55,3,57],[6,7,6,8],[7,12,7,14],[7,16,7,17],[6,4,6,5],[7,4,7,5],[7,7,7,8],[5,4,5,8],[14,20,14,32],[36,0,37,1],[36,17,36,18],[30,20,30,32],[41,0,42,1],[16,4,16,5],[17,7,17,8],[17,15,17,17],[18,0,19,0],[18,15,18,17],[19,13,19,14],[19,15,19,17],[20,0,21,1],[14,1,14,5],[15,15,15,17],[16,1,16,2],[17,4,17,5],[16,7,16,8],[16,15,16,17],[18,4,18,5],[50,0,51,0],[50,1,51,1],[50,2,51,2],[50,3,51,18],[44,20,44,32],[52,0,53,0],[52,1,53,1],[52,2,53,2],[52,3,53,18],[45,3,45,6],[46,0,47,0],[46,1,47,1],[46,2,47,2],[46,3,47,18],[48,0,49,0],[48,1,49,1],[48,2,49,2],[48,3,49,18],[54,0,55,0],[54,1,55,1],[54,2,55,2],[54,3,55,18],[56,0,57,1],[61,0,62,0],[61,1,62,1],[61,2,62,2],[61,3,62,3],[61,4,62,4],[61,11,62,18],[61,5,62,5],[61,6,62,6],[61,7,62,7],[61,8,62,8],[61,9,62,9],[61,10,62,10],[63,9,64,9],[63,10,64,10],[63,11,64,18],[65,0,66,0],[65,1,66,1],[65,2,66,2],[65,3,66,3],[65,4,66,4],[65,5,66,5],[65,6,66,6],[65,7,66,7],[65,8,66,8],[65,9,66,9],[65,10,66,10],[65,11,66,18],[63,0,64,0],[63,1,64,1],[63,2,64,2],[63,3,64,3],[63,4,64,4],[63,5,64,5],[63,6,64,6],[63,7,64,7],[63,8,64,8],[67,11,68,18],[69,0,70,0],[69,1,70,1],[69,2,70,2],[69,3,70,3],[69,4,70,4],[69,5,70,5],[69,6,70,6],[69,7,70,7],[69,8,70,8],[67,5,68,5],[67,6,68,6],[67,7,68,7],[67,8,68,8],[67,9,68,9],[67,10,68,10],[69,9,70,9],[67,0,68,0],[67,1,68,1],[67,2,68,2],[67,3,68,3],[67,4,68,4],[69,10,70,10],[69,11,70,18],[78,6,79,6],[78,7,79,7],[78,8,79,8],[78,9,79,9],[78,10,79,10],[78,11,79,18],[78,0,79,0],[78,1,79,1],[78,2,79,2],[78,3,79,3],[78,4,79,4],[78,5,79,5],[76,5,77,5],[76,6,77,6],[76,7,77,7],[76,8,77,8],[76,9,77,9],[76,10,77,10],[76,11,77,18],[71,0,72,1],[76,0,77,0],[76,1,77,1],[76,2,77,2],[76,3,77,3],[76,4,77,4],[80,6,81,6],[80,7,81,7],[80,8,81,8],[80,9,81,9],[80,10,81,10],[80,11,81,18],[80,0,81,0],[80,1,81,1],[80,2,81,2],[80,3,81,3],[80,4,81,4],[80,5,81,5],[82,6,83,6],[82,7,83,7],[82,8,83,8],[82,9,83,9],[82,10,83,10],[82,11,83,18],[82,0,83,0],[82,1,83,1],[82,2,83,2],[82,3,83,3],[82,4,83,4],[82,5,83,5],[84,6,85,6],[84,7,85,7],[84,8,85,8],[84,9,85,9],[84,10,85,10],[84,11,85,18],[84,0,85,0],[84,1,85,1],[84,2,85,2],[84,3,85,3],[84,4,85,4],[84,5,85,5]]}
[null,null,"Search Criteria",null,null,null,null,null,"Order by","High 3 Yr Prod",null,null,"New Feature - Order Selection Presentation by WA or Gas Production",null,null,null,null,null,null,null,{"$f":"\"Average Daily Volume of Gas Prodn - All Zones - \"&$B$20&\" - First Five Years\"","v":"Average Daily Volume of Gas Prodn - All Zones - 000 MCF - First Five Years"},null,null,null,null,null,null,null,null,null,null,null,null,null,null,null,null,{"$f":"IF($B$4=\"\",FALSE,TRUE)","v":false},null,null,null,null,null,null,null,null,null,null,null,null,null,null,null,"Find - Area",{"$f":"IF($BB$2=\"\",\"\",VLOOKUP(VLOOKUP($BB$2,LU_Area_Name,3),LU_Area_Name_No,3))","v":9021},{"$f":"IF($BB$2=\"\",\"\",VLOOKUP(VLOOKUP($BB$2,LU_Area_Name,3),LU_Area_Name_No,2))","v":"HERITAGE"},null,null,null,"Highest WA",null,null,"Well Name =",{"$f":"DGET(DB_WELL_NAME,\"WELL_NAME\",$BB$36:$BB$37)","v":"TOURMALINE  HZ TOWN C-G002-G/094-B-16"},null,null,null,null,null,null,null,null,null,null,"° ","' ","\"",null,"YES","Well_Name","Well_No"]
[null,null,null,"(2)  Select","First 25 Wells",null,{"$f":"IF(Search!$D$25>=501,\"<== Only First 500 of \"&Search!$E$25&\" Can be Selected\",\"of \"&Search!$E$25&\" Matching Below\")","v":"of 181 Matching Below"},null,null,{"$f":"IF(Search!$G$27=\"\",\"\",Search!$G$27)","v":""},null,null,"Current to:",{"$f":"Source!$E$2","v":"November 2025"},null,null,null,null,null,null,null,null,null,null,null,null,null,null,null,null,null,null,null,null,null,null,null,{"$f":"IF(Search!$G$27=\"\",FALSE,TRUE)","v":false},null,null,null,null,null,null,null,null,null,null,null,null,null,null,null,"HERITAGE",null,null,null,null,null,"Lowest WA",null,null,"Well Number =",{"$f":"IF(AND(ISNUMBER($AL$4),$AL$4>0,$AL$4<=Well_Names!$K$1),$AL$4,VLOOKUP($D$3,LU_Search_Summary_1,2,0))","v":49886},null,null,null,null,null,null,null,null,null,null,{"$f":"DGET(DB_WELL_NAME,\"SURF_LAT_CALC\",$BB$36:$BB$37)","v":57.396388999999999},null,{"$f":"IF(ISERROR($BW2),\"\",CJ2&$BW$1&CK2&$BX$1&CL2&$BY$1)","v":"57° 23' 47\""},null,"NO",{"$f":"Search!$C1","v":"49886 - TOURMALINE  HZ TOWN C-G002-G/094-B-16"},{"$f":"Search!$B1","v":49886},null,{"$f":"\"First \"&IF(Search!$D$25=1,\"\",MIN(25,Search!$D$25))&IF(Search!$D$25=1,\"Well\",\" Wells\")","v":"First 25 Wells"},"2015-2019","Horiz or Vert Wells",null,null,{"$f":"FLOOR(BW2,1)","v":57},{"$f":"FLOOR((BW2-CJ2)*60,1)","v":23},{"$f":"ROUND((BW2-(CJ2+CK2/60))*3600,2)","v":47}]
[null,null,null,"49886 - TOURMALINE  HZ TOWN C-G002-G/094-B-16",null,null,null,null,null,{"$f":"IF(Search!$G$28=\"\",\"\",Search!$G$28&\"                                                \")","v":""},null,null,null,null,null,null,null,null,null,null,null,null,null,null,null,null,null,null,null,null,null,null,null,null,null,null,null,null,null,null,null,null,null,null,null,null,null,null,null,null,null,null,null,"Find - Form'n",{"$f":"IF($BB$4=\"\",\"\",VLOOKUP(VLOOKUP($BB$4,LU_Formation_Name,3),LU_Formation_Name_No,3))","v":5000},{"$f":"IF($BB$4=\"\",\"\",VLOOKUP(VLOOKUP($BB$4,LU_Formation_Name,3),LU_Formation_Name_No,2))","v":"MONTNEY"},null,null,null,"High 3 Yr Prod",null,null,"Operator",{"$f":"DGET(DB_WELL_NAME,\"OPERATOR\",$BB$36:$BB$37)","v":"Tourmaline Oil Corp."},null,null,null,null,null,null,null,null,null,null,{"$f":"DGET(DB_WELL_NAME,\"SURF_LON_CALC\",$BB$36:$BB$37)","v":-123.681389},null,{"$f":"\"- \"&IF(ISERROR($BW3),\"\",CJ3&$BW$1&CK3&$BX$1&CL3&$BY$1)","v":"- 123° 40' 53\""},null,null,{"$f":"Search!$C2","v":"34329 - TOURMALINE  HZ NIG CREEK WEST A- 073-D/094-H-04"},{"$f":"Search!$B2","v":34329},null,{"$f":"IF(Search!$D$25<=25,\"\",\"Wells 26-\"&MIN(50,Search!$D$25)&\"\")","v":"Wells 26-50"},"2010-2014","Horiz Wells Only",null,null,{"$f":"FLOOR(ABS(BW3),1)","v":123},{"$f":"FLOOR((ABS(BW3)-CJ3)*60,1)","v":40},{"$f":"ROUND((ABS(BW3)-(CJ3+CK3/60))*3600,2)","v":53}]
["(1) Well No.",null,"Or","Search Parameters",null,null,null,null,null,null,null,null,"Location of Activity",null,null,null,null,null,null,null,null,null,null,null,null,null,null,null,null,null,null,null,null,null,null,null,null,{"$f":"IF($AL$1,VALUE($B$4),VALUE(IF(MID($D$3,1,1)=\" \",0,IF(MID($D$3,5,1)=\" \",MID($D$3,1,4),IF(MID($D$3,6,1)=\" \",MID($D$3,1,5))))))","v":49886},null,{"$f":"MID($D$3,1,5)","v":"49886"},null,null,null,null,null,null,null,null,null,null,null,null,null,"MONTNEY",null,null,null,null,null,"High 5 Yr Prod",null,null,null,null,null,null,null,null,"000 M3",null,null,null,null,null,"Spud Date",{"$f":"DGET(DB_WELL_NAME,\"SPUD_MON\",$BB$36:$BB$37)","v":202408},{"$f":"IF(ISERROR($BX4),\"\",DATE(LEFT($BX4,4),RIGHT(LEFT($BX4,6),2),1))","v":"2024-08-01"},null,null,{"$f":"Search!$C3","v":"34330 - TOURMALINE  HZ NIG CREEK WEST A-A073-D/094-H-04"},{"$f":"Search!$B3","v":34330},null,{"$f":"IF(Search!$D$25<=50,\"\",\"Wells 51-\"&MIN(75,Search!$D$25)&\"\")","v":"Wells 51-75"},"2007-2009","Vert Wells Only"]
[null,null,null,"Well Auth. No. from",null,null,"to",null,null,null,null,null,"Unique Well ID (UWI)",null,null,"Area","Formation",null,null,null,null,null,null,null,null,null,null,null,null,null,null,null,null,null,null,null,null,null,null,null,null,null,null,null,null,null,null,null,null,null,null,null,null,null,null,null,null,null,null,null,null,null,"Average Daily Volume of Production",null,null,null,null,null,null,"Production",null,null,{"$error":"#N/A"},null,"Rig Release Date",{"$f":"DGET(DB_WELL_NAME,\"RIG_REL_MON\",$BB$36:$BB$37)","v":202404},{"$f":"IF(ISERROR($BX5),\"\",DATE(LEFT($BX5,4),RIGHT(LEFT($BX5,6),2),1))","v":"2024-04-01"},null,null,{"$f":"Search!$C4","v":"36126 - TOURMALINE  HZ AITKEN CREEK NORTH C- 065-D/094-H-04"},{"$f":"Search!$B4","v":36126},null,{"$f":"IF(Search!$D$25<=75,\"\",\"Wells 76-\"&MIN(100,Search!$D$25)&\"\")","v":"Wells 76-100"},"2004-2006"]
["Enter text in rose coloured cells only.  Other cells may be locked.",null,null,"Well Name contains",null,null,null,null,null,null,null,null,{"$f":"IF(ISERROR(DGET(DB_ADV_Profile_Gas,\"UWI\",$BU$7:$BV$8)),\"\",DGET(DB_ADV_Profile_Gas,\"UWI\",$BU$7:$BV$8))","v":"207B090A094B1600"},null,null,{"$f":"IF(ISERROR(DGET(DB_ADV_Profile_Gas,\"AREA_CODE\",$BU$7:$BV$8)),\"\",VLOOKUP(DGET(DB_ADV_Profile_Gas,\"AREA_CODE\",$BU$7:$BV$8),LU_AREA_CODE,2,0))","v":"NORTHERN MONTNEY"},{"$f":"IF(ISERROR(DGET(DB_ADV_Profile_Gas,\"FORMTN_CODE\",$BU$7:$BV$8)),\"\",VLOOKUP(DGET(DB_ADV_Profile_Gas,\"FORMTN_CODE\",$BU$7:$BV$8),LU_FORM_CODE,2,0))","v":"MONTNEY"},null,null,null,null,null,null,null,null,null,null,null,null,null,null,null,null,null,null,null,null,null,null,null,null,null,null,null,null,null,null,null,null,null,null,null,null,null,null,null,null,null,null,null,null,null,"UWI 1","UWI 2","UWI 3","UWI 4","UWI 5","UWI 6","Total",null,null,null,null,null,"First Production",{"$f":"DGET(DB_WELL_NAME,\"First_Prod_Mon\",$BB$36:$BB$37)","v":{"$error":"#VALUE!"}},{"$f":"IF(ISERROR($BX6),\"\",DATE(LEFT($BX6,4),RIGHT(LEFT($BX6,6),2),1))","v":""},null,null,{"$f":"Search!$C5","v":"34331 - TOURMALINE  HZ NIG CREEK WEST A-B073-D/094-H-04"},{"$f":"Search!$B5","v":34331},null,{"$f":"IF(Search!$D$25<=100,\"\",\"Wells 101-\"&MIN(125,Search!$D$25)&\"\")","v":"Wells 101-125"},"2001-2003"]
[null,null,null,"Operator","Tour",null,"Horizontal",null,null,null,null,null,{"$f":"IF(ISERROR(DGET(DB_ADV_Profile_Gas,\"UWI\",$BV$7:$BW$8)),\"\",DGET(DB_ADV_Profile_Gas,\"UWI\",$BV$7:$BW$8))","v":""},null,null,{"$f":"IF(ISERROR(DGET(DB_ADV_Profile_Gas,\"AREA_CODE\",$BV$7:$BW$10)),\"\",VLOOKUP(DGET(DB_ADV_Profile_Gas,\"AREA_CODE\",$BV$7:$BW$10),LU_AREA_CODE,2,0))","v":""},{"$f":"IF(ISERROR(DGET(DB_ADV_Profile_Gas,\"FORMTN_CODE\",$BV$7:$BW$10)),\"\",VLOOKUP(DGET(DB_ADV_Profile_Gas,\"FORMTN_CODE\",$BV$7:$BW$10),LU_FORM_CODE,2,0))","v":""},null,null,null,null,null,null,null,null,null,null,null,null,null,null,null,null,null,null,null,null,null,null,null,null,null,null,null,null,null,null,null,null,null,null,null,null,"Original Units from BCER Database",null,null,null,null,null,null,{"$f":"CONCATENATE(LEFT(BJ7,1),\":\",RIGHT(BJ7,2))","v":"M:01"},"MADV_001",{"$f":"IF(ISERROR(DGET(DB_ADV_Profile_Gas,$BJ7,$BU$7:$BV$8)),\"\",$BF$8*DGET(DB_ADV_Profile_Gas,$BJ7,$BU$7:$BV$8))","v":10.881074337000001},{"$f":"IF(ISERROR(DGET(DB_ADV_Profile_Gas,$BJ7,$BV$7:$BW$8)),\"\",$BF$8*DGET(DB_ADV_Profile_Gas,$BJ7,$BV$7:$BW$8))","v":""},{"$f":"IF(ISERROR(DGET(DB_ADV_Profile_Gas,$BJ7,$BU$9:$BV$10)),\"\",$BF$8*DGET(DB_ADV_Profile_Gas,$BJ7,$BU$9:$BV$10))","v":""},{"$f":"IF(ISERROR(DGET(DB_ADV_Profile_Gas,$BJ7,$BV$9:$BW$10)),\"\",$BF$8*DGET(DB_ADV_Profile_Gas,$BJ7,$BV$9:$BW$10))","v":""},{"$f":"IF(ISERROR(DGET(DB_ADV_Profile_Gas,$BJ7,$BU$11:$BV$12)),\"\",$BF$8*DGET(DB_ADV_Profile_Gas,$BJ7,$BU$11:$BV$12))","v":""},{"$f":"IF(ISERROR(DGET(DB_ADV_Profile_Gas,$BJ7,$BV$11:$BW$12)),\"\",$BF$8*DGET(DB_ADV_Profile_Gas,$BJ7,$BV$11:$BW$12))","v":""},{"$f":"IF(ISERROR(SUM(BK7:BP7)),\"-\",IF(SUM(BK7:BP7)=0,$BU$5,SUM(BK7:BP7)))","v":10.881074337000001},"MPRD_001",{"$f":"IF(ISERROR(DGET(DB_PRD_Profile_Gas,$BR7,$BV$7:$BV$8)),$BU$5,$BF$8*DGET(DB_PRD_Profile_Gas,$BR7,$BV$7:$BV$8))","v":211.0929198},null,"UWI_Order","WA_NUM","UWI_Order",null,null,null,null,{"$f":"Search!$C6","v":"36127 - TOURMALINE  HZ AITKEN CREEK NORTH C-A065-D/094-H-04"},{"$f":"Search!$B6","v":36127},null,{"$f":"IF(Search!$D$25<=125,\"\",\"Wells 126-\"&MIN(150,Search!$D$25)&\"\")","v":"Wells 126-150"},"1995-2000"]
[null,null,null,"Area",null,null,"Formation",null,null,null,null,null,{"$f":"IF(ISERROR(DGET(DB_ADV_Profile_Gas,\"UWI\",$BU$9:$BV$10)),\"\",DGET(DB_ADV_Profile_Gas,\"UWI\",$BU$9:$BV$10))","v":""},null,null,{"$f":"IF(ISERROR(DGET(DB_ADV_Profile_Gas,\"AREA_CODE\",$BU$9:$BV$10)),\"\",VLOOKUP(DGET(DB_ADV_Profile_Gas,\"AREA_CODE\",$BU$9:$BV$10),LU_AREA_CODE,2,0))","v":""},{"$f":"IF(ISERROR(DGET(DB_ADV_Profile_Gas,\"FORMTN_CODE\",$BU$9:$BV$10)),\"\",VLOOKUP(DGET(DB_ADV_Profile_Gas,\"FORMTN_CODE\",$BU$9:$BV$10),LU_FORM_CODE,2,0))","v":""},null,null,null,null,null,null,null,null,null,null,null,null,null,null,null,null,null,null,null,null,null,null,{"$f":"VALUE(AN4)+1","v":49887},null,null,null,null,null,null,null,null,null,null,null,null,null,"Natural Gas","000 m3",null,{"$f":"B20","v":"000 MCF"},{"$f":"IF($B$20=\"000 m3\",1,IF($B$20=\"000 MCF\",35.301/1000,35.301))","v":3.5300999999999999E-2},null,null,"M:02","MADV_002",10.413088979999999,"","","","","",{"$f":"IF(ISERROR(SUM(BK8:BP8)),\"-\",IF(SUM(BK8:BP8)=0,$BU$5,SUM(BK8:BP8)))","v":10.413088979999999},"MPRD_002",{"$f":"IF(ISERROR(DGET(DB_PRD_Profile_Gas,$BR8,$BV$7:$BV$8)),$BU$5,$BF$8*DGET(DB_PRD_Profile_Gas,$BR8,$BV$7:$BV$8))","v":312.39266939999999},null,1,{"$f":"$BL$2","v":49886},2,null,null,null,null,{"$f":"Search!$C7","v":"36128 - TOURMALINE  HZ AITKEN CREEK NORTH C-B065-D/094-H-04"},{"$f":"Search!$B7","v":36128},null,{"$f":"IF(Search!$D$25<=150,\"\",\"Wells 151-\"&MIN(175,Search!$D$25)&\"\")","v":"Wells 151-175"}," PRE-1995"]
[null,null,null,"Rig Release from (YYYY/MM)",null,null,"to",null,null,null,null,null,{"$f":"IF(ISERROR(DGET(DB_ADV_Profile_Gas,\"UWI\",$BV$9:$BW$10)),\"\",DGET(DB_ADV_Profile_Gas,\"UWI\",$BV$9:$BW$10))","v":""},null,null,{"$f":"IF(ISERROR(DGET(DB_ADV_Profile_Gas,\"AREA_CODE\",$BV$9:$BW$10)),\"\",VLOOKUP(DGET(DB_ADV_Profile_Gas,\"AREA_CODE\",$BV$9:$BW$10),LU_AREA_CODE,2,0))","v":""},{"$f":"IF(ISERROR(DGET(DB_ADV_Profile_Gas,\"FORMTN_CODE\",$BV$9:$BW$10)),\"\",VLOOKUP(DGET(DB_ADV_Profile_Gas,\"FORMTN_CODE\",$BV$9:$BW$10),LU_FORM_CODE,2,0))","v":""},null,null,null,null,null,null,null,null,null,null,null,null,null,null,null,null,null,null,null,null,null,null,null,null,null,null,null,null,null,null,null,null,null,null,null,null,"Oil","m3",null,{"$f":"IF(RIGHT(BE8,3)=\"MCF\",\"bbl\",\"m3\")","v":"bbl"},{"$f":"IF(BE9=\"bbl\",6.29,1)","v":6.29},null,null,"M:03","MADV_003",9.2633354099999998,"","","","","",9.2633354099999998,"MPRD_003",277.9000623,null,"UWI_Order","WA_NUM","UWI_Order",null,null,null,null,{"$f":"Search!$C8","v":"49882 - TOURMALINE  HZ TOWN C-C002-G/094-B-16"},{"$f":"Search!$B8","v":49882},null,{"$f":"IF(Search!$D$25<=175,\"\",\"Wells 176-\"&MIN(200,Search!$D$25)&\"\")","v":"Wells 176-181"},"NO PRODUCTION"]
[null,null,null,"Spudded from (YYYY/MM)",2024,1,"to",2025,11,null,null,null,{"$f":"IF(ISERROR(DGET(DB_ADV_Profile_Gas,\"UWI\",$BU$11:$BV$12)),\"\",DGET(DB_ADV_Profile_Gas,\"UWI\",$BU$11:$BV$12))","v":""},null,null,{"$f":"IF(ISERROR(DGET(DB_ADV_Profile_Gas,\"AREA_CODE\",$BU$11:$BV$12)),\"\",VLOOKUP(DGET(DB_ADV_Profile_Gas,\"AREA_CODE\",$BU$11:$BV$12),LU_AREA_CODE,2,0))","v":""},{"$f":"IF(ISERROR(DGET(DB_ADV_Profile_Gas,\"FORMTN_CODE\",$BU$11:$BV$12)),\"\",VLOOKUP(DGET(DB_ADV_Profile_Gas,\"FORMTN_CODE\",$BU$11:$BV$12),LU_FORM_CODE,2,0))","v":""},null,null,null,null,null,null,null,null,null,null,null,null,null,null,null,null,null,null,null,null,null,null,null,null,null,null,null,null,null,null,null,null,null,null,null,null,"Condensate","m3",null,null,null,null,null,{"$f":"CONCATENATE(LEFT(BJ10,1),\":\",RIGHT(BJ10,2))","v":"M:04"},"MADV_004",8.2477256399999987,"","","","","",8.2477256399999987,"MPRD_004",247.43176919999999,null,3,{"$f":"$BL$2","v":49886},4,null,null,null,null,{"$f":"Search!$C9","v":"36129 - TOURMALINE  HZ AITKEN CREEK NORTH C-C065-D/094-H-04"},{"$f":"Search!$B9","v":36129},null,{"$f":"IF(Search!$D$25<=200,\"\",\"Wells 201-\"&MIN(225,Search!$D$25)&\"\")","v":""}]
[null,null,null,"First Production from (YYYY/MM)",null,null,"to",null,null,null,null,null,{"$f":"IF(ISERROR(DGET(DB_ADV_Profile_Gas,\"UWI\",$BV$11:$BW$12)),\"\",DGET(DB_ADV_Profile_Gas,\"UWI\",$BV$11:$BW$12))","v":""},null,null,{"$f":"IF(ISERROR(DGET(DB_ADV_Profile_Gas,\"AREA_CODE\",$BV$11:$BW$12)),\"\",VLOOKUP(DGET(DB_ADV_Profile_Gas,\"AREA_CODE\",$BV$11:$BW$12),LU_AREA_CODE,2,0))","v":""},{"$f":"IF(ISERROR(DGET(DB_ADV_Profile_Gas,\"FORMTN_CODE\",$BV$11:$BW$12)),\"\",VLOOKUP(DGET(DB_ADV_Profile_Gas,\"FORMTN_CODE\",$BV$11:$BW$12),LU_FORM_CODE,2,0))","v":""},null,null,null,null,null,null,null,null,null,null,null,null,null,null,null,null,null,null,null,null,null,null,null,null,null,null,null,null,null,null,null,null,null,null,null,null,"MCF",null,null,null,null,null,null,{"$f":"CONCATENATE(LEFT(BJ11,1),\":\",RIGHT(BJ11,2))","v":"M:05"},"MADV_005",8.673208593,"","","","","",8.673208593,"MPRD_005",260.19661079999997,null,"UWI_Order","WA_NUM","UWI_Order",null,null,null,null,{"$f":"Search!$C10","v":"40535 - TOURMALINE  HZ TOWN A-N008-A/094-B-16"},{"$f":"Search!$B10","v":40535},null,{"$f":"IF(Search!$D$25<=225,\"\",\"Wells 226-\"&MIN(250,Search!$D$25)&\"\")","v":""}]
[null,null,null,"Geo Location (Decimal degree Lat, Lon)",57,-124,"SW           to",60,-116,"NE corner",null,null,"Please read the comments under the tab \"A_Word\"",null,null,null,null,null,null,null,null,null,null,null,null,null,null,null,null,null,null,null,null,null,null,null,null,null,null,null,null,null,null,null,null,null,null,null,null,null,null,null,null,"000 MCF",null,null,null,null,null,null,{"$f":"CONCATENATE(LEFT(BJ12,1),\":\",RIGHT(BJ12,2))","v":"M:06"},"MADV_006",9.2518978860000001,"","","","","",9.2518978860000001,"MPRD_006",278.48252880000001,null,5,{"$f":"$BL$2","v":49886},6,null,null,null,null,{"$f":"Search!$C11","v":"40533 - TOURMALINE  HZ TOWN A-L008-A/094-B-16"},{"$f":"Search!$B11","v":40533},null,{"$f":"IF(Search!$D$25<=250,\"\",\"Wells 251-\"&MIN(275,Search!$D$25)&\"\")","v":""}]
[null,null,null,null,null,null,null,null,null,null,null,null,null,null,null,null,null,null,null,null,null,null,null,null,null,null,null,null,null,null,null,null,null,null,null,null,null,null,null,null,null,null,null,null,null,null,null,null,null,null,null,null,null,"000 m3",null,null,null,null,null,null,{"$f":"CONCATENATE(LEFT(BJ13,1),\":\",RIGHT(BJ13,2))","v":"M:07"},"MADV_007",8.2701770759999995,"","","","","",8.2701770759999995,"MPRD_007",230.7379263,null,null,null,null,null,null,null,null,{"$f":"Search!$C12","v":"40532 - TOURMALINE  HZ TOWN A-K008-A/094-B-16"},{"$f":"Search!$B12","v":40532},null,{"$f":"IF(Search!$D$25<=275,\"\",\"Wells 276-\"&MIN(300,Search!$D$25)&\"\")","v":""}]
[null,null,null,null,null,null,null,null,null,null,null,null,null,null,null,null,null,null,null,null,null,null,null,null,null,null,null,null,null,null,null,null,null,null,null,null,null,null,null,null,null,null,null,null,null,null,null,null,null,null,null,null,null,null,null,null,null,null,null,null,{"$f":"CONCATENATE(LEFT(BJ14,1),\":\",RIGHT(BJ14,2))","v":"M:08"},"MADV_008",7.8772063440000002,"","","","","",7.8772063440000002,"MPRD_008",240.25507589999998,null,null,null,null,null,null,null,null,{"$f":"Search!$C13","v":"50903 - TOURMALINE  HZ NIG CREEK C-B100-C/094-H-04"},{"$f":"Search!$B13","v":50903},null,{"$f":"IF(Search!$D$25<=300,\"\",\"Wells 301-\"&MIN(325,Search!$D$25)&\"\")","v":""}]
["Well Name",{"$f":"IF(ISERROR($BL$1),\"\",$BL$1)","v":"TOURMALINE  HZ TOWN C-G002-G/094-B-16"},null,null,null,null,null,"Num Fracs Reported",{"$f":"SUM(F43:J43)","v":0},null,"Well Classification",{"$f":"IF(ISERROR(DGET(DB_DRILLING_EVENTS,\"CLASS\",$BB$36:$BB$37)),\"\",DGET(DB_DRILLING_EVENTS,\"CLASS\",$BB$36:$BB$37))","v":"DV"},null,null,null,null,null,null,null,null,{"$f":"\"Monthly Gas Production - All Zones - \"&$B$20&\" - First Five Years\"","v":"Monthly Gas Production - All Zones - 000 MCF - First Five Years"},null,null,null,null,null,null,null,null,null,null,null,null,null,null,null,null,null,null,{"$f":"MID($D$3,1,1)","v":"4"},null,null,null,null,null,null,null,null,null,null,null,null,null,null,"WA_NUM","POSITION",null,null,null,null,{"$f":"CONCATENATE(LEFT(BJ15,1),\":\",RIGHT(BJ15,2))","v":"M:09"},"MADV_009",5.8798404629999999,"","","","","",5.8798404629999999,"MPRD_009",126.41641109999999,null,null,null,null,null,null,null,null,{"$f":"Search!$C14","v":"49891 - TOURMALINE  HZ TOWN C-L002-G/094-B-16"},{"$f":"Search!$B14","v":49891},null,{"$f":"IF(Search!$D$25<=325,\"\",\"Wells 326-\"&MIN(350,Search!$D$25)&\"\")","v":""}]
["Well No.",{"$f":"IF(ISERROR($BL$2),\"\",$BL$2)","v":49886},null,null,"Horizontal?",{"$f":"IF(OR(ISERROR($BL$1),ISERROR($BL$2)),\"\",IF(DGET(DB_WELL_NAME,\"HORIZ_WELL\",$BB$36:$BB$37)=\"HZ\",\"YES\",\"NO\"))","v":"YES"},null,"Dir Survey - Total MD",{"$f":"IF(ISERROR(DGET(DB_DIR_SURVEY,\"TOTAL_M_DEPTH\",$BC$15:$BC$16)),\"\",DMAX(DB_DIR_SURVEY,\"TOTAL_M_DEPTH\",$BC$15:$BC$16))","v":4379},null,"Dir Survey - TVD",{"$f":"IF(ISERROR(DGET(DB_DIR_SURVEY,\"MAX_TV_DEPTH\",$BC$15:$BC$16)),\"\",DMAX(DB_DIR_SURVEY,\"MAX_TV_DEPTH\",$BC$15:$BC$16))","v":1778.06},null,null,null,{"$f":"IF(ISERROR(DGET(DB_PAY_ZONE,\"MEAS_TOP_PAY_DEPTH\",$BC$15:$BD$16)),\"No Depth\",CONCATENATE(\"Deepest @\",DGET(DB_PAY_ZONE,\"MEAS_TOP_PAY_DEPTH\",$BC$15:$BD$16),\"m TOP\"))","v":"Deepest @1967.4m TOP"},null,null,null,null,null,null,null,null,null,null,null,null,null,null,null,null,null,null,null,null,null,null,null,null,null,null,null,null,null,null,null,null,null,null,null,null,null,null,{"$f":"$BL$2","v":49886},1,null,null,null,null,"M:10","MADV_010",5.2394803229999996,"","","","","",5.2394803229999996,"MPRD_010",162.42343110000002,null,null,null,null,null,null,null,null,{"$f":"Search!$C15","v":"50904 - TOURMALINE  HZ NIG CREEK C-C100-C/094-H-04"},{"$f":"Search!$B15","v":50904},null,{"$f":"IF(Search!$D$25<=350,\"\",\"Wells 351-\"&MIN(375,Search!$D$25)&\"\")","v":""}]
["Operator",{"$f":"IF(ISERROR($BL$3),\"\",$BL$3)","v":"Tourmaline Oil Corp."},null,"Rig Release Date",{"$f":"$BY$5","v":"2024-04-01"},null,"Surf Lat",{"$f":"$BY$2","v":"57° 23' 47\""},null,null,null,null,null,"Max","Min",{"$f":"IF(ISERROR(DGET(DB_PAY_ZONE,\"PAY_TYPE\",$BC$15:$BD$16)),\"No Pay Type\",CONCATENATE(\"Pay Type = \",DGET(DB_PAY_ZONE,\"PAY_TYPE\",$BC$15:$BD$16)))","v":"No Pay Type"},null,null,null,null,null,null,null,null,null,null,null,null,null,null,null,null,null,null,null,null,null,null,null,null,null,null,null,null,null,null,null,null,null,null,null,null,null,null,null,null,null,null,null,null,"M:11","MADV_011",4.8602769810000002,"","","","","",4.8602769810000002,"MPRD_011",144.83647289999999,null,null,null,null,null,null,null,null,{"$f":"Search!$C16","v":"49884 - TOURMALINE  HZ TOWN C-E002-G/094-B-16"},{"$f":"Search!$B16","v":49884},null,{"$f":"IF(Search!$D$25<=375,\"\",\"Wells 376-\"&MIN(400,Search!$D$25)&\"\")","v":""}]
[null,null,null,"Spud Date",{"$f":"$BY$4","v":"2024-08-01"},null,"Surf Lon",{"$f":"$BY$3","v":"- 123° 40' 53\""},null,null,null,null,"Porosity",{"$f":"IF(ISERROR(DGET(DB_PAY_ZONE,\"POROSITY\",$BC$15:$BD$16)),\"\",DMAX(DB_PAY_ZONE,\"POROSITY\",$BC$15:$BC$16))","v":""},{"$f":"IF(ISERROR(DGET(DB_PAY_ZONE,\"POROSITY\",$BC$15:$BD$16)),\"\",DMIN(DB_PAY_ZONE,\"POROSITY\",$BC$15:$BC$16))","v":""},{"$f":"IF(ISERROR(DGET(DB_PAY_ZONE,\"POROSITY\",$BC$15:$BD$16)),\"\",DGET(DB_PAY_ZONE,\"POROSITY\",$BC$15:$BD$16))","v":""},null,null,null,null,null,null,null,null,null,null,null,null,null,null,null,null,null,null,null,null,null,null,null,null,null,null,null,null,null,null,null,null,null,null,null,null,null,{"$f":"IF(ISERROR(DGET(DB_PRD_Profile_Gas,\"FIRST_PROD_PERIOD\",$BC$15:$BC$16)),\"\",DGET(DB_PRD_Profile_Gas,\"FIRST_PROD_PERIOD\",$BC$15:$BC$16))","v":202408},null,null,null,null,null,null,"M:12","MADV_012",4.5305656409999999,"","","","","",4.5305656409999999,"MPRD_012",138.1822344,null,null,null,null,null,null,null,null,{"$f":"Search!$C17","v":"49880 - TOURMALINE  HZ TOWN C-A002-G/094-B-16"},{"$f":"Search!$B17","v":49880},null,{"$f":"IF(Search!$D$25<=400,\"\",\"Wells 401-\"&MIN(425,Search!$D$25)&\"\")","v":""}]
["Presentation Units",null,null,"First Production",{"$f":"$BY$6","v":""},null,null,null,null,null,null,null,"Saturation",{"$f":"IF(ISERROR(DGET(DB_PAY_ZONE,\"SATURATION\",$BC$15:$BD$16)),\"\",DMAX(DB_PAY_ZONE,\"SATURATION\",$BC$15:$BC$16))","v":""},{"$f":"IF(ISERROR(DGET(DB_PAY_ZONE,\"SATURATION\",$BC$15:$BD$16)),\"\",DMIN(DB_PAY_ZONE,\"SATURATION\",$BC$15:$BC$16))","v":""},{"$f":"IF(ISERROR(DGET(DB_PAY_ZONE,\"SATURATION\",$BC$15:$BD$16)),\"\",DGET(DB_PAY_ZONE,\"SATURATION\",$BC$15:$BD$16))","v":""},null,null,null,null,null,null,null,null,null,null,null,null,null,null,null,null,null,null,null,null,null,null,null,null,null,null,null,null,null,null,null,null,null,null,null,null,null,null,null,null,null,null,null,null,"M:13","MADV_013",4.2013838159999999,"","","","","",4.2013838159999999,"MPRD_013",130.24303950000001,null,null,null,null,null,null,null,null,{"$f":"Search!$C18","v":"34328 - TOURMALINE  HZ NIG CREEK WEST B- 073-D/094-H-04"},{"$f":"Search!$B18","v":34328},null,{"$f":"IF(Search!$D$25<=425,\"\",\"Wells 426-\"&MIN(450,Search!$D$25)&\"\")","v":""}]
[null,"000 MCF",null,null,null,null,null,null,null,null,null,null,"Lithology",{"$f":"IF(ISERROR(DGET(DB_PAY_ZONE,\"LITHOLOGY\",$BC$15:$BC$16)),\"\",DGET(DB_PAY_ZONE,\"LITHOLOGY\",$BC$15:$BC$16))","v":""},null,{"$f":"IF(ISERROR(DGET(DB_PAY_ZONE,\"LITHOLOGY\",$BC$15:$BD$16)),\"\",DGET(DB_PAY_ZONE,\"LITHOLOGY\",$BC$15:$BD$16))","v":""},null,null,null,null,null,null,null,null,null,null,null,null,null,null,null,null,null,null,null,null,null,null,null,null,null,null,null,null,null,null,null,null,null,null,null,null,null,null,null,null,null,null,null,null,"M:14","MADV_014",3.9200701469999997,"","","","","",3.9200701469999997,"MPRD_014",117.6017514,null,null,null,null,null,null,null,null,{"$f":"Search!$C19","v":"50994 - TOURMALINE  HZ NIG CREEK D-C019-F/094-H-04"},{"$f":"Search!$B19","v":50994},null,{"$f":"IF(Search!$D$25<=450,\"\",\"Wells 451-\"&MIN(475,Search!$D$25)&\"\")","v":""}]
["Gas Production",null,null,1,2,3,4,5,6,7,8,9,10,11,12,13,14,15,null,null,null,null,null,null,null,null,null,null,null,null,null,null,null,null,null,null,null,null,null,null,null,null,null,null,null,null,null,null,null,null,null,null,null,null,null,null,null,null,null,null,"M:15","MADV_015",3.7526022029999999,"","","","","",3.7526022029999999,"MPRD_015",116.33091539999999,null,null,null,null,null,null,null,null,{"$f":"Search!$C20","v":"50993 - TOURMALINE  HZ NIG CREEK D-B019-F/094-H-04"},{"$f":"Search!$B20","v":50993},null,{"$f":"IF(Search!$D$25<=475,\"\",\"Wells 476-\"&MIN(500,Search!$D$25)&\"\")","v":""}]
[null,null,{"$f":"\"Monthly - \"&$B$20","v":"Monthly - 000 MCF"},{"$f":"IF(ISERROR($BS$7),\"\",1*$BS$7)","v":211.0929198},{"$f":"IF(ISERROR($BS$8),\"\",1*$BS$8)","v":312.39266939999999},{"$f":"IF(ISERROR($BS$9),\"\",1*$BS$9)","v":277.9000623},{"$f":"IF(ISERROR($BS$10),\"\",1*$BS$10)","v":247.43176919999999},{"$f":"IF(ISERROR($BS$11),\"\",1*$BS$11)","v":260.19661079999997},{"$f":"IF(ISERROR($BS$12),\"\",1*$BS$12)","v":278.48252880000001},{"$f":"IF(ISERROR($BS$13),\"\",1*$BS$13)","v":230.7379263},{"$f":"IF(ISERROR($BS$14),\"\",1*$BS$14)","v":240.25507589999998},{"$f":"IF(ISERROR($BS$15),\"\",1*$BS$15)","v":126.41641109999999},{"$f":"IF(ISERROR($BS$16),\"\",1*$BS$16)","v":162.42343110000002},{"$f":"IF(ISERROR($BS$17),\"\",1*$BS$17)","v":144.83647289999999},{"$f":"IF(ISERROR($BS$18),\"\",1*$BS$18)","v":138.1822344},{"$f":"IF(ISERROR($BS$19),\"\",1*$BS$19)","v":130.24303950000001},{"$f":"IF(ISERROR($BS$20),\"\",1*$BS$20)","v":117.6017514},{"$f":"IF(ISERROR($BS$21),\"\",1*$BS$21)","v":116.33091539999999},null,null,null,null,null,null,null,null,null,null,null,null,null,null,null,null,null,null,null,null,null,null,null,null,null,null,null,null,null,null,null,null,null,null,null,null,null,null,null,null,null,null,"M:16","MADV_016",3.5989369500000001,"","","","","",3.5989369500000001,"MPRD_016",107.9681085,null,null,null,null,null,null,null,null,{"$f":"Search!$C21","v":"50901 - TOURMALINE  HZ NIG CREEK C- 100-C/094-H-04"},{"$f":"Search!$B21","v":50901}]
[null,null,{"$f":"\"Annual - \"&$B$20&\" - Yr of Production\"","v":"Annual - 000 MCF - Yr of Production"},{"$f":"IF(ISERROR($BS$67),\"\",1*$BS$67)","v":2630.3481120000001},{"$f":"IF(ISERROR($BS$68),\"\",1*$BS$68)","v":472.14381479999997},{"$f":"IF(ISERROR($BS$69),\"\",1*$BS$69)","v":""},{"$f":"IF(ISERROR($BS$70),\"\",1*$BS$70)","v":""},{"$f":"IF(ISERROR($BS$71),\"\",1*$BS$71)","v":""},{"$f":"IF(ISERROR($BS$72),\"\",1*$BS$72)","v":""},{"$f":"IF(ISERROR($BS$73),\"\",1*$BS$73)","v":""},{"$f":"IF(ISERROR($BS$74),\"\",1*$BS$74)","v":""},{"$f":"IF(ISERROR($BS$75),\"\",1*$BS$75)","v":""},{"$f":"IF(ISERROR($BS$76),\"\",1*$BS$76)","v":""},{"$f":"IF(ISERROR($BS$77),\"\",1*$BS$77)","v":""},{"$f":"IF(ISERROR($BS$78),\"\",1*$BS$78)","v":""},{"$f":"IF(ISERROR($BS$79),\"\",1*$BS$79)","v":""},{"$f":"IF(ISERROR($BS$80),\"\",1*$BS$80)","v":""},{"$f":"IF(ISERROR($BS$81),\"\",1*$BS$81)","v":""},null,null,null,null,null,null,null,null,null,null,null,null,null,null,null,null,null,null,null,null,null,null,null,null,null,null,null,null,null,null,null,null,null,null,null,null,null,null,null,null,null,null,"M:17","MADV_017",0,"","","","","",{"$error":"#N/A"},"MPRD_017",{"$error":"#N/A"},null,null,null,null,null,null,null,null,{"$f":"Search!$C22","v":"50995 - TOURMALINE  HZ NIG CREEK D-D019-F/094-H-04"},{"$f":"Search!$B22","v":50995}]
[null,null,"First Production Period",{"$f":"$BY$6","v":""},null,null,null,null,null,null,null,null,null,null,null,null,null,null,null,null,null,null,null,null,null,null,null,null,null,null,null,null,null,null,null,null,null,null,null,null,null,null,null,null,null,null,null,null,null,null,null,null,null,{"$f":"IF(ISERROR(DGET(DB_GAS_ANAL,\"Sample_date\",$BC$24:$BD$25)),\"\",DGET(DB_GAS_ANAL,\"Sample_date\",$BC$24:$BD$25))","v":20240815},"WA_NUM","Sample_Order","WA_NUM","Sample_Order","WA_NUM","Sample_Order","M:18","MADV_018",0,"","","","","",{"$error":"#N/A"},"MPRD_018",{"$error":"#N/A"},null,null,null,null,null,null,null,null,{"$f":"Search!$C23","v":"50992 - TOURMALINE  HZ NIG CREEK D-A019-F/094-H-04"},{"$f":"Search!$B23","v":50992}]
[null,null,null,"2013/14","2014/15","2015/16","2016/17","2017/18","2018/19","2019/20","2020/21","2021/22","2022/23","2023/24","2024/25","2025/26","2026/27","2027/28",null,null,null,null,null,null,null,null,null,null,null,null,null,null,null,null,null,null,null,null,null,null,null,null,null,null,null,null,null,null,null,null,null,null,null,{"$f":"IF(ISERROR(DGET(DB_GAS_ANAL,\"Sample_date\",$BE$24:$BF$25)),\"\",DGET(DB_GAS_ANAL,\"Sample_date\",$BE$24:$BF$25))","v":""},{"$f":"$BL$2","v":49886},1,{"$f":"$BL$2","v":49886},2,{"$f":"$BL$2","v":49886},3,"M:19","MADV_019",0,"","","","","",{"$error":"#N/A"},"MPRD_019",{"$error":"#N/A"},null,null,null,null,null,null,null,null,{"$f":"Search!$C24","v":"42693 - TOURMALINE  HZ KOBES D-AD005-H/094-B-09"},{"$f":"Search!$B24","v":42693}]
[null,null,{"$f":"\"Gas Annual Production - \"&$B$20","v":"Gas Annual Production - 000 MCF"},{"$f":"IF(ISERROR(DGET(DB_PRD_Profile_Gas,\"PRD_FYE20\"&RIGHT(D$25,2),$BV$7:$BV$8)),\"\",$BF$8*DGET(DB_PRD_Profile_Gas,\"PRD_FYE20\"&RIGHT(D$25,2),$BV$7:$BV$8))","v":""},"","","","","","","","","","",2058.4895624999999,1044.0023643,"","",null,null,null,null,null,null,null,null,null,null,null,null,null,null,null,null,null,null,null,null,null,null,null,null,null,null,null,null,null,null,null,null,null,null,null,{"$f":"IF(ISERROR(DGET(DB_GAS_ANAL,\"Sample_date\",$BG$24:$BH$25)),\"\",DGET(DB_GAS_ANAL,\"Sample_date\",$BG$24:$BH$25))","v":""},"WA_NUM","Sample_Order","WA_NUM","Sample_Order","WA_NUM","Sample_Order","M:20","MADV_020",0,"","","","","",{"$error":"#N/A"},"MPRD_020",{"$error":"#N/A"},null,null,null,null,null,null,null,null,{"$f":"Search!$C25","v":"39493 - TOURMALINE ET AL HZ NIG CREEK A-H094-J/094-A-13"},{"$f":"Search!$B25","v":39493}]
[null,null,{"$f":"\"Gas Daily Production - Annual - \"&$B$20&\"/d\"","v":"Gas Daily Production - Annual - 000 MCF/d"},{"$f":"IF(ISERROR($BQ$88),\"\",$BQ$88)","v":""},{"$f":"IF(ISERROR($BQ$89),\"\",$BQ$89)","v":""},{"$f":"IF(ISERROR($BQ$90),\"\",$BQ$90)","v":""},{"$f":"IF(ISERROR($BQ$91),\"\",$BQ$91)","v":""},{"$f":"IF(ISERROR($BQ$92),\"\",$BQ$92)","v":""},{"$f":"IF(ISERROR($BQ$93),\"\",$BQ$93)","v":""},{"$f":"IF(ISERROR($BQ$94),\"\",$BQ$94)","v":""},{"$f":"IF(ISERROR($BQ$95),\"\",$BQ$95)","v":""},{"$f":"IF(ISERROR($BQ$96),\"\",$BQ$96)","v":""},{"$f":"IF(ISERROR($BQ$97),\"\",$BQ$97)","v":""},{"$f":"IF(ISERROR($BQ$98),\"\",$BQ$98)","v":""},{"$f":"IF(ISERROR($BQ$99),\"\",$BQ$99)","v":9.0324315689999999},{"$f":"IF(ISERROR($BQ$100),\"\",$BQ$100)","v":4.4463374550000001},{"$f":"IF(ISERROR($BQ$101),\"\",$BQ$101)","v":""},{"$f":"IF(ISERROR($BQ$102),\"\",$BQ$102)","v":""},null,null,null,null,null,null,null,null,null,null,null,null,null,null,null,null,null,null,null,null,null,null,null,null,null,null,null,null,null,null,null,null,null,null,null,null,{"$f":"$BL$2","v":49886},4,{"$f":"$BL$2","v":49886},5,{"$f":"$BL$2","v":49886},6,"M:21","MADV_021",0,"","","","","",{"$error":"#N/A"},"MPRD_021",{"$error":"#N/A"}]
[null,null,{"$f":"\"Condensate Annual Production - \"&$BE$9","v":"Condensate Annual Production - bbl"},{"$f":"IF(ISERROR(DGET(DB_PRD_Profile_Gas,\"CND_FYE20\"&RIGHT(D$25,2),$BV$7:$BV$8)),\"\",$BF$9*DGET(DB_PRD_Profile_Gas,\"CND_FYE20\"&RIGHT(D$25,2),$BV$7:$BV$8))","v":""},"","","","","","","","","","",207.57,0,"","",null,null,null,null,null,null,null,null,null,null,null,null,null,null,null,null,null,null,null,null,null,null,null,null,null,null,null,null,null,null,null,null,null,null,null,null,null,null,null,null,null,null,"M:22","MADV_022",0,"","","","","",{"$error":"#N/A"},"MPRD_022",{"$error":"#N/A"}]
[null,null,{"$f":"\"Oil Annual Production - \"&$BE$9","v":"Oil Annual Production - bbl"},{"$f":"IF(ISERROR(DGET(DB_PRD_Profile_Gas,\"OIL_FYE20\"&RIGHT(D$25,2),$BV$7:$BV$8)),\"\",$BF$9*DGET(DB_PRD_Profile_Gas,\"OIL_FYE20\"&RIGHT(D$25,2),$BV$7:$BV$8))","v":""},"","","","","","","","","","",0,0,"","",null,null,null,null,null,null,null,null,null,null,null,null,null,null,null,null,null,null,null,null,null,null,null,null,null,null,null,null,null,null,null,null,null,null,null,null,null,null,null,null,null,null,"M:23","MADV_023",0,"","","","","",{"$error":"#N/A"},"MPRD_023",{"$error":"#N/A"}]
[null,null,null,1,2,3,4,5,6,7,8,9,10,11,12,13,14,15,null,null,null,null,null,null,null,null,null,null,null,null,null,null,null,null,null,null,null,null,null,null,null,null,null,null,null,null,null,null,null,null,null,null,null,null,null,null,null,null,null,null,"M:24","MADV_024",0,"","","","","",{"$f":"IF(ISERROR(SUM(BK30:BP30)),\"-\",IF(SUM(BK30:BP30)=0,$BU$5,SUM(BK30:BP30)))","v":{"$error":"#N/A"}},"MPRD_024",{"$error":"#N/A"}]
[null,null,{"$f":"\"Gas Daily Production - First Months - \"&$B$20&\"/d\"","v":"Gas Daily Production - First Months - 000 MCF/d"},{"$f":"IF(ISERROR($BQ$7),\"\",1*$BQ$7)","v":10.881074337000001},{"$f":"IF(ISERROR($BQ$8),\"\",1*$BQ$8)","v":10.413088979999999},{"$f":"IF(ISERROR($BQ$9),\"\",1*$BQ$9)","v":9.2633354099999998},{"$f":"IF(ISERROR($BQ$10),\"\",1*$BQ$10)","v":8.2477256399999987},{"$f":"IF(ISERROR($BQ$11),\"\",1*$BQ$11)","v":8.673208593},{"$f":"IF(ISERROR($BQ$12),\"\",1*$BQ$12)","v":9.2518978860000001},{"$f":"IF(ISERROR($BQ$13),\"\",1*$BQ$13)","v":8.2701770759999995},{"$f":"IF(ISERROR($BQ$14),\"\",1*$BQ$14)","v":7.8772063440000002},{"$f":"IF(ISERROR($BQ$15),\"\",1*$BQ$15)","v":5.8798404629999999},{"$f":"IF(ISERROR($BQ$16),\"\",1*$BQ$16)","v":5.2394803229999996},{"$f":"IF(ISERROR($BQ$17),\"\",1*$BQ$17)","v":4.8602769810000002},{"$f":"IF(ISERROR($BQ$18),\"\",1*$BQ$18)","v":4.5305656409999999},{"$f":"IF(ISERROR($BQ$19),\"\",1*$BQ$19)","v":4.2013838159999999},{"$f":"IF(ISERROR($BQ$20),\"\",1*$BQ$20)","v":3.9200701469999997},{"$f":"IF(ISERROR($BQ$21),\"\",1*$BQ$21)","v":3.7526022029999999},null,null,{"$f":"\"Annual Gas Production - All Zones - \"&$B$20","v":"Annual Gas Production - All Zones - 000 MCF"},null,null,null,null,null,null,null,null,null,null,null,null,null,null,null,null,null,null,null,null,null,null,null,null,null,null,null,null,null,null,null,null,null,null,null,null,null,null,null,"M:25","MADV_025",0,"","","","","",{"$f":"IF(SUM(BK31:BP31)=0,$BU$5,SUM(BK31:BP31))","v":{"$error":"#N/A"}},"MPRD_025",{"$error":"#N/A"}]
[null,null,{"$f":"\"Gas Daily Production - Annual - \"&$B$20&\"/d\"","v":"Gas Daily Production - Annual - 000 MCF/d"},{"$f":"IF(ISERROR($BQ$67),\"\",1*$BQ$67)","v":7.7204346030000002},{"$f":"IF(ISERROR($BQ$68),\"\",1*$BQ$68)","v":3.8700486299999999},{"$f":"IF(ISERROR($BQ$69),\"\",1*$BQ$69)","v":""},{"$f":"IF(ISERROR($BQ$70),\"\",1*$BQ$70)","v":""},{"$f":"IF(ISERROR($BQ$71),\"\",1*$BQ$71)","v":""},{"$f":"IF(ISERROR($BQ$72),\"\",1*$BQ$72)","v":""},{"$f":"IF(ISERROR($BQ$73),\"\",1*$BQ$73)","v":""},{"$f":"IF(ISERROR($BQ$74),\"\",1*$BQ$74)","v":""},{"$f":"IF(ISERROR($BQ$75),\"\",1*$BQ$75)","v":""},{"$f":"IF(ISERROR($BQ$76),\"\",1*$BQ$76)","v":""},{"$f":"IF(ISERROR($BQ$77),\"\",1*$BQ$77)","v":""},{"$f":"IF(ISERROR($BQ$78),\"\",1*$BQ$78)","v":""},{"$f":"IF(ISERROR($BQ$79),\"\",1*$BQ$79)","v":""},{"$f":"IF(ISERROR($BQ$80),\"\",1*$BQ$80)","v":""},{"$f":"IF(ISERROR($BQ$81),\"\",1*$BQ$81)","v":""},null,null,null,null,null,null,null,null,null,null,null,null,null,null,null,null,null,null,null,null,null,null,null,null,null,null,null,null,null,null,null,null,null,null,null,null,null,null,null,null,null,null,"M:26","MADV_026",0,"","","","","",{"$error":"#N/A"},"MPRD_026",{"$error":"#N/A"}]
[null,null,null,null,null,null,null,null,null,null,null,null,null,null,null,null,null,null,null,null,null,null,null,null,null,null,null,null,null,null,null,null,null,null,null,null,null,null,null,null,null,null,null,null,null,null,null,null,null,null,null,null,null,null,null,null,null,null,null,null,"M:27","MADV_027",0,"","","","","",{"$error":"#N/A"},"MPRD_027",{"$error":"#N/A"}]
[null,null,"Days on Production - First Months",{"$f":"IF(D31=\"\",\"\",D22/D31)","v":19.400007137365076},30,30,30.000000000000004,30.000040701200277,30.100043497172685,27.899998292612135,30.50003585128885,21.499972983195548,30.99991241249672,29.800045031631086,30.499996104128844,31.000033608926532,29.99990994804002,31.000065849505656,null,null,null,null,null,null,null,null,null,null,null,null,null,null,null,null,null,null,null,null,null,null,null,null,null,null,null,null,null,null,null,null,null,null,null,null,null,null,null,null,null,null,"M:28","MADV_028",0,"","","","","",{"$error":"#N/A"},"MPRD_028",{"$error":"#N/A"}]
[null,null,"Days on Production - Annual",340.6994874327284,121.99945270455167,"","","","","","","","","","","","","",null,null,null,null,null,null,null,null,null,null,null,null,null,null,null,null,null,null,null,null,null,null,null,null,null,null,null,null,null,null,null,null,null,null,null,null,null,null,null,null,null,null,"M:29","MADV_029",0,"","","","","",{"$error":"#N/A"},"MPRD_029",{"$error":"#N/A"}]
[null,null,null,null,null,null,null,null,null,null,null,null,null,null,null,null,null,null,null,null,null,null,null,null,null,null,null,null,null,null,null,null,null,null,null,null,null,null,null,null,null,null,null,null,null,null,null,null,null,null,null,null,null,"WA_NUM","Compltn_Order",{"$f":"IF(ISERROR(DGET(DB_Fracs,\"Compltn_Date\",$BB36:$BC37)),\"\",DGET(DB_Fracs,\"Compltn_Date\",$BB36:$BC37))","v":""},"First 5 Fracs",null,null,null,"M:30","MADV_030",0,"","","","","",{"$error":"#N/A"},"MPRD_030",{"$error":"#N/A"}]
["Gas Analysis",null,"Sample Date","H2","Helium","CO2","H2S","N2","C1","C2","C3","IC4","NC4","IC5","NC5","C6-C10",null,"All Samples",null,null,null,null,null,null,null,null,null,null,null,null,null,null,null,null,null,null,null,null,null,null,null,null,null,null,null,null,null,null,null,null,null,null,null,{"$f":"$BL$2","v":49886},{"$f":"IF($C$44=$BE$37,6,IF($C$44=$BE$38,11,IF($C$44=$BE$39,16,IF($C$44=$BE$40,21,IF($C$44=$BE$41,26,1)))))","v":1},null,"Fracs - 6 to 10",null,null,null,"M:31","MADV_031",0,"","","","","",{"$error":"#N/A"},"MPRD_031",{"$error":"#N/A"}]
[null,null,{"$f":"IF($BB24=\"\",\"\",LEFT(BB24,4)&\"-\"&RIGHT(LEFT(BB24,6),2)&\"-\"&RIGHT(BB24,2))","v":"2024-08-15"},{"$f":"IF(ISERROR(DGET(DB_GAS_ANAL,\"H2_fractn\",$BC$24:$BD$25)),\"\",DGET(DB_GAS_ANAL,\"H2_fractn\",$BC$24:$BD$25))","v":1E-4},{"$f":"IF(ISERROR(DGET(DB_GAS_ANAL,\"Helium_fractn\",$BC$24:$BD$25)),\"\",DGET(DB_GAS_ANAL,\"Helium_fractn\",$BC$24:$BD$25))","v":0},{"$f":"IF(ISERROR(DGET(DB_GAS_ANAL,\"CO2_fractn\",$BC$24:$BD$25)),\"\",DGET(DB_GAS_ANAL,\"CO2_fractn\",$BC$24:$BD$25))","v":1.4E-3},{"$f":"IF(ISERROR(DGET(DB_GAS_ANAL,\"H2S_fractn\",$BC$24:$BD$25)),\"\",DGET(DB_GAS_ANAL,\"H2S_fractn\",$BC$24:$BD$25))","v":0},{"$f":"IF(ISERROR(DGET(DB_GAS_ANAL,\"N2_fractn\",$BC$24:$BD$25)),\"\",DGET(DB_GAS_ANAL,\"N2_fractn\",$BC$24:$BD$25))","v":1.4E-3},{"$f":"IF(ISERROR(DGET(DB_GAS_ANAL,\"C1_fractn\",$BC$24:$BD$25)),\"\",DGET(DB_GAS_ANAL,\"C1_fractn\",$BC$24:$BD$25))","v":0.8296},{"$f":"IF(ISERROR(DGET(DB_GAS_ANAL,\"C2_fractn\",$BC$24:$BD$25)),\"\",DGET(DB_GAS_ANAL,\"C2_fractn\",$BC$24:$BD$25))","v":9.8299999999999998E-2},{"$f":"IF(ISERROR(DGET(DB_GAS_ANAL,\"C3_fractn\",$BC$24:$BD$25)),\"\",DGET(DB_GAS_ANAL,\"C3_fractn\",$BC$24:$BD$25))","v":3.6999999999999998E-2},{"$f":"IF(ISERROR(DGET(DB_GAS_ANAL,\"Ic4_fractn\",$BC$24:$BD$25)),\"\",DGET(DB_GAS_ANAL,\"Ic4_fractn\",$BC$24:$BD$25))","v":7.4000000000000003E-3},{"$f":"IF(ISERROR(DGET(DB_GAS_ANAL,\"Nc4_fractn\",$BC$24:$BD$25)),\"\",DGET(DB_GAS_ANAL,\"Nc4_fractn\",$BC$24:$BD$25))","v":1.11E-2},{"$f":"IF(ISERROR(DGET(DB_GAS_ANAL,\"Ic5_fractn\",$BC$24:$BD$25)),\"\",DGET(DB_GAS_ANAL,\"Ic5_fractn\",$BC$24:$BD$25))","v":3.7000000000000002E-3},{"$f":"IF(ISERROR(DGET(DB_GAS_ANAL,\"Nc5_fractn\",$BC$24:$BD$25)),\"\",DGET(DB_GAS_ANAL,\"Nc5_fractn\",$BC$24:$BD$25))","v":3.5999999999999999E-3},{"$f":"IF($BB24=\"\",\"\",IF(ISERROR(DGET(DB_GAS_ANAL,\"C6_fractn\",$BC$24:$BD$25)),0,DGET(DB_GAS_ANAL,\"C6_fractn\",$BC$24:$BD$25))\n+IF(ISERROR(DGET(DB_GAS_ANAL,\"C7_fractn\",$BC$24:$BD$25)),0,DGET(DB_GAS_ANAL,\"C7_fractn\",$BC$24:$BD$25))\n+IF(ISERROR(DGET(DB_GAS_ANAL,\"C8_fractn\",$BC$24:$BD$25)),0,DGET(DB_GAS_ANAL,\"C8_fractn\",$BC$24:$BD$25))\n+IF(ISERROR(DGET(DB_GAS_ANAL,\"C9_fractn\",$BC$24:$BD$25)),0,DGET(DB_GAS_ANAL,\"C9_fractn\",$BC$24:$BD$25))\n+IF(ISERROR(DGET(DB_GAS_ANAL,\"C10_fractn\",$BC$24:$BD$25)),0,DGET(DB_GAS_ANAL,\"C10_fractn\",$BC$24:$BD$25)))","v":6.3999999999999994E-3},null,"CO2","H2S",null,null,null,null,null,null,null,null,null,null,null,null,null,null,null,null,null,null,null,null,null,null,null,null,null,null,null,null,null,null,null,null,null,null,"WA_NUM","Compltn_Order",{"$f":"IF(ISERROR(DGET(DB_Fracs,\"Compltn_Date\",$BB38:$BC39)),\"\",DGET(DB_Fracs,\"Compltn_Date\",$BB38:$BC39))","v":""},"Fracs - 11 to 15",null,null,null,"M:32","MADV_032",0,"","","","","",{"$error":"#N/A"},"MPRD_032",{"$error":"#N/A"}]
[null,null,{"$f":"IF($BB25=\"\",\"\",LEFT(BB25,4)&\"-\"&RIGHT(LEFT(BB25,6),2)&\"-\"&RIGHT(BB25,2))","v":""},{"$f":"IF(ISERROR(DGET(DB_GAS_ANAL,\"H2_fractn\",$BE$24:$BF$25)),\"\",DGET(DB_GAS_ANAL,\"H2_fractn\",$BE$24:$BF$25))","v":""},{"$f":"IF(ISERROR(DGET(DB_GAS_ANAL,\"Helium_fractn\",$BE$24:$BF$25)),\"\",DGET(DB_GAS_ANAL,\"Helium_fractn\",$BE$24:$BF$25))","v":""},{"$f":"IF(ISERROR(DGET(DB_GAS_ANAL,\"CO2_fractn\",$BE$24:$BF$25)),\"\",DGET(DB_GAS_ANAL,\"CO2_fractn\",$BE$24:$BF$25))","v":""},{"$f":"IF(ISERROR(DGET(DB_GAS_ANAL,\"H2S_fractn\",$BE$24:$BF$25)),\"\",DGET(DB_GAS_ANAL,\"H2S_fractn\",$BE$24:$BF$25))","v":""},{"$f":"IF(ISERROR(DGET(DB_GAS_ANAL,\"N2_fractn\",$BE$24:$BF$25)),\"\",DGET(DB_GAS_ANAL,\"N2_fractn\",$BE$24:$BF$25))","v":""},{"$f":"IF(ISERROR(DGET(DB_GAS_ANAL,\"C1_fractn\",$BE$24:$BF$25)),\"\",DGET(DB_GAS_ANAL,\"C1_fractn\",$BE$24:$BF$25))","v":""},{"$f":"IF(ISERROR(DGET(DB_GAS_ANAL,\"C2_fractn\",$BE$24:$BF$25)),\"\",DGET(DB_GAS_ANAL,\"C2_fractn\",$BE$24:$BF$25))","v":""},{"$f":"IF(ISERROR(DGET(DB_GAS_ANAL,\"C3_fractn\",$BE$24:$BF$25)),\"\",DGET(DB_GAS_ANAL,\"C3_fractn\",$BE$24:$BF$25))","v":""},{"$f":"IF(ISERROR(DGET(DB_GAS_ANAL,\"Ic4_fractn\",$BE$24:$BF$25)),\"\",DGET(DB_GAS_ANAL,\"Ic4_fractn\",$BE$24:$BF$25))","v":""},{"$f":"IF(ISERROR(DGET(DB_GAS_ANAL,\"Nc4_fractn\",$BE$24:$BF$25)),\"\",DGET(DB_GAS_ANAL,\"Nc4_fractn\",$BE$24:$BF$25))","v":""},{"$f":"IF(ISERROR(DGET(DB_GAS_ANAL,\"Ic5_fractn\",$BE$24:$BF$25)),\"\",DGET(DB_GAS_ANAL,\"Ic5_fractn\",$BE$24:$BF$25))","v":""},{"$f":"IF(ISERROR(DGET(DB_GAS_ANAL,\"Nc5_fractn\",$BE$24:$BF$25)),\"\",DGET(DB_GAS_ANAL,\"Nc5_fractn\",$BE$24:$BF$25))","v":""},{"$f":"IF($BB25=\"\",\"\",IF(ISERROR(DGET(DB_GAS_ANAL,\"C6_fractn\",$BE$24:$BF$25)),0,DGET(DB_GAS_ANAL,\"C6_fractn\",$BE$24:$BF$25))\n+IF(ISERROR(DGET(DB_GAS_ANAL,\"C7_fractn\",$BE$24:$BF$25)),0,DGET(DB_GAS_ANAL,\"C7_fractn\",$BE$24:$BF$25))\n+IF(ISERROR(DGET(DB_GAS_ANAL,\"C8_fractn\",$BE$24:$BF$25)),0,DGET(DB_GAS_ANAL,\"C8_fractn\",$BE$24:$BF$25))\n+IF(ISERROR(DGET(DB_GAS_ANAL,\"C9_fractn\",$BE$24:$BF$25)),0,DGET(DB_GAS_ANAL,\"C9_fractn\",$BE$24:$BF$25))\n+IF(ISERROR(DGET(DB_GAS_ANAL,\"C10_fractn\",$BE$24:$BF$25)),0,DGET(DB_GAS_ANAL,\"C10_fractn\",$BE$24:$BF$25)))","v":""},"Max",{"$f":"IF(ISERROR(DMAX(DB_GAS_ANAL,\"CO2_fractn\",$BC$24:$BC$25)),\"\",DMAX(DB_GAS_ANAL,\"CO2_fractn\",$BC$24:$BC$25))","v":1.4E-3},{"$f":"IF(ISERROR(DMAX(DB_GAS_ANAL,\"H2S_fractn\",$BC$24:$BC$25)),\"\",DMAX(DB_GAS_ANAL,\"H2S_fractn\",$BC$24:$BC$25))","v":0},null,null,null,null,null,null,null,null,null,null,null,null,null,null,null,null,null,null,null,null,null,null,null,null,null,null,null,null,null,null,null,null,null,null,{"$f":"$BL$2","v":49886},{"$f":"BC37+1","v":2},null,"Fracs - 16 to 20",null,null,null,"M:33","MADV_033",{"$f":"IF(ISERROR(DGET(DB_ADV_Profile_Gas,$BJ39,$BU$7:$BV$8)),\"\",$BF$8*DGET(DB_ADV_Profile_Gas,$BJ39,$BU$7:$BV$8))","v":0},{"$f":"IF(ISERROR(DGET(DB_ADV_Profile_Gas,$BJ39,$BV$7:$BW$8)),\"\",$BF$8*DGET(DB_ADV_Profile_Gas,$BJ39,$BV$7:$BW$8))","v":""},{"$f":"IF(ISERROR(DGET(DB_ADV_Profile_Gas,$BJ39,$BU$9:$BV$10)),\"\",$BF$8*DGET(DB_ADV_Profile_Gas,$BJ39,$BU$9:$BV$10))","v":""},{"$f":"IF(ISERROR(DGET(DB_ADV_Profile_Gas,$BJ39,$BV$9:$BW$10)),\"\",$BF$8*DGET(DB_ADV_Profile_Gas,$BJ39,$BV$9:$BW$10))","v":""},{"$f":"IF(ISERROR(DGET(DB_ADV_Profile_Gas,$BJ39,$BU$11:$BV$12)),\"\",$BF$8*DGET(DB_ADV_Profile_Gas,$BJ39,$BU$11:$BV$12))","v":""},{"$f":"IF(ISERROR(DGET(DB_ADV_Profile_Gas,$BJ39,$BV$11:$BW$12)),\"\",$BF$8*DGET(DB_ADV_Profile_Gas,$BJ39,$BV$11:$BW$12))","v":""},{"$f":"IF(SUM(BK39:BP39)=0,$BU$5,SUM(BK39:BP39))","v":{"$error":"#N/A"}},"MPRD_033",{"$f":"IF(ISERROR(DGET(DB_PRD_Profile_Gas,$BR39,$BV$7:$BV$8)),$BU$5,$BF$8*DGET(DB_PRD_Profile_Gas,$BR39,$BV$7:$BV$8))","v":{"$error":"#N/A"}}]
[null,null,{"$f":"IF($BB26=\"\",\"\",LEFT(BB26,4)&\"-\"&RIGHT(LEFT(BB26,6),2)&\"-\"&RIGHT(BB26,2))","v":""},{"$f":"IF(ISERROR(DGET(DB_GAS_ANAL,\"H2_fractn\",$BG$24:$BH$25)),\"\",DGET(DB_GAS_ANAL,\"H2_fractn\",$BG$24:$BH$25))","v":""},{"$f":"IF(ISERROR(DGET(DB_GAS_ANAL,\"Helium_fractn\",$BG$24:$BH$25)),\"\",DGET(DB_GAS_ANAL,\"Helium_fractn\",$BG$24:$BH$25))","v":""},{"$f":"IF(ISERROR(DGET(DB_GAS_ANAL,\"CO2_fractn\",$BG$24:$BH$25)),\"\",DGET(DB_GAS_ANAL,\"CO2_fractn\",$BG$24:$BH$25))","v":""},{"$f":"IF(ISERROR(DGET(DB_GAS_ANAL,\"H2S_fractn\",$BG$24:$BH$25)),\"\",DGET(DB_GAS_ANAL,\"H2S_fractn\",$BG$24:$BH$25))","v":""},{"$f":"IF(ISERROR(DGET(DB_GAS_ANAL,\"N2_fractn\",$BG$24:$BH$25)),\"\",DGET(DB_GAS_ANAL,\"N2_fractn\",$BG$24:$BH$25))","v":""},{"$f":"IF(ISERROR(DGET(DB_GAS_ANAL,\"C1_fractn\",$BG$24:$BH$25)),\"\",DGET(DB_GAS_ANAL,\"C1_fractn\",$BG$24:$BH$25))","v":""},{"$f":"IF(ISERROR(DGET(DB_GAS_ANAL,\"C2_fractn\",$BG$24:$BH$25)),\"\",DGET(DB_GAS_ANAL,\"C2_fractn\",$BG$24:$BH$25))","v":""},{"$f":"IF(ISERROR(DGET(DB_GAS_ANAL,\"C3_fractn\",$BG$24:$BH$25)),\"\",DGET(DB_GAS_ANAL,\"C3_fractn\",$BG$24:$BH$25))","v":""},{"$f":"IF(ISERROR(DGET(DB_GAS_ANAL,\"Ic4_fractn\",$BG$24:$BH$25)),\"\",DGET(DB_GAS_ANAL,\"Ic4_fractn\",$BG$24:$BH$25))","v":""},{"$f":"IF(ISERROR(DGET(DB_GAS_ANAL,\"Nc4_fractn\",$BG$24:$BH$25)),\"\",DGET(DB_GAS_ANAL,\"Nc4_fractn\",$BG$24:$BH$25))","v":""},{"$f":"IF(ISERROR(DGET(DB_GAS_ANAL,\"Ic5_fractn\",$BG$24:$BH$25)),\"\",DGET(DB_GAS_ANAL,\"Ic5_fractn\",$BG$24:$BH$25))","v":""},{"$f":"IF(ISERROR(DGET(DB_GAS_ANAL,\"Nc5_fractn\",$BG$24:$BH$25)),\"\",DGET(DB_GAS_ANAL,\"Nc5_fractn\",$BG$24:$BH$25))","v":""},{"$f":"IF($BB26=\"\",\"\",IF(ISERROR(DGET(DB_GAS_ANAL,\"C6_fractn\",$BG$24:$BH$25)),0,DGET(DB_GAS_ANAL,\"C6_fractn\",$BG$24:$BH$25))\n+IF(ISERROR(DGET(DB_GAS_ANAL,\"C7_fractn\",$BG$24:$BH$25)),0,DGET(DB_GAS_ANAL,\"C7_fractn\",$BG$24:$BH$25))\n+IF(ISERROR(DGET(DB_GAS_ANAL,\"C8_fractn\",$BG$24:$BH$25)),0,DGET(DB_GAS_ANAL,\"C8_fractn\",$BG$24:$BH$25))\n+IF(ISERROR(DGET(DB_GAS_ANAL,\"C9_fractn\",$BG$24:$BH$25)),0,DGET(DB_GAS_ANAL,\"C9_fractn\",$BG$24:$BH$25))\n+IF(ISERROR(DGET(DB_GAS_ANAL,\"C10_fractn\",$BG$24:$BH$25)),0,DGET(DB_GAS_ANAL,\"C10_fractn\",$BG$24:$BH$25)))","v":""},"Min",{"$f":"IF(ISERROR(DMIN(DB_GAS_ANAL,\"CO2_fractn\",$BC$24:$BC$25)),\"\",DMIN(DB_GAS_ANAL,\"CO2_fractn\",$BC$24:$BC$25))","v":1.4E-3},{"$f":"IF(ISERROR(DMIN(DB_GAS_ANAL,\"H2S_fractn\",$BC$24:$BC$25)),\"\",DMIN(DB_GAS_ANAL,\"H2S_fractn\",$BC$24:$BC$25))","v":0},null,null,null,null,null,null,null,null,null,null,null,null,null,null,null,null,null,null,null,null,null,null,null,null,null,null,null,null,null,null,null,null,null,null,"WA_NUM","Compltn_Order",{"$f":"IF(ISERROR(DGET(DB_Fracs,\"Compltn_Date\",$BB40:$BC41)),\"\",DGET(DB_Fracs,\"Compltn_Date\",$BB40:$BC41))","v":""},"Fracs - 21 to 25",null,null,null,"M:34","MADV_034",0,"","","","","",{"$error":"#N/A"},"MPRD_034",{"$error":"#N/A"}]
[null,null,null,null,null,null,null,null,null,null,null,null,null,null,null,null,null,null,null,null,null,null,null,null,null,null,null,null,null,null,null,null,null,null,null,null,null,null,null,null,null,null,null,null,null,null,null,null,null,null,null,null,null,{"$f":"$BL$2","v":49886},{"$f":"BC39+1","v":3},null,"Fracs - 26 to 30",null,null,null,"M:35","MADV_035",0,"","","","","",{"$error":"#N/A"},"MPRD_035",{"$error":"#N/A"}]
["Fracs",null,null,null,null,"CO2","SLH","SLW","DGL","NES",null,null,null,null,null,null,null,null,null,null,null,null,null,null,null,null,null,null,null,null,null,null,null,null,null,null,null,null,null,null,null,null,null,null,null,null,null,null,null,null,null,null,null,"WA_NUM","Compltn_Order",{"$f":"IF(ISERROR(DGET(DB_Fracs,\"Compltn_Date\",$BB42:$BC43)),\"\",DGET(DB_Fracs,\"Compltn_Date\",$BB42:$BC43))","v":""},null,null,null,null,"M:36","MADV_036",0,"","","","","",{"$error":"#N/A"},"MPRD_036",{"$error":"#N/A"}]
[null,null,null,null,"Number",{"$f":"IF(ISERROR(DSUM(DB_FRAC_SUMMARY,\"NUM_CO2_FRACS\",$BB$36:$BB$37)),\"\",DSUM(DB_FRAC_SUMMARY,\"NUM_CO2_FRACS\",$BB$36:$BB$37))","v":0},{"$f":"IF(ISERROR(DSUM(DB_FRAC_SUMMARY,\"NUM_SLH_FRACS\",$BB$36:$BB$37)),\"\",DSUM(DB_FRAC_SUMMARY,\"NUM_SLH_FRACS\",$BB$36:$BB$37))","v":0},{"$f":"IF(ISERROR(DSUM(DB_FRAC_SUMMARY,\"NUM_SLW_FRACS\",$BB$36:$BB$37)),\"\",DSUM(DB_FRAC_SUMMARY,\"NUM_SLW_FRACS\",$BB$36:$BB$37))","v":0},{"$f":"IF(ISERROR(DSUM(DB_FRAC_SUMMARY,\"NUM_DGL_FRACS\",$BB$36:$BB$37)),\"\",DSUM(DB_FRAC_SUMMARY,\"NUM_DGL_FRACS\",$BB$36:$BB$37))","v":0},{"$f":"IF(ISERROR(DSUM(DB_FRAC_SUMMARY,\"NUM_NES_FRACS\",$BB$36:$BB$37)),\"\",DSUM(DB_FRAC_SUMMARY,\"NUM_NES_FRACS\",$BB$36:$BB$37))","v":0},null,null,null,null,null,null,null,null,null,null,null,null,null,null,null,null,null,null,null,null,null,null,null,null,null,null,null,null,null,null,null,null,null,null,null,null,null,null,null,null,null,null,null,{"$f":"$BL$2","v":49886},{"$f":"BC41+1","v":4},null,null,null,null,null,"M:37","MADV_037",0,"","","","","",{"$error":"#N/A"},"MPRD_037",{"$error":"#N/A"}]
[null,"Display","First 5 Fracs",null,"Average Tonnes",{"$f":"IF(F43<>0,IF(ISERROR(DSUM(DB_FRAC_SUMMARY,\"CO2_TONNES\",$BB$36:$BB$37)),\"\",DSUM(DB_FRAC_SUMMARY,\"CO2_TONNES\",$BB$36:$BB$37))/F43,\"\")","v":""},{"$f":"IF(G43<>0,IF(ISERROR(DSUM(DB_FRAC_SUMMARY,\"SLH_TONNES\",$BB$36:$BB$37)),\"\",DSUM(DB_FRAC_SUMMARY,\"SLH_TONNES\",$BB$36:$BB$37))/G43,\"\")","v":""},{"$f":"IF(H43<>0,IF(ISERROR(DSUM(DB_FRAC_SUMMARY,\"SLW_TONNES\",$BB$36:$BB$37)),\"\",DSUM(DB_FRAC_SUMMARY,\"SLW_TONNES\",$BB$36:$BB$37))/H43,\"\")","v":""},{"$f":"IF(I43<>0,IF(ISERROR(DSUM(DB_FRAC_SUMMARY,\"SLW_TONNES\",$BB$36:$BB$37)),\"\",DSUM(DB_FRAC_SUMMARY,\"SLW_TONNES\",$BB$36:$BB$37))/I43,\"\")","v":""},{"$f":"IF(J43<>0,IF(ISERROR(DSUM(DB_FRAC_SUMMARY,\"SLW_TONNES\",$BB$36:$BB$37)),\"\",DSUM(DB_FRAC_SUMMARY,\"SLW_TONNES\",$BB$36:$BB$37))/J43,\"\")","v":""},null,null,null,null,null,null,null,null,null,null,null,null,null,null,null,null,null,null,null,null,null,null,null,null,null,null,null,null,null,null,null,null,null,null,null,null,null,null,null,null,null,null,null,"WA_NUM","Compltn_Order",{"$f":"IF(ISERROR(DGET(DB_Fracs,\"Compltn_Date\",$BB44:$BC45)),\"\",DGET(DB_Fracs,\"Compltn_Date\",$BB44:$BC45))","v":""},null,null,null,null,"M:38","MADV_038",0,"","","","","",{"$error":"#N/A"},"MPRD_038",{"$error":"#N/A"}]
[null,null,null,null,null,null,null,null,null,null,null,null,null,null,null,null,null,null,null,null,{"$f":"\"Annual Gas Production - All Zones - \"&$B$20","v":"Annual Gas Production - All Zones - 000 MCF"},null,null,null,null,null,null,null,null,null,null,null,null,null,null,null,null,null,null,null,null,null,null,null,null,null,null,null,null,null,null,null,null,{"$f":"$BL$2","v":49886},{"$f":"BC43+1","v":5},null,null,null,null,null,"M:39","MADV_039",0,"","","","","",{"$error":"#N/A"},"MPRD_039",{"$error":"#N/A"}]
[null,"UWI","Date","Description",null,null,null,null,null,null,null,null,null,null,null,null,null,null,null,null,null,null,null,null,null,null,null,null,null,null,null,null,null,null,null,null,null,null,null,null,null,null,null,null,null,null,null,null,null,null,null,null,null,null,null,{"$f":"IF(ISERROR(DGET(DB_Fracs,\"Compltn_Date\",$BB46:$BC47)),\"\",DGET(DB_Fracs,\"Compltn_Date\",$BB46:$BC47))","v":""},null,null,null,null,"M:40","MADV_040",0,"","","","","",{"$error":"#N/A"},"MPRD_040",{"$error":"#N/A"}]
[{"$f":"\"Frac #\"&BC37","v":"Frac #1"},{"$f":"IF(ISERROR(DGET(DB_Fracs,\"UWI\",$BB36:$BC37)),\"\",DGET(DB_Fracs,\"UWI\",$BB36:$BC37))","v":""},{"$f":"IF(BD36=\"\",\"\",DATE(ROUND(BD36/10000,0),RIGHT(LEFT(BD36,6),2),RIGHT(BD36,2)))","v":""},{"$f":"IF(ISERROR(DGET(DB_Fracs,\"Compltn_Summry\",$BB36:$BC37)),\"\",DGET(DB_Fracs,\"Compltn_Summry\",$BB36:$BC37))","v":""},null,null,null,null,null,null,null,null,null,null,null,null,null,null,null,null,null,null,null,null,null,null,null,null,null,null,null,null,null,null,null,null,null,null,null,null,null,null,null,null,null,null,null,null,null,null,null,null,null,null,null,null,null,null,null,null,"M:41","MADV_041",0,"","","","","",{"$error":"#N/A"},"MPRD_041",{"$error":"#N/A"}]
[null,null,null,null,null,null,null,null,null,null,null,null,null,null,null,null,null,null,null,null,null,null,null,null,null,null,null,null,null,null,null,null,null,null,null,null,null,null,null,null,null,null,null,null,null,null,null,null,null,null,null,null,null,null,null,{"$f":"IF(ISERROR(DGET(DB_Fracs,\"Compltn_Date\",$BB48:$BC49)),\"\",DGET(DB_Fracs,\"Compltn_Date\",$BB48:$BC49))","v":""},null,null,null,null,"M:42","MADV_042",0,"","","","","",{"$error":"#N/A"},"MPRD_042",{"$error":"#N/A"}]
[{"$f":"\"Frac #\"&BC39","v":"Frac #2"},{"$f":"IF(ISERROR(DGET(DB_Fracs,\"UWI\",$BB38:$BC39)),\"\",DGET(DB_Fracs,\"UWI\",$BB38:$BC39))","v":""},{"$f":"IF(BD38=\"\",\"\",DATE(ROUND(BD38/10000,0),RIGHT(LEFT(BD38,6),2),RIGHT(BD38,2)))","v":""},{"$f":"IF(ISERROR(DGET(DB_Fracs,\"Compltn_Summry\",$BB38:$BC39)),\"\",DGET(DB_Fracs,\"Compltn_Summry\",$BB38:$BC39))","v":""},null,null,null,null,null,null,null,null,null,null,null,null,null,null,null,null,null,null,null,null,null,null,null,null,null,null,null,null,null,null,null,null,null,null,null,null,null,null,null,null,null,null,null,null,null,null,null,null,null,null,null,null,null,null,null,null,"M:43","MADV_043",0,"","","","","",{"$error":"#N/A"},"MPRD_043",{"$error":"#N/A"}]
[null,null,null,null,null,null,null,null,null,null,null,null,null,null,null,null,null,null,null,null,null,null,null,null,null,null,null,null,null,null,null,null,null,null,null,null,null,null,null,null,null,null,null,null,null,null,null,null,null,null,null,null,null,null,null,{"$f":"IF(ISERROR(DGET(DB_Fracs,\"Compltn_Date\",$BB50:$BC51)),\"\",DGET(DB_Fracs,\"Compltn_Date\",$BB50:$BC51))","v":""},null,null,null,null,"M:44","MADV_044",0,"","","","","",{"$error":"#N/A"},"MPRD_044",{"$error":"#N/A"}]
[{"$f":"\"Frac #\"&BC41","v":"Frac #3"},{"$f":"IF(ISERROR(DGET(DB_Fracs,\"UWI\",$BB40:$BC41)),\"\",DGET(DB_Fracs,\"UWI\",$BB40:$BC41))","v":""},{"$f":"IF(BD40=\"\",\"\",DATE(ROUND(BD40/10000,0),RIGHT(LEFT(BD40,6),2),RIGHT(BD40,2)))","v":""},{"$f":"IF(ISERROR(DGET(DB_Fracs,\"Compltn_Summry\",$BB40:$BC41)),\"\",DGET(DB_Fracs,\"Compltn_Summry\",$BB40:$BC41))","v":""},null,null,null,null,null,null,null,null,null,null,null,null,null,null,null,null,null,null,null,null,null,null,null,null,null,null,null,null,null,null,null,null,null,null,null,null,null,null,null,null,null,null,null,null,null,null,null,null,null,null,null,null,null,null,null,null,"M:45","MADV_045",0,"","","","","",{"$error":"#N/A"},"MPRD_045",{"$error":"#N/A"}]
[null,null,null,null,null,null,null,null,null,null,null,null,null,null,null,null,null,null,null,null,null,null,null,null,null,null,null,null,null,null,null,null,null,null,null,null,null,null,null,null,null,null,null,null,null,null,null,null,null,null,null,null,null,null,null,{"$f":"IF(ISERROR(DGET(DB_Fracs,\"Compltn_Date\",$BB52:$BC53)),\"\",DGET(DB_Fracs,\"Compltn_Date\",$BB52:$BC53))","v":""},null,null,null,null,"M:46","MADV_046",0,"","","","","",{"$error":"#N/A"},"MPRD_046",{"$error":"#N/A"}]
[{"$f":"\"Frac #\"&BC43","v":"Frac #4"},{"$f":"IF(ISERROR(DGET(DB_Fracs,\"UWI\",$BB42:$BC43)),\"\",DGET(DB_Fracs,\"UWI\",$BB42:$BC43))","v":""},{"$f":"IF(BD42=\"\",\"\",DATE(ROUND(BD42/10000,0),RIGHT(LEFT(BD42,6),2),RIGHT(BD42,2)))","v":""},{"$f":"IF(ISERROR(DGET(DB_Fracs,\"Compltn_Summry\",$BB42:$BC43)),\"\",DGET(DB_Fracs,\"Compltn_Summry\",$BB42:$BC43))","v":""},null,null,null,null,null,null,null,null,null,null,null,null,null,null,null,null,null,null,null,null,null,null,null,null,null,null,null,null,null,null,null,null,null,null,null,null,null,null,null,null,null,null,null,null,null,null,null,null,null,null,null,null,null,null,null,null,"M:47","MADV_047",0,"","","","","",{"$error":"#N/A"},"MPRD_047",{"$error":"#N/A"}]
[null,null,null,null,null,null,null,null,null,null,null,null,null,null,null,null,null,null,null,null,null,null,null,null,null,null,null,null,null,null,null,null,null,null,null,null,null,null,null,null,null,null,null,null,null,null,null,null,null,null,null,null,null,null,null,{"$f":"IF(ISERROR(DGET(DB_Fracs,\"Compltn_Date\",$BB54:$BC55)),\"\",DGET(DB_Fracs,\"Compltn_Date\",$BB54:$BC55))","v":""},null,null,null,null,"M:48","MADV_048",0,"","","","","",{"$error":"#N/A"},"MPRD_048",{"$error":"#N/A"}]
[{"$f":"\"Frac #\"&BC45","v":"Frac #5"},{"$f":"IF(ISERROR(DGET(DB_Fracs,\"UWI\",$BB44:$BC45)),\"\",DGET(DB_Fracs,\"UWI\",$BB44:$BC45))","v":""},{"$f":"IF(BD44=\"\",\"\",DATE(ROUND(BD44/10000,0),RIGHT(LEFT(BD44,6),2),RIGHT(BD44,2)))","v":""},{"$f":"IF(ISERROR(DGET(DB_Fracs,\"Compltn_Summry\",$BB44:$BC45)),\"\",DGET(DB_Fracs,\"Compltn_Summry\",$BB44:$BC45))","v":""},null,null,null,null,null,null,null,null,null,null,null,null,null,null,null,null,null,null,null,null,null,null,null,null,null,null,null,null,null,null,null,null,null,null,null,null,null,null,null,null,null,null,null,null,null,null,null,null,null,null,null,null,null,null,null,null,"M:49","MADV_049",0,"","","","","",{"$error":"#N/A"},"MPRD_049",{"$error":"#N/A"}]
[null,null,null,null,null,null,null,null,null,null,null,null,null,null,null,null,null,null,null,null,null,null,null,null,null,null,null,null,null,null,null,null,null,null,null,null,null,null,null,null,null,null,null,null,null,null,null,null,null,null,null,null,null,null,null,{"$f":"IF(ISERROR(DGET(DB_Fracs,\"Compltn_Date\",$BB56:$BC57)),\"\",DGET(DB_Fracs,\"Compltn_Date\",$BB56:$BC57))","v":""},null,null,null,null,"M:50","MADV_050",0,"","","","","",{"$error":"#N/A"},"MPRD_050",{"$error":"#N/A"}]
["Abandonment Details",null,null,null,null,null,null,null,null,null,null,null,null,null,null,null,null,null,null,null,null,null,null,null,null,null,null,null,null,null,null,null,null,null,null,null,null,null,null,null,null,null,null,null,null,null,null,null,null,null,null,null,null,null,null,null,null,null,null,null,"M:51","MADV_051",0,"","","","","",{"$error":"#N/A"},"MPRD_051",{"$error":"#N/A"}]
[null,null,null,null,null,null,null,null,null,null,null,null,null,null,null,null,null,null,null,null,null,null,null,null,null,null,null,null,null,null,null,null,null,null,null,null,null,null,null,null,null,null,null,null,null,null,null,null,null,null,null,null,null,null,null,{"$f":"IF(ISERROR(DGET(DB_Fracs,\"Compltn_Date\",$BB58:$BC59)),\"\",DGET(DB_Fracs,\"Compltn_Date\",$BB58:$BC59))","v":""},null,null,null,null,"M:52","MADV_052",0,"","","","","",{"$error":"#N/A"},"MPRD_052",{"$error":"#N/A"}]
[null,"Display","First 5 Records",null,null,null,null,null,null,null,"Bridge",null,null,null,null,null,null,null,null,null,null,null,null,null,null,null,null,null,null,null,null,null,null,null,null,null,null,null,null,null,null,null,null,null,null,null,null,null,null,null,null,null,null,null,null,null,null,null,null,null,"M:53","MADV_053",0,"","","","","",{"$error":"#N/A"},"MPRD_053",{"$error":"#N/A"}]
[null,null,null,"Event","Plug","Plug","Top","Base","Cement","Cement","Plug Set",null,null,null,null,null,null,null,null,null,null,null,null,null,null,null,null,null,null,null,null,null,null,null,null,null,null,null,null,null,null,null,null,null,null,null,null,null,null,null,null,null,null,null,null,{"$f":"IF(ISERROR(DGET(DB_Fracs,\"Compltn_Date\",$BB60:$BC61)),\"\",DGET(DB_Fracs,\"Compltn_Date\",$BB60:$BC61))","v":""},null,null,null,null,"M:54","MADV_054",0,"","","","","",{"$error":"#N/A"},"MPRD_054",{"$error":"#N/A"}]
[null,"UWI","Date","Seq","Number","Type","Depth","Depth","Volume","Grade","Depth","Remarks",null,null,null,null,null,null,null,null,null,null,null,null,null,null,null,null,null,null,null,null,null,null,null,null,null,null,null,null,null,null,null,null,null,null,null,null,null,null,null,null,null,null,null,null,null,null,null,null,"M:55","MADV_055",0,"","","","","",{"$error":"#N/A"},"MPRD_055",{"$error":"#N/A"}]
[{"$f":"\"Rec #\"&BC64","v":"Rec #1"},{"$f":"IF(ISERROR(DGET(DB_ABANDON,\"UWI\",$BB63:$BC64)),\"\",DGET(DB_ABANDON,\"UWI\",$BB63:$BC64))","v":""},{"$f":"IF(BD63=\"\",\"\",DATE(ROUND(BD63/10000,0),RIGHT(LEFT(BD63,6),2),RIGHT(BD63,2)))","v":""},{"$f":"IF(ISERROR(DGET(DB_ABANDON,\"Drillng_Event_Seq\",$BB63:$BC64)),\"\",DGET(DB_ABANDON,\"Drillng_Event_Seq\",$BB63:$BC64))","v":""},{"$f":"IF(ISERROR(DGET(DB_ABANDON,\"PLUG_NUM\",$BB63:$BC64)),\"\",DGET(DB_ABANDON,\"PLUG_NUM\",$BB63:$BC64))","v":""},{"$f":"IF(ISERROR(DGET(DB_ABANDON,\"PLUG_TYPE\",$BB63:$BC64)),\"\",DGET(DB_ABANDON,\"PLUG_TYPE\",$BB63:$BC64))","v":""},{"$f":"IF(ISERROR(DGET(DB_ABANDON,\"Top_Depth\",$BB63:$BC64)),\"\",DGET(DB_ABANDON,\"Top_Depth\",$BB63:$BC64))","v":""},{"$f":"IF(ISERROR(DGET(DB_ABANDON,\"Base_Depth\",$BB63:$BC64)),\"\",DGET(DB_ABANDON,\"Base_Depth\",$BB63:$BC64))","v":""},{"$f":"IF(ISERROR(DGET(DB_ABANDON,\"Cement_Vol\",$BB63:$BC64)),\"\",DGET(DB_ABANDON,\"Cement_Vol\",$BB63:$BC64))","v":""},{"$f":"IF(ISERROR(DGET(DB_ABANDON,\"Cement_Grade\",$BB63:$BC64)),\"\",DGET(DB_ABANDON,\"Cement_Grade\",$BB63:$BC64))","v":""},{"$f":"IF(ISERROR(DGET(DB_ABANDON,\"Bridge_Plug_Set_Depth\",$BB63:$BC64)),\"\",DGET(DB_ABANDON,\"Bridge_Plug_Set_Depth\",$BB63:$BC64))","v":""},{"$f":"IF(ISERROR(DGET(DB_ABANDON,\"Remarks\",$BB63:$BC64)),\"\",DGET(DB_ABANDON,\"Remarks\",$BB63:$BC64))","v":""},null,null,null,null,null,null,null,null,null,null,null,null,null,null,null,null,null,null,null,null,null,null,null,null,null,null,null,null,null,null,null,null,null,null,null,null,null,null,null,null,null,null,null,null,null,null,null,null,"M:56","MADV_056",0,"","","","","",{"$error":"#N/A"},"MPRD_056",{"$error":"#N/A"}]
[null,null,null,null,null,null,null,null,null,null,null,null,null,null,null,null,null,null,null,null,null,null,null,null,null,null,null,null,null,null,null,null,null,null,null,null,null,null,null,null,null,null,null,null,null,null,null,null,null,null,null,null,null,"WA_NUM","Order",{"$f":"IF(ISERROR(DGET(DB_ABANDON,\"Abandonment_Date\",$BB63:$BC64)),\"\",DGET(DB_ABANDON,\"Abandonment_Date\",$BB63:$BC64))","v":""},"First 5 Records",null,null,null,"M:57","MADV_057",0,"","","","","",{"$error":"#N/A"},"MPRD_057",{"$error":"#N/A"}]
[{"$f":"\"Rec #\"&BC66","v":"Rec #2"},{"$f":"IF(ISERROR(DGET(DB_ABANDON,\"UWI\",$BB65:$BC66)),\"\",DGET(DB_ABANDON,\"UWI\",$BB65:$BC66))","v":""},{"$f":"IF(BD65=\"\",\"\",DATE(ROUND(BD65/10000,0),RIGHT(LEFT(BD65,6),2),RIGHT(BD65,2)))","v":""},{"$f":"IF(ISERROR(DGET(DB_ABANDON,\"Drillng_Event_Seq\",$BB65:$BC66)),\"\",DGET(DB_ABANDON,\"Drillng_Event_Seq\",$BB65:$BC66))","v":""},{"$f":"IF(ISERROR(DGET(DB_ABANDON,\"PLUG_NUM\",$BB65:$BC66)),\"\",DGET(DB_ABANDON,\"PLUG_NUM\",$BB65:$BC66))","v":""},{"$f":"IF(ISERROR(DGET(DB_ABANDON,\"PLUG_TYPE\",$BB65:$BC66)),\"\",DGET(DB_ABANDON,\"PLUG_TYPE\",$BB65:$BC66))","v":""},{"$f":"IF(ISERROR(DGET(DB_ABANDON,\"Top_Depth\",$BB65:$BC66)),\"\",DGET(DB_ABANDON,\"Top_Depth\",$BB65:$BC66))","v":""},{"$f":"IF(ISERROR(DGET(DB_ABANDON,\"Base_Depth\",$BB65:$BC66)),\"\",DGET(DB_ABANDON,\"Base_Depth\",$BB65:$BC66))","v":""},{"$f":"IF(ISERROR(DGET(DB_ABANDON,\"Cement_Vol\",$BB65:$BC66)),\"\",DGET(DB_ABANDON,\"Cement_Vol\",$BB65:$BC66))","v":""},{"$f":"IF(ISERROR(DGET(DB_ABANDON,\"Cement_Grade\",$BB65:$BC66)),\"\",DGET(DB_ABANDON,\"Cement_Grade\",$BB65:$BC66))","v":""},{"$f":"IF(ISERROR(DGET(DB_ABANDON,\"Bridge_Plug_Set_Depth\",$BB65:$BC66)),\"\",DGET(DB_ABANDON,\"Bridge_Plug_Set_Depth\",$BB65:$BC66))","v":""},{"$f":"IF(ISERROR(DGET(DB_ABANDON,\"Remarks\",$BB65:$BC66)),\"\",DGET(DB_ABANDON,\"Remarks\",$BB65:$BC66))","v":""},null,null,null,null,null,null,null,null,null,null,null,null,null,null,null,null,null,null,null,null,null,null,null,null,null,null,null,null,null,null,null,null,null,null,null,null,null,null,null,null,null,{"$f":"$BL$2","v":49886},{"$f":"IF($C$59=$BE$64,6,IF($C$59=$BE$65,11,IF($C$59=$BE$66,16,IF($C$59=$BE$67,21,IF($C$59=$BE$68,26,1)))))","v":1},null,"Records - 6 to 10",null,null,null,"M:58","MADV_058",0,"","","","","",{"$error":"#N/A"},"MPRD_058",{"$error":"#N/A"}]
[null,null,null,null,null,null,null,null,null,null,null,null,null,null,null,null,null,null,null,null,null,null,null,null,null,null,null,null,null,null,null,null,null,null,null,null,null,null,null,null,null,null,null,null,null,null,null,null,null,null,null,null,null,"WA_NUM","Order",{"$f":"IF(ISERROR(DGET(DB_ABANDON,\"Abandonment_Date\",$BB65:$BC66)),\"\",DGET(DB_ABANDON,\"Abandonment_Date\",$BB65:$BC66))","v":""},"Records - 11 to 15",null,null,null,"M:59","MADV_059",0,"","","","","",{"$error":"#N/A"},"MPRD_059",{"$error":"#N/A"}]
[{"$f":"\"Rec #\"&BC68","v":"Rec #3"},{"$f":"IF(ISERROR(DGET(DB_ABANDON,\"UWI\",$BB67:$BC68)),\"\",DGET(DB_ABANDON,\"UWI\",$BB67:$BC68))","v":""},{"$f":"IF(BD67=\"\",\"\",DATE(ROUND(BD67/10000,0),RIGHT(LEFT(BD67,6),2),RIGHT(BD67,2)))","v":""},{"$f":"IF(ISERROR(DGET(DB_ABANDON,\"Drillng_Event_Seq\",$BB67:$BC68)),\"\",DGET(DB_ABANDON,\"Drillng_Event_Seq\",$BB67:$BC68))","v":""},{"$f":"IF(ISERROR(DGET(DB_ABANDON,\"PLUG_NUM\",$BB67:$BC68)),\"\",DGET(DB_ABANDON,\"PLUG_NUM\",$BB67:$BC68))","v":""},{"$f":"IF(ISERROR(DGET(DB_ABANDON,\"PLUG_TYPE\",$BB67:$BC68)),\"\",DGET(DB_ABANDON,\"PLUG_TYPE\",$BB67:$BC68))","v":""},{"$f":"IF(ISERROR(DGET(DB_ABANDON,\"Top_Depth\",$BB67:$BC68)),\"\",DGET(DB_ABANDON,\"Top_Depth\",$BB67:$BC68))","v":""},{"$f":"IF(ISERROR(DGET(DB_ABANDON,\"Base_Depth\",$BB67:$BC68)),\"\",DGET(DB_ABANDON,\"Base_Depth\",$BB67:$BC68))","v":""},{"$f":"IF(ISERROR(DGET(DB_ABANDON,\"Cement_Vol\",$BB67:$BC68)),\"\",DGET(DB_ABANDON,\"Cement_Vol\",$BB67:$BC68))","v":""},{"$f":"IF(ISERROR(DGET(DB_ABANDON,\"Cement_Grade\",$BB67:$BC68)),\"\",DGET(DB_ABANDON,\"Cement_Grade\",$BB67:$BC68))","v":""},{"$f":"IF(ISERROR(DGET(DB_ABANDON,\"Bridge_Plug_Set_Depth\",$BB67:$BC68)),\"\",DGET(DB_ABANDON,\"Bridge_Plug_Set_Depth\",$BB67:$BC68))","v":""},{"$f":"IF(ISERROR(DGET(DB_ABANDON,\"Remarks\",$BB67:$BC68)),\"\",DGET(DB_ABANDON,\"Remarks\",$BB67:$BC68))","v":""},null,null,null,null,null,null,null,null,null,null,null,null,null,null,null,null,null,null,null,null,null,null,null,null,null,null,null,null,null,null,null,null,null,null,null,null,null,null,null,null,null,{"$f":"$BL$2","v":49886},{"$f":"$BC64+1","v":2},null,"Records - 16 to 20",null,null,null,"M:60","MADV_060",0,"","","","","",{"$error":"#N/A"},"MPRD_060",{"$error":"#N/A"}]
[null,null,null,null,null,null,null,null,null,null,null,null,null,null,null,null,null,null,null,null,null,null,null,null,null,null,null,null,null,null,null,null,null,null,null,null,null,null,null,null,null,null,null,null,null,null,null,null,null,null,null,null,null,"WA_NUM","Order",{"$f":"IF(ISERROR(DGET(DB_ABANDON,\"Abandonment_Date\",$BB67:$BC68)),\"\",DGET(DB_ABANDON,\"Abandonment_Date\",$BB67:$BC68))","v":""},"Records - 21 to 25",null,null,null,"Y:01","YADV_01",7.7204346030000002,"","","","","",7.7204346030000002,"YPRD_01",2630.3481120000001]
[{"$f":"\"Rec #\"&BC70","v":"Rec #4"},{"$f":"IF(ISERROR(DGET(DB_ABANDON,\"UWI\",$BB69:$BC70)),\"\",DGET(DB_ABANDON,\"UWI\",$BB69:$BC70))","v":""},{"$f":"IF(BD69=\"\",\"\",DATE(ROUND(BD69/10000,0),RIGHT(LEFT(BD69,6),2),RIGHT(BD69,2)))","v":""},{"$f":"IF(ISERROR(DGET(DB_ABANDON,\"Drillng_Event_Seq\",$BB69:$BC70)),\"\",DGET(DB_ABANDON,\"Drillng_Event_Seq\",$BB69:$BC70))","v":""},{"$f":"IF(ISERROR(DGET(DB_ABANDON,\"PLUG_NUM\",$BB69:$BC70)),\"\",DGET(DB_ABANDON,\"PLUG_NUM\",$BB69:$BC70))","v":""},{"$f":"IF(ISERROR(DGET(DB_ABANDON,\"PLUG_TYPE\",$BB69:$BC70)),\"\",DGET(DB_ABANDON,\"PLUG_TYPE\",$BB69:$BC70))","v":""},{"$f":"IF(ISERROR(DGET(DB_ABANDON,\"Top_Depth\",$BB69:$BC70)),\"\",DGET(DB_ABANDON,\"Top_Depth\",$BB69:$BC70))","v":""},{"$f":"IF(ISERROR(DGET(DB_ABANDON,\"Base_Depth\",$BB69:$BC70)),\"\",DGET(DB_ABANDON,\"Base_Depth\",$BB69:$BC70))","v":""},{"$f":"IF(ISERROR(DGET(DB_ABANDON,\"Cement_Vol\",$BB69:$BC70)),\"\",DGET(DB_ABANDON,\"Cement_Vol\",$BB69:$BC70))","v":""},{"$f":"IF(ISERROR(DGET(DB_ABANDON,\"Cement_Grade\",$BB69:$BC70)),\"\",DGET(DB_ABANDON,\"Cement_Grade\",$BB69:$BC70))","v":""},{"$f":"IF(ISERROR(DGET(DB_ABANDON,\"Bridge_Plug_Set_Depth\",$BB69:$BC70)),\"\",DGET(DB_ABANDON,\"Bridge_Plug_Set_Depth\",$BB69:$BC70))","v":""},{"$f":"IF(ISERROR(DGET(DB_ABANDON,\"Remarks\",$BB69:$BC70)),\"\",DGET(DB_ABANDON,\"Remarks\",$BB69:$BC70))","v":""},null,null,null,null,null,null,null,null,null,null,null,null,null,null,null,null,null,null,null,null,null,null,null,null,null,null,null,null,null,null,null,null,null,null,null,null,null,null,null,null,null,{"$f":"$BL$2","v":49886},{"$f":"$BC66+1","v":3},null,"Records - 26 to 30",null,null,null,"Y:02","YADV_02",3.8700486299999999,"","","","","",3.8700486299999999,"YPRD_02",472.14381479999997]
[null,null,null,null,null,null,null,null,null,null,null,null,null,null,null,null,null,null,null,null,null,null,null,null,null,null,null,null,null,null,null,null,null,null,null,null,null,null,null,null,null,null,null,null,null,null,null,null,null,null,null,null,null,"WA_NUM","Order",{"$f":"IF(ISERROR(DGET(DB_ABANDON,\"Abandonment_Date\",$BB69:$BC70)),\"\",DGET(DB_ABANDON,\"Abandonment_Date\",$BB69:$BC70))","v":""},null,null,null,null,"Y:03","YADV_03",0,"","","","","",{"$error":"#N/A"},"YPRD_03",{"$error":"#N/A"}]
[{"$f":"\"Rec #\"&BC72","v":"Rec #5"},{"$f":"IF(ISERROR(DGET(DB_ABANDON,\"UWI\",$BB71:$BC72)),\"\",DGET(DB_ABANDON,\"UWI\",$BB71:$BC72))","v":""},{"$f":"IF(BD71=\"\",\"\",DATE(ROUND(BD71/10000,0),RIGHT(LEFT(BD71,6),2),RIGHT(BD71,2)))","v":""},{"$f":"IF(ISERROR(DGET(DB_ABANDON,\"Drillng_Event_Seq\",$BB71:$BC72)),\"\",DGET(DB_ABANDON,\"Drillng_Event_Seq\",$BB71:$BC72))","v":""},{"$f":"IF(ISERROR(DGET(DB_ABANDON,\"PLUG_NUM\",$BB71:$BC72)),\"\",DGET(DB_ABANDON,\"PLUG_NUM\",$BB71:$BC72))","v":""},{"$f":"IF(ISERROR(DGET(DB_ABANDON,\"PLUG_TYPE\",$BB71:$BC72)),\"\",DGET(DB_ABANDON,\"PLUG_TYPE\",$BB71:$BC72))","v":""},{"$f":"IF(ISERROR(DGET(DB_ABANDON,\"Top_Depth\",$BB71:$BC72)),\"\",DGET(DB_ABANDON,\"Top_Depth\",$BB71:$BC72))","v":""},{"$f":"IF(ISERROR(DGET(DB_ABANDON,\"Base_Depth\",$BB71:$BC72)),\"\",DGET(DB_ABANDON,\"Base_Depth\",$BB71:$BC72))","v":""},{"$f":"IF(ISERROR(DGET(DB_ABANDON,\"Cement_Vol\",$BB71:$BC72)),\"\",DGET(DB_ABANDON,\"Cement_Vol\",$BB71:$BC72))","v":""},{"$f":"IF(ISERROR(DGET(DB_ABANDON,\"Cement_Grade\",$BB71:$BC72)),\"\",DGET(DB_ABANDON,\"Cement_Grade\",$BB71:$BC72))","v":""},{"$f":"IF(ISERROR(DGET(DB_ABANDON,\"Bridge_Plug_Set_Depth\",$BB71:$BC72)),\"\",DGET(DB_ABANDON,\"Bridge_Plug_Set_Depth\",$BB71:$BC72))","v":""},{"$f":"IF(ISERROR(DGET(DB_ABANDON,\"Remarks\",$BB71:$BC72)),\"\",DGET(DB_ABANDON,\"Remarks\",$BB71:$BC72))","v":""},null,null,null,null,null,null,null,null,null,null,null,null,null,null,null,null,null,null,null,null,null,null,null,null,null,null,null,null,null,null,null,null,null,null,null,null,null,null,null,null,null,{"$f":"$BL$2","v":49886},{"$f":"$BC68+1","v":4},null,null,null,null,null,"Y:04","YADV_04",0,"","","","","",{"$error":"#N/A"},"YPRD_04",{"$error":"#N/A"}]
[null,null,null,null,null,null,null,null,null,null,null,null,null,null,null,null,null,null,null,null,null,null,null,null,null,null,null,null,null,null,null,null,null,null,null,null,null,null,null,null,null,null,null,null,null,null,null,null,null,null,null,null,null,"WA_NUM","Order",{"$f":"IF(ISERROR(DGET(DB_ABANDON,\"Abandonment_Date\",$BB71:$BC72)),\"\",DGET(DB_ABANDON,\"Abandonment_Date\",$BB71:$BC72))","v":""},null,null,null,null,"Y:05","YADV_05",{"$f":"IF(ISERROR(DGET(DB_ADV_Profile_Gas,$BJ71,$BU$7:$BV$8)),\"\",$BF$8*DGET(DB_ADV_Profile_Gas,$BJ71,$BU$7:$BV$8))","v":0},{"$f":"IF(ISERROR(DGET(DB_ADV_Profile_Gas,$BJ71,$BV$7:$BW$8)),\"\",$BF$8*DGET(DB_ADV_Profile_Gas,$BJ71,$BV$7:$BW$8))","v":""},{"$f":"IF(ISERROR(DGET(DB_ADV_Profile_Gas,$BJ71,$BU$9:$BV$10)),\"\",$BF$8*DGET(DB_ADV_Profile_Gas,$BJ71,$BU$9:$BV$10))","v":""},{"$f":"IF(ISERROR(DGET(DB_ADV_Profile_Gas,$BJ71,$BV$9:$BW$10)),\"\",$BF$8*DGET(DB_ADV_Profile_Gas,$BJ71,$BV$9:$BW$10))","v":""},{"$f":"IF(ISERROR(DGET(DB_ADV_Profile_Gas,$BJ71,$BU$11:$BV$12)),\"\",$BF$8*DGET(DB_ADV_Profile_Gas,$BJ71,$BU$11:$BV$12))","v":""},{"$f":"IF(ISERROR(DGET(DB_ADV_Profile_Gas,$BJ71,$BV$11:$BW$12)),\"\",$BF$8*DGET(DB_ADV_Profile_Gas,$BJ71,$BV$11:$BW$12))","v":""},{"$error":"#N/A"},"YPRD_05",{"$f":"IF(ISERROR(DGET(DB_PRD_Profile_Gas,$BR71,$BV$7:$BV$8)),$BU$5,$BF$8*DGET(DB_PRD_Profile_Gas,$BR71,$BV$7:$BV$8))","v":{"$error":"#N/A"}}]
["Casing Details",null,null,null,null,null,null,null,null,null,null,null,null,null,null,null,null,null,null,null,null,null,null,null,null,null,null,null,null,null,null,null,null,null,null,null,null,null,null,null,null,null,null,null,null,null,null,null,null,null,null,null,null,{"$f":"$BL$2","v":49886},{"$f":"$BC70+1","v":5},null,null,null,null,null,"Y:06","YADV_06",0,"","","","","",{"$error":"#N/A"},"YPRD_06",{"$error":"#N/A"}]
[null,null,null,null,null,null,null,null,null,null,null,null,null,null,null,null,null,null,null,null,null,null,null,null,null,null,null,null,null,null,null,null,null,null,null,null,null,null,null,null,null,null,null,null,null,null,null,null,null,null,null,null,null,null,null,null,null,null,null,null,"Y:07","YADV_07",0,"","","","","",{"$error":"#N/A"},"YPRD_07",{"$error":"#N/A"}]
[null,"Display","Last 5 Segments",null,"Casing",null,null,"Casing","Casing",null,null,null,null,null,null,null,null,null,null,null,null,null,null,null,null,null,null,null,null,null,null,null,null,null,null,null,null,null,null,null,null,null,null,null,null,null,null,null,null,null,null,null,null,null,null,null,null,null,null,null,"Y:08","YADV_08",0,"","","","","",{"$error":"#N/A"},"YPRD_08",{"$error":"#N/A"}]
[null,null,null,"Event","Shoe","Casing","Casing","Grade","Joint","Cement","Casing",null,null,null,null,null,null,null,null,null,null,null,null,null,null,null,null,null,null,null,null,null,null,null,null,null,null,null,null,null,null,null,null,null,null,null,null,null,null,null,null,null,null,null,null,{"$f":"IF(ISERROR(DGET(DB_Fracs,\"Compltn_Date\",$BB75:$BC76)),\"\",DGET(DB_Fracs,\"Compltn_Date\",$BB75:$BC76))","v":""},null,null,null,null,"Y:09","YADV_09",0,"","","","","",{"$error":"#N/A"},"YPRD_09",{"$error":"#N/A"}]
[null,"UWI","Date","Seq","Depth","Size","Type","Code","Quantity","Volume","Weight","Comments",null,null,null,null,null,null,null,null,null,null,null,null,null,null,null,null,null,null,null,null,null,null,null,null,null,null,null,null,null,null,null,null,null,null,null,null,null,null,null,null,null,null,null,null,null,null,null,null,"Y:10","YADV_10",0,"","","","","",{"$error":"#N/A"},"YPRD_10",{"$error":"#N/A"}]
[{"$f":"\"Seg #\"&BC79","v":"Seg #1"},{"$f":"IF(ISERROR(DGET(DB_CASINGS,\"UWI\",$BB78:$BC79)),\"\",DGET(DB_CASINGS,\"UWI\",$BB78:$BC79))","v":"207B090A094B1600"},{"$f":"IF(BD78=\"\",\"\",DATE(ROUND(BD78/10000,0),RIGHT(LEFT(BD78,6),2),RIGHT(BD78,2)))","v":"2024-04-21"},{"$f":"IF(ISERROR(DGET(DB_CASINGS,\"Drillng_Event_Seq\",$BB78:$BC79)),\"\",DGET(DB_CASINGS,\"Drillng_Event_Seq\",$BB78:$BC79))","v":0},{"$f":"IF(ISERROR(DGET(DB_CASINGS,\"CASING_SHOE_DEPTH\",$BB78:$BC79)),\"\",DGET(DB_CASINGS,\"CASING_SHOE_DEPTH\",$BB78:$BC79))","v":4360.54},{"$f":"IF(ISERROR(DGET(DB_CASINGS,\"CASING_SIZE\",$BB78:$BC79)),\"\",DGET(DB_CASINGS,\"CASING_SIZE\",$BB78:$BC79))","v":114.3},{"$f":"IF(ISERROR(DGET(DB_CASINGS,\"CASING_TYPE\",$BB78:$BC79)),\"\",DGET(DB_CASINGS,\"CASING_TYPE\",$BB78:$BC79))","v":"PROD"},{"$f":"IF(ISERROR(DGET(DB_CASINGS,\"CASING_GRADE_CODE\",$BB78:$BC79)),\"\",DGET(DB_CASINGS,\"CASING_GRADE_CODE\",$BB78:$BC79))","v":"TN110S"},{"$f":"IF(ISERROR(DGET(DB_CASINGS,\"CASING_JOINT_QTY\",$BB78:$BC79)),\"\",DGET(DB_CASINGS,\"CASING_JOINT_QTY\",$BB78:$BC79))","v":308},{"$f":"IF(ISERROR(DGET(DB_CASINGS,\"CEMENT_VOL\",$BB78:$BC79)),\"\",DGET(DB_CASINGS,\"CEMENT_VOL\",$BB78:$BC79))","v":5.2},{"$f":"IF(ISERROR(DGET(DB_CASINGS,\"CASING_WEIGHT\",$BB78:$BC79)),\"\",DGET(DB_CASINGS,\"CASING_WEIGHT\",$BB78:$BC79))","v":22.47},{"$f":"IF(ISERROR(DGET(DB_CASINGS,\"CASING_COMMENTS\",$BB78:$BC79)),\"\",DGET(DB_CASINGS,\"CASING_COMMENTS\",$BB78:$BC79))","v":""},null,null,null,null,null,null,null,null,null,null,null,null,null,null,null,null,null,null,null,null,null,null,null,null,null,null,null,null,null,null,null,null,null,null,null,null,null,null,null,null,null,null,null,null,null,null,null,null,"Y:11","YADV_11",0,"","","","","",{"$error":"#N/A"},"YPRD_11",{"$error":"#N/A"}]
[null,null,null,null,null,null,null,null,null,null,null,null,null,null,null,null,null,null,null,null,null,null,null,null,null,null,null,null,null,null,null,null,null,null,null,null,null,null,null,null,null,null,null,null,null,null,null,null,null,null,null,null,null,"WA_NUM","Order",{"$f":"IF(ISERROR(DGET(DB_CASINGS,\"CASING_DATE\",$BB78:$BC79)),\"\",DGET(DB_CASINGS,\"CASING_DATE\",$BB78:$BC79))","v":20240421},"Last 5 Segments",null,null,null,"Y:12","YADV_12",0,"","","","","",{"$error":"#N/A"},"YPRD_12",{"$error":"#N/A"}]
[{"$f":"\"Seg #\"&BC81","v":"Seg #2"},{"$f":"IF(ISERROR(DGET(DB_CASINGS,\"UWI\",$BB80:$BC81)),\"\",DGET(DB_CASINGS,\"UWI\",$BB80:$BC81))","v":"207B090A094B1600"},{"$f":"IF(BD80=\"\",\"\",DATE(ROUND(BD80/10000,0),RIGHT(LEFT(BD80,6),2),RIGHT(BD80,2)))","v":"2024-04-21"},{"$f":"IF(ISERROR(DGET(DB_CASINGS,\"Drillng_Event_Seq\",$BB80:$BC81)),\"\",DGET(DB_CASINGS,\"Drillng_Event_Seq\",$BB80:$BC81))","v":0},{"$f":"IF(ISERROR(DGET(DB_CASINGS,\"CASING_SHOE_DEPTH\",$BB80:$BC81)),\"\",DGET(DB_CASINGS,\"CASING_SHOE_DEPTH\",$BB80:$BC81))","v":4360.54},{"$f":"IF(ISERROR(DGET(DB_CASINGS,\"CASING_SIZE\",$BB80:$BC81)),\"\",DGET(DB_CASINGS,\"CASING_SIZE\",$BB80:$BC81))","v":114.3},{"$f":"IF(ISERROR(DGET(DB_CASINGS,\"CASING_TYPE\",$BB80:$BC81)),\"\",DGET(DB_CASINGS,\"CASING_TYPE\",$BB80:$BC81))","v":"PROD"},{"$f":"IF(ISERROR(DGET(DB_CASINGS,\"CASING_GRADE_CODE\",$BB80:$BC81)),\"\",DGET(DB_CASINGS,\"CASING_GRADE_CODE\",$BB80:$BC81))","v":"TN110S"},{"$f":"IF(ISERROR(DGET(DB_CASINGS,\"CASING_JOINT_QTY\",$BB80:$BC81)),\"\",DGET(DB_CASINGS,\"CASING_JOINT_QTY\",$BB80:$BC81))","v":308},{"$f":"IF(ISERROR(DGET(DB_CASINGS,\"CEMENT_VOL\",$BB80:$BC81)),\"\",DGET(DB_CASINGS,\"CEMENT_VOL\",$BB80:$BC81))","v":22},{"$f":"IF(ISERROR(DGET(DB_CASINGS,\"CASING_WEIGHT\",$BB80:$BC81)),\"\",DGET(DB_CASINGS,\"CASING_WEIGHT\",$BB80:$BC81))","v":22.47},{"$f":"IF(ISERROR(DGET(DB_CASINGS,\"CASING_COMMENTS\",$BB80:$BC81)),\"\",DGET(DB_CASINGS,\"CASING_COMMENTS\",$BB80:$BC81))","v":""},null,null,null,null,null,null,null,null,null,null,null,null,null,null,null,null,null,null,null,null,null,null,null,null,null,null,null,null,null,null,null,null,null,null,null,null,null,null,null,null,null,{"$f":"$BL$2","v":49886},{"$f":"IF($C$74=$BE$79,6,IF($C$74=$BE$80,11,IF($C$74=$BE$81,16,1)))","v":1},null,"Segments - 6 to 10",null,null,null,{"$f":"CONCATENATE(LEFT(BJ79,1),\":\",RIGHT(BJ79,2))","v":"Y:13"},"YADV_13",0,"","","","","",{"$error":"#N/A"},"YPRD_13",{"$error":"#N/A"}]
[null,null,null,null,null,null,null,null,null,null,null,null,null,null,null,null,null,null,null,null,null,null,null,null,null,null,null,null,null,null,null,null,null,null,null,null,null,null,null,null,null,null,null,null,null,null,null,null,null,null,null,null,null,"WA_NUM","Order",{"$f":"IF(ISERROR(DGET(DB_CASINGS,\"CASING_DATE\",$BB80:$BC81)),\"\",DGET(DB_CASINGS,\"CASING_DATE\",$BB80:$BC81))","v":20240421},"Segments - 11 to 15",null,null,null,"Y:14","YADV_14",0,"","","","","",{"$error":"#N/A"},"YPRD_14",{"$error":"#N/A"}]
[{"$f":"\"Seg #\"&BC83","v":"Seg #3"},{"$f":"IF(ISERROR(DGET(DB_CASINGS,\"UWI\",$BB82:$BC83)),\"\",DGET(DB_CASINGS,\"UWI\",$BB82:$BC83))","v":"207B090A094B1600"},{"$f":"IF(BD82=\"\",\"\",DATE(ROUND(BD82/10000,0),RIGHT(LEFT(BD82,6),2),RIGHT(BD82,2)))","v":"2024-04-21"},{"$f":"IF(ISERROR(DGET(DB_CASINGS,\"Drillng_Event_Seq\",$BB82:$BC83)),\"\",DGET(DB_CASINGS,\"Drillng_Event_Seq\",$BB82:$BC83))","v":0},{"$f":"IF(ISERROR(DGET(DB_CASINGS,\"CASING_SHOE_DEPTH\",$BB82:$BC83)),\"\",DGET(DB_CASINGS,\"CASING_SHOE_DEPTH\",$BB82:$BC83))","v":4360.54},{"$f":"IF(ISERROR(DGET(DB_CASINGS,\"CASING_SIZE\",$BB82:$BC83)),\"\",DGET(DB_CASINGS,\"CASING_SIZE\",$BB82:$BC83))","v":114.3},{"$f":"IF(ISERROR(DGET(DB_CASINGS,\"CASING_TYPE\",$BB82:$BC83)),\"\",DGET(DB_CASINGS,\"CASING_TYPE\",$BB82:$BC83))","v":"PROD"},{"$f":"IF(ISERROR(DGET(DB_CASINGS,\"CASING_GRADE_CODE\",$BB82:$BC83)),\"\",DGET(DB_CASINGS,\"CASING_GRADE_CODE\",$BB82:$BC83))","v":"TN110S"},{"$f":"IF(ISERROR(DGET(DB_CASINGS,\"CASING_JOINT_QTY\",$BB82:$BC83)),\"\",DGET(DB_CASINGS,\"CASING_JOINT_QTY\",$BB82:$BC83))","v":308},{"$f":"IF(ISERROR(DGET(DB_CASINGS,\"CEMENT_VOL\",$BB82:$BC83)),\"\",DGET(DB_CASINGS,\"CEMENT_VOL\",$BB82:$BC83))","v":""},{"$f":"IF(ISERROR(DGET(DB_CASINGS,\"CASING_WEIGHT\",$BB82:$BC83)),\"\",DGET(DB_CASINGS,\"CASING_WEIGHT\",$BB82:$BC83))","v":22.47},{"$f":"IF(ISERROR(DGET(DB_CASINGS,\"CASING_COMMENTS\",$BB82:$BC83)),\"\",DGET(DB_CASINGS,\"CASING_COMMENTS\",$BB82:$BC83))","v":""},null,null,null,null,null,null,null,null,null,null,null,null,null,null,null,null,null,null,null,null,null,null,null,null,null,null,null,null,null,null,null,null,null,null,null,null,null,null,null,null,null,{"$f":"$BL$2","v":49886},{"$f":"$BC79+1","v":2},null,"Segments - 16 to 20",null,null,null,"Y:15","YADV_15",0,"","","","","",{"$error":"#N/A"},"YPRD_15",{"$error":"#N/A"}]
[null,null,null,null,null,null,null,null,null,null,null,null,null,null,null,null,null,null,null,null,null,null,null,null,null,null,null,null,null,null,null,null,null,null,null,null,null,null,null,null,null,null,null,null,null,null,null,null,null,null,null,null,null,"WA_NUM","Order",{"$f":"IF(ISERROR(DGET(DB_CASINGS,\"CASING_DATE\",$BB82:$BC83)),\"\",DGET(DB_CASINGS,\"CASING_DATE\",$BB82:$BC83))","v":20240421},null,null,null,null,"Y:16","YADV_16",0,"","","","","",{"$error":"#N/A"},"YPRD_16",{"$error":"#N/A"}]
[{"$f":"\"Seg #\"&BC85","v":"Seg #4"},{"$f":"IF(ISERROR(DGET(DB_CASINGS,\"UWI\",$BB84:$BC85)),\"\",DGET(DB_CASINGS,\"UWI\",$BB84:$BC85))","v":"207B090A094B1600"},{"$f":"IF(BD84=\"\",\"\",DATE(ROUND(BD84/10000,0),RIGHT(LEFT(BD84,6),2),RIGHT(BD84,2)))","v":"2024-04-11"},{"$f":"IF(ISERROR(DGET(DB_CASINGS,\"Drillng_Event_Seq\",$BB84:$BC85)),\"\",DGET(DB_CASINGS,\"Drillng_Event_Seq\",$BB84:$BC85))","v":0},{"$f":"IF(ISERROR(DGET(DB_CASINGS,\"CASING_SHOE_DEPTH\",$BB84:$BC85)),\"\",DGET(DB_CASINGS,\"CASING_SHOE_DEPTH\",$BB84:$BC85))","v":616.38},{"$f":"IF(ISERROR(DGET(DB_CASINGS,\"CASING_SIZE\",$BB84:$BC85)),\"\",DGET(DB_CASINGS,\"CASING_SIZE\",$BB84:$BC85))","v":177.8},{"$f":"IF(ISERROR(DGET(DB_CASINGS,\"CASING_TYPE\",$BB84:$BC85)),\"\",DGET(DB_CASINGS,\"CASING_TYPE\",$BB84:$BC85))","v":"SURF"},{"$f":"IF(ISERROR(DGET(DB_CASINGS,\"CASING_GRADE_CODE\",$BB84:$BC85)),\"\",DGET(DB_CASINGS,\"CASING_GRADE_CODE\",$BB84:$BC85))","v":"L80-IC"},{"$f":"IF(ISERROR(DGET(DB_CASINGS,\"CASING_JOINT_QTY\",$BB84:$BC85)),\"\",DGET(DB_CASINGS,\"CASING_JOINT_QTY\",$BB84:$BC85))","v":43},{"$f":"IF(ISERROR(DGET(DB_CASINGS,\"CEMENT_VOL\",$BB84:$BC85)),\"\",DGET(DB_CASINGS,\"CEMENT_VOL\",$BB84:$BC85))","v":26},{"$f":"IF(ISERROR(DGET(DB_CASINGS,\"CASING_WEIGHT\",$BB84:$BC85)),\"\",DGET(DB_CASINGS,\"CASING_WEIGHT\",$BB84:$BC85))","v":34.229999999999997},{"$f":"IF(ISERROR(DGET(DB_CASINGS,\"CASING_COMMENTS\",$BB84:$BC85)),\"\",DGET(DB_CASINGS,\"CASING_COMMENTS\",$BB84:$BC85))","v":""},null,null,null,null,null,null,null,null,null,null,null,null,null,null,null,null,null,null,null,null,null,null,null,null,null,null,null,null,null,null,null,null,null,null,null,null,null,null,null,null,null,{"$f":"$BL$2","v":49886},{"$f":"$BC81+1","v":3},null,null,null,null,null,"Y:17","YADV_17",0,"","","","","",{"$error":"#N/A"},"YPRD_17",{"$error":"#N/A"}]
[null,null,null,null,null,null,null,null,null,null,null,null,null,null,null,null,null,null,null,null,null,null,null,null,null,null,null,null,null,null,null,null,null,null,null,null,null,null,null,null,null,null,null,null,null,null,null,null,null,null,null,null,null,"WA_NUM","Order",{"$f":"IF(ISERROR(DGET(DB_CASINGS,\"CASING_DATE\",$BB84:$BC85)),\"\",DGET(DB_CASINGS,\"CASING_DATE\",$BB84:$BC85))","v":20240411},null,null,null,null,"Y:18","YADV_18",0,"","","","","",{"$error":"#N/A"},"YPRD_18",{"$error":"#N/A"}]
[{"$f":"\"Seg #\"&BC87","v":"Seg #5"},{"$f":"IF(ISERROR(DGET(DB_CASINGS,\"UWI\",$BB86:$BC87)),\"\",DGET(DB_CASINGS,\"UWI\",$BB86:$BC87))","v":"207B090A094B1600"},{"$f":"IF(BD86=\"\",\"\",DATE(ROUND(BD86/10000,0),RIGHT(LEFT(BD86,6),2),RIGHT(BD86,2)))","v":"2024-02-29"},{"$f":"IF(ISERROR(DGET(DB_CASINGS,\"Drillng_Event_Seq\",$BB86:$BC87)),\"\",DGET(DB_CASINGS,\"Drillng_Event_Seq\",$BB86:$BC87))","v":0},{"$f":"IF(ISERROR(DGET(DB_CASINGS,\"CASING_SHOE_DEPTH\",$BB86:$BC87)),\"\",DGET(DB_CASINGS,\"CASING_SHOE_DEPTH\",$BB86:$BC87))","v":20},{"$f":"IF(ISERROR(DGET(DB_CASINGS,\"CASING_SIZE\",$BB86:$BC87)),\"\",DGET(DB_CASINGS,\"CASING_SIZE\",$BB86:$BC87))","v":406.4},{"$f":"IF(ISERROR(DGET(DB_CASINGS,\"CASING_TYPE\",$BB86:$BC87)),\"\",DGET(DB_CASINGS,\"CASING_TYPE\",$BB86:$BC87))","v":"COND"},{"$f":"IF(ISERROR(DGET(DB_CASINGS,\"CASING_GRADE_CODE\",$BB86:$BC87)),\"\",DGET(DB_CASINGS,\"CASING_GRADE_CODE\",$BB86:$BC87))","v":"ASTM A252 GRADE 3"},{"$f":"IF(ISERROR(DGET(DB_CASINGS,\"CASING_JOINT_QTY\",$BB86:$BC87)),\"\",DGET(DB_CASINGS,\"CASING_JOINT_QTY\",$BB86:$BC87))","v":2},{"$f":"IF(ISERROR(DGET(DB_CASINGS,\"CEMENT_VOL\",$BB86:$BC87)),\"\",DGET(DB_CASINGS,\"CEMENT_VOL\",$BB86:$BC87))","v":7},{"$f":"IF(ISERROR(DGET(DB_CASINGS,\"CASING_WEIGHT\",$BB86:$BC87)),\"\",DGET(DB_CASINGS,\"CASING_WEIGHT\",$BB86:$BC87))","v":62.64},{"$f":"IF(ISERROR(DGET(DB_CASINGS,\"CASING_COMMENTS\",$BB86:$BC87)),\"\",DGET(DB_CASINGS,\"CASING_COMMENTS\",$BB86:$BC87))","v":""},null,null,null,null,null,null,null,null,null,null,null,null,null,null,null,null,null,null,null,null,null,null,null,null,null,null,null,null,null,null,null,null,null,null,null,null,null,null,null,null,null,{"$f":"$BL$2","v":49886},{"$f":"$BC83+1","v":4},null,null,null,null,null,"Y:19","YADV_19",0,"","","","","",{"$error":"#N/A"},"YPRD_19",{"$error":"#N/A"}]
[null,null,null,null,null,null,null,null,null,null,null,null,null,null,null,null,null,null,null,null,null,null,null,null,null,null,null,null,null,null,null,null,null,null,null,null,null,null,null,null,null,null,null,null,null,null,null,null,null,null,null,null,null,"WA_NUM","Order",{"$f":"IF(ISERROR(DGET(DB_CASINGS,\"CASING_DATE\",$BB86:$BC87)),\"\",DGET(DB_CASINGS,\"CASING_DATE\",$BB86:$BC87))","v":20240229},null,null,null,null,"Y:20","YADV_20",0,"","","","","",{"$error":"#N/A"},"YPRD_20",{"$error":"#N/A"}]
[null,null,null,null,null,null,null,null,null,null,null,null,null,null,null,null,null,null,null,null,null,null,null,null,null,null,null,null,null,null,null,null,null,null,null,null,null,null,null,null,null,null,null,null,null,null,null,null,null,null,null,null,null,{"$f":"$BL$2","v":49886},{"$f":"$BC85+1","v":5},null,null,null,null,null,"A:13","ADV_FYE2013",0,"","","","","",{"$f":"IF(SUM(BK87:BP87)=0,$BU$5,SUM(BK87:BP87))","v":{"$error":"#N/A"}}]
[null,null,null,null,null,null,null,null,null,null,null,null,null,null,null,null,null,null,null,null,null,null,null,null,null,null,null,null,null,null,null,null,null,null,null,null,null,null,null,null,null,null,null,null,null,null,null,null,null,null,null,null,null,null,null,null,null,null,null,null,null,"ADV_FYE2014",0,"","","","","",{"$error":"#N/A"}]
[null,null,null,null,null,null,null,null,null,null,null,null,null,null,null,null,null,null,null,null,null,null,null,null,null,null,null,null,null,null,null,null,null,null,null,null,null,null,null,null,null,null,null,null,null,null,null,null,null,null,null,null,null,null,null,null,null,null,null,null,null,"ADV_FYE2015",0,"","","","","",{"$error":"#N/A"}]
[null,null,null,null,null,null,null,null,null,null,null,null,null,null,null,null,null,null,null,null,null,null,null,null,null,null,null,null,null,null,null,null,null,null,null,null,null,null,null,null,null,null,null,null,null,null,null,null,null,null,null,null,null,null,null,null,null,null,null,null,null,"ADV_FYE2016",0,"","","","","",{"$error":"#N/A"}]
[null,null,null,null,null,null,null,null,null,null,null,null,null,null,null,null,null,null,null,null,null,null,null,null,null,null,null,null,null,null,null,null,null,null,null,null,null,null,null,null,null,null,null,null,null,null,null,null,null,null,null,null,null,null,null,null,null,null,null,null,null,"ADV_FYE2017",0,"","","","","",{"$error":"#N/A"}]
[null,null,null,null,null,null,null,null,null,null,null,null,null,null,null,null,null,null,null,null,null,null,null,null,null,null,null,null,null,null,null,null,null,null,null,null,null,null,null,null,null,null,null,null,null,null,null,null,null,null,null,null,null,null,null,null,null,null,null,null,null,"ADV_FYE2018",0,"","","","","",{"$error":"#N/A"}]
[null,null,null,null,null,null,null,null,null,null,null,null,null,null,null,null,null,null,null,null,null,null,null,null,null,null,null,null,null,null,null,null,null,null,null,null,null,null,null,null,null,null,null,null,null,null,null,null,null,null,null,null,null,null,null,null,null,null,null,null,null,"ADV_FYE2019",0,"","","","","",{"$error":"#N/A"}]
[null,null,null,null,null,null,null,null,null,null,null,null,null,null,null,null,null,null,null,null,null,null,null,null,null,null,null,null,null,null,null,null,null,null,null,null,null,null,null,null,null,null,null,null,null,null,null,null,null,null,null,null,null,null,null,null,null,null,null,null,null,"ADV_FYE2020",0,"","","","","",{"$error":"#N/A"}]
[null,null,null,null,null,null,null,null,null,null,null,null,null,null,null,null,null,null,null,null,null,null,null,null,null,null,null,null,null,null,null,null,null,null,null,null,null,null,null,null,null,null,null,null,null,null,null,null,null,null,null,null,null,null,null,null,null,null,null,null,null,"ADV_FYE2021",0,"","","","","",{"$error":"#N/A"}]
[null,null,null,null,null,null,null,null,null,null,null,null,null,null,null,null,null,null,null,null,null,null,null,null,null,null,null,null,null,null,null,null,null,null,null,null,null,null,null,null,null,null,null,null,null,null,null,null,null,null,null,null,null,null,null,null,null,null,null,null,null,"ADV_FYE2022",0,"","","","","",{"$error":"#N/A"}]
[null,null,null,null,null,null,null,null,null,null,null,null,null,null,null,null,null,null,null,null,null,null,null,null,null,null,null,null,null,null,null,null,null,null,null,null,null,null,null,null,null,null,null,null,null,null,null,null,null,null,null,null,null,null,null,null,null,null,null,null,null,"ADV_FYE2023",0,"","","","","",{"$error":"#N/A"}]
[null,null,null,null,null,null,null,null,null,null,null,null,null,null,null,null,null,null,null,null,null,null,null,null,null,null,null,null,null,null,null,null,null,null,null,null,null,null,null,null,null,null,null,null,null,null,null,null,null,null,null,null,null,null,null,null,null,null,null,null,null,"ADV_FYE2024",0,"","","","","",{"$error":"#N/A"}]
[null,null,null,null,null,null,null,null,null,null,null,null,null,null,null,null,null,null,null,null,null,null,null,null,null,null,null,null,null,null,null,null,null,null,null,null,null,null,null,null,null,null,null,null,null,null,null,null,null,null,null,null,null,null,null,null,null,null,null,null,null,"ADV_FYE2025",9.0324315689999999,"","","","","",9.0324315689999999]
[null,null,null,null,null,null,null,null,null,null,null,null,null,null,null,null,null,null,null,null,null,null,null,null,null,null,null,null,null,null,null,null,null,null,null,null,null,null,null,null,null,null,null,null,null,null,null,null,null,null,null,null,null,null,null,null,null,null,null,null,null,"ADV_FYE2026",4.4463374550000001,"","","","","",4.4463374550000001]
[null,null,null,null,null,null,null,null,null,null,null,null,null,null,null,null,null,null,null,null,null,null,null,null,null,null,null,null,null,null,null,null,null,null,null,null,null,null,null,null,null,null,null,null,null,null,null,null,null,null,null,null,null,null,null,null,null,null,null,null,null,"ADV_FYE2027",0,"","","","","",{"$error":"#N/A"}]
[null,null,null,null,null,null,null,null,null,null,null,null,null,null,null,null,null,null,null,null,null,null,null,null,null,null,null,null,null,null,null,null,null,null,null,null,null,null,null,null,null,null,null,null,null,null,null,null,null,null,null,null,null,null,null,null,null,null,null,null,null,"ADV_FYE2028",0,"","","","","",{"$f":"IF(SUM(BK102:BP102)=0,$BU$5,SUM(BK102:BP102))","v":{"$error":"#N/A"}}]

{"sheet":"A_Word","index":1,"n_rows":23,"n_cols":2,"rows_kept":23,"cut":false,"hidden":false,"merged":[[3,0,5,19],[7,0,9,19],[15,0,17,4],[11,0,13,19]]}
[]
["A Few Words (and Legal Stuff)"]
[]
["The data presented in this workbook is publicly available from the British Columbia Energy Regulator (BCER) website (www.bc-er.ca).  The BCER provides this data to industry and members of the public.  We are not aware of any restrictions that the BCER has placed upon the use of its data, but the BCER should be appropriately credited when information from its website (or summarized in this workbook and accompanying Access database) is cited."]
[]
[]
[]
["We have accessed, assembled and (in some cases) processed the BCER data to present it in a readily accessible format.  This workbook is provided without any representation or warranty that the information contained herein is complete, correct or current.  We accept no legal liability for any actions taken or harm suffered in reliance upon the contents of this workbook or any associated MS Access database.  We advise you to access data directly from the BCER website if you intend to use the data for commercial purposes."]
[]
[]
[]
["The data is current to the date specified in cell N2 of the Summary sheet. We understand that the data does not include any information that the BCER treats as confidential (in particular for experimental wells) until the confidentiality period has passed.  We only present information provided on the BCER website and make no representation or warranty as to its completeness, correctness, currency or fitness for any particular purpose."]
[]
[]
[]
["For more information about this workbook and periodic data refreshes, please feel free to contact me at:"]
[]
[]
[]
[null,"Office@macauley.ca"]
[]
["Thanks,"]
["George Macauley"]

{"sheet":"Well_Names","index":2,"n_rows":2,"n_cols":14,"rows_kept":2,"cut":false,"hidden":false,"merged":[]}
["WA_NUM","WELL_NAME","OPERATOR","Spud_Mon","Rig_Rel_Mon","First_Prod_Mon","Area","Area_DESC","Form","Form_DESC","HORIZ_WELL","GRID","SURF_LAT_CALC","SURF_LON_CALC"]
[49886,"TOURMALINE  HZ TOWN C-G002-G/094-B-16","Tourmaline Oil Corp.",202408,202404,null,9022,"NORTHERN MONTNEY",5000,"MONTNEY","HZ",null,57.396388999999999,-123.681389]

{"sheet":"PRD_Profile_Gas","index":3,"n_rows":2,"n_cols":133,"rows_kept":2,"cut":false,"hidden":false,"merged":[]}
["WA_NUM","FIRST_PROD_PERIOD","MPRD_001","MPRD_002","MPRD_003","MPRD_004","MPRD_005","MPRD_006","MPRD_007","MPRD_008","MPRD_009","MPRD_010","MPRD_011","MPRD_012","MPRD_013","MPRD_014","MPRD_015","MPRD_016","MPRD_017","MPRD_018","MPRD_019","MPRD_020","MPRD_021","MPRD_022","MPRD_023","MPRD_024","MPRD_025","MPRD_026","MPRD_027","MPRD_028","MPRD_029","MPRD_030","MPRD_031","MPRD_032","MPRD_033","MPRD_034","MPRD_035","MPRD_036","MPRD_037","MPRD_038","MPRD_039","MPRD_040","MPRD_041","MPRD_042","MPRD_043","MPRD_044","MPRD_045","MPRD_046","MPRD_047","MPRD_048","MPRD_049","MPRD_050","MPRD_051","MPRD_052","MPRD_053","MPRD_054","MPRD_055","MPRD_056","MPRD_057","MPRD_058","MPRD_059","MPRD_060","YPRD_01","YPRD_02","YPRD_03","YPRD_04","YPRD_05","YPRD_06","YPRD_07","YPRD_08","YPRD_09","YPRD_10","YPRD_11","YPRD_12","YPRD_13","YPRD_14","YPRD_15","YPRD_16","YPRD_17","YPRD_18","YPRD_19","YPRD_20","PRD_FYE2012","PRD_FYE2013","PRD_FYE2014","PRD_FYE2015","PRD_FYE2016","PRD_FYE2017","PRD_FYE2018","PRD_FYE2019","PRD_FYE2020","PRD_FYE2021","PRD_FYE2022","PRD_FYE2023","PRD_FYE2024","PRD_FYE2025","PRD_FYE2026","PRD_FYE2027","PRD_FYE2028","OIL_FYE2012","OIL_FYE2013","OIL_FYE2014","OIL_FYE2015","OIL_FYE2016","OIL_FYE2017","OIL_FYE2018","OIL_FYE2019","OIL_FYE2020","OIL_FYE2021","OIL_FYE2022","OIL_FYE2023","OIL_FYE2024","OIL_FYE2025","OIL_FYE2026","OIL_FYE2027","OIL_FYE2028","CND_FYE2012","CND_FYE2013","CND_FYE2014","CND_FYE2015","CND_FYE2016","CND_FYE2017","CND_FYE2018","CND_FYE2019","CND_FYE2020","CND_FYE2021","CND_FYE2022","CND_FYE2023","CND_FYE2024","CND_FYE2025","CND_FYE2026","CND_FYE2027","CND_FYE2028"]
[49886,202408,5979.8,8849.4,7872.3,7009.2,7370.8,7888.8,6536.3,6805.9,3581.1,4601.1000000000004,4102.8999999999996,3914.4,3689.5,3331.4,3295.4,3058.5,null,null,null,null,null,null,null,null,null,null,null,null,null,null,null,null,null,null,null,null,null,null,null,null,null,null,null,null,null,null,null,null,null,null,null,null,null,null,null,null,null,null,null,null,74512,13374.8,null,null,null,null,null,null,null,null,null,null,null,null,null,null,null,null,null,null,null,null,null,null,null,null,null,null,null,null,null,null,null,58312.5,29574.3,null,null,null,null,null,null,null,null,null,null,null,null,null,null,null,0,0,null,null,null,null,null,null,null,null,null,null,null,null,null,null,null,33,0]

{"sheet":"ADV_Profile_Gas","index":4,"n_rows":2,"n_cols":103,"rows_kept":2,"cut":false,"hidden":false,"merged":[]}
["WA_NUM","UWI","AREA_CODE","FORMTN_CODE","UWI_Order","FIRST_PROD_PERIOD","MADV_001","MADV_002","MADV_003","MADV_004","MADV_005","MADV_006","MADV_007","MADV_008","MADV_009","MADV_010","MADV_011","MADV_012","MADV_013","MADV_014","MADV_015","MADV_016","MADV_017","MADV_018","MADV_019","MADV_020","MADV_021","MADV_022","MADV_023","MADV_024","MADV_025","MADV_026","MADV_027","MADV_028","MADV_029","MADV_030","MADV_031","MADV_032","MADV_033","MADV_034","MADV_035","MADV_036","MADV_037","MADV_038","MADV_039","MADV_040","MADV_041","MADV_042","MADV_043","MADV_044","MADV_045","MADV_046","MADV_047","MADV_048","MADV_049","MADV_050","MADV_051","MADV_052","MADV_053","MADV_054","MADV_055","MADV_056","MADV_057","MADV_058","MADV_059","MADV_060","YADV_01","YADV_02","YADV_03","YADV_04","YADV_05","YADV_06","YADV_07","YADV_08","YADV_09","YADV_10","YADV_11","YADV_12","YADV_13","YADV_14","YADV_15","YADV_16","YADV_17","YADV_18","YADV_19","YADV_20","ADV_FYE2012","ADV_FYE2013","ADV_FYE2014","ADV_FYE2015","ADV_FYE2016","ADV_FYE2017","ADV_FYE2018","ADV_FYE2019","ADV_FYE2020","ADV_FYE2021","ADV_FYE2022","ADV_FYE2023","ADV_FYE2024","ADV_FYE2025","ADV_FYE2026","ADV_FYE2027","ADV_FYE2028"]
[49886,"207B090A094B1600",9022,5000,1,202408,308.23700000000002,294.98,262.41000000000003,233.64,245.69300000000001,262.08600000000001,234.27600000000001,223.14400000000001,166.56299999999999,148.423,137.68100000000001,128.34100000000001,119.01600000000001,111.047,106.303,101.95,0,0,0,0,0,0,0,0,0,0,0,0,0,0,0,0,0,0,0,0,0,0,0,0,0,0,0,0,0,0,0,0,0,0,0,0,0,0,0,0,0,0,0,0,218.703,109.63,0,0,0,0,0,0,0,0,0,0,0,0,0,0,0,0,0,0,0,0,0,0,0,0,0,0,0,0,0,0,0,255.869,125.955,0,0]

{"sheet":"FRAC_Summary","index":5,"n_rows":1,"n_cols":11,"rows_kept":1,"cut":false,"hidden":false,"merged":[]}
["WA_NUM","CO2_TONNES","NUM_CO2_FRACS","SLH_TONNES","NUM_SLH_FRACS","SLW_TONNES","NUM_SLW_FRACS","DGL_TONNES","NUM_DGL_FRACS","NES_TONNES","NUM_NES_FRACS"]

{"sheet":"DIR_SURVEY","index":6,"n_rows":2,"n_cols":3,"rows_kept":2,"cut":false,"hidden":false,"merged":[]}
["WA_NUM","TOTAL_M_DEPTH","MAX_TV_DEPTH"]
[49886,4379,1778.06]

{"sheet":"Drilling_Events","index":7,"n_rows":2,"n_cols":5,"rows_kept":2,"cut":false,"hidden":false,"merged":[]}
["WA_NUM","CLASS","SPUD_DATE","RIG_REL_DATE","REENTRY_DATE"]
[49886,"DV",20240410,20240421]

{"sheet":"FRAC_Descriptions","index":8,"n_rows":1,"n_cols":8,"rows_kept":1,"cut":false,"hidden":false,"merged":[]}
["UWI","Area_code","Formtn_code","Pool_seq","Wa_num","Compltn_Order","Compltn_date","Compltn_summry"]

{"sheet":"GAS_ANAL","index":9,"n_rows":2,"n_cols":26,"rows_kept":2,"cut":false,"hidden":false,"merged":[]}
["Wa_num","Uwi","Area_Code","Formtn_code","Sample_date","Sample_Order","H2_fractn","Helium_fractn","Co2_fractn","H2s_fractn","N2_fractn","C1_fractn","C2_fractn","C3_fractn","Ic4_fractn","Nc4_fractn","Ic5_fractn","Nc5_fractn","C6_fractn","C7_fractn","C8_fractn","C9_fractn","C10_fractn","Molclr_wt_of_c7","C5_ml_mol","Molclr_wt_of_gas"]
[49886,"207B090A094B1600",9022,5000,20240815,1,1E-4,0,1.4E-3,0,1.4E-3,0.8296,9.8299999999999998E-2,3.6999999999999998E-2,7.4000000000000003E-3,1.11E-2,3.7000000000000002E-3,3.5999999999999999E-3,3.3999999999999998E-3,3.0000000000000001E-3,0,0,0,107.7,null,20.2]

{"sheet":"ABANDON","index":10,"n_rows":1,"n_cols":13,"rows_kept":1,"cut":false,"hidden":false,"merged":[]}
["WA_NUM","UWI","ABANDONMENT_DATE","DRILLNG_EVENT_SEQ","PLUG_NUM","PLUG_TYPE","TOP_DEPTH","BASE_DEPTH","CEMENT_VOL","CEMENT_GRADE","BRIDGE_PLUG_SET_DEPTH","REMARKS","ORDER"]

{"sheet":"CASINGS","index":11,"n_rows":6,"n_cols":18,"rows_kept":6,"cut":false,"hidden":false,"merged":[]}
["WA_NUM","UWI","DRILLNG_EVENT_SEQ","CASING_SHOE_DEPTH","CASING_GRADE_CODE","CASING_SIZE","CEMENT_CLASS_CODE","CEMENT_GRADE","CASING_LINER_TOP_DEPTH","CASING_LINER_BASE_DEPTH","CASING_TYPE","CASING_JOINT_QTY","CASING_COMMENTS","CEMENT_VOL","CEMENT_RETURNS_TO_SURF","CASING_WEIGHT","CASING_DATE","ORDER"]
[49886,"207B090A094B1600",0,4360.54,"TN110S",114.3,"G",null,null,null,"PROD",308,null,5.2,null,22.47,20240421,1]
[49886,"207B090A094B1600",0,4360.54,"TN110S",114.3,"A",null,null,null,"PROD",308,null,22,null,22.47,20240421,2]
[49886,"207B090A094B1600",0,4360.54,"TN110S",114.3,"UNC",null,null,null,"PROD",308,null,null,null,22.47,20240421,3]
[49886,"207B090A094B1600",0,616.38,"L80-IC",177.8,"C",null,null,null,"SURF",43,null,26,null,34.229999999999997,20240411,4]
[49886,"207B090A094B1600",0,20,"ASTM A252 GRADE 3",406.4,"C",null,null,null,"COND",2,null,7,null,62.64,20240229,5]

{"sheet":"PAY_ZONE","index":12,"n_rows":2,"n_cols":9,"rows_kept":2,"cut":false,"hidden":false,"merged":[]}
["WA_NUM","UWI","PAY_TYPE","MEAS_TOP_PAY_DEPTH","MEAS_BASE_PAY_DEPTH","POROSITY","SATURATION","LITHOLOGY","POSITION"]
[49886,"207B090A094B1600",null,1967.4,4352,null,null,null,1]

{"sheet":"CODES","index":13,"n_rows":788,"n_cols":7,"rows_kept":788,"cut":false,"hidden":false,"merged":[]}
["DB_AREA_CODE"]
["AREA_CODE","AREA_DESC",null,"FORM_CODE","FORM_DESC"]
[0,"CLIENT CLASSIFIED",null,40,"CENOZOIC"]
[50,"ADSETT",null,50,"QUATERNARY"]
[100,"AIRPORT",null,60,"PLEISTOCENE"]
[200,"AITKEN CREEK",null,70,"CAPE BALL"]
[210,"AITKEN CREEK NORTH",null,75,"PRE-TERTIARY"]
[250,"ALCES",null,100,"TERTIARY"]
[320,"ALTARES",null,105,"BOUNDARY BAY"]
[350,"ATTACHIE",null,108,"MUD BAY"]
[380,"BEAR FLAT",null,120,"SKONUN"]
[400,"BEATTON RIVER",null,130,"MASSET"]
[600,"BEATTON RIVER WEST",null,140,"KISHENEHN"]
[700,"BEAVERDAM",null,150,"CHUCKANUT"]
[740,"BEAVER RIVER",null,175,"MESOZOIC"]
[760,"BEAVERTAIL",null,180,"CRETACEOUS"]
[800,"BEG",null,200,"UPPER CRETACEOUS"]
[1000,"BEG WEST",null,500,"NANAMIO GROUP"]
[1200,"BERNADET",null,600,"GABRIOLA"]
[1260,"BIRCH",null,610,"SPRAY"]
[1280,"BIRLEY CREEK",null,620,"GEOFFREY"]
[1300,"BIVOUAC",null,630,"NORTHUMBERLAND"]
[1350,"BLACK CREEK",null,640,"DE COURCY"]
[1360,"BLAIR",null,650,"CEDAR DISTRICT"]
[1400,"BLUEBERRY",null,660,"PROTECTION"]
[1600,"BLUEBERRY EAST",null,670,"NEWCASTLE"]
[1800,"BLUEBERRY WEST",null,673,"DOUGLAS COAL"]
[1880,"BOUDREAU",null,675,"PENDER"]
[1900,"BOUGIE",null,680,"EXTENSION"]
[1950,"BOULDER",null,690,"EAST WELLINGTON"]
[2000,"BOUNDARY LAKE",null,700,"HASLAM"]
[2020,"BOUNDARY LAKE NORTH",null,710,"COMOX"]
[2100,"BRASSEY",null,720,"BENSON"]
[2150,"BRAZION",null,1300,"WAPITI"]
[2160,"BRIAR RIDGE",null,1350,"BELLY RIVER"]
[2200,"BUBBLES",null,1360,"WAPIABI"]
[2240,"BUBBLES NORTH",null,1365,"PUSKWASKAU"]
[2300,"BUCKINGHORSE",null,1368,"CHINOOK"]
[2400,"BUICK CREEK",null,1380,"BAD HEART"]
[2600,"UNKNOWN - REMOVE ASSOC. POOL",null,1390,"MUSKIKI"]
[2700,"BUICK CREEK NORTH",null,1398,"CARDIUM ZONE"]
[2800,"BUICK CREEK WEST",null,1400,"CARDIUM SAND"]
[2810,"BULLDOG",null,1405,"BLACKSTONE"]
[2820,"BULRUSH",null,1410,"KASKAPAU"]
[2840,"BULRUSH EAST",null,1411,"SECOND WHITE SPECKLED SHALE"]
[2850,"BURNT RIVER",null,1412,"FIRST PETROLIFEROUS SHALE"]
[2852,"MIST MOUNTAIN",null,1414,"SECOND PETROLIFEROUS SHALE"]
[2860,"BULLMOOSE",null,1415,"POUCE COUPE"]
[2865,"BULLMOOSE WEST",null,1420,"DOE CREEK"]
[2870,"BUTLER",null,1450,"FORT NELSON"]
[2900,"CABIN",null,1490,"QUEEN CHARLOTTE GROUP"]
[2920,"CACHE CREEK",null,1492,"HONNA"]
[2940,"CARIBOU",null,1494,"SKIDEGATE"]
[2960,"CECIL LAKE",null,1500,"DUNVEGAN"]
[2985,"CHINCHAGA RIVER",null,1520,"CROWSNEST VOLCANICS"]
[2990,"CHOWADE",null,1530,"FT ST JOHN"]
[3200,"CLARKE LAKE",null,1600,"HAIDA"]
[3230,"COMMOTION",null,1660,"SULLY"]
[3240,"CONROY CREEK",null,1680,"SIKANNI"]
[3250,"CROW RIVER",null,1700,"SHAFTESBURY"]
[3260,"CRUSH",null,1705,"LEPINE"]
[3300,"CURRANT",null,1710,"GOODRICH"]
[3320,"CURRANT WEST",null,1713,"BASE OF FISH SCALES"]
[3340,"CUTBANK",null,1715,"HASLER"]
[3360,"CYPRESS",null,1720,"BUCKINGHORSE"]
[3380,"DAHL",null,1721,"BOUGIE"]
[3390,"DAIBER",null,1723,"BOULDER CREEK"]
[3400,"DAWSON CREEK",null,1724,"HULCROSS"]
[3410,"DESAN",null,1725,"GATES"]
[3420,"DILLY",null,1730,"SCATTER"]
[3425,"DOE",null,1740,"GARBUTT"]
[3426,"DOIG RAPIDS",null,1741,"RADIOACTIVE ZONE"]
[3427,"DONIS",null,1800,"BLAIRMORE"]
[3430,"DRAKE",null,1850,"COMMOTION"]
[3440,"EAGLE",null,1870,"MOOSEBAR"]
[3445,"EAGLE WEST",null,2000,"PADDY"]
[3450,"EKWAN",null,2010,"PADDY- CADOTTE"]
[3453,"ELBOW CREEK",null,2200,"CADOTTE"]
[3455,"ELLEH",null,2220,"HARMON"]
[3457,"ELLEH NORTH",null,2330,"PEACE RIVER"]
[3460,"ELM",null,2350,"SPIRIT RIVER"]
[3465,"ESKAI",null,2400,"NOTIKEWIN"]
[3470,"ETTHITHUN",null,2500,"FALHER"]
[3480,"EVIE BANK",null,2505,"FALHER A"]
[3490,"FEDERAL",null,2510,"FALHER B"]
[3500,"FARRELL CREEK (SEE KOBES)",null,2515,"FALHER C"]
[3510,"FARRELL CREEK WEST",null,2520,"FALHER D"]
[3515,"FIR CREEK",null,2525,"FOURTH COAL MEASURE"]
[3520,"FIREBIRD",null,2530,"FALHER E"]
[3540,"FIREWEED",null,2535,"FALHER SAND"]
[3560,"FLATROCK",null,2540,"FALHER F"]
[3580,"FLATROCK WEST",null,2545,"FALHER G"]
[3600,"FORT ST JOHN",null,2550,"WILRICH"]
[4000,"FORT ST JOHN SOUTHEAST",null,2575,"HOT SHALE"]
[4100,"GOOSE",null,2600,"BLUESKY"]
[4150,"GOPHER",null,2625,"BASAL BLUESKY"]
[4200,"GOTE",null,2630,"BLUESKY-GETHING"]
[4300,"GRAHAM",null,2640,"BLUESKY-GETHING-DETRITAL"]
[4350,"GRASSY",null,2650,"DETRITAL"]
[4370,"GREEN CREEK",null,2690,"BULLHEAD"]
[4375,"GREENHILLS",null,2692,"LOWER BLAIRMORE"]
[4380,"GRIZZLY NORTH",null,2700,"GETHING"]
[4385,"GRIZZLY SOUTH",null,2703,"AITKEN CREEK"]
[4390,"GROUNDBIRCH",null,2705,"LOWER BULLHEAD"]
[4400,"GUNDY CREEK",null,2710,"LOWER GETHING"]
[4460,"GUNDY CREEK WEST",null,2720,"BASAL GETHING"]
[4470,"GUNNELL CREEK",null,2750,"LONG ARM"]
[4485,"GUTAH",null,2775,"LOWER GETHING/UPPER DUNLEVY"]
[4500,"GWILLIM",null,2785,"GETHING-BALDONNEL"]
[4600,"HALFWAY",null,2800,"CADOMIN"]
[4650,"HAY RIVER",null,2805,"CHINKEH"]
[4700,"HELMET",null,2810,"JACKASS MOUNTAIN"]
[4720,"HELMET NORTH (SEE HELMET)",null,2820,"DALHOUSIE"]
[4780,"HIDING CREEK",null,2830,"BASAL CRETACEOUS SANDSTONE"]
[4800,"HIGHHAT MOUNTAIN",null,2835,"MINNES"]
[4850,"HOFFARD",null,2836,"BICKFORD"]
[4860,"HOSSITL",null,2837,"MONACH"]
[4875,"HUNTER",null,2838,"BEATTIE PEAKS"]
[4900,"INGA",null,2839,"MONTIETH"]
[4920,"INGA NORTH",null,2840,"KOOTNEY"]
[4925,"INGA SOUTH",null,2845,"MORRISSEY"]
[4975,"JACKPINE",null,2849,"ELK"]
[5000,"JEDNEY",null,2850,"NIKANASSIN"]
[5020,"JEDNEY WEST",null,2852,"MIST MOUNTAIN"]
[5100,"JULIENNE CREEK",null,2853,"MOOSE MOUNTAIN MEMBER"]
[5110,"JULIENNE CREEK NORTH",null,2855,"CURRIER"]
[5120,"JULIENNE CREEK SOUTH",null,2890,"BUICK CREEK"]
[5150,"JUNIOR",null,2900,"DUNLEVY"]
[5160,"KAHNTAH RIVER",null,2910,"LOWER DUNLEVY"]
[5170,"KELLY",null,2920,"JURASSIC"]
[5180,"KLUA",null,2930,"BOWSER LAKE GROUP"]
[5200,"KOBES",null,2950,"FERNIE"]
[5230,"KOBES WEST",null,2960,"FIRST BLACK SHALE"]
[5300,"KOMIE",null,2970,"SECOND BLACK SHALE"]
[5400,"KOTCHO LAKE",null,3000,"PASSAGE BEDS"]
[5420,"KOTCHO LAKE EAST",null,3010,"GREEN BEDS"]
[5480,"KYKLO",null,3020,"GREY BEDS"]
[5500,"LADYFERN",null,3030,"ROCK CREEK"]
[5540,"LAGARDE",null,3040,"POKER CHIP"]
[5560,"LAPP",null,3070,"HAZELTON"]
[5600,"LAPRISE CREEK",null,3200,"NORDEGG"]
[5800,"LAPRISE CREEK WEST",null,3220,"RITCHIE"]
[5810,"LILY LAKE",null,3900,"YAKOUN"]
[5840,"LOUISE",null,3990,"MAUDE"]
[5845,"MATHESON",null,4000,"TRIASSIC"]
[5850,"MARTIN",null,4040,"NORDEGG-BALDONNEL"]
[5852,"MAXHAMISH LAKE",null,4046,"BOCOCK"]
[5854,"MEIKLE CREEK (SEE: GWILLIM)",null,4050,"PARDONET"]
[5855,"MEL",null,4060,"PARDONET-BALDONNEL"]
[5858,"MERCURY",null,4090,"SCHOOLER CREEK"]
[5860,"MICA",null,4100,"BALDONNEL"]
[5870,"MIDWINTER (MOST IN HELMET)",null,4150,"BALDONNEL/UPPER CHARLIE LAKE"]
[5880,"MIKE",null,4200,"TAKLA"]
[6000,"MILLIGAN CREEK",null,4500,"CHARLIE LAKE"]
[6020,"MILLIGAN CREEK WEST",null,4505,"FIRST BROWN MARKER"]
[6030,"MILO",null,4507,"OWL"]
[6100,"MOBERLY LAKE",null,4510,"SIPHON"]
[6140,"MONIAS",null,4511,"SIPHON DISCONFORMITY"]
[6200,"MONTNEY",null,4512,"TWO RIVERS"]
[6210,"MOOSE",null,4520,"CECIL"]
[6220,"MURRAY",null,4524,"RED CREEK"]
[6230,"MUSKRAT",null,4530,"NANCY"]
[6250,"MUSKWA RIVER (SEE MILO)",null,4531,"FIRST GREEN MARKER"]
[6400,"NIG CREEK",null,4532,"SECOND BROWN MARKER"]
[6410,"NIG CREEK NORTH",null,4533,"FLATROCK"]
[6420,"NIG CREEK WEST",null,4534,"BOUNDARY DISCONFORMITY"]
[6430,"NOEL",null,4535,"BOUNDARY LAKE"]
[6440,"NORTH PINE",null,4536,"BASAL BOUNDARY"]
[6460,"OAK",null,4537,"PINK MARKER"]
[6480,"OJAY",null,4538,"YELLOW MARKER"]
[6485,"OOTLA",null,4539,"FIRST ORANGE MARKER"]
[6490,"OSBORN",null,4540,"COPLIN"]
[6500,"OSPREY",null,4541,"COPLIN UNCONFORMITY"]
[6530,"OWL",null,4542,"SEPTIMUS"]
[6560,"PARADISE",null,4545,"MICA"]
[6600,"PARKLAND",null,4547,"LA GLACE"]
[6800,"PEEJAY",null,4550,"KOBES"]
[7000,"PEEJAY WEST",null,4560,"BLUEBERRY"]
[7020,"PEGGO-PESH  (WAS PEGGO 1996)",null,4570,"FARRELL"]
[7030,"PESH (SEE PEGGO-PESH)",null,4571,"GROUNDBIRCH"]
[7200,"PETITOT RIVER",null,4575,"INGA"]
[7250,"PICKELL",null,4578,"COFFEE CREEK"]
[7265,"PINTAIL",null,4580,"NORTH PINE"]
[7275,"PLUTO",null,4582,"BEAR FLAT"]
[7300,"POCKETKNIFE",null,4585,"WILDER"]
[7320,"PORTAGE",null,4590,"PINGEL"]
[7340,"PRESPATOU",null,4591,"PURPLE MARKER"]
[7400,"RED CREEK",null,4592,"SECOND ORANGE MARKER"]
[7410,"RED CREEK NORTH",null,4595,"KERN"]
[7430,"RED DEER",null,4596,"TEA CREEK MEMBER"]
[7440,"REDEYE",null,4600,"TRIASSIC VOLCANIC BASEMENT"]
[7500,"REDWILLOW RIVER",null,4605,"SECOND GREEN MARKER"]
[7600,"RIGEL",null,4608,"TRUTCH CREEK"]
[7620,"RIGEL EAST",null,4609,"LIMESTONE A BED"]
[7660,"RING",null,4610,"A MARKER/BASE OF LIME"]
[7720,"ROGER",null,4612,"LOWER CHARLIE LAKE SANDS"]
[7730,"ROMEO (SEE SIERRA)",null,4615,"B ANHYDRITE MARKER"]
[7740,"SAHTANEH",null,4700,"ARTEX"]
[7745,"SATURN",null,4702,"BASE OF ARTEX"]
[7750,"SEPTIMUS",null,4705,"DALE MEMBER"]
[7755,"SEXTET",null,4710,"COLDSTREAM MEMBER"]
[7760,"SHEKILIE",null,4748,"ARTEX/HALFWAY"]
[7770,"SIERRA",null,4750,"LIARD"]
[7772,"SIERRA WEST (SEE SIERRA)",null,4790,"HALFWAY A"]
[7775,"SIKANNI",null,4792,"HALFWAY B"]
[7780,"SILVER",null,4794,"HALFWAY C"]
[7820,"SILVERBERRY",null,4798,"UPPER HALFWAY"]
[7840,"SIPHON",null,4800,"HALFWAY"]
[7860,"SIPHON EAST",null,4802,"TRIASSIC D"]
[7890,"SOJER",null,4805,"LOWER HALFWAY"]
[7900,"SQUIRREL",null,4890,"DAIBER"]
[8000,"STODDART",null,4900,"DOIG"]
[8060,"STODDART SOUTH",null,4905,"DOIG SAND"]
[8100,"STODDART WEST",null,4910,"TOAD GRAYLING"]
[8105,"STONE CREEK",null,4920,"TOAD"]
[8110,"SUKUNKA",null,4930,"GRAYLING"]
[8115,"SUNDOWN",null,4950,"SPRAY RIVER"]
[8120,"SUNRISE",null,4980,"DOIG PHOSPHATE BEDS"]
[8130,"SUNSET PRAIRIE",null,4990,"BLUESKY-GETHING-MONTNEY"]
[8135,"SWAN LAKE",null,4995,"LOWER CHARLIE LAKE/MONTNEY"]
[8137,"TATTOO",null,4997,"DOIG PHOSPHATE-MONTNEY"]
[8140,"THETLAANDOA",null,5000,"MONTNEY"]
[8144,"THETLAANDOA NORTH",null,5500,"CACHE CREEK"]
[8145,"THETLAANDOA SOUTH",null,5999,"PALEOZOIC"]
[8147,"THUNDER MOUNTAIN",null,6000,"PERMIAN"]
[8150,"TOMMY LAKES",null,6100,"PERMO CARBONIFEROUS"]
[8155,"TOOGA",null,6110,"PERMO PENNSYLVANIAN"]
[8157,"TOWER LAKE",null,6150,"ROCKY MOUNTAIN"]
[8160,"TOWN",null,6170,"ISHBEL"]
[8170,"TOWNSEND",null,6200,"BELLOY"]
[8175,"TRUTCH",null,6210,"FANTASQUE"]
[8180,"TSEA",null,6215,"MOWITCH"]
[8190,"TUPPER CREEK",null,6222,"LOWER BELLOY"]
[8200,"TWO RIVERS",null,6225,"BELCOURT"]
[8220,"UMBACH",null,6227,"BELCOURT-TAYLOR FLAT"]
[8240,"VELMA",null,6250,"BELLOY-KISKATINAW"]
[8260,"WARGEN",null,6260,"STODDART"]
[8300,"WEASEL",null,6285,"KSITUAN"]
[8320,"WEASEL WEST",null,6295,"UPPER TAYLOR FLAT"]
[8360,"WILDER",null,6300,"TAYLOR FLAT"]
[8400,"WILDMINT",null,6305,"LOWER TAYLOR FLAT"]
[8600,"WILLOW",null,7000,"MISSISSIPPIAN"]
[8625,"WINDFLOWER",null,7100,"MATTSON"]
[8700,"WOLF",null,7200,"UPPER KISKATINAW"]
[8720,"WOLVERINE",null,7220,"ETHERINGTON"]
[8740,"WOODRUSH",null,7224,"CARNARVON"]
[8800,"YOYO",null,7228,"MARSTON"]
[8900,"ZAREMBA",null,7230,"LOOMIS"]
[9000,"OTHER AREAS",null,7232,"SALTER"]
[9010,"NORTHERN PLAINS",null,7234,"BARIL"]
[9020,"PEACE RIVER",null,7236,"WILEMAN"]
[9021,"HERITAGE",null,7240,"FLETT"]
[9022,"NORTHERN MONTNEY",null,7250,"KISKATINAW"]
[9030,"DEEP BASIN",null,7270,"TUNNEL MTN"]
[9040,"FOOTHILLS",null,7300,"LOWER KISKATINAW"]
[9045,"HORN RIVER",null,7340,"BASAL KISKATINAW"]
[9046,"LIARD",null,7350,"GOLATA"]
[9047,"CORDOVA",null,7380,"MOUNT HEAD"]
[9050,"WHITEHORSE",null,7386,"PROPHET"]
[9060,"BOWSER",null,7390,"UPPER DEBOLT"]
[9070,"QUESNEL",null,7400,"DEBOLT"]
[9080,"NECHAKO",null,7405,"RUNDLE"]
[9090,"FERNIE",null,7410,"LIVINGSTONE"]
[9100,"QUEEN CHARLOTTE",null,7420,"LOWER DEBOLT"]
[9110,"TOFINO",null,7450,"ELKTON"]
[9120,"GEORGIA",null,7500,"SHUNDA"]
["x",null,null,7510,"DESAN"]
["y",null,null,7590,"BEAR RIVER"]
["z",null,null,7600,"PEKISKO"]
[null,null,null,7610,"PEKISKO CARBONATE"]
[null,null,null,7700,"BANFF"]
[null,null,null,7710,"EXSHAW"]
[null,null,null,7730,"BESA RIVER"]
[null,null,null,8000,"DEVONIAN"]
[null,null,null,8070,"UPPER DEVONIAN"]
[null,null,null,8090,"KOTCHO"]
[null,null,null,8100,"WABAMUN"]
[null,null,null,8110,"PALLISER"]
[null,null,null,8115,"LOWER PALEOZOIC"]
[null,null,null,8125,"TETCHO"]
[null,null,null,8130,"TROUT RIVER"]
[null,null,null,8132,"ALEXO"]
[null,null,null,8135,"WINTERBURN"]
[null,null,null,8145,"CALMAR"]
[null,null,null,8150,"KAKISA"]
[null,null,null,8155,"MOUNT HAWK"]
[null,null,null,8180,"FAIRHOLME"]
[null,null,null,8185,"SOUTHESK"]
[null,null,null,8190,"NISKU"]
[null,null,null,8195,"ARCS"]
[null,null,null,8200,"JEAN MARIE"]
[null,null,null,8210,"HAY RIVER"]
[null,null,null,8220,"REDKNIFE"]
[null,null,null,8240,"UTAHN"]
[null,null,null,8270,"WOODBEND"]
[null,null,null,8271,"IRETON"]
[null,null,null,8272,"DUPEROW"]
[null,null,null,8273,"GROTTO"]
[null,null,null,8275,"LEDUC"]
[null,null,null,8280,"FORT SIMPSON"]
[null,null,null,8282,"PEECHEE"]
[null,null,null,8283,"PERDRIX"]
[null,null,null,8284,"CAIRN"]
[null,null,null,8285,"HORN RIVER"]
[null,null,null,8288,"DUVERNAY"]
[null,null,null,8290,"MUSKWA"]
[null,null,null,8295,"MUSKWA-OTTER PARK"]
[null,null,null,8300,"MUSKWA-OTTER PARK-SLAVE POINT"]
[null,null,null,8310,"COOKING LAKE"]
[null,null,null,8330,"FLUME"]
[null,null,null,8340,"BEAVERHILL LAKE"]
[null,null,null,8390,"MIDDLE DEVONIAN"]
[null,null,null,8395,"OTTER PARK"]
[null,null,null,8398,"ISLAND RIVER"]
[null,null,null,8400,"SLAVE POINT"]
[null,null,null,8410,"FORT VERMILLION"]
[null,null,null,8430,"ELK POINT"]
[null,null,null,8440,"WATT MOUNTAIN"]
[null,null,null,8450,"GILWOOD"]
[null,null,null,8460,"PRESQU'ILE"]
[null,null,null,8500,"SULPHUR POINT"]
[null,null,null,8510,"KLUA"]
[null,null,null,8528,"UPPER KEG RIVER"]
[null,null,null,8530,"MUSKEG"]
[null,null,null,8540,"KEG RIVER"]
[null,null,null,8550,"EVIE"]
[null,null,null,8560,"LOWER KEG RIVER"]
[null,null,null,8580,"NAHANNI"]
[null,null,null,8585,"NAHANNI-HEADLESS"]
[null,null,null,8590,"HARE"]
[null,null,null,8600,"PINE POINT"]
[null,null,null,8620,"LOWER PINE POINT"]
[null,null,null,8640,"UPPER CHINCHAGA"]
[null,null,null,8658,"HEADLESS"]
[null,null,null,8660,"CHINCHAGA"]
[null,null,null,8678,"DUNEDIN"]
[null,null,null,8680,"EBBUTT"]
[null,null,null,8700,"LOWER CHINCHAGA"]
[null,null,null,8702,"STONE"]
[null,null,null,8704,"LANDRY"]
[null,null,null,8708,"FUNERAL"]
[null,null,null,8710,"RED BEDS"]
[null,null,null,8712,"MANETOE"]
[null,null,null,8715,"GRANITE WASH"]
[null,null,null,8720,"ARNICA"]
[null,null,null,8740,"WOKKPASH"]
[null,null,null,8750,"MUNCHO-MCCONNELL"]
[null,null,null,8752,"PRE-DEVONIAN"]
[null,null,null,8755,"PRE-DEVONIAN QUARTZITE"]
[null,null,null,8760,"YAHATINDA"]
[null,null,null,8770,"SILURIAN"]
[null,null,null,8780,"NONDA"]
[null,null,null,8900,"ORDOVICIAN"]
[null,null,null,8920,"RONNING"]
[null,null,null,9050,"CAMBRIAN"]
[null,null,null,9100,"WINDSOR MOUNTAIN"]
[null,null,null,9108,"PIKA"]
[null,null,null,9109,"ELDON"]
[null,null,null,9110,"STEPHEN"]
[null,null,null,9111,"CATHEDRAL"]
[null,null,null,9112,"MOUNT WHYTE"]
[null,null,null,9120,"ELKO"]
[null,null,null,9130,"GORDON"]
[null,null,null,9140,"FLATHEAD"]
[null,null,null,9900,"PRECAMBRIAN"]
[null,null,null,9910,"WINDERMERE SYSTEM"]
[null,null,null,9920,"PURCELL SYSTEM"]
[null,null,null,9922,"ALDRIDGE"]
[null,null,null,9925,"MOYIE INTRUSIONS"]
[null,null,null,9930,"HAIGHBROOK"]
[null,null,null,9932,"KINTLA"]
[null,null,null,9935,"PHILLIPS"]
[null,null,null,9940,"GATEWAY"]
[null,null,null,9945,"SHEPPARD"]
[null,null,null,9950,"PURCELL LAVA"]
[null,null,null,9960,"SIYEH"]
[null,null,null,9961,"UPPER SIYEH"]
[null,null,null,9962,"MIDDLE SIYEH"]
[null,null,null,9963,"LOWER SIYEH"]
[null,null,null,9965,"GRINELL"]
[null,null,null,9970,"APPEKUNNY"]
[null,null,null,9971,"UPPER APPEKUNNY"]
[null,null,null,9972,"MIDDLE APPEKUNNY"]
[null,null,null,9973,"LOWER APPEKUNNY"]
[null,null,null,9974,"ALTYN"]
[null,null,null,9975,"TOMBSTONE MOUNTAIN"]
[null,null,null,9976,"WATERTON"]
[null,null,null,9990,"FAULT"]
[null,null,null,9991,"REPEAT"]
[null,null,null,9992,"COQUINA"]
[null,null,null,9999,"T.D."]
[]
[]
[]
[]
[]
[]
[]
[]
[]
[]
[1,"ADSETT",50,1,"A MARKER/BASE OF LIME",4610,1]
[2,"AIRPORT",100,2,"AITKEN CREEK",2703,2]
[3,"AITKEN CREEK",200,3,"ALDRIDGE",9922,3]
[4,"AITKEN CREEK NORTH",210,4,"ALEXO",8132,4]
[5,"ALCES",250,5,"ALTYN",9974,5]
[6,"ALTARES",320,6,"APPEKUNNY",9970,6]
[7,"ATTACHIE",350,7,"ARCS",8195,7]
[8,"BEAR FLAT",380,8,"ARNICA",8720,8]
[9,"BEATTON RIVER",400,9,"ARTEX",4700,9]
[10,"BEATTON RIVER WEST",600,10,"ARTEX/HALFWAY",4748,10]
[11,"BEAVER RIVER",740,11,"B ANHYDRITE MARKER",4615,11]
[12,"BEAVERDAM",700,12,"BAD HEART",1380,12]
[13,"BEAVERTAIL",760,13,"BALDONNEL",4100,13]
[14,"BEG",800,14,"BALDONNEL/UPPER CHARLIE LAKE",4150,14]
[15,"BEG WEST",1000,15,"BANFF",7700,15]
[16,"BERNADET",1200,16,"BARIL",7234,16]
[17,"BIRCH",1260,17,"BASAL BLUESKY",2625,17]
[18,"BIRLEY CREEK",1280,18,"BASAL BOUNDARY",4536,18]
[19,"BIVOUAC",1300,19,"BASAL CRETACEOUS SANDSTONE",2830,19]
[20,"BLACK CREEK",1350,20,"BASAL GETHING",2720,20]
[21,"BLAIR",1360,21,"BASAL KISKATINAW",7340,21]
[22,"BLUEBERRY",1400,22,"BASE OF ARTEX",4702,22]
[23,"BLUEBERRY EAST",1600,23,"BASE OF FISH SCALES",1713,23]
[24,"BLUEBERRY WEST",1800,24,"BEAR FLAT",4582,24]
[25,"BOUDREAU",1880,25,"BEAR RIVER",7590,25]
[26,"BOUGIE",1900,26,"BEATTIE PEAKS",2838,26]
[27,"BOULDER",1950,27,"BEAVERHILL LAKE",8340,27]
[28,"BOUNDARY LAKE",2000,28,"BELCOURT",6225,28]
[29,"BOUNDARY LAKE NORTH",2020,29,"BELCOURT-TAYLOR FLAT",6227,29]
[30,"BOWSER",9060,30,"BELLOY",6200,30]
[31,"BRASSEY",2100,31,"BELLOY-KISKATINAW",6250,31]
[32,"BRAZION",2150,32,"BELLY RIVER",1350,32]
[33,"BRIAR RIDGE",2160,33,"BENSON",720,33]
[34,"BUBBLES",2200,34,"BESA RIVER",7730,34]
[35,"BUBBLES NORTH",2240,35,"BICKFORD",2836,35]
[36,"BUCKINGHORSE",2300,36,"BLACKSTONE",1405,36]
[37,"BUICK CREEK",2400,37,"BLAIRMORE",1800,37]
[38,"BUICK CREEK NORTH",2700,38,"BLUEBERRY",4560,38]
[39,"BUICK CREEK WEST",2800,39,"BLUESKY",2600,39]
[40,"BULLDOG",2810,40,"BLUESKY-GETHING",2630,40]
[41,"BULLMOOSE",2860,41,"BLUESKY-GETHING-DETRITAL",2640,41]
[42,"BULLMOOSE WEST",2865,42,"BLUESKY-GETHING-MONTNEY",4990,42]
[43,"BULRUSH",2820,43,"BOCOCK",4046,43]
[44,"BULRUSH EAST",2840,44,"BOUGIE",1721,44]
[45,"BURNT RIVER",2850,45,"BOULDER CREEK",1723,45]
[46,"BUTLER",2870,46,"BOUNDARY BAY",105,46]
[47,"CABIN",2900,47,"BOUNDARY DISCONFORMITY",4534,47]
[48,"CACHE CREEK",2920,48,"BOUNDARY LAKE",4535,48]
[49,"CARIBOU",2940,49,"BOWSER LAKE GROUP",2930,49]
[50,"CECIL LAKE",2960,50,"BUCKINGHORSE",1720,50]
[51,"CHINCHAGA RIVER",2985,51,"BUICK CREEK",2890,51]
[52,"CHOWADE",2990,52,"BULLHEAD",2690,52]
[53,"CLARKE LAKE",3200,53,"CACHE CREEK",5500,53]
[54,"COMMOTION",3230,54,"CADOMIN",2800,54]
[55,"CONROY CREEK",3240,55,"CADOTTE",2200,55]
[56,"CROW RIVER",3250,56,"CAIRN",8284,56]
[57,"CRUSH",3260,57,"CALMAR",8145,57]
[58,"CURRANT",3300,58,"CAMBRIAN",9050,58]
[59,"CURRANT WEST",3320,59,"CAPE BALL",70,59]
[60,"CUTBANK",3340,60,"CARDIUM SAND",1400,60]
[61,"CYPRESS",3360,61,"CARDIUM ZONE",1398,61]
[62,"DAHL",3380,62,"CARNARVON",7224,62]
[63,"DAIBER",3390,63,"CATHEDRAL",9111,63]
[64,"DAWSON CREEK",3400,64,"CECIL",4520,64]
[65,"DEEP BASIN",9030,65,"CEDAR DISTRICT",650,65]
[66,"DESAN",3410,66,"CHARLIE LAKE",4500,66]
[67,"DILLY",3420,67,"CHINCHAGA",8660,67]
[68,"DOE",3425,68,"CHINKEH",2805,68]
[69,"DOIG RAPIDS",3426,69,"CHINOOK",1368,69]
[70,"DONIS",3427,70,"CHUCKANUT",150,70]
[71,"DRAKE",3430,71,"COFFEE CREEK",4578,71]
[72,"EAGLE",3440,72,"COLDSTREAM MEMBER",4710,72]
[73,"EAGLE WEST",3445,73,"COMMOTION",1850,73]
[74,"EKWAN",3450,74,"COMOX",710,74]
[75,"ELBOW CREEK",3453,75,"COOKING LAKE",8310,75]
[76,"ELLEH",3455,76,"COPLIN",4540,76]
[77,"ELLEH NORTH",3457,77,"COPLIN UNCONFORMITY",4541,77]
[78,"ELM",3460,78,"COQUINA",9992,78]
[79,"ESKAI",3465,79,"CRETACEOUS",180,79]
[80,"ETTHITHUN",3470,80,"CROWSNEST VOLCANICS",1520,80]
[81,"EVIE BANK",3480,81,"CURRIER",2855,81]
[82,"FARRELL CREEK (SEE KOBES)",3500,82,"DAIBER",4890,82]
[83,"FARRELL CREEK WEST",3510,83,"DALE MEMBER",4705,83]
[84,"FEDERAL",3490,84,"DALHOUSIE",2820,84]
[85,"FERNIE",9090,85,"DE COURCY",640,85]
[86,"FIR CREEK",3515,86,"DEBOLT",7400,86]
[87,"FIREBIRD",3520,87,"DESAN",7510,87]
[88,"FIREWEED",3540,88,"DETRITAL",2650,88]
[89,"FLATROCK",3560,89,"DEVONIAN",8000,89]
[90,"FLATROCK WEST",3580,90,"DOE CREEK",1420,90]
[91,"FOOTHILLS",9040,91,"DOIG",4900,91]
[92,"FORT ST JOHN",3600,92,"DOIG PHOSPHATE BEDS",4980,92]
[93,"FORT ST JOHN SOUTHEAST",4000,93,"DOIG PHOSPHATE-MONTNEY",4997,93]
[94,"GEORGIA",9120,94,"DOIG SAND",4905,94]
[95,"GOOSE",4100,95,"DOUGLAS COAL",673,95]
[96,"GOPHER",4150,96,"DUNEDIN",8678,96]
[97,"GOTE",4200,97,"DUNLEVY",2900,97]
[98,"GRAHAM",4300,98,"DUNVEGAN",1500,98]
[99,"GRASSY",4350,99,"DUPEROW",8272,99]
[100,"GREEN CREEK",4370,100,"DUVERNAY",8288,100]
[101,"GREENHILLS",4375,101,"EAST WELLINGTON",690,101]
[102,"GRIZZLY NORTH",4380,102,"EBBUTT",8680,102]
[103,"GRIZZLY SOUTH",4385,103,"ELDON",9109,103]
[104,"GROUNDBIRCH",4390,104,"ELK",2849,104]
[105,"GUNDY CREEK",4400,105,"ELK POINT",8430,105]
[106,"GUNDY CREEK WEST",4460,106,"ELKO",9120,106]
[107,"GUNNELL CREEK",4470,107,"ELKTON",7450,107]
[108,"GUTAH",4485,108,"ETHERINGTON",7220,108]
[109,"GWILLIM",4500,109,"EVIE",8550,109]
[110,"HALFWAY",4600,110,"EXSHAW",7710,110]
[111,"HAY RIVER",4650,111,"EXTENSION",680,111]
[112,"HELMET",4700,112,"FAIRHOLME",8180,112]
[113,"HELMET NORTH (SEE HELMET)",4720,113,"FALHER",2500,113]
[114,"HERITAGE",9021,114,"FALHER A",2505,114]
[115,"HIDING CREEK",4780,115,"FALHER B",2510,115]
[116,"HIGHHAT MOUNTAIN",4800,116,"FALHER C",2515,116]
[117,"HOFFARD",4850,117,"FALHER D",2520,117]
[118,"HORN RIVER",9045,118,"FALHER E",2530,118]
[119,"HOSSITL",4860,119,"FALHER F",2540,119]
[120,"HUNTER",4875,120,"FALHER G",2545,120]
[121,"INGA",4900,121,"FALHER SAND",2535,121]
[122,"INGA NORTH",4920,122,"FANTASQUE",6210,122]
[123,"INGA SOUTH",4925,123,"FARRELL",4570,123]
[124,"JACKPINE",4975,124,"FAULT",9990,124]
[125,"JEDNEY",5000,125,"FERNIE",2950,125]
[126,"JEDNEY WEST",5020,126,"FIRST BLACK SHALE",2960,126]
[127,"JULIENNE CREEK",5100,127,"FIRST BROWN MARKER",4505,127]
[128,"JULIENNE CREEK NORTH",5110,128,"FIRST GREEN MARKER",4531,128]
[129,"JULIENNE CREEK SOUTH",5120,129,"FIRST ORANGE MARKER",4539,129]
[130,"JUNIOR",5150,130,"FIRST PETROLIFEROUS SHALE",1412,130]
[131,"KAHNTAH RIVER",5160,131,"FLATHEAD",9140,131]
[132,"KELLY",5170,132,"FLATROCK",4533,132]
[133,"KLUA",5180,133,"FLETT",7240,133]
[134,"KOBES",5200,134,"FLUME",8330,134]
[135,"KOBES WEST",5230,135,"FORT NELSON",1450,135]
[136,"KOMIE",5300,136,"FORT SIMPSON",8280,136]
[137,"KOTCHO LAKE",5400,137,"FORT VERMILLION",8410,137]
[138,"KOTCHO LAKE EAST",5420,138,"FOURTH COAL MEASURE",2525,138]
[139,"KYKLO",5480,139,"FT ST JOHN",1530,139]
[140,"LADYFERN",5500,140,"FUNERAL",8708,140]
[141,"LAGARDE",5540,141,"GABRIOLA",600,141]
[142,"LAPP",5560,142,"GARBUTT",1740,142]
[143,"LAPRISE CREEK",5600,143,"GATES",1725,143]
[144,"LAPRISE CREEK WEST",5800,144,"GATEWAY",9940,144]
[145,"LIARD",9046,145,"GEOFFREY",620,145]
[146,"LILY LAKE",5810,146,"GETHING",2700,146]
[147,"LOUISE",5840,147,"GETHING-BALDONNEL",2785,147]
[148,"MARTIN",5850,148,"GILWOOD",8450,148]
[149,"MATHESON",5845,149,"GOLATA",7350,149]
[150,"MAXHAMISH LAKE",5852,150,"GOODRICH",1710,150]
[151,"MEIKLE CREEK (SEE: GWILLIM)",5854,151,"GORDON",9130,151]
[152,"MEL",5855,152,"GRANITE WASH",8715,152]
[153,"MERCURY",5858,153,"GRAYLING",4930,153]
[154,"MICA",5860,154,"GREEN BEDS",3010,154]
[155,"MIDWINTER (MOST IN HELMET)",5870,155,"GREY BEDS",3020,155]
[156,"MIKE",5880,156,"GRINELL",9965,156]
[157,"MILLIGAN CREEK",6000,157,"GROTTO",8273,157]
[158,"MILLIGAN CREEK WEST",6020,158,"GROUNDBIRCH",4571,158]
[159,"MILO",6030,159,"HAIDA",1600,159]
[160,"MIST MOUNTAIN",2852,160,"HAIGHBROOK",9930,160]
[161,"MOBERLY LAKE",6100,161,"HALFWAY",4800,161]
[162,"MONIAS",6140,162,"HALFWAY A",4790,162]
[163,"MONTNEY",6200,163,"HALFWAY B",4792,163]
[164,"MOOSE",6210,164,"HALFWAY C",4794,164]
[165,"MURRAY",6220,165,"HARE",8590,165]
[166,"MUSKRAT",6230,166,"HARMON",2220,166]
[167,"MUSKWA RIVER (SEE MILO)",6250,167,"HASLAM",700,167]
[168,"NECHAKO",9080,168,"HASLER",1715,168]
[169,"NIG CREEK",6400,169,"HAY RIVER",8210,169]
[170,"NIG CREEK NORTH",6410,170,"HAZELTON",3070,170]
[171,"NIG CREEK WEST",6420,171,"HEADLESS",8658,171]
[172,"NOEL",6430,172,"HONNA",1492,172]
[173,"NORTH PINE",6440,173,"HORN RIVER",8285,173]
[174,"NORTHERN PLAINS",9010,174,"HOT SHALE",2575,174]
[175,"OAK",6460,175,"HULCROSS",1724,175]
[176,"OJAY",6480,176,"INGA",4575,176]
[177,"OOTLA",6485,177,"IRETON",8271,177]
[178,"OSBORN",6490,178,"ISHBEL",6170,178]
[179,"OSPREY",6500,179,"ISLAND RIVER",8398,179]
[180,"OTHER AREAS",9000,180,"JACKASS MOUNTAIN",2810,180]
[181,"OWL",6530,181,"JEAN MARIE",8200,181]
[182,"PARADISE",6560,182,"JURASSIC",2920,182]
[183,"PARKLAND",6600,183,"KAKISA",8150,183]
[184,"PEACE RIVER",9020,184,"KASKAPAU",1410,184]
[185,"PEEJAY",6800,185,"KEG RIVER",8540,185]
[186,"PEEJAY WEST",7000,186,"KERN",4595,186]
[187,"PEGGO-PESH (WAS PEGGO 1996)",7020,187,"KINTLA",9932,187]
[188,"PESH (SEE PEGGO-PESH)",7030,188,"KISHENEHN",140,188]
[189,"PETITOT RIVER",7200,189,"KISKATINAW",7250,189]
[190,"PICKELL",7250,190,"KLUA",8510,190]
[191,"PINTAIL",7265,191,"KOBES",4550,191]
[192,"PLUTO",7275,192,"KOOTNEY",2840,192]
[193,"POCKETKNIFE",7300,193,"KOTCHO",8090,193]
[194,"PORTAGE",7320,194,"KSITUAN",6285,194]
[195,"PRESPATOU",7340,195,"LA GLACE",4547,195]
[196,"QUEEN CHARLOTTE",9100,196,"LANDRY",8704,196]
[197,"QUESNEL",9070,197,"LEDUC",8275,197]
[198,"RED CREEK",7400,198,"LEPINE",1705,198]
[199,"RED CREEK NORTH",7410,199,"LIARD",4750,199]
[200,"RED DEER",7430,200,"LIMESTONE A BED",4609,200]
[201,"REDEYE",7440,201,"LIVINGSTONE",7410,201]
[202,"REDWILLOW RIVER",7500,202,"LONG ARM",2750,202]
[203,"RIGEL",7600,203,"LOOMIS",7230,203]
[204,"RIGEL EAST",7620,204,"LOWER APPEKUNNY",9973,204]
[205,"RING",7660,205,"LOWER BELLOY",6222,205]
[206,"ROGER",7720,206,"LOWER BLAIRMORE",2692,206]
[207,"ROMEO (SEE SIERRA)",7730,207,"LOWER BULLHEAD",2705,207]
[208,"SAHTANEH",7740,208,"LOWER CHARLIE LAKE SANDS",4612,208]
[209,"SATURN",7745,209,"LOWER CHARLIE LAKE/MONTNEY",4995,209]
[210,"SEPTIMUS",7750,210,"LOWER CHINCHAGA",8700,210]
[211,"SEXTET",7755,211,"LOWER DEBOLT",7420,211]
[212,"SHEKILIE",7760,212,"LOWER DUNLEVY",2910,212]
[213,"SIERRA",7770,213,"LOWER GETHING",2710,213]
[214,"SIERRA WEST (SEE SIERRA)",7772,214,"LOWER GETHING/UPPER DUNLEVY",2775,214]
[215,"SIKANNI",7775,215,"LOWER HALFWAY",4805,215]
[216,"SILVER",7780,216,"LOWER KEG RIVER",8560,216]
[217,"SILVERBERRY",7820,217,"LOWER KISKATINAW",7300,217]
[218,"SIPHON",7840,218,"LOWER PALEOZOIC",8115,218]
[219,"SIPHON EAST",7860,219,"LOWER PINE POINT",8620,219]
[220,"SOJER",7890,220,"LOWER SIYEH",9963,220]
[221,"SQUIRREL",7900,221,"LOWER TAYLOR FLAT",6305,221]
[222,"STODDART",8000,222,"MANETOE",8712,222]
[223,"STODDART SOUTH",8060,223,"MARSTON",7228,223]
[224,"STODDART WEST",8100,224,"MASSET",130,224]
[225,"STONE CREEK",8105,225,"MATTSON",7100,225]
[226,"SUKUNKA",8110,226,"MAUDE",3990,226]
[227,"SUNDOWN",8115,227,"MESOZOIC",175,227]
[228,"SUNRISE",8120,228,"MICA",4545,228]
[229,"SUNSET PRAIRIE",8130,229,"MIDDLE APPEKUNNY",9972,229]
[230,"SWAN LAKE",8135,230,"MIDDLE DEVONIAN",8390,230]
[231,"TATTOO",8137,231,"MIDDLE SIYEH",9962,231]
[232,"THETLAANDOA",8140,232,"MINNES",2835,232]
[233,"THETLAANDOA NORTH",8144,233,"MISSISSIPPIAN",7000,233]
[234,"THETLAANDOA SOUTH",8145,234,"MIST MOUNTAIN",2852,234]
[235,"THUNDER MOUNTAIN",8147,235,"MONACH",2837,235]
[236,"TOFINO",9110,236,"MONTIETH",2839,236]
[237,"TOMMY LAKES",8150,237,"MONTNEY",5000,237]
[238,"TOOGA",8155,238,"MOOSE MOUNTAIN MEMBER",2853,238]
[239,"TOWER LAKE",8157,239,"MOOSEBAR",1870,239]
[240,"TOWN",8160,240,"MORRISSEY",2845,240]
[241,"TOWNSEND",8170,241,"MOUNT HAWK",8155,241]
[242,"TRUTCH",8175,242,"MOUNT HEAD",7380,242]
[243,"TSEA",8180,243,"MOUNT WHYTE",9112,243]
[244,"TUPPER CREEK",8190,244,"MOWITCH",6215,244]
[245,"TWO RIVERS",8200,245,"MOYIE INTRUSIONS",9925,245]
[246,"UMBACH",8220,246,"MUD BAY",108,246]
[247,"UNKNOWN - REMOVE ASSOC. POOL",2600,247,"MUNCHO-MCCONNELL",8750,247]
[248,"VELMA",8240,248,"MUSKEG",8530,248]
[249,"WARGEN",8260,249,"MUSKIKI",1390,249]
[250,"WEASEL",8300,250,"MUSKWA",8290,250]
[251,"WEASEL WEST",8320,251,"MUSKWA-OTTER PARK",8295,251]
[252,"WHITEHORSE",9050,252,"MUSKWA-OTTER PARK-SLAVE POINT",8300,252]
[253,"WILDER",8360,253,"NAHANNI",8580,253]
[254,"WILDMINT",8400,254,"NAHANNI-HEADLESS",8585,254]
[255,"WILLOW",8600,255,"NANAMIO GROUP",500,255]
[256,"WINDFLOWER",8625,256,"NANCY",4530,256]
[257,"WOLF",8700,257,"NEWCASTLE",670,257]
[258,"WOLVERINE",8720,258,"NIKANASSIN",2850,258]
[259,"WOODRUSH",8740,259,"NISKU",8190,259]
[260,"YOYO",8800,260,"NONDA",8780,260]
[261,"ZAREMBA",8900,261,"NORDEGG",3200,261]
[null,null,null,262,"NORDEGG-BALDONNEL",4040,262]
[null,null,null,263,"NORTH PINE",4580,263]
[null,null,null,264,"NORTHUMBERLAND",630,264]
[null,null,null,265,"NOTIKEWIN",2400,265]
[null,null,null,266,"ORDOVICIAN",8900,266]
[null,null,null,267,"OTTER PARK",8395,267]
[null,null,null,268,"OWL",4507,268]
[null,null,null,269,"PADDY",2000,269]
[null,null,null,270,"PALEOZOIC",5999,270]
[null,null,null,271,"PALLISER",8110,271]
[null,null,null,272,"PARDONET",4050,272]
[null,null,null,273,"PARDONET-BALDONNEL",4060,273]
[null,null,null,274,"PASSAGE BEDS",3000,274]
[null,null,null,275,"PEACE RIVER",2330,275]
[null,null,null,276,"PEECHEE",8282,276]
[null,null,null,277,"PEKISKO",7600,277]
[null,null,null,278,"PEKISKO CARBONATE",7610,278]
[null,null,null,279,"PENDER",675,279]
[null,null,null,280,"PERDRIX",8283,280]
[null,null,null,281,"PERMIAN",6000,281]
[null,null,null,282,"PERMO CARBONIFEROUS",6100,282]
[null,null,null,283,"PERMO PENNSYLVANIAN",6110,283]
[null,null,null,284,"PHILLIPS",9935,284]
[null,null,null,285,"PIKA",9108,285]
[null,null,null,286,"PINE POINT",8600,286]
[null,null,null,287,"PINGEL",4590,287]
[null,null,null,288,"PINK MARKER",4537,288]
[null,null,null,289,"PLEISTOCENE",60,289]
[null,null,null,290,"POKER CHIP",3040,290]
[null,null,null,291,"POUCE COUPE",1415,291]
[null,null,null,292,"PRECAMBRIAN",9900,292]
[null,null,null,293,"PRE-DEVONIAN",8752,293]
[null,null,null,294,"PRE-DEVONIAN QUARTZITE",8755,294]
[null,null,null,295,"PRESQU'ILE",8460,295]
[null,null,null,296,"PRE-TERTIARY",75,296]
[null,null,null,297,"PROPHET",7386,297]
[null,null,null,298,"PROTECTION",660,298]
[null,null,null,299,"PURCELL LAVA",9950,299]
[null,null,null,300,"PURCELL SYSTEM",9920,300]
[null,null,null,301,"PURPLE MARKER",4591,301]
[null,null,null,302,"PUSKWASKAU",1365,302]
[null,null,null,303,"QUATERNARY",50,303]
[null,null,null,304,"QUEEN CHARLOTTE GROUP",1490,304]
[null,null,null,305,"RADIOACTIVE ZONE",1741,305]
[null,null,null,306,"RED BEDS",8710,306]
[null,null,null,307,"RED CREEK",4524,307]
[null,null,null,308,"REDKNIFE",8220,308]
[null,null,null,309,"REPEAT",9991,309]
[null,null,null,310,"RITCHIE",3220,310]
[null,null,null,311,"ROCK CREEK",3030,311]
[null,null,null,312,"ROCKY MOUNTAIN",6150,312]
[null,null,null,313,"RONNING",8920,313]
[null,null,null,314,"RUNDLE",7405,314]
[null,null,null,315,"SALTER",7232,315]
[null,null,null,316,"SCATTER",1730,316]
[null,null,null,317,"SCHOOLER CREEK",4090,317]
[null,null,null,318,"SECOND BLACK SHALE",2970,318]
[null,null,null,319,"SECOND BROWN MARKER",4532,319]
[null,null,null,320,"SECOND GREEN MARKER",4605,320]
[null,null,null,321,"SECOND ORANGE MARKER",4592,321]
[null,null,null,322,"SECOND PETROLIFEROUS SHALE",1414,322]
[null,null,null,323,"SECOND WHITE SPECKLED SHALE",1411,323]
[null,null,null,324,"SEPTIMUS",4542,324]
[null,null,null,325,"SHAFTESBURY",1700,325]
[null,null,null,326,"SHEPPARD",9945,326]
[null,null,null,327,"SHUNDA",7500,327]
[null,null,null,328,"SIKANNI",1680,328]
[null,null,null,329,"SILURIAN",8770,329]
[null,null,null,330,"SIPHON",4510,330]
[null,null,null,331,"SIPHON DISCONFORMITY",4511,331]
[null,null,null,332,"SIYEH",9960,332]
[null,null,null,333,"SKIDEGATE",1494,333]
[null,null,null,334,"SKONUN",120,334]
[null,null,null,335,"SLAVE POINT",8400,335]
[null,null,null,336,"SOUTHESK",8185,336]
[null,null,null,337,"SPIRIT RIVER",2350,337]
[null,null,null,338,"SPRAY",610,338]
[null,null,null,339,"SPRAY RIVER",4950,339]
[null,null,null,340,"STEPHEN",9110,340]
[null,null,null,341,"STODDART",6260,341]
[null,null,null,342,"STONE",8702,342]
[null,null,null,343,"SULLY",1660,343]
[null,null,null,344,"SULPHUR POINT",8500,344]
[null,null,null,345,"T.D.",9999,345]
[null,null,null,346,"TAKLA",4200,346]
[null,null,null,347,"TAYLOR FLAT",6300,347]
[null,null,null,348,"TEA CREEK MEMBER",4596,348]
[null,null,null,349,"TERTIARY",100,349]
[null,null,null,350,"TETCHO",8125,350]
[null,null,null,351,"TOAD",4920,351]
[null,null,null,352,"TOAD GRAYLING",4910,352]
[null,null,null,353,"TOMBSTONE MOUNTAIN",9975,353]
[null,null,null,354,"TRIASSIC",4000,354]
[null,null,null,355,"TRIASSIC D",4802,355]
[null,null,null,356,"TRIASSIC VOLCANIC BASEMENT",4600,356]
[null,null,null,357,"TROUT RIVER",8130,357]
[null,null,null,358,"TRUTCH CREEK",4608,358]
[null,null,null,359,"TUNNEL MTN",7270,359]
[null,null,null,360,"TWO RIVERS",4512,360]
[null,null,null,361,"UPPER APPEKUNNY",9971,361]
[null,null,null,362,"UPPER CHINCHAGA",8640,362]
[null,null,null,363,"UPPER CRETACEOUS",200,363]
[null,null,null,364,"UPPER DEBOLT",7390,364]
[null,null,null,365,"UPPER DEVONIAN",8070,365]
[null,null,null,366,"UPPER HALFWAY",4798,366]
[null,null,null,367,"UPPER KEG RIVER",8528,367]
[null,null,null,368,"UPPER KISKATINAW",7200,368]
[null,null,null,369,"UPPER SIYEH",9961,369]
[null,null,null,370,"UPPER TAYLOR FLAT",6295,370]
[null,null,null,371,"UTAHN",8240,371]
[null,null,null,372,"WABAMUN",8100,372]
[null,null,null,373,"WAPIABI",1360,373]
[null,null,null,374,"WAPITI",1300,374]
[null,null,null,375,"WATERTON",9976,375]
[null,null,null,376,"WATT MOUNTAIN",8440,376]
[null,null,null,377,"WILDER",4585,377]
[null,null,null,378,"WILEMAN",7236,378]
[null,null,null,379,"WILRICH",2550,379]
[null,null,null,380,"WINDERMERE SYSTEM",9910,380]
[null,null,null,381,"WINDSOR MOUNTAIN",9100,381]
[null,null,null,382,"WINTERBURN",8135,382]
[null,null,null,383,"WOKKPASH",8740,383]
[null,null,null,384,"WOODBEND",8270,384]
[null,null,null,385,"YAHATINDA",8760,385]
[null,null,null,386,"YAKOUN",3900,386]
[null,null,null,387,"YELLOW MARKER",4538,387]

{"sheet":"DBS_Location","index":14,"n_rows":202,"n_cols":78,"rows_kept":202,"cut":false,"hidden":false,"merged":[[111,0,113,4],[114,0,116,4],[0,1,0,12],[0,13,16,13],[2,4,2,12],[4,4,4,12],[5,4,5,8]]}
[null,"Location of BCER Source Database",null,null,null,null,null,null,null,null,null,null,null,null,null,null,null,null,null,null,null,null,null,null,null,null,null,null,null,null,null,null,"Source Database",{"$f":"$E$3&IF(AND(RIGHT($E$3,1)<>\"\\\",RIGHT($E$3,1)<>\"/\"),\"\\\",\"\")&$E$5","v":"c:\\users\\offic\\Downloads\\DBS_BCER_Data_Most_Recent.accdb"}]
[null,null,null,"Source Database",null,null,null,null,null,null,null,null,null,null,null,null,null,null,null,null,null,null,null,null,null,null,null,null,null,null,null,null,"Source Database",{"$f":"$E$9&IF(AND(RIGHT($E$9,1)<>\"\\\",RIGHT($E$9,1)<>\"/\"),\"\\\",\"\")&$E$11","v":"\\"},null,null,null,null,null,null,null,null,null,null,null,null,null,null,null,null,null,null,"Trial Version - Not Registered",null,null,null,null,null,null,null,null,null,null,null,null,null,null,null,null,null,null,null,null,null,null,null,"Ent_Name","Ent_ID"]
[null,null,null,"Directory","c:\\users\\offic\\Downloads\\",null,null,null,null,null,null,null,null,null,null,null,null,null,null,null,null,null,null,null,null,null,null,null,null,null,null,null,null,null,null,null,null,null,null,null,null,null,null,null,null,null,null,null,null,null,null,null,null,null,null,null,null,null,null,null,null,null,null,null,null,null,null,null,null,null,null,null,null,null,null,null,{"$f":"IF(#REF!=\"\",\"\",#REF!)","v":{"$error":"#REF!"}},{"$f":"IF(#REF!=\"\",\"\",#REF!)","v":{"$error":"#REF!"}}]
[null,null,null,null,null,null,null,null,null,null,null,null,null,null,null,null,null,null,null,null,null,null,null,null,null,null,null,null,null,null,null,null,null,null,null,null,null,null,null,null,null,null,null,null,null,null,null,null,null,null,null,null,null,null,null,null,null,null,null,null,null,null,null,null,null,null,null,null,null,null,null,null,null,null,null,null,{"$f":"IF(#REF!=\"\",\"\",#REF!)","v":{"$error":"#REF!"}},{"$f":"IF(#REF!=\"\",\"\",#REF!)","v":{"$error":"#REF!"}}]
[null,null,null,"Name","DBS_BCER_Data_Most_Recent.accdb",null,null,null,null,null,null,null,null,null,null,null,null,null,null,null,null,null,null,null,null,null,null,null,null,null,null,null,"OC",null,null,null,null,null,null,null,null,null,null,null,null,null,null,null,null,null,null,null,"Trial Version - Not Registered",null,null,null,null,null,null,null,null,null,null,null,null,null,null,null,null,null,null,null,null,null,null,null,{"$f":"IF(#REF!=\"\",\"\",#REF!)","v":{"$error":"#REF!"}},{"$f":"IF(#REF!=\"\",\"\",#REF!)","v":{"$error":"#REF!"}}]
[null,null,null,null,null,null,null,null,null,null,null,null,null,null,null,null,null,null,null,null,null,null,null,null,null,null,null,null,null,null,null,null,null,null,null,null,null,null,null,null,null,null,null,null,null,null,null,null,null,null,null,null,null,null,null,null,null,null,null,null,null,null,null,null,null,null,null,null,null,null,null,null,null,null,null,null,{"$f":"IF(#REF!=\"\",\"\",#REF!)","v":{"$error":"#REF!"}},{"$f":"IF(#REF!=\"\",\"\",#REF!)","v":{"$error":"#REF!"}}]
[null,null,null,null,null,null,null,null,null,null,null,null,null,null,null,null,null,null,null,null,null,null,null,null,null,null,null,null,null,null,null,null,null,null,null,null,null,null,null,null,null,null,null,null,null,null,null,null,null,null,null,null,null,null,null,null,null,null,null,null,null,null,null,null,null,null,null,null,null,null,null,null,null,null,null,null,{"$f":"IF(#REF!=\"\",\"\",#REF!)","v":{"$error":"#REF!"}},{"$f":"IF(#REF!=\"\",\"\",#REF!)","v":{"$error":"#REF!"}}]
[null,null,null,null,null,null,null,null,null,null,null,null,null,null,null,null,null,null,null,null,null,null,null,null,null,null,null,null,null,null,null,null,null,null,null,null,null,null,null,null,null,null,null,null,null,null,null,null,null,null,null,null,null,null,null,null,null,null,null,null,null,null,null,null,null,null,null,null,null,null,null,null,null,null,null,null,{"$f":"IF(#REF!=\"\",\"\",#REF!)","v":{"$error":"#REF!"}},{"$f":"IF(#REF!=\"\",\"\",#REF!)","v":{"$error":"#REF!"}}]
[null,null,null,null,null,null,null,null,null,null,null,null,null,null,null,null,null,null,null,null,null,null,null,null,null,null,null,null,null,null,null,null,null,null,null,null,null,null,null,null,null,null,null,null,null,null,null,null,null,null,null,null,null,null,null,null,null,null,null,null,null,null,null,null,null,null,null,null,null,null,null,null,null,null,null,null,{"$f":"IF(#REF!=\"\",\"\",#REF!)","v":{"$error":"#REF!"}},{"$f":"IF(#REF!=\"\",\"\",#REF!)","v":{"$error":"#REF!"}}]
[null,null,null,null,null,null,null,null,null,null,null,null,null,null,null,null,null,null,null,null,null,null,null,null,null,null,null,null,null,null,null,null,null,null,null,null,null,null,null,null,null,null,null,null,null,null,null,null,null,null,null,null,null,null,null,null,null,null,null,null,null,null,null,null,null,null,null,null,null,null,null,null,null,null,null,null,{"$f":"IF(#REF!=\"\",\"\",#REF!)","v":{"$error":"#REF!"}},{"$f":"IF(#REF!=\"\",\"\",#REF!)","v":{"$error":"#REF!"}}]
[null,null,null,null,null,null,null,null,null,null,null,null,null,null,null,null,null,null,null,null,null,null,null,null,null,null,null,null,null,null,null,null,null,null,null,null,null,null,null,null,null,null,null,null,null,null,null,null,null,null,null,null,null,null,null,null,null,null,null,null,null,null,null,null,null,null,null,null,null,null,null,null,null,null,null,null,{"$f":"IF(#REF!=\"\",\"\",#REF!)","v":{"$error":"#REF!"}},{"$f":"IF(#REF!=\"\",\"\",#REF!)","v":{"$error":"#REF!"}}]
[null,null,null,null,null,null,null,null,null,null,null,null,null,null,null,null,null,null,null,null,null,null,null,null,null,null,null,null,null,null,null,null,null,null,null,null,null,null,null,null,null,null,null,null,null,null,null,null,null,null,null,null,null,null,null,null,null,null,null,null,null,null,null,null,null,null,null,null,null,null,null,null,null,null,null,null,{"$f":"IF(#REF!=\"\",\"\",#REF!)","v":{"$error":"#REF!"}},{"$f":"IF(#REF!=\"\",\"\",#REF!)","v":{"$error":"#REF!"}}]
[null,null,null,null,null,null,null,null,null,null,null,null,null,null,null,null,null,null,null,null,null,null,null,null,null,null,null,null,null,null,null,null,null,null,null,null,null,null,null,null,null,null,null,null,null,null,null,null,null,null,null,null,null,null,null,null,null,null,null,null,null,null,null,null,null,null,null,null,null,null,null,null,null,null,null,null,{"$f":"IF(#REF!=\"\",\"\",#REF!)","v":{"$error":"#REF!"}},{"$f":"IF(#REF!=\"\",\"\",#REF!)","v":{"$error":"#REF!"}}]
[null,null,null,null,null,null,null,null,null,null,null,null,null,null,null,null,null,null,null,null,null,null,null,null,null,null,null,null,null,null,null,null,null,null,null,null,null,null,null,null,null,null,null,null,null,null,null,null,null,null,null,null,null,null,null,null,null,null,null,null,null,null,null,null,null,null,null,null,null,null,null,null,null,null,null,null,{"$f":"IF(#REF!=\"\",\"\",#REF!)","v":{"$error":"#REF!"}},{"$f":"IF(#REF!=\"\",\"\",#REF!)","v":{"$error":"#REF!"}}]
[null,null,null,null,null,null,null,null,null,null,null,null,null,null,null,null,null,null,null,null,null,null,null,null,null,null,null,null,null,null,null,null,null,null,null,null,null,null,null,null,null,null,null,null,null,null,null,null,null,null,null,null,null,null,null,null,null,null,null,null,null,null,null,null,null,null,null,null,null,null,null,null,null,null,null,null,{"$f":"IF(#REF!=\"\",\"\",#REF!)","v":{"$error":"#REF!"}},{"$f":"IF(#REF!=\"\",\"\",#REF!)","v":{"$error":"#REF!"}}]
[null,null,null,null,null,null,null,null,null,null,null,null,null,null,null,null,null,null,null,null,null,null,null,null,null,null,null,null,null,null,null,null,null,null,null,null,null,null,null,null,null,null,null,null,null,null,null,null,null,null,null,null,null,null,null,null,null,null,null,null,null,null,null,null,null,null,null,null,null,null,null,null,null,null,null,null,{"$f":"IF(#REF!=\"\",\"\",#REF!)","v":{"$error":"#REF!"}},{"$f":"IF(#REF!=\"\",\"\",#REF!)","v":{"$error":"#REF!"}}]
[null,null,null,null,null,null,null,null,null,null,null,null,null,null,null,null,null,null,null,null,null,null,null,null,null,null,null,null,null,null,null,null,null,null,null,null,null,null,null,null,null,null,null,null,null,null,null,null,null,null,null,null,null,null,null,null,null,null,null,null,null,null,null,null,null,null,null,null,null,null,null,null,null,null,null,null,{"$f":"IF(#REF!=\"\",\"\",#REF!)","v":{"$error":"#REF!"}},{"$f":"IF(#REF!=\"\",\"\",#REF!)","v":{"$error":"#REF!"}}]
[null,null,null,null,null,null,null,null,null,null,null,null,null,null,null,null,null,null,null,null,null,null,null,null,null,null,null,null,null,null,null,null,null,null,null,null,null,null,null,null,null,null,null,null,null,null,null,null,null,null,null,null,null,null,null,null,null,null,null,null,null,null,null,null,null,null,null,null,null,null,null,null,null,null,null,null,{"$f":"IF(#REF!=\"\",\"\",#REF!)","v":{"$error":"#REF!"}},{"$f":"IF(#REF!=\"\",\"\",#REF!)","v":{"$error":"#REF!"}}]
[null,null,null,null,null,null,null,null,null,null,null,null,null,null,null,null,null,null,null,null,null,null,null,null,null,null,null,null,null,null,null,null,null,null,null,null,null,null,null,null,null,null,null,null,null,null,null,null,null,null,null,null,null,null,null,null,null,null,null,null,null,null,null,null,null,null,null,null,null,null,null,null,null,null,null,null,{"$f":"IF(#REF!=\"\",\"\",#REF!)","v":{"$error":"#REF!"}},{"$f":"IF(#REF!=\"\",\"\",#REF!)","v":{"$error":"#REF!"}}]
[null,null,null,null,null,null,null,null,null,null,null,null,null,null,null,null,null,null,null,null,null,null,null,null,null,null,null,null,null,null,null,null,null,null,null,null,null,null,null,null,null,null,null,null,null,null,null,null,null,null,null,null,null,null,null,null,null,null,null,null,null,null,null,null,null,null,null,null,null,null,null,null,null,null,null,null,{"$f":"IF(#REF!=\"\",\"\",#REF!)","v":{"$error":"#REF!"}},{"$f":"IF(#REF!=\"\",\"\",#REF!)","v":{"$error":"#REF!"}}]
[null,null,null,null,null,null,null,null,null,null,null,null,null,null,null,null,null,null,null,null,null,null,null,null,null,null,null,null,null,null,null,null,null,null,null,null,null,null,null,null,null,null,null,null,null,null,null,null,null,null,null,null,null,null,null,null,null,null,null,null,null,null,null,null,null,null,null,null,null,null,null,null,null,null,null,null,{"$f":"IF(#REF!=\"\",\"\",#REF!)","v":{"$error":"#REF!"}},{"$f":"IF(#REF!=\"\",\"\",#REF!)","v":{"$error":"#REF!"}}]
[null,null,null,null,null,null,null,null,null,null,null,null,null,null,null,null,null,null,null,null,null,null,null,null,null,null,null,null,null,null,null,null,null,null,null,null,null,null,null,null,null,null,null,null,null,null,null,null,null,null,null,null,null,null,null,null,null,null,null,null,null,null,null,null,null,null,null,null,null,null,null,null,null,null,null,null,{"$f":"IF(#REF!=\"\",\"\",#REF!)","v":{"$error":"#REF!"}},{"$f":"IF(#REF!=\"\",\"\",#REF!)","v":{"$error":"#REF!"}}]
[null,null,null,null,null,null,null,null,null,null,null,null,null,null,null,null,null,null,null,null,null,null,null,null,null,null,null,null,null,null,null,null,null,null,null,null,null,null,null,null,null,null,null,null,null,null,null,null,null,null,null,null,null,null,null,null,null,null,null,null,null,null,null,null,null,null,null,null,null,null,null,null,null,null,null,null,{"$f":"IF(#REF!=\"\",\"\",#REF!)","v":{"$error":"#REF!"}},{"$f":"IF(#REF!=\"\",\"\",#REF!)","v":{"$error":"#REF!"}}]
[null,null,null,null,null,null,null,null,null,null,null,null,null,null,null,null,null,null,null,null,null,null,null,null,null,null,null,null,null,null,null,null,null,null,null,null,null,null,null,null,null,null,null,null,null,null,null,null,null,null,null,null,null,null,null,null,null,null,null,null,null,null,null,null,null,null,null,null,null,null,null,null,null,null,null,null,{"$f":"IF(#REF!=\"\",\"\",#REF!)","v":{"$error":"#REF!"}},{"$f":"IF(#REF!=\"\",\"\",#REF!)","v":{"$error":"#REF!"}}]
[null,null,null,null,null,null,null,null,null,null,null,null,null,null,null,null,null,null,null,null,null,null,null,null,null,null,null,null,null,null,null,null,null,null,null,null,null,null,null,null,null,null,null,null,null,null,null,null,null,null,null,null,null,null,null,null,null,null,null,null,null,null,null,null,null,null,null,null,null,null,null,null,null,null,null,null,{"$f":"IF(#REF!=\"\",\"\",#REF!)","v":{"$error":"#REF!"}},{"$f":"IF(#REF!=\"\",\"\",#REF!)","v":{"$error":"#REF!"}}]
[null,null,null,null,null,null,null,null,null,null,null,null,null,null,null,null,null,null,null,null,null,null,null,null,null,null,null,null,null,null,null,null,null,null,null,null,null,null,null,null,null,null,null,null,null,null,null,null,null,null,null,null,null,null,null,null,null,null,null,null,null,null,null,null,null,null,null,null,null,null,null,null,null,null,null,null,{"$f":"IF(#REF!=\"\",\"\",#REF!)","v":{"$error":"#REF!"}},{"$f":"IF(#REF!=\"\",\"\",#REF!)","v":{"$error":"#REF!"}}]
[null,null,null,null,null,null,null,null,null,null,null,null,null,null,null,null,null,null,null,null,null,null,null,null,null,null,null,null,null,null,null,null,null,null,null,null,null,null,null,null,null,null,null,null,null,null,null,null,null,null,null,null,null,null,null,null,null,null,null,null,null,null,null,null,null,null,null,null,null,null,null,null,null,null,null,null,{"$f":"IF(#REF!=\"\",\"\",#REF!)","v":{"$error":"#REF!"}},{"$f":"IF(#REF!=\"\",\"\",#REF!)","v":{"$error":"#REF!"}}]
[null,null,null,null,null,null,null,null,null,null,null,null,null,null,null,null,null,null,null,null,null,null,null,null,null,null,null,null,null,null,null,null,null,null,null,null,null,null,null,null,null,null,null,null,null,null,null,null,null,null,null,null,null,null,null,null,null,null,null,null,null,null,null,null,null,null,null,null,null,null,null,null,null,null,null,null,{"$f":"IF(#REF!=\"\",\"\",#REF!)","v":{"$error":"#REF!"}},{"$f":"IF(#REF!=\"\",\"\",#REF!)","v":{"$error":"#REF!"}}]
[null,null,null,null,null,null,null,null,null,null,null,null,null,null,null,null,null,null,null,null,null,null,null,null,null,null,null,null,null,null,null,null,null,null,null,null,null,null,null,null,null,null,null,null,null,null,null,null,null,null,null,null,null,null,null,null,null,null,null,null,null,null,null,null,null,null,null,null,null,null,null,null,null,null,null,null,{"$f":"IF(#REF!=\"\",\"\",#REF!)","v":{"$error":"#REF!"}},{"$f":"IF(#REF!=\"\",\"\",#REF!)","v":{"$error":"#REF!"}}]
[null,null,null,null,null,null,null,null,null,null,null,null,null,null,null,null,null,null,null,null,null,null,null,null,null,null,null,null,null,null,null,null,null,null,null,null,null,null,null,null,null,null,null,null,null,null,null,null,null,null,null,null,null,null,null,null,null,null,null,null,null,null,null,null,null,null,null,null,null,null,null,null,null,null,null,null,{"$f":"IF(#REF!=\"\",\"\",#REF!)","v":{"$error":"#REF!"}},{"$f":"IF(#REF!=\"\",\"\",#REF!)","v":{"$error":"#REF!"}}]
[null,null,null,null,null,null,null,null,null,null,null,null,null,null,null,null,null,null,null,null,null,null,null,null,null,null,null,null,null,null,null,null,null,null,null,null,null,null,null,null,null,null,null,null,null,null,null,null,null,null,null,null,null,null,null,null,null,null,null,null,null,null,null,null,null,null,null,null,null,null,null,null,null,null,null,null,{"$f":"IF(#REF!=\"\",\"\",#REF!)","v":{"$error":"#REF!"}},{"$f":"IF(#REF!=\"\",\"\",#REF!)","v":{"$error":"#REF!"}}]
[null,null,null,null,null,null,null,null,null,null,null,null,null,null,null,null,null,null,null,null,null,null,null,null,null,null,null,null,null,null,null,null,null,null,null,null,null,null,null,null,null,null,null,null,null,null,null,null,null,null,null,null,null,null,null,null,null,null,null,null,null,null,null,null,null,null,null,null,null,null,null,null,null,null,null,null,{"$f":"IF(#REF!=\"\",\"\",#REF!)","v":{"$error":"#REF!"}},{"$f":"IF(#REF!=\"\",\"\",#REF!)","v":{"$error":"#REF!"}}]
[null,null,null,null,null,null,null,null,null,null,null,null,null,null,null,null,null,null,null,null,null,null,null,null,null,null,null,null,null,null,null,null,null,null,null,null,null,null,null,null,null,null,null,null,null,null,null,null,null,null,null,null,null,null,null,null,null,null,null,null,null,null,null,null,null,null,null,null,null,null,null,null,null,null,null,null,{"$f":"IF(#REF!=\"\",\"\",#REF!)","v":{"$error":"#REF!"}},{"$f":"IF(#REF!=\"\",\"\",#REF!)","v":{"$error":"#REF!"}}]
[null,null,null,null,null,null,null,null,null,null,null,null,null,null,null,null,null,null,null,null,null,null,null,null,null,null,null,null,null,null,null,null,null,null,null,null,null,null,null,null,null,null,null,null,null,null,null,null,null,null,null,null,null,null,null,null,null,null,null,null,null,null,null,null,null,null,null,null,null,null,null,null,null,null,null,null,{"$f":"IF(#REF!=\"\",\"\",#REF!)","v":{"$error":"#REF!"}},{"$f":"IF(#REF!=\"\",\"\",#REF!)","v":{"$error":"#REF!"}}]
[null,null,null,null,null,null,null,null,null,null,null,null,null,null,null,null,null,null,null,null,null,null,null,null,null,null,null,null,null,null,null,null,null,null,null,null,null,null,null,null,null,null,null,null,null,null,null,null,null,null,null,null,null,null,null,null,null,null,null,null,null,null,null,null,null,null,null,null,null,null,null,null,null,null,null,null,{"$f":"IF(#REF!=\"\",\"\",#REF!)","v":{"$error":"#REF!"}},{"$f":"IF(#REF!=\"\",\"\",#REF!)","v":{"$error":"#REF!"}}]
[null,null,null,null,null,null,null,null,null,null,null,null,null,null,null,null,null,null,null,null,null,null,null,null,null,null,null,null,null,null,null,null,null,null,null,null,null,null,null,null,null,null,null,null,null,null,null,null,null,null,null,null,null,null,null,null,null,null,null,null,null,null,null,null,null,null,null,null,null,null,null,null,null,null,null,null,{"$f":"IF(#REF!=\"\",\"\",#REF!)","v":{"$error":"#REF!"}},{"$f":"IF(#REF!=\"\",\"\",#REF!)","v":{"$error":"#REF!"}}]
[null,null,null,null,null,null,null,null,null,null,null,null,null,null,null,null,null,null,null,null,null,null,null,null,null,null,null,null,null,null,null,null,null,null,null,null,null,null,null,null,null,null,null,null,null,null,null,null,null,null,null,null,null,null,null,null,null,null,null,null,null,null,null,null,null,null,null,null,null,null,null,null,null,null,null,null,{"$f":"IF(#REF!=\"\",\"\",#REF!)","v":{"$error":"#REF!"}},{"$f":"IF(#REF!=\"\",\"\",#REF!)","v":{"$error":"#REF!"}}]
[null,null,null,null,null,null,null,null,null,null,null,null,null,null,null,null,null,null,null,null,null,null,null,null,null,null,null,null,null,null,null,null,null,null,null,null,null,null,null,null,null,null,null,null,null,null,null,null,null,null,null,null,null,null,null,null,null,null,null,null,null,null,null,null,null,null,null,null,null,null,null,null,null,null,null,null,{"$f":"IF(#REF!=\"\",\"\",#REF!)","v":{"$error":"#REF!"}},{"$f":"IF(#REF!=\"\",\"\",#REF!)","v":{"$error":"#REF!"}}]
[null,null,null,null,null,null,null,null,null,null,null,null,null,null,null,null,null,null,null,null,null,null,null,null,null,null,null,null,null,null,null,null,null,null,null,null,null,null,null,null,null,null,null,null,null,null,null,null,null,null,null,null,null,null,null,null,null,null,null,null,null,null,null,null,null,null,null,null,null,null,null,null,null,null,null,null,{"$f":"IF(#REF!=\"\",\"\",#REF!)","v":{"$error":"#REF!"}},{"$f":"IF(#REF!=\"\",\"\",#REF!)","v":{"$error":"#REF!"}}]
[null,null,null,null,null,null,null,null,null,null,null,null,null,null,null,null,null,null,null,null,null,null,null,null,null,null,null,null,null,null,null,null,null,null,null,null,null,null,null,null,null,null,null,null,null,null,null,null,null,null,null,null,null,null,null,null,null,null,null,null,null,null,null,null,null,null,null,null,null,null,null,null,null,null,null,null,{"$f":"IF(#REF!=\"\",\"\",#REF!)","v":{"$error":"#REF!"}},{"$f":"IF(#REF!=\"\",\"\",#REF!)","v":{"$error":"#REF!"}}]
[null,null,null,null,null,null,null,null,null,null,null,null,null,null,null,null,null,null,null,null,null,null,null,null,null,null,null,null,null,null,null,null,null,null,null,null,null,null,null,null,null,null,null,null,null,null,null,null,null,null,null,null,null,null,null,null,null,null,null,null,null,null,null,null,null,null,null,null,null,null,null,null,null,null,null,null,{"$f":"IF(#REF!=\"\",\"\",#REF!)","v":{"$error":"#REF!"}},{"$f":"IF(#REF!=\"\",\"\",#REF!)","v":{"$error":"#REF!"}}]
[null,null,null,null,null,null,null,null,null,null,null,null,null,null,null,null,null,null,null,null,null,null,null,null,null,null,null,null,null,null,null,null,null,null,null,null,null,null,null,null,null,null,null,null,null,null,null,null,null,null,null,null,null,null,null,null,null,null,null,null,null,null,null,null,null,null,null,null,null,null,null,null,null,null,null,null,{"$f":"IF(#REF!=\"\",\"\",#REF!)","v":{"$error":"#REF!"}},{"$f":"IF(#REF!=\"\",\"\",#REF!)","v":{"$error":"#REF!"}}]
[null,null,null,null,null,null,null,null,null,null,null,null,null,null,null,null,null,null,null,null,null,null,null,null,null,null,null,null,null,null,null,null,null,null,null,null,null,null,null,null,null,null,null,null,null,null,null,null,null,null,null,null,null,null,null,null,null,null,null,null,null,null,null,null,null,null,null,null,null,null,null,null,null,null,null,null,{"$f":"IF(#REF!=\"\",\"\",#REF!)","v":{"$error":"#REF!"}},{"$f":"IF(#REF!=\"\",\"\",#REF!)","v":{"$error":"#REF!"}}]
[null,null,null,null,null,null,null,null,null,null,null,null,null,null,null,null,null,null,null,null,null,null,null,null,null,null,null,null,null,null,null,null,null,null,null,null,null,null,null,null,null,null,null,null,null,null,null,null,null,null,null,null,null,null,null,null,null,null,null,null,null,null,null,null,null,null,null,null,null,null,null,null,null,null,null,null,{"$f":"IF(#REF!=\"\",\"\",#REF!)","v":{"$error":"#REF!"}},{"$f":"IF(#REF!=\"\",\"\",#REF!)","v":{"$error":"#REF!"}}]
[null,null,null,null,null,null,null,null,null,null,null,null,null,null,null,null,null,null,null,null,null,null,null,null,null,null,null,null,null,null,null,null,null,null,null,null,null,null,null,null,null,null,null,null,null,null,null,null,null,null,null,null,null,null,null,null,null,null,null,null,null,null,null,null,null,null,null,null,null,null,null,null,null,null,null,null,{"$f":"IF(#REF!=\"\",\"\",#REF!)","v":{"$error":"#REF!"}},{"$f":"IF(#REF!=\"\",\"\",#REF!)","v":{"$error":"#REF!"}}]
[null,null,null,null,null,null,null,null,null,null,null,null,null,null,null,null,null,null,null,null,null,null,null,null,null,null,null,null,null,null,null,null,null,null,null,null,null,null,null,null,null,null,null,null,null,null,null,null,null,null,null,null,null,null,null,null,null,null,null,null,null,null,null,null,null,null,null,null,null,null,null,null,null,null,null,null,{"$f":"IF(#REF!=\"\",\"\",#REF!)","v":{"$error":"#REF!"}},{"$f":"IF(#REF!=\"\",\"\",#REF!)","v":{"$error":"#REF!"}}]
[null,null,null,null,null,null,null,null,null,null,null,null,null,null,null,null,null,null,null,null,null,null,null,null,null,null,null,null,null,null,null,null,null,null,null,null,null,null,null,null,null,null,null,null,null,null,null,null,null,null,null,null,null,null,null,null,null,null,null,null,null,null,null,null,null,null,null,null,null,null,null,null,null,null,null,null,{"$f":"IF(#REF!=\"\",\"\",#REF!)","v":{"$error":"#REF!"}},{"$f":"IF(#REF!=\"\",\"\",#REF!)","v":{"$error":"#REF!"}}]
[null,null,null,null,null,null,null,null,null,null,null,null,null,null,null,null,null,null,null,null,null,null,null,null,null,null,null,null,null,null,null,null,null,null,null,null,null,null,null,null,null,null,null,null,null,null,null,null,null,null,null,null,null,null,null,null,null,null,null,null,null,null,null,null,null,null,null,null,null,null,null,null,null,null,null,null,{"$f":"IF(#REF!=\"\",\"\",#REF!)","v":{"$error":"#REF!"}},{"$f":"IF(#REF!=\"\",\"\",#REF!)","v":{"$error":"#REF!"}}]
[null,null,null,null,null,null,null,null,null,null,null,null,null,null,null,null,null,null,null,null,null,null,null,null,null,null,null,null,null,null,null,null,null,null,null,null,null,null,null,null,null,null,null,null,null,null,null,null,null,null,null,null,null,null,null,null,null,null,null,null,null,null,null,null,null,null,null,null,null,null,null,null,null,null,null,null,{"$f":"IF(#REF!=\"\",\"\",#REF!)","v":{"$error":"#REF!"}},{"$f":"IF(#REF!=\"\",\"\",#REF!)","v":{"$error":"#REF!"}}]
[null,null,null,null,null,null,null,null,null,null,null,null,null,null,null,null,null,null,null,null,null,null,null,null,null,null,null,null,null,null,null,null,null,null,null,null,null,null,null,null,null,null,null,null,null,null,null,null,null,null,null,null,null,null,null,null,null,null,null,null,null,null,null,null,null,null,null,null,null,null,null,null,null,null,null,null,{"$f":"IF(#REF!=\"\",\"\",#REF!)","v":{"$error":"#REF!"}},{"$f":"IF(#REF!=\"\",\"\",#REF!)","v":{"$error":"#REF!"}}]
[null,null,null,null,null,null,null,null,null,null,null,null,null,null,null,null,null,null,null,null,null,null,null,null,null,null,null,null,null,null,null,null,null,null,null,null,null,null,null,null,null,null,null,null,null,null,null,null,null,null,null,null,null,null,null,null,null,null,null,null,null,null,null,null,null,null,null,null,null,null,null,null,null,null,null,null,{"$f":"IF(#REF!=\"\",\"\",#REF!)","v":{"$error":"#REF!"}},{"$f":"IF(#REF!=\"\",\"\",#REF!)","v":{"$error":"#REF!"}}]
[null,null,null,null,null,null,null,null,null,null,null,null,null,null,null,null,null,null,null,null,null,null,null,null,null,null,null,null,null,null,null,null,null,null,null,null,null,null,null,null,null,null,null,null,null,null,null,null,null,null,null,null,null,null,null,null,null,null,null,null,null,null,null,null,null,null,null,null,null,null,null,null,null,null,null,null,{"$f":"IF(#REF!=\"\",\"\",#REF!)","v":{"$error":"#REF!"}},{"$f":"IF(#REF!=\"\",\"\",#REF!)","v":{"$error":"#REF!"}}]
[null,null,null,null,null,null,null,null,null,null,null,null,null,null,null,null,null,null,null,null,null,null,null,null,null,null,null,null,null,null,null,null,null,null,null,null,null,null,null,null,null,null,null,null,null,null,null,null,null,null,null,null,null,null,null,null,null,null,null,null,null,null,null,null,null,null,null,null,null,null,null,null,null,null,null,null,{"$f":"IF(#REF!=\"\",\"\",#REF!)","v":{"$error":"#REF!"}},{"$f":"IF(#REF!=\"\",\"\",#REF!)","v":{"$error":"#REF!"}}]
[null,null,null,null,null,null,null,null,null,null,null,null,null,null,null,null,null,null,null,null,null,null,null,null,null,null,null,null,null,null,null,null,null,null,null,null,null,null,null,null,null,null,null,null,null,null,null,null,null,null,null,null,null,null,null,null,null,null,null,null,null,null,null,null,null,null,null,null,null,null,null,null,null,null,null,null,{"$f":"IF(#REF!=\"\",\"\",#REF!)","v":{"$error":"#REF!"}},{"$f":"IF(#REF!=\"\",\"\",#REF!)","v":{"$error":"#REF!"}}]
[null,null,null,null,null,null,null,null,null,null,null,null,null,null,null,null,null,null,null,null,null,null,null,null,null,null,null,null,null,null,null,null,null,null,null,null,null,null,null,null,null,null,null,null,null,null,null,null,null,null,null,null,null,null,null,null,null,null,null,null,null,null,null,null,null,null,null,null,null,null,null,null,null,null,null,null,{"$f":"IF(#REF!=\"\",\"\",#REF!)","v":{"$error":"#REF!"}},{"$f":"IF(#REF!=\"\",\"\",#REF!)","v":{"$error":"#REF!"}}]
[null,null,null,null,null,null,null,null,null,null,null,null,null,null,null,null,null,null,null,null,null,null,null,null,null,null,null,null,null,null,null,null,null,null,null,null,null,null,null,null,null,null,null,null,null,null,null,null,null,null,null,null,null,null,null,null,null,null,null,null,null,null,null,null,null,null,null,null,null,null,null,null,null,null,null,null,{"$f":"IF(#REF!=\"\",\"\",#REF!)","v":{"$error":"#REF!"}},{"$f":"IF(#REF!=\"\",\"\",#REF!)","v":{"$error":"#REF!"}}]
[null,null,null,null,null,null,null,null,null,null,null,null,null,null,null,null,null,null,null,null,null,null,null,null,null,null,null,null,null,null,null,null,null,null,null,null,null,null,null,null,null,null,null,null,null,null,null,null,null,null,null,null,null,null,null,null,null,null,null,null,null,null,null,null,null,null,null,null,null,null,null,null,null,null,null,null,{"$f":"IF(#REF!=\"\",\"\",#REF!)","v":{"$error":"#REF!"}},{"$f":"IF(#REF!=\"\",\"\",#REF!)","v":{"$error":"#REF!"}}]
[null,null,null,null,null,null,null,null,null,null,null,null,null,null,null,null,null,null,null,null,null,null,null,null,null,null,null,null,null,null,null,null,null,null,null,null,null,null,null,null,null,null,null,null,null,null,null,null,null,null,null,null,null,null,null,null,null,null,null,null,null,null,null,null,null,null,null,null,null,null,null,null,null,null,null,null,{"$f":"IF(#REF!=\"\",\"\",#REF!)","v":{"$error":"#REF!"}},{"$f":"IF(#REF!=\"\",\"\",#REF!)","v":{"$error":"#REF!"}}]
[null,null,null,null,null,null,null,null,null,null,null,null,null,null,null,null,null,null,null,null,null,null,null,null,null,null,null,null,null,null,null,null,null,null,null,null,null,null,null,null,null,null,null,null,null,null,null,null,null,null,null,null,null,null,null,null,null,null,null,null,null,null,null,null,null,null,null,null,null,null,null,null,null,null,null,null,{"$f":"IF(#REF!=\"\",\"\",#REF!)","v":{"$error":"#REF!"}},{"$f":"IF(#REF!=\"\",\"\",#REF!)","v":{"$error":"#REF!"}}]
[null,null,null,null,null,null,null,null,null,null,null,null,null,null,null,null,null,null,null,null,null,null,null,null,null,null,null,null,null,null,null,null,null,null,null,null,null,null,null,null,null,null,null,null,null,null,null,null,null,null,null,null,null,null,null,null,null,null,null,null,null,null,null,null,null,null,null,null,null,null,null,null,null,null,null,null,{"$f":"IF(#REF!=\"\",\"\",#REF!)","v":{"$error":"#REF!"}},{"$f":"IF(#REF!=\"\",\"\",#REF!)","v":{"$error":"#REF!"}}]
[null,null,null,null,null,null,null,null,null,null,null,null,null,null,null,null,null,null,null,null,null,null,null,null,null,null,null,null,null,null,null,null,null,null,null,null,null,null,null,null,null,null,null,null,null,null,null,null,null,null,null,null,null,null,null,null,null,null,null,null,null,null,null,null,null,null,null,null,null,null,null,null,null,null,null,null,{"$f":"IF(#REF!=\"\",\"\",#REF!)","v":{"$error":"#REF!"}},{"$f":"IF(#REF!=\"\",\"\",#REF!)","v":{"$error":"#REF!"}}]
[null,null,null,null,null,null,null,null,null,null,null,null,null,null,null,null,null,null,null,null,null,null,null,null,null,null,null,null,null,null,null,null,null,null,null,null,null,null,null,null,null,null,null,null,null,null,null,null,null,null,null,null,null,null,null,null,null,null,null,null,null,null,null,null,null,null,null,null,null,null,null,null,null,null,null,null,{"$f":"IF(#REF!=\"\",\"\",#REF!)","v":{"$error":"#REF!"}},{"$f":"IF(#REF!=\"\",\"\",#REF!)","v":{"$error":"#REF!"}}]
[null,null,null,null,null,null,null,null,null,null,null,null,null,null,null,null,null,null,null,null,null,null,null,null,null,null,null,null,null,null,null,null,null,null,null,null,null,null,null,null,null,null,null,null,null,null,null,null,null,null,null,null,null,null,null,null,null,null,null,null,null,null,null,null,null,null,null,null,null,null,null,null,null,null,null,null,{"$f":"IF(#REF!=\"\",\"\",#REF!)","v":{"$error":"#REF!"}},{"$f":"IF(#REF!=\"\",\"\",#REF!)","v":{"$error":"#REF!"}}]
[null,null,null,null,null,null,null,null,null,null,null,null,null,null,null,null,null,null,null,null,null,null,null,null,null,null,null,null,null,null,null,null,null,null,null,null,null,null,null,null,null,null,null,null,null,null,null,null,null,null,null,null,null,null,null,null,null,null,null,null,null,null,null,null,null,null,null,null,null,null,null,null,null,null,null,null,{"$f":"IF(#REF!=\"\",\"\",#REF!)","v":{"$error":"#REF!"}},{"$f":"IF(#REF!=\"\",\"\",#REF!)","v":{"$error":"#REF!"}}]
[null,null,null,null,null,null,null,null,null,null,null,null,null,null,null,null,null,null,null,null,null,null,null,null,null,null,null,null,null,null,null,null,null,null,null,null,null,null,null,null,null,null,null,null,null,null,null,null,null,null,null,null,null,null,null,null,null,null,null,null,null,null,null,null,null,null,null,null,null,null,null,null,null,null,null,null,{"$f":"IF(#REF!=\"\",\"\",#REF!)","v":{"$error":"#REF!"}},{"$f":"IF(#REF!=\"\",\"\",#REF!)","v":{"$error":"#REF!"}}]
[null,null,null,null,null,null,null,null,null,null,null,null,null,null,null,null,null,null,null,null,null,null,null,null,null,null,null,null,null,null,null,null,null,null,null,null,null,null,null,null,null,null,null,null,null,null,null,null,null,null,null,null,null,null,null,null,null,null,null,null,null,null,null,null,null,null,null,null,null,null,null,null,null,null,null,null,{"$f":"IF(#REF!=\"\",\"\",#REF!)","v":{"$error":"#REF!"}},{"$f":"IF(#REF!=\"\",\"\",#REF!)","v":{"$error":"#REF!"}}]
[null,null,null,null,null,null,null,null,null,null,null,null,null,null,null,null,null,null,null,null,null,null,null,null,null,null,null,null,null,null,null,null,null,null,null,null,null,null,null,null,null,null,null,null,null,null,null,null,null,null,null,null,null,null,null,null,null,null,null,null,null,null,null,null,null,null,null,null,null,null,null,null,null,null,null,null,{"$f":"IF(#REF!=\"\",\"\",#REF!)","v":{"$error":"#REF!"}},{"$f":"IF(#REF!=\"\",\"\",#REF!)","v":{"$error":"#REF!"}}]
[null,null,null,null,null,null,null,null,null,null,null,null,null,null,null,null,null,null,null,null,null,null,null,null,null,null,null,null,null,null,null,null,null,null,null,null,null,null,null,null,null,null,null,null,null,null,null,null,null,null,null,null,null,null,null,null,null,null,null,null,null,null,null,null,null,null,null,null,null,null,null,null,null,null,null,null,{"$f":"IF(#REF!=\"\",\"\",#REF!)","v":{"$error":"#REF!"}},{"$f":"IF(#REF!=\"\",\"\",#REF!)","v":{"$error":"#REF!"}}]
[null,null,null,null,null,null,null,null,null,null,null,null,null,null,null,null,null,null,null,null,null,null,null,null,null,null,null,null,null,null,null,null,null,null,null,null,null,null,null,null,null,null,null,null,null,null,null,null,null,null,null,null,null,null,null,null,null,null,null,null,null,null,null,null,null,null,null,null,null,null,null,null,null,null,null,null,{"$f":"IF(#REF!=\"\",\"\",#REF!)","v":{"$error":"#REF!"}},{"$f":"IF(#REF!=\"\",\"\",#REF!)","v":{"$error":"#REF!"}}]
[null,null,null,null,null,null,null,null,null,null,null,null,null,null,null,null,null,null,null,null,null,null,null,null,null,null,null,null,null,null,null,null,null,null,null,null,null,null,null,null,null,null,null,null,null,null,null,null,null,null,null,null,null,null,null,null,null,null,null,null,null,null,null,null,null,null,null,null,null,null,null,null,null,null,null,null,{"$f":"IF(#REF!=\"\",\"\",#REF!)","v":{"$error":"#REF!"}},{"$f":"IF(#REF!=\"\",\"\",#REF!)","v":{"$error":"#REF!"}}]
[null,null,null,null,null,null,null,null,null,null,null,null,null,null,null,null,null,null,null,null,null,null,null,null,null,null,null,null,null,null,null,null,null,null,null,null,null,null,null,null,null,null,null,null,null,null,null,null,null,null,null,null,null,null,null,null,null,null,null,null,null,null,null,null,null,null,null,null,null,null,null,null,null,null,null,null,{"$f":"IF(#REF!=\"\",\"\",#REF!)","v":{"$error":"#REF!"}},{"$f":"IF(#REF!=\"\",\"\",#REF!)","v":{"$error":"#REF!"}}]
[null,null,null,null,null,null,null,null,null,null,null,null,null,null,null,null,null,null,null,null,null,null,null,null,null,null,null,null,null,null,null,null,null,null,null,null,null,null,null,null,null,null,null,null,null,null,null,null,null,null,null,null,null,null,null,null,null,null,null,null,null,null,null,null,null,null,null,null,null,null,null,null,null,null,null,null,{"$f":"IF(#REF!=\"\",\"\",#REF!)","v":{"$error":"#REF!"}},{"$f":"IF(#REF!=\"\",\"\",#REF!)","v":{"$error":"#REF!"}}]
[null,null,null,null,null,null,null,null,null,null,null,null,null,null,null,null,null,null,null,null,null,null,null,null,null,null,null,null,null,null,null,null,null,null,null,null,null,null,null,null,null,null,null,null,null,null,null,null,null,null,null,null,null,null,null,null,null,null,null,null,null,null,null,null,null,null,null,null,null,null,null,null,null,null,null,null,{"$f":"IF(#REF!=\"\",\"\",#REF!)","v":{"$error":"#REF!"}},{"$f":"IF(#REF!=\"\",\"\",#REF!)","v":{"$error":"#REF!"}}]
[null,null,null,null,null,null,null,null,null,null,null,null,null,null,null,null,null,null,null,null,null,null,null,null,null,null,null,null,null,null,null,null,null,null,null,null,null,null,null,null,null,null,null,null,null,null,null,null,null,null,null,null,null,null,null,null,null,null,null,null,null,null,null,null,null,null,null,null,null,null,null,null,null,null,null,null,{"$f":"IF(#REF!=\"\",\"\",#REF!)","v":{"$error":"#REF!"}},{"$f":"IF(#REF!=\"\",\"\",#REF!)","v":{"$error":"#REF!"}}]
[null,null,null,null,null,null,null,null,null,null,null,null,null,null,null,null,null,null,null,null,null,null,null,null,null,null,null,null,null,null,null,null,null,null,null,null,null,null,null,null,null,null,null,null,null,null,null,null,null,null,null,null,null,null,null,null,null,null,null,null,null,null,null,null,null,null,null,null,null,null,null,null,null,null,null,null,{"$f":"IF(#REF!=\"\",\"\",#REF!)","v":{"$error":"#REF!"}},{"$f":"IF(#REF!=\"\",\"\",#REF!)","v":{"$error":"#REF!"}}]
[null,null,null,null,null,null,null,null,null,null,null,null,null,null,null,null,null,null,null,null,null,null,null,null,null,null,null,null,null,null,null,null,null,null,null,null,null,null,null,null,null,null,null,null,null,null,null,null,null,null,null,null,null,null,null,null,null,null,null,null,null,null,null,null,null,null,null,null,null,null,null,null,null,null,null,null,{"$f":"IF(#REF!=\"\",\"\",#REF!)","v":{"$error":"#REF!"}},{"$f":"IF(#REF!=\"\",\"\",#REF!)","v":{"$error":"#REF!"}}]
[null,null,null,null,null,null,null,null,null,null,null,null,null,null,null,null,null,null,null,null,null,null,null,null,null,null,null,null,null,null,null,null,null,null,null,null,null,null,null,null,null,null,null,null,null,null,null,null,null,null,null,null,null,null,null,null,null,null,null,null,null,null,null,null,null,null,null,null,null,null,null,null,null,null,null,null,{"$f":"IF(#REF!=\"\",\"\",#REF!)","v":{"$error":"#REF!"}},{"$f":"IF(#REF!=\"\",\"\",#REF!)","v":{"$error":"#REF!"}}]
[null,null,null,null,null,null,null,null,null,null,null,null,null,null,null,null,null,null,null,null,null,null,null,null,null,null,null,null,null,null,null,null,null,null,null,null,null,null,null,null,null,null,null,null,null,null,null,null,null,null,null,null,null,null,null,null,null,null,null,null,null,null,null,null,null,null,null,null,null,null,null,null,null,null,null,null,{"$f":"IF(#REF!=\"\",\"\",#REF!)","v":{"$error":"#REF!"}},{"$f":"IF(#REF!=\"\",\"\",#REF!)","v":{"$error":"#REF!"}}]
[null,null,null,null,null,null,null,null,null,null,null,null,null,null,null,null,null,null,null,null,null,null,null,null,null,null,null,null,null,null,null,null,null,null,null,null,null,null,null,null,null,null,null,null,null,null,null,null,null,null,null,null,null,null,null,null,null,null,null,null,null,null,null,null,null,null,null,null,null,null,null,null,null,null,null,null,{"$f":"IF(#REF!=\"\",\"\",#REF!)","v":{"$error":"#REF!"}},{"$f":"IF(#REF!=\"\",\"\",#REF!)","v":{"$error":"#REF!"}}]
[null,null,null,null,null,null,null,null,null,null,null,null,null,null,null,null,null,null,null,null,null,null,null,null,null,null,null,null,null,null,null,null,null,null,null,null,null,null,null,null,null,null,null,null,null,null,null,null,null,null,null,null,null,null,null,null,null,null,null,null,null,null,null,null,null,null,null,null,null,null,null,null,null,null,null,null,{"$f":"IF(#REF!=\"\",\"\",#REF!)","v":{"$error":"#REF!"}},{"$f":"IF(#REF!=\"\",\"\",#REF!)","v":{"$error":"#REF!"}}]
[null,null,null,null,null,null,null,null,null,null,null,null,null,null,null,null,null,null,null,null,null,null,null,null,null,null,null,null,null,null,null,null,null,null,null,null,null,null,null,null,null,null,null,null,null,null,null,null,null,null,null,null,null,null,null,null,null,null,null,null,null,null,null,null,null,null,null,null,null,null,null,null,null,null,null,null,{"$f":"IF(#REF!=\"\",\"\",#REF!)","v":{"$error":"#REF!"}},{"$f":"IF(#REF!=\"\",\"\",#REF!)","v":{"$error":"#REF!"}}]
[null,null,null,null,null,null,null,null,null,null,null,null,null,null,null,null,null,null,null,null,null,null,null,null,null,null,null,null,null,null,null,null,null,null,null,null,null,null,null,null,null,null,null,null,null,null,null,null,null,null,null,null,null,null,null,null,null,null,null,null,null,null,null,null,null,null,null,null,null,null,null,null,null,null,null,null,{"$f":"IF(#REF!=\"\",\"\",#REF!)","v":{"$error":"#REF!"}},{"$f":"IF(#REF!=\"\",\"\",#REF!)","v":{"$error":"#REF!"}}]
[null,null,null,null,null,null,null,null,null,null,null,null,null,null,null,null,null,null,null,null,null,null,null,null,null,null,null,null,null,null,null,null,null,null,null,null,null,null,null,null,null,null,null,null,null,null,null,null,null,null,null,null,null,null,null,null,null,null,null,null,null,null,null,null,null,null,null,null,null,null,null,null,null,null,null,null,{"$f":"IF(#REF!=\"\",\"\",#REF!)","v":{"$error":"#REF!"}},{"$f":"IF(#REF!=\"\",\"\",#REF!)","v":{"$error":"#REF!"}}]
[null,null,null,null,null,null,null,null,null,null,null,null,null,null,null,null,null,null,null,null,null,null,null,null,null,null,null,null,null,null,null,null,null,null,null,null,null,null,null,null,null,null,null,null,null,null,null,null,null,null,null,null,null,null,null,null,null,null,null,null,null,null,null,null,null,null,null,null,null,null,null,null,null,null,null,null,{"$f":"IF(#REF!=\"\",\"\",#REF!)","v":{"$error":"#REF!"}},{"$f":"IF(#REF!=\"\",\"\",#REF!)","v":{"$error":"#REF!"}}]
[null,null,null,null,null,null,null,null,null,null,null,null,null,null,null,null,null,null,null,null,null,null,null,null,null,null,null,null,null,null,null,null,null,null,null,null,null,null,null,null,null,null,null,null,null,null,null,null,null,null,null,null,null,null,null,null,null,null,null,null,null,null,null,null,null,null,null,null,null,null,null,null,null,null,null,null,{"$f":"IF(#REF!=\"\",\"\",#REF!)","v":{"$error":"#REF!"}},{"$f":"IF(#REF!=\"\",\"\",#REF!)","v":{"$error":"#REF!"}}]
[null,null,null,null,null,null,null,null,null,null,null,null,null,null,null,null,null,null,null,null,null,null,null,null,null,null,null,null,null,null,null,null,null,null,null,null,null,null,null,null,null,null,null,null,null,null,null,null,null,null,null,null,null,null,null,null,null,null,null,null,null,null,null,null,null,null,null,null,null,null,null,null,null,null,null,null,{"$f":"IF(#REF!=\"\",\"\",#REF!)","v":{"$error":"#REF!"}},{"$f":"IF(#REF!=\"\",\"\",#REF!)","v":{"$error":"#REF!"}}]
[null,null,null,null,null,null,null,null,null,null,null,null,null,null,null,null,null,null,null,null,null,null,null,null,null,null,null,null,null,null,null,null,null,null,null,null,null,null,null,null,null,null,null,null,null,null,null,null,null,null,null,null,null,null,null,null,null,null,null,null,null,null,null,null,null,null,null,null,null,null,null,null,null,null,null,null,{"$f":"IF(#REF!=\"\",\"\",#REF!)","v":{"$error":"#REF!"}},{"$f":"IF(#REF!=\"\",\"\",#REF!)","v":{"$error":"#REF!"}}]
[null,null,null,null,null,null,null,null,null,null,null,null,null,null,null,null,null,null,null,null,null,null,null,null,null,null,null,null,null,null,null,null,null,null,null,null,null,null,null,null,null,null,null,null,null,null,null,null,null,null,null,null,null,null,null,null,null,null,null,null,null,null,null,null,null,null,null,null,null,null,null,null,null,null,null,null,{"$f":"IF(#REF!=\"\",\"\",#REF!)","v":{"$error":"#REF!"}},{"$f":"IF(#REF!=\"\",\"\",#REF!)","v":{"$error":"#REF!"}}]
[null,null,null,null,null,null,null,null,null,null,null,null,null,null,null,null,null,null,null,null,null,null,null,null,null,null,null,null,null,null,null,null,null,null,null,null,null,null,null,null,null,null,null,null,null,null,null,null,null,null,null,null,null,null,null,null,null,null,null,null,null,null,null,null,null,null,null,null,null,null,null,null,null,null,null,null,{"$f":"IF(#REF!=\"\",\"\",#REF!)","v":{"$error":"#REF!"}},{"$f":"IF(#REF!=\"\",\"\",#REF!)","v":{"$error":"#REF!"}}]
[null,null,null,null,null,null,null,null,null,null,null,null,null,null,null,null,null,null,null,null,null,null,null,null,null,null,null,null,null,null,null,null,null,null,null,null,null,null,null,null,null,null,null,null,null,null,null,null,null,null,null,null,null,null,null,null,null,null,null,null,null,null,null,null,null,null,null,null,null,null,null,null,null,null,null,null,{"$f":"IF(#REF!=\"\",\"\",#REF!)","v":{"$error":"#REF!"}},{"$f":"IF(#REF!=\"\",\"\",#REF!)","v":{"$error":"#REF!"}}]
[null,null,null,null,null,null,null,null,null,null,null,null,null,null,null,null,null,null,null,null,null,null,null,null,null,null,null,null,null,null,null,null,null,null,null,null,null,null,null,null,null,null,null,null,null,null,null,null,null,null,null,null,null,null,null,null,null,null,null,null,null,null,null,null,null,null,null,null,null,null,null,null,null,null,null,null,{"$f":"IF(#REF!=\"\",\"\",#REF!)","v":{"$error":"#REF!"}},{"$f":"IF(#REF!=\"\",\"\",#REF!)","v":{"$error":"#REF!"}}]
[null,null,null,null,null,null,null,null,null,null,null,null,null,null,null,null,null,null,null,null,null,null,null,null,null,null,null,null,null,null,null,null,null,null,null,null,null,null,null,null,null,null,null,null,null,null,null,null,null,null,null,null,null,null,null,null,null,null,null,null,null,null,null,null,null,null,null,null,null,null,null,null,null,null,null,null,{"$f":"IF(#REF!=\"\",\"\",#REF!)","v":{"$error":"#REF!"}},{"$f":"IF(#REF!=\"\",\"\",#REF!)","v":{"$error":"#REF!"}}]
[null,null,null,null,null,null,null,null,null,null,null,null,null,null,null,null,null,null,null,null,null,null,null,null,null,null,null,null,null,null,null,null,null,null,null,null,null,null,null,null,null,null,null,null,null,null,null,null,null,null,null,null,null,null,null,null,null,null,null,null,null,null,null,null,null,null,null,null,null,null,null,null,null,null,null,null,{"$f":"IF(#REF!=\"\",\"\",#REF!)","v":{"$error":"#REF!"}},{"$f":"IF(#REF!=\"\",\"\",#REF!)","v":{"$error":"#REF!"}}]
[null,null,null,null,null,null,null,null,null,null,null,null,null,null,null,null,null,null,null,null,null,null,null,null,null,null,null,null,null,null,null,null,null,null,null,null,null,null,null,null,null,null,null,null,null,null,null,null,null,null,null,null,null,null,null,null,null,null,null,null,null,null,null,null,null,null,null,null,null,null,null,null,null,null,null,null,{"$f":"IF(#REF!=\"\",\"\",#REF!)","v":{"$error":"#REF!"}},{"$f":"IF(#REF!=\"\",\"\",#REF!)","v":{"$error":"#REF!"}}]
[null,null,null,null,null,null,null,null,null,null,null,null,null,null,null,null,null,null,null,null,null,null,null,null,null,null,null,null,null,null,null,null,null,null,null,null,null,null,null,null,null,null,null,null,null,null,null,null,null,null,null,null,null,null,null,null,null,null,null,null,null,null,null,null,null,null,null,null,null,null,null,null,null,null,null,null,{"$f":"IF(#REF!=\"\",\"\",#REF!)","v":{"$error":"#REF!"}},{"$f":"IF(#REF!=\"\",\"\",#REF!)","v":{"$error":"#REF!"}}]
[null,null,null,null,null,null,null,null,null,null,null,null,null,null,null,null,null,null,null,null,null,null,null,null,null,null,null,null,null,null,null,null,null,null,null,null,null,null,null,null,null,null,null,null,null,null,null,null,null,null,null,null,null,null,null,null,null,null,null,null,null,null,null,null,null,null,null,null,null,null,null,null,null,null,null,null,{"$f":"IF(#REF!=\"\",\"\",#REF!)","v":{"$error":"#REF!"}},{"$f":"IF(#REF!=\"\",\"\",#REF!)","v":{"$error":"#REF!"}}]
[null,null,null,null,null,null,null,null,null,null,null,null,null,null,null,null,null,null,null,null,null,null,null,null,null,null,null,null,null,null,null,null,null,null,null,null,null,null,null,null,null,null,null,null,null,null,null,null,null,null,null,null,null,null,null,null,null,null,null,null,null,null,null,null,null,null,null,null,null,null,null,null,null,null,null,null,{"$f":"IF(#REF!=\"\",\"\",#REF!)","v":{"$error":"#REF!"}},{"$f":"IF(#REF!=\"\",\"\",#REF!)","v":{"$error":"#REF!"}}]
[null,null,null,null,null,null,null,null,null,null,null,null,null,null,null,null,null,null,null,null,null,null,null,null,null,null,null,null,null,null,null,null,null,null,null,null,null,null,null,null,null,null,null,null,null,null,null,null,null,null,null,null,null,null,null,null,null,null,null,null,null,null,null,null,null,null,null,null,null,null,null,null,null,null,null,null,{"$f":"IF(#REF!=\"\",\"\",#REF!)","v":{"$error":"#REF!"}},{"$f":"IF(#REF!=\"\",\"\",#REF!)","v":{"$error":"#REF!"}}]
[null,null,null,null,null,null,null,null,null,null,null,null,null,null,null,null,null,null,null,null,null,null,null,null,null,null,null,null,null,null,null,null,null,null,null,null,null,null,null,null,null,null,null,null,null,null,null,null,null,null,null,null,null,null,null,null,null,null,null,null,null,null,null,null,null,null,null,null,null,null,null,null,null,null,null,null,{"$f":"IF(#REF!=\"\",\"\",#REF!)","v":{"$error":"#REF!"}},{"$f":"IF(#REF!=\"\",\"\",#REF!)","v":{"$error":"#REF!"}}]
[null,null,null,null,null,null,null,null,null,null,null,null,null,null,null,null,null,null,null,null,null,null,null,null,null,null,null,null,null,null,null,null,null,null,null,null,null,null,null,null,null,null,null,null,null,null,null,null,null,null,null,null,null,null,null,null,null,null,null,null,null,null,null,null,null,null,null,null,null,null,null,null,null,null,null,null,{"$f":"IF(#REF!=\"\",\"\",#REF!)","v":{"$error":"#REF!"}},{"$f":"IF(#REF!=\"\",\"\",#REF!)","v":{"$error":"#REF!"}}]
[null,null,null,null,"Offset",1,"A",null,null,null,null,null,null,null,null,null,null,null,null,null,null,null,null,null,null,null,null,null,null,null,null,null,null,null,null,null,null,null,null,null,null,null,null,null,null,null,null,null,null,null,null,null,null,null,null,null,null,null,null,null,null,null,null,null,null,null,null,null,null,null,null,null,null,null,null,null,{"$f":"IF(#REF!=\"\",\"\",#REF!)","v":{"$error":"#REF!"}},{"$f":"IF(#REF!=\"\",\"\",#REF!)","v":{"$error":"#REF!"}}]
[null,null,null,null,-1,2,"B",null,null,null,null,null,null,null,null,null,null,null,null,null,null,null,null,null,null,null,null,null,null,null,null,null,null,null,null,null,null,null,null,null,null,null,null,null,null,null,null,null,null,null,null,null,null,null,null,null,null,null,null,null,null,null,null,null,null,null,null,null,null,null,null,null,null,null,null,null,{"$f":"IF(#REF!=\"\",\"\",#REF!)","v":{"$error":"#REF!"}},{"$f":"IF(#REF!=\"\",\"\",#REF!)","v":{"$error":"#REF!"}}]
[null,null,null,null,7,3,"C",null,null,null,null,null,null,null,null,null,null,null,null,null,null,null,null,null,null,null,null,null,null,null,null,null,null,null,null,null,null,null,null,null,null,null,null,null,null,null,null,null,null,null,null,null,null,null,null,null,null,null,null,null,null,null,null,null,null,null,null,null,null,null,null,null,null,null,null,null,{"$f":"IF(#REF!=\"\",\"\",#REF!)","v":{"$error":"#REF!"}},{"$f":"IF(#REF!=\"\",\"\",#REF!)","v":{"$error":"#REF!"}}]
[null,null,null,null,{"$f":"300-7","v":293},4,"D",null,"0",1,null,null,null,null,null,null,null,null,null,null,null,null,null,null,null,null,null,null,null,null,null,null,null,null,null,null,null,null,null,null,null,null,null,null,null,null,null,null,null,null,null,null,null,null,null,null,null,null,null,null,null,null,null,null,null,null,null,null,null,null,null,null,null,null,null,null,{"$f":"IF(#REF!=\"\",\"\",#REF!)","v":{"$error":"#REF!"}},{"$f":"IF(#REF!=\"\",\"\",#REF!)","v":{"$error":"#REF!"}}]
[null,null,null,null,null,5,"E",null,"1",2,null,null,null,null,null,null,null,null,null,null,null,null,null,null,null,null,null,null,null,null,null,null,null,null,null,null,null,null,null,null,null,null,null,null,null,null,null,null,null,null,null,null,null,null,null,null,null,null,null,null,null,null,null,null,null,null,null,null,null,null,null,null,null,null,null,null,{"$f":"IF(#REF!=\"\",\"\",#REF!)","v":{"$error":"#REF!"}},{"$f":"IF(#REF!=\"\",\"\",#REF!)","v":{"$error":"#REF!"}}]
[null,null,null,null,null,6,"F",null,"2",3,null,null,null,null,null,null,null,null,null,null,null,null,null,null,null,null,null,null,null,null,null,null,null,null,null,null,null,null,null,null,null,null,null,null,null,null,null,null,null,null,null,null,null,null,null,null,null,null,null,null,null,null,null,null,null,null,null,null,null,null,null,null,null,null,null,null,{"$f":"IF(#REF!=\"\",\"\",#REF!)","v":{"$error":"#REF!"}},{"$f":"IF(#REF!=\"\",\"\",#REF!)","v":{"$error":"#REF!"}}]
[null,null,null,null,null,7,"G",null,"3",4,null,null,null,null,null,null,null,null,null,null,null,null,null,null,null,null,null,null,null,null,null,null,null,null,null,null,null,null,null,null,null,null,null,null,null,null,null,null,null,null,null,null,null,null,null,null,null,null,null,null,null,null,null,null,null,null,null,null,null,null,null,null,null,null,null,null,{"$f":"IF(#REF!=\"\",\"\",#REF!)","v":{"$error":"#REF!"}},{"$f":"IF(#REF!=\"\",\"\",#REF!)","v":{"$error":"#REF!"}}]
[null,null,null,null,null,8,"H",null,"4",5,null,null,null,null,null,null,null,null,null,null,null,null,null,null,null,null,null,null,null,null,null,null,null,null,null,null,null,null,null,null,null,null,null,null,null,null,null,null,null,null,null,null,null,null,null,null,null,null,null,null,null,null,null,null,null,null,null,null,null,null,null,null,null,null,null,null,{"$f":"IF(#REF!=\"\",\"\",#REF!)","v":{"$error":"#REF!"}},{"$f":"IF(#REF!=\"\",\"\",#REF!)","v":{"$error":"#REF!"}}]
[null,null,null,null,null,9,"I",null,"5",6,null,null,null,null,null,null,null,null,null,null,null,null,null,null,null,null,null,null,null,null,null,null,null,null,null,null,null,null,null,null,null,null,null,null,null,null,null,null,null,null,null,null,null,null,null,null,null,null,null,null,null,null,null,null,null,null,null,null,null,null,null,null,null,null,null,null,{"$f":"IF(#REF!=\"\",\"\",#REF!)","v":{"$error":"#REF!"}},{"$f":"IF(#REF!=\"\",\"\",#REF!)","v":{"$error":"#REF!"}}]
[null,null,null,null,null,10,"J",null,"6",7,null,null,null,null,null,null,null,null,null,null,null,null,null,null,null,null,null,null,null,null,null,null,null,null,null,null,null,null,null,null,null,null,null,null,null,null,null,null,null,null,null,null,null,null,null,null,null,null,null,null,null,null,null,null,null,null,null,null,null,null,null,null,null,null,null,null,{"$f":"IF(#REF!=\"\",\"\",#REF!)","v":{"$error":"#REF!"}},{"$f":"IF(#REF!=\"\",\"\",#REF!)","v":{"$error":"#REF!"}}]
[null,null,null,null,null,{"$f":"F110+1","v":11},"K",null,"7",8,null,null,null,null,null,null,null,null,null,null,null,null,null,null,null,null,null,null,null,null,null,null,null,null,null,null,null,null,null,null,null,null,null,null,null,null,null,null,null,null,null,null,null,null,null,null,null,null,null,null,null,null,null,null,null,null,null,null,null,null,null,null,null,null,null,null,{"$f":"IF(#REF!=\"\",\"\",#REF!)","v":{"$error":"#REF!"}},{"$f":"IF(#REF!=\"\",\"\",#REF!)","v":{"$error":"#REF!"}}]
[{"$f":"IF($H$13<>\"\",\"Warning - Pressing \"\"Delete Entity\"\" button will delete all records for the corporation and can not be recovered. Be careful.\",\"\")","v":""},null,null,null,null,{"$f":"F111+1","v":12},"L",null,"8",9,null,null,null,null,null,null,null,null,null,null,null,null,null,null,null,null,null,null,null,null,null,null,null,null,null,null,null,null,null,null,null,null,null,null,null,null,null,null,null,null,null,null,null,null,null,null,null,null,null,null,null,null,null,null,null,null,null,null,null,null,null,null,null,null,null,null,{"$f":"IF(#REF!=\"\",\"\",#REF!)","v":{"$error":"#REF!"}},{"$f":"IF(#REF!=\"\",\"\",#REF!)","v":{"$error":"#REF!"}}]
[null,null,null,null,null,13,"M",null,"9",10,null,null,null,null,null,null,null,null,null,null,null,null,null,null,null,null,null,null,null,null,null,null,null,null,null,null,null,null,null,null,null,null,null,null,null,null,null,null,null,null,null,null,null,null,null,null,null,null,null,null,null,null,null,null,null,null,null,null,null,null,null,null,null,null,null,null,{"$f":"IF(#REF!=\"\",\"\",#REF!)","v":{"$error":"#REF!"}},{"$f":"IF(#REF!=\"\",\"\",#REF!)","v":{"$error":"#REF!"}}]
[null,null,null,null,null,14,"N",null,"-",11,null,null,null,null,null,null,null,null,null,null,null,null,null,null,null,null,null,null,null,null,null,null,null,null,null,null,null,null,null,null,null,null,null,null,null,null,null,null,null,null,null,null,null,null,null,null,null,null,null,null,null,null,null,null,null,null,null,null,null,null,null,null,null,null,null,null,{"$f":"IF(#REF!=\"\",\"\",#REF!)","v":{"$error":"#REF!"}},{"$f":"IF(#REF!=\"\",\"\",#REF!)","v":{"$error":"#REF!"}}]
[{"$f":"IF($H$16<>\"\",\"Warning - Pressing \"\"Delete Tracking\"\" button will delete revision tracking and can not be recovered. Be careful.\",\"\")","v":""},null,null,null,null,15,"O",null," ",12,null,null,null,null,null,null,null,null,null,null,null,null,null,null,null,null,null,null,null,null,null,null,null,null,null,null,null,null,null,null,null,null,null,null,null,null,null,null,null,null,null,null,null,null,null,null,null,null,null,null,null,null,null,null,null,null,null,null,null,null,null,null,null,null,null,null,{"$f":"IF(#REF!=\"\",\"\",#REF!)","v":{"$error":"#REF!"}},{"$f":"IF(#REF!=\"\",\"\",#REF!)","v":{"$error":"#REF!"}}]
[null,null,null,null,null,16,"P",null,"!",13,null,null,null,null,null,null,null,null,null,null,null,null,null,null,null,null,null,null,null,null,null,null,null,null,null,null,null,null,null,null,null,null,null,null,null,null,null,null,null,null,null,null,null,null,null,null,null,null,null,null,null,null,null,null,null,null,null,null,null,null,null,null,null,null,null,null,{"$f":"IF(#REF!=\"\",\"\",#REF!)","v":{"$error":"#REF!"}},{"$f":"IF(#REF!=\"\",\"\",#REF!)","v":{"$error":"#REF!"}}]
[null,null,null,null,null,17,"Q",null,"#",14,null,null,null,null,null,null,null,null,null,null,null,null,null,null,null,null,null,null,null,null,null,null,null,null,null,null,null,null,null,null,null,null,null,null,null,null,null,null,null,null,null,null,null,null,null,null,null,null,null,null,null,null,null,null,null,null,null,null,null,null,null,null,null,null,null,null,{"$f":"IF(#REF!=\"\",\"\",#REF!)","v":{"$error":"#REF!"}},{"$f":"IF(#REF!=\"\",\"\",#REF!)","v":{"$error":"#REF!"}}]
[null,null,null,null,null,18,"R",null,"$",15,null,null,null,null,null,null,null,null,null,null,null,null,null,null,null,null,null,null,null,null,null,null,null,null,null,null,null,null,null,null,null,null,null,null,null,null,null,null,null,null,null,null,null,null,null,null,null,null,null,null,null,null,null,null,null,null,null,null,null,null,null,null,null,null,null,null,{"$f":"IF(#REF!=\"\",\"\",#REF!)","v":{"$error":"#REF!"}},{"$f":"IF(#REF!=\"\",\"\",#REF!)","v":{"$error":"#REF!"}}]
[null,null,null,null,null,19,"S",null,"%",16,null,null,null,null,null,null,null,null,null,null,null,null,null,null,null,null,null,null,null,null,null,null,null,null,null,null,null,null,null,null,null,null,null,null,null,null,null,null,null,null,null,null,null,null,null,null,null,null,null,null,null,null,null,null,null,null,null,null,null,null,null,null,null,null,null,null,{"$f":"IF(#REF!=\"\",\"\",#REF!)","v":{"$error":"#REF!"}},{"$f":"IF(#REF!=\"\",\"\",#REF!)","v":{"$error":"#REF!"}}]
[null,null,null,null,null,20,"T",null,"&",17,null,null,null,null,null,null,null,null,null,null,null,null,null,null,null,null,null,null,null,null,null,null,null,null,null,null,null,null,null,null,null,null,null,null,null,null,null,null,null,null,null,null,null,null,null,null,null,null,null,null,null,null,null,null,null,null,null,null,null,null,null,null,null,null,null,null,{"$f":"IF(#REF!=\"\",\"\",#REF!)","v":{"$error":"#REF!"}},{"$f":"IF(#REF!=\"\",\"\",#REF!)","v":{"$error":"#REF!"}}]
[null,null,null,null,null,21,"U",null,"(",18,null,null,null,null,null,null,null,null,null,null,null,null,null,null,null,null,null,null,null,null,null,null,null,null,null,null,null,null,null,null,null,null,null,null,null,null,null,null,null,null,null,null,null,null,null,null,null,null,null,null,null,null,null,null,null,null,null,null,null,null,null,null,null,null,null,null,{"$f":"IF(#REF!=\"\",\"\",#REF!)","v":{"$error":"#REF!"}},{"$f":"IF(#REF!=\"\",\"\",#REF!)","v":{"$error":"#REF!"}}]
[null,null,null,null,null,22,"V",null,")",19,null,null,null,null,null,null,null,null,null,null,null,null,null,null,null,null,null,null,null,null,null,null,null,null,null,null,null,null,null,null,null,null,null,null,null,null,null,null,null,null,null,null,null,null,null,null,null,null,null,null,null,null,null,null,null,null,null,null,null,null,null,null,null,null,null,null,{"$f":"IF(#REF!=\"\",\"\",#REF!)","v":{"$error":"#REF!"}},{"$f":"IF(#REF!=\"\",\"\",#REF!)","v":{"$error":"#REF!"}}]
[null,null,null,null,null,23,"W",null,"*",20,null,null,null,null,null,null,null,null,null,null,null,null,null,null,null,null,null,null,null,null,null,null,null,null,null,null,null,null,null,null,null,null,null,null,null,null,null,null,null,null,null,null,null,null,null,null,null,null,null,null,null,null,null,null,null,null,null,null,null,null,null,null,null,null,null,null,{"$f":"IF(#REF!=\"\",\"\",#REF!)","v":{"$error":"#REF!"}},{"$f":"IF(#REF!=\"\",\"\",#REF!)","v":{"$error":"#REF!"}}]
[null,null,null,null,null,24,"X",null,",",21,null,null,null,null,null,null,null,null,null,null,null,null,null,null,null,null,null,null,null,null,null,null,null,null,null,null,null,null,null,null,null,null,null,null,null,null,null,null,null,null,null,null,null,null,null,null,null,null,null,null,null,null,null,null,null,null,null,null,null,null,null,null,null,null,null,null,{"$f":"IF(#REF!=\"\",\"\",#REF!)","v":{"$error":"#REF!"}},{"$f":"IF(#REF!=\"\",\"\",#REF!)","v":{"$error":"#REF!"}}]
[null,null,null,null,null,25,"Y",null,".",22,null,null,null,null,null,null,null,null,null,null,null,null,null,null,null,null,null,null,null,null,null,null,null,null,null,null,null,null,null,null,null,null,null,null,null,null,null,null,null,null,null,null,null,null,null,null,null,null,null,null,null,null,null,null,null,null,null,null,null,null,null,null,null,null,null,null,{"$f":"IF(#REF!=\"\",\"\",#REF!)","v":{"$error":"#REF!"}},{"$f":"IF(#REF!=\"\",\"\",#REF!)","v":{"$error":"#REF!"}}]
[null,null,null,null,null,26,"Z",null,"/",23,null,null,null,null,null,null,null,null,null,null,null,null,null,null,null,null,null,null,null,null,null,null,null,null,null,null,null,null,null,null,null,null,null,null,null,null,null,null,null,null,null,null,null,null,null,null,null,null,null,null,null,null,null,null,null,null,null,null,null,null,null,null,null,null,null,null,{"$f":"IF(#REF!=\"\",\"\",#REF!)","v":{"$error":"#REF!"}},{"$f":"IF(#REF!=\"\",\"\",#REF!)","v":{"$error":"#REF!"}}]
[null,null,null,null,null,null,null,null,"@",24,null,null,null,null,null,null,null,null,null,null,null,null,null,null,null,null,null,null,null,null,null,null,null,null,null,null,null,null,null,null,null,null,null,null,null,null,null,null,null,null,null,null,null,null,null,null,null,null,null,null,null,null,null,null,null,null,null,null,null,null,null,null,null,null,null,null,{"$f":"IF(#REF!=\"\",\"\",#REF!)","v":{"$error":"#REF!"}},{"$f":"IF(#REF!=\"\",\"\",#REF!)","v":{"$error":"#REF!"}}]
[null,null,null,null,null,null,null,null,"[",25,null,null,null,null,null,null,null,null,null,null,null,null,null,null,null,null,null,null,null,null,null,null,null,null,null,null,null,null,null,null,null,null,null,null,null,null,null,null,null,null,null,null,null,null,null,null,null,null,null,null,null,null,null,null,null,null,null,null,null,null,null,null,null,null,null,null,{"$f":"IF(#REF!=\"\",\"\",#REF!)","v":{"$error":"#REF!"}},{"$f":"IF(#REF!=\"\",\"\",#REF!)","v":{"$error":"#REF!"}}]
[null,null,null,null,null,null,null,null,"\\",26,null,null,null,null,null,null,null,null,null,null,null,null,null,null,null,null,null,null,null,null,null,null,null,null,null,null,null,null,null,null,null,null,null,null,null,null,null,null,null,null,null,null,null,null,null,null,null,null,null,null,null,null,null,null,null,null,null,null,null,null,null,null,null,null,null,null,{"$f":"IF(#REF!=\"\",\"\",#REF!)","v":{"$error":"#REF!"}},{"$f":"IF(#REF!=\"\",\"\",#REF!)","v":{"$error":"#REF!"}}]
[null,null,null,null,null,null,null,null,"]",27,null,null,null,null,null,null,null,null,null,null,null,null,null,null,null,null,null,null,null,null,null,null,null,null,null,null,null,null,null,null,null,null,null,null,null,null,null,null,null,null,null,null,null,null,null,null,null,null,null,null,null,null,null,null,null,null,null,null,null,null,null,null,null,null,null,null,{"$f":"IF(#REF!=\"\",\"\",#REF!)","v":{"$error":"#REF!"}},{"$f":"IF(#REF!=\"\",\"\",#REF!)","v":{"$error":"#REF!"}}]
[null,null,null,null,null,null,null,null,"^",28,null,null,null,null,null,null,null,null,null,null,null,null,null,null,null,null,null,null,null,null,null,null,null,null,null,null,null,null,null,null,null,null,null,null,null,null,null,null,null,null,null,null,null,null,null,null,null,null,null,null,null,null,null,null,null,null,null,null,null,null,null,null,null,null,null,null,{"$f":"IF(#REF!=\"\",\"\",#REF!)","v":{"$error":"#REF!"}},{"$f":"IF(#REF!=\"\",\"\",#REF!)","v":{"$error":"#REF!"}}]
[null,null,null,null,null,null,null,null,"_",29,null,null,null,null,null,null,null,null,null,null,null,null,null,null,null,null,null,null,null,null,null,null,null,null,null,null,null,null,null,null,null,null,null,null,null,null,null,null,null,null,null,null,null,null,null,null,null,null,null,null,null,null,null,null,null,null,null,null,null,null,null,null,null,null,null,null,{"$f":"IF(#REF!=\"\",\"\",#REF!)","v":{"$error":"#REF!"}},{"$f":"IF(#REF!=\"\",\"\",#REF!)","v":{"$error":"#REF!"}}]
[null,null,null,null,null,null,null,null,"{",30,null,null,null,null,null,null,null,null,null,null,null,null,null,null,null,null,null,null,null,null,null,null,null,null,null,null,null,null,null,null,null,null,null,null,null,null,null,null,null,null,null,null,null,null,null,null,null,null,null,null,null,null,null,null,null,null,null,null,null,null,null,null,null,null,null,null,{"$f":"IF(#REF!=\"\",\"\",#REF!)","v":{"$error":"#REF!"}},{"$f":"IF(#REF!=\"\",\"\",#REF!)","v":{"$error":"#REF!"}}]
[null,null,null,null,null,null,null,null,"}",31,null,null,null,null,null,null,null,null,null,null,null,null,null,null,null,null,null,null,null,null,null,null,null,null,null,null,null,null,null,null,null,null,null,null,null,null,null,null,null,null,null,null,null,null,null,null,null,null,null,null,null,null,null,null,null,null,null,null,null,null,null,null,null,null,null,null,{"$f":"IF(#REF!=\"\",\"\",#REF!)","v":{"$error":"#REF!"}},{"$f":"IF(#REF!=\"\",\"\",#REF!)","v":{"$error":"#REF!"}}]
[null,null,null,null,null,null,null,null,"+",32,null,null,null,null,null,null,null,null,null,null,null,null,null,null,null,null,null,null,null,null,null,null,null,null,null,null,null,null,null,null,null,null,null,null,null,null,null,null,null,null,null,null,null,null,null,null,null,null,null,null,null,null,null,null,null,null,null,null,null,null,null,null,null,null,null,null,{"$f":"IF(#REF!=\"\",\"\",#REF!)","v":{"$error":"#REF!"}},{"$f":"IF(#REF!=\"\",\"\",#REF!)","v":{"$error":"#REF!"}}]
[null,null,null,null,null,null,null,null,"=",33,null,null,null,null,null,null,null,null,null,null,null,null,null,null,null,null,null,null,null,null,null,null,null,null,null,null,null,null,null,null,null,null,null,null,null,null,null,null,null,null,null,null,null,null,null,null,null,null,null,null,null,null,null,null,null,null,null,null,null,null,null,null,null,null,null,null,{"$f":"IF(#REF!=\"\",\"\",#REF!)","v":{"$error":"#REF!"}},{"$f":"IF(#REF!=\"\",\"\",#REF!)","v":{"$error":"#REF!"}}]
[null,null,null,null,null,null,null,null,"A",34,null,null,null,null,null,null,null,null,null,null,null,null,null,null,null,null,null,null,null,null,null,null,null,null,null,null,null,null,null,null,null,null,null,null,null,null,null,null,null,null,null,null,null,null,null,null,null,null,null,null,null,null,null,null,null,null,null,null,null,null,null,null,null,null,null,null,{"$f":"IF(#REF!=\"\",\"\",#REF!)","v":{"$error":"#REF!"}},{"$f":"IF(#REF!=\"\",\"\",#REF!)","v":{"$error":"#REF!"}}]
[null,null,null,null,null,null,null,null,"B",35,null,null,null,null,null,null,null,null,null,null,null,null,null,null,null,null,null,null,null,null,null,null,null,null,null,null,null,null,null,null,null,null,null,null,null,null,null,null,null,null,null,null,null,null,null,null,null,null,null,null,null,null,null,null,null,null,null,null,null,null,null,null,null,null,null,null,{"$f":"IF(#REF!=\"\",\"\",#REF!)","v":{"$error":"#REF!"}},{"$f":"IF(#REF!=\"\",\"\",#REF!)","v":{"$error":"#REF!"}}]
[null,null,null,null,null,null,null,null,"C",36,null,null,null,null,null,null,null,null,null,null,null,null,null,null,null,null,null,null,null,null,null,null,null,null,null,null,null,null,null,null,null,null,null,null,null,null,null,null,null,null,null,null,null,null,null,null,null,null,null,null,null,null,null,null,null,null,null,null,null,null,null,null,null,null,null,null,{"$f":"IF(#REF!=\"\",\"\",#REF!)","v":{"$error":"#REF!"}},{"$f":"IF(#REF!=\"\",\"\",#REF!)","v":{"$error":"#REF!"}}]
[null,null,null,null,null,null,null,null,"D",37,null,null,null,null,null,null,null,null,null,null,null,null,null,null,null,null,null,null,null,null,null,null,null,null,null,null,null,null,null,null,null,null,null,null,null,null,null,null,null,null,null,null,null,null,null,null,null,null,null,null,null,null,null,null,null,null,null,null,null,null,null,null,null,null,null,null,{"$f":"IF(#REF!=\"\",\"\",#REF!)","v":{"$error":"#REF!"}},{"$f":"IF(#REF!=\"\",\"\",#REF!)","v":{"$error":"#REF!"}}]
[null,null,null,null,null,null,null,null,"E",38,null,null,null,null,null,null,null,null,null,null,null,null,null,null,null,null,null,null,null,null,null,null,null,null,null,null,null,null,null,null,null,null,null,null,null,null,null,null,null,null,null,null,null,null,null,null,null,null,null,null,null,null,null,null,null,null,null,null,null,null,null,null,null,null,null,null,{"$f":"IF(#REF!=\"\",\"\",#REF!)","v":{"$error":"#REF!"}},{"$f":"IF(#REF!=\"\",\"\",#REF!)","v":{"$error":"#REF!"}}]
[null,null,null,null,null,null,null,null,"F",39,null,null,null,null,null,null,null,null,null,null,null,null,null,null,null,null,null,null,null,null,null,null,null,null,null,null,null,null,null,null,null,null,null,null,null,null,null,null,null,null,null,null,null,null,null,null,null,null,null,null,null,null,null,null,null,null,null,null,null,null,null,null,null,null,null,null,{"$f":"IF(#REF!=\"\",\"\",#REF!)","v":{"$error":"#REF!"}},{"$f":"IF(#REF!=\"\",\"\",#REF!)","v":{"$error":"#REF!"}}]
[null,null,null,null,null,null,null,null,"G",40,null,null,null,null,null,null,null,null,null,null,null,null,null,null,null,null,null,null,null,null,null,null,null,null,null,null,null,null,null,null,null,null,null,null,null,null,null,null,null,null,null,null,null,null,null,null,null,null,null,null,null,null,null,null,null,null,null,null,null,null,null,null,null,null,null,null,{"$f":"IF(#REF!=\"\",\"\",#REF!)","v":{"$error":"#REF!"}},{"$f":"IF(#REF!=\"\",\"\",#REF!)","v":{"$error":"#REF!"}}]
[null,null,null,null,null,null,null,null,"H",41,null,null,null,null,null,null,null,null,null,null,null,null,null,null,null,null,null,null,null,null,null,null,null,null,null,null,null,null,null,null,null,null,null,null,null,null,null,null,null,null,null,null,null,null,null,null,null,null,null,null,null,null,null,null,null,null,null,null,null,null,null,null,null,null,null,null,{"$f":"IF(#REF!=\"\",\"\",#REF!)","v":{"$error":"#REF!"}},{"$f":"IF(#REF!=\"\",\"\",#REF!)","v":{"$error":"#REF!"}}]
[null,null,null,null,null,null,null,null,"I",42,null,null,null,null,null,null,null,null,null,null,null,null,null,null,null,null,null,null,null,null,null,null,null,null,null,null,null,null,null,null,null,null,null,null,null,null,null,null,null,null,null,null,null,null,null,null,null,null,null,null,null,null,null,null,null,null,null,null,null,null,null,null,null,null,null,null,{"$f":"IF(#REF!=\"\",\"\",#REF!)","v":{"$error":"#REF!"}},{"$f":"IF(#REF!=\"\",\"\",#REF!)","v":{"$error":"#REF!"}}]
[null,null,null,null,null,null,null,null,"J",43,null,null,null,null,null,null,null,null,null,null,null,null,null,null,null,null,null,null,null,null,null,null,null,null,null,null,null,null,null,null,null,null,null,null,null,null,null,null,null,null,null,null,null,null,null,null,null,null,null,null,null,null,null,null,null,null,null,null,null,null,null,null,null,null,null,null,{"$f":"IF(#REF!=\"\",\"\",#REF!)","v":{"$error":"#REF!"}},{"$f":"IF(#REF!=\"\",\"\",#REF!)","v":{"$error":"#REF!"}}]
[null,null,null,null,null,null,null,null,"K",44,null,null,null,null,null,null,null,null,null,null,null,null,null,null,null,null,null,null,null,null,null,null,null,null,null,null,null,null,null,null,null,null,null,null,null,null,null,null,null,null,null,null,null,null,null,null,null,null,null,null,null,null,null,null,null,null,null,null,null,null,null,null,null,null,null,null,{"$f":"IF(#REF!=\"\",\"\",#REF!)","v":{"$error":"#REF!"}},{"$f":"IF(#REF!=\"\",\"\",#REF!)","v":{"$error":"#REF!"}}]
[null,null,null,null,null,null,null,null,"L",45,null,null,null,null,null,null,null,null,null,null,null,null,null,null,null,null,null,null,null,null,null,null,null,null,null,null,null,null,null,null,null,null,null,null,null,null,null,null,null,null,null,null,null,null,null,null,null,null,null,null,null,null,null,null,null,null,null,null,null,null,null,null,null,null,null,null,{"$f":"IF(#REF!=\"\",\"\",#REF!)","v":{"$error":"#REF!"}},{"$f":"IF(#REF!=\"\",\"\",#REF!)","v":{"$error":"#REF!"}}]
[null,null,null,null,null,null,null,null,"M",46,null,null,null,null,null,null,null,null,null,null,null,null,null,null,null,null,null,null,null,null,null,null,null,null,null,null,null,null,null,null,null,null,null,null,null,null,null,null,null,null,null,null,null,null,null,null,null,null,null,null,null,null,null,null,null,null,null,null,null,null,null,null,null,null,null,null,{"$f":"IF(#REF!=\"\",\"\",#REF!)","v":{"$error":"#REF!"}},{"$f":"IF(#REF!=\"\",\"\",#REF!)","v":{"$error":"#REF!"}}]
[null,null,null,null,null,null,null,null,"N",47,null,null,null,null,null,null,null,null,null,null,null,null,null,null,null,null,null,null,null,null,null,null,null,null,null,null,null,null,null,null,null,null,null,null,null,null,null,null,null,null,null,null,null,null,null,null,null,null,null,null,null,null,null,null,null,null,null,null,null,null,null,null,null,null,null,null,{"$f":"IF(#REF!=\"\",\"\",#REF!)","v":{"$error":"#REF!"}},{"$f":"IF(#REF!=\"\",\"\",#REF!)","v":{"$error":"#REF!"}}]
[null,null,null,null,null,null,null,null,"O",48,null,null,null,null,null,null,null,null,null,null,null,null,null,null,null,null,null,null,null,null,null,null,null,null,null,null,null,null,null,null,null,null,null,null,null,null,null,null,null,null,null,null,null,null,null,null,null,null,null,null,null,null,null,null,null,null,null,null,null,null,null,null,null,null,null,null,{"$f":"IF(#REF!=\"\",\"\",#REF!)","v":{"$error":"#REF!"}},{"$f":"IF(#REF!=\"\",\"\",#REF!)","v":{"$error":"#REF!"}}]
[null,null,null,null,null,null,null,null,"P",49,null,null,null,null,null,null,null,null,null,null,null,null,null,null,null,null,null,null,null,null,null,null,null,null,null,null,null,null,null,null,null,null,null,null,null,null,null,null,null,null,null,null,null,null,null,null,null,null,null,null,null,null,null,null,null,null,null,null,null,null,null,null,null,null,null,null,{"$f":"IF(#REF!=\"\",\"\",#REF!)","v":{"$error":"#REF!"}},{"$f":"IF(#REF!=\"\",\"\",#REF!)","v":{"$error":"#REF!"}}]
[null,null,null,null,null,null,null,null,"Q",50,null,null,null,null,null,null,null,null,null,null,null,null,null,null,null,null,null,null,null,null,null,null,null,null,null,null,null,null,null,null,null,null,null,null,null,null,null,null,null,null,null,null,null,null,null,null,null,null,null,null,null,null,null,null,null,null,null,null,null,null,null,null,null,null,null,null,{"$f":"IF(#REF!=\"\",\"\",#REF!)","v":{"$error":"#REF!"}},{"$f":"IF(#REF!=\"\",\"\",#REF!)","v":{"$error":"#REF!"}}]
[null,null,null,null,null,null,null,null,"R",51,null,null,null,null,null,null,null,null,null,null,null,null,null,null,null,null,null,null,null,null,null,null,null,null,null,null,null,null,null,null,null,null,null,null,null,null,null,null,null,null,null,null,null,null,null,null,null,null,null,null,null,null,null,null,null,null,null,null,null,null,null,null,null,null,null,null,{"$f":"IF(#REF!=\"\",\"\",#REF!)","v":{"$error":"#REF!"}},{"$f":"IF(#REF!=\"\",\"\",#REF!)","v":{"$error":"#REF!"}}]
[null,null,null,null,null,null,null,null,"S",52,null,null,null,null,null,null,null,null,null,null,null,null,null,null,null,null,null,null,null,null,null,null,null,null,null,null,null,null,null,null,null,null,null,null,null,null,null,null,null,null,null,null,null,null,null,null,null,null,null,null,null,null,null,null,null,null,null,null,null,null,null,null,null,null,null,null,{"$f":"IF(#REF!=\"\",\"\",#REF!)","v":{"$error":"#REF!"}},{"$f":"IF(#REF!=\"\",\"\",#REF!)","v":{"$error":"#REF!"}}]
[null,null,null,null,null,null,null,null,"T",53,null,null,null,null,null,null,null,null,null,null,null,null,null,null,null,null,null,null,null,null,null,null,null,null,null,null,null,null,null,null,null,null,null,null,null,null,null,null,null,null,null,null,null,null,null,null,null,null,null,null,null,null,null,null,null,null,null,null,null,null,null,null,null,null,null,null,{"$f":"IF(#REF!=\"\",\"\",#REF!)","v":{"$error":"#REF!"}},{"$f":"IF(#REF!=\"\",\"\",#REF!)","v":{"$error":"#REF!"}}]
[null,null,null,null,null,null,null,null,"U",54,null,null,null,null,null,null,null,null,null,null,null,null,null,null,null,null,null,null,null,null,null,null,null,null,null,null,null,null,null,null,null,null,null,null,null,null,null,null,null,null,null,null,null,null,null,null,null,null,null,null,null,null,null,null,null,null,null,null,null,null,null,null,null,null,null,null,{"$f":"IF(#REF!=\"\",\"\",#REF!)","v":{"$error":"#REF!"}},{"$f":"IF(#REF!=\"\",\"\",#REF!)","v":{"$error":"#REF!"}}]
[null,null,null,null,null,null,null,null,"V",55,null,null,null,null,null,null,null,null,null,null,null,null,null,null,null,null,null,null,null,null,null,null,null,null,null,null,null,null,null,null,null,null,null,null,null,null,null,null,null,null,null,null,null,null,null,null,null,null,null,null,null,null,null,null,null,null,null,null,null,null,null,null,null,null,null,null,{"$f":"IF(#REF!=\"\",\"\",#REF!)","v":{"$error":"#REF!"}},{"$f":"IF(#REF!=\"\",\"\",#REF!)","v":{"$error":"#REF!"}}]
[null,null,null,null,null,null,null,null,"W",56,null,null,null,null,null,null,null,null,null,null,null,null,null,null,null,null,null,null,null,null,null,null,null,null,null,null,null,null,null,null,null,null,null,null,null,null,null,null,null,null,null,null,null,null,null,null,null,null,null,null,null,null,null,null,null,null,null,null,null,null,null,null,null,null,null,null,{"$f":"IF(#REF!=\"\",\"\",#REF!)","v":{"$error":"#REF!"}},{"$f":"IF(#REF!=\"\",\"\",#REF!)","v":{"$error":"#REF!"}}]
[null,null,null,null,null,null,null,null,"X",57,null,null,null,null,null,null,null,null,null,null,null,null,null,null,null,null,null,null,null,null,null,null,null,null,null,null,null,null,null,null,null,null,null,null,null,null,null,null,null,null,null,null,null,null,null,null,null,null,null,null,null,null,null,null,null,null,null,null,null,null,null,null,null,null,null,null,{"$f":"IF(#REF!=\"\",\"\",#REF!)","v":{"$error":"#REF!"}},{"$f":"IF(#REF!=\"\",\"\",#REF!)","v":{"$error":"#REF!"}}]
[null,null,null,null,null,null,null,null,"Y",58,null,null,null,null,null,null,null,null,null,null,null,null,null,null,null,null,null,null,null,null,null,null,null,null,null,null,null,null,null,null,null,null,null,null,null,null,null,null,null,null,null,null,null,null,null,null,null,null,null,null,null,null,null,null,null,null,null,null,null,null,null,null,null,null,null,null,{"$f":"IF(#REF!=\"\",\"\",#REF!)","v":{"$error":"#REF!"}},{"$f":"IF(#REF!=\"\",\"\",#REF!)","v":{"$error":"#REF!"}}]
[null,null,null,null,null,null,null,null,"Z",59,null,null,null,null,null,null,null,null,null,null,null,null,null,null,null,null,null,null,null,null,null,null,null,null,null,null,null,null,null,null,null,null,null,null,null,null,null,null,null,null,null,null,null,null,null,null,null,null,null,null,null,null,null,null,null,null,null,null,null,null,null,null,null,null,null,null,{"$f":"IF(#REF!=\"\",\"\",#REF!)","v":{"$error":"#REF!"}},{"$f":"IF(#REF!=\"\",\"\",#REF!)","v":{"$error":"#REF!"}}]
[null,null,null,null,null,null,null,null,null,null,null,null,null,null,null,null,null,null,null,null,null,null,null,null,null,null,null,null,null,null,null,null,null,null,null,null,null,null,null,null,null,null,null,null,null,null,null,null,null,null,null,null,null,null,null,null,null,null,null,null,null,null,null,null,null,null,null,null,null,null,null,null,null,null,null,null,{"$f":"IF(#REF!=\"\",\"\",#REF!)","v":{"$error":"#REF!"}},{"$f":"IF(#REF!=\"\",\"\",#REF!)","v":{"$error":"#REF!"}}]
[null,null,null,null,null,null,null,null,null,null,null,null,null,null,null,null,null,null,null,null,null,null,null,null,null,null,null,null,null,null,null,null,null,null,null,null,null,null,null,null,null,null,null,null,null,null,null,null,null,null,null,null,null,null,null,null,null,null,null,null,null,null,null,null,null,null,null,null,null,null,null,null,null,null,null,null,{"$f":"IF(#REF!=\"\",\"\",#REF!)","v":{"$error":"#REF!"}},{"$f":"IF(#REF!=\"\",\"\",#REF!)","v":{"$error":"#REF!"}}]
[null,null,null,null,null,null,null,null,null,null,null,null,null,null,null,null,null,null,null,null,null,null,null,null,null,null,null,null,null,null,null,null,null,null,null,null,null,null,null,null,null,null,null,null,null,null,null,null,null,null,null,null,null,null,null,null,null,null,null,null,null,null,null,null,null,null,null,null,null,null,null,null,null,null,null,null,{"$f":"IF(#REF!=\"\",\"\",#REF!)","v":{"$error":"#REF!"}},{"$f":"IF(#REF!=\"\",\"\",#REF!)","v":{"$error":"#REF!"}}]
[null,null,null,null,null,null,null,null,null,null,null,null,null,null,null,null,null,null,null,null,null,null,null,null,null,null,null,null,null,null,null,null,null,null,null,null,null,null,null,null,null,null,null,null,null,null,null,null,null,null,null,null,null,null,null,null,null,null,null,null,null,null,null,null,null,null,null,null,null,null,null,null,null,null,null,null,{"$f":"IF(#REF!=\"\",\"\",#REF!)","v":{"$error":"#REF!"}},{"$f":"IF(#REF!=\"\",\"\",#REF!)","v":{"$error":"#REF!"}}]
[null,null,null,null,null,null,null,null,null,null,null,null,null,null,null,null,null,null,null,null,null,null,null,null,null,null,null,null,null,null,null,null,null,null,null,null,null,null,null,null,null,null,null,null,null,null,null,null,null,null,null,null,null,null,null,null,null,null,null,null,null,null,null,null,null,null,null,null,null,null,null,null,null,null,null,null,{"$f":"IF(#REF!=\"\",\"\",#REF!)","v":{"$error":"#REF!"}},{"$f":"IF(#REF!=\"\",\"\",#REF!)","v":{"$error":"#REF!"}}]
[null,null,null,null,null,null,null,null,null,null,null,null,null,null,null,null,null,null,null,null,null,null,null,null,null,null,null,null,null,null,null,null,null,null,null,null,null,null,null,null,null,null,null,null,null,null,null,null,null,null,null,null,null,null,null,null,null,null,null,null,null,null,null,null,null,null,null,null,null,null,null,null,null,null,null,null,{"$f":"IF(#REF!=\"\",\"\",#REF!)","v":{"$error":"#REF!"}},{"$f":"IF(#REF!=\"\",\"\",#REF!)","v":{"$error":"#REF!"}}]
[null,null,null,null,null,null,null,null,null,null,null,null,null,null,null,null,null,null,null,null,null,null,null,null,null,null,null,null,null,null,null,null,null,null,null,null,null,null,null,null,null,null,null,null,null,null,null,null,null,null,null,null,null,null,null,null,null,null,null,null,null,null,null,null,null,null,null,null,null,null,null,null,null,null,null,null,{"$f":"IF(#REF!=\"\",\"\",#REF!)","v":{"$error":"#REF!"}},{"$f":"IF(#REF!=\"\",\"\",#REF!)","v":{"$error":"#REF!"}}]
[null,null,null,null,null,null,null,null,null,null,null,null,null,null,null,null,null,null,null,null,null,null,null,null,null,null,null,null,null,null,null,null,null,null,null,null,null,null,null,null,null,null,null,null,null,null,null,null,null,null,null,null,null,null,null,null,null,null,null,null,null,null,null,null,null,null,null,null,null,null,null,null,null,null,null,null,{"$f":"IF(#REF!=\"\",\"\",#REF!)","v":{"$error":"#REF!"}},{"$f":"IF(#REF!=\"\",\"\",#REF!)","v":{"$error":"#REF!"}}]
[null,null,null,null,null,null,null,null,null,null,null,null,null,null,null,null,null,null,null,null,null,null,null,null,null,null,null,null,null,null,null,null,null,null,null,null,null,null,null,null,null,null,null,null,null,null,null,null,null,null,null,null,null,null,null,null,null,null,null,null,null,null,null,null,null,null,null,null,null,null,null,null,null,null,null,null,{"$f":"IF(#REF!=\"\",\"\",#REF!)","v":{"$error":"#REF!"}},{"$f":"IF(#REF!=\"\",\"\",#REF!)","v":{"$error":"#REF!"}}]
[null,null,null,null,null,null,null,null,null,null,null,null,null,null,null,null,null,null,null,null,null,null,null,null,null,null,null,null,null,null,null,null,null,null,null,null,null,null,null,null,null,null,null,null,null,null,null,null,null,null,null,null,null,null,null,null,null,null,null,null,null,null,null,null,null,null,null,null,null,null,null,null,null,null,null,null,{"$f":"IF(#REF!=\"\",\"\",#REF!)","v":{"$error":"#REF!"}},{"$f":"IF(#REF!=\"\",\"\",#REF!)","v":{"$error":"#REF!"}}]
[null,null,null,null,null,null,null,null,null,null,null,null,null,null,null,null,null,null,null,null,null,null,null,null,null,null,null,null,null,null,null,null,null,null,null,null,null,null,null,null,null,null,null,null,null,null,null,null,null,null,null,null,null,null,null,null,null,null,null,null,null,null,null,null,null,null,null,null,null,null,null,null,null,null,null,null,{"$f":"IF(#REF!=\"\",\"\",#REF!)","v":{"$error":"#REF!"}},{"$f":"IF(#REF!=\"\",\"\",#REF!)","v":{"$error":"#REF!"}}]
[null,null,null,null,null,null,null,null,null,null,null,null,null,null,null,null,null,null,null,null,null,null,null,null,null,null,null,null,null,null,null,null,null,null,null,null,null,null,null,null,null,null,null,null,null,null,null,null,null,null,null,null,null,null,null,null,null,null,null,null,null,null,null,null,null,null,null,null,null,null,null,null,null,null,null,null,{"$f":"IF(#REF!=\"\",\"\",#REF!)","v":{"$error":"#REF!"}},{"$f":"IF(#REF!=\"\",\"\",#REF!)","v":{"$error":"#REF!"}}]
[null,null,null,null,null,null,null,null,null,null,null,null,null,null,null,null,null,null,null,null,null,null,null,null,null,null,null,null,null,null,null,null,null,null,null,null,null,null,null,null,null,null,null,null,null,null,null,null,null,null,null,null,null,null,null,null,null,null,null,null,null,null,null,null,null,null,null,null,null,null,null,null,null,null,null,null,{"$f":"IF(#REF!=\"\",\"\",#REF!)","v":{"$error":"#REF!"}},{"$f":"IF(#REF!=\"\",\"\",#REF!)","v":{"$error":"#REF!"}}]
[null,null,null,null,null,null,null,null,null,null,null,null,null,null,null,null,null,null,null,null,null,null,null,null,null,null,null,null,null,null,null,null,null,null,null,null,null,null,null,null,null,null,null,null,null,null,null,null,null,null,null,null,null,null,null,null,null,null,null,null,null,null,null,null,null,null,null,null,null,null,null,null,null,null,null,null,{"$f":"IF(#REF!=\"\",\"\",#REF!)","v":{"$error":"#REF!"}},{"$f":"IF(#REF!=\"\",\"\",#REF!)","v":{"$error":"#REF!"}}]
[null,null,null,null,null,null,null,null,null,null,null,null,null,null,null,null,null,null,null,null,null,null,null,null,null,null,null,null,null,null,null,null,null,null,null,null,null,null,null,null,null,null,null,null,null,null,null,null,null,null,null,null,null,null,null,null,null,null,null,null,null,null,null,null,null,null,null,null,null,null,null,null,null,null,null,null,{"$f":"IF(#REF!=\"\",\"\",#REF!)","v":{"$error":"#REF!"}},{"$f":"IF(#REF!=\"\",\"\",#REF!)","v":{"$error":"#REF!"}}]
[null,null,null,null,null,null,null,null,null,null,null,null,null,null,null,null,null,null,null,null,null,null,null,null,null,null,null,null,null,null,null,null,null,null,null,null,null,null,null,null,null,null,null,null,null,null,null,null,null,null,null,null,null,null,null,null,null,null,null,null,null,null,null,null,null,null,null,null,null,null,null,null,null,null,null,null,{"$f":"IF(#REF!=\"\",\"\",#REF!)","v":{"$error":"#REF!"}},{"$f":"IF(#REF!=\"\",\"\",#REF!)","v":{"$error":"#REF!"}}]
[null,null,null,null,null,null,null,null,null,null,null,null,null,null,null,null,null,null,null,null,null,null,null,null,null,null,null,null,null,null,null,null,null,null,null,null,null,null,null,null,null,null,null,null,null,null,null,null,null,null,null,null,null,null,null,null,null,null,null,null,null,null,null,null,null,null,null,null,null,null,null,null,null,null,null,null,{"$f":"IF(#REF!=\"\",\"\",#REF!)","v":{"$error":"#REF!"}},{"$f":"IF(#REF!=\"\",\"\",#REF!)","v":{"$error":"#REF!"}}]
[null,null,null,null,null,null,null,null,null,null,null,null,null,null,null,null,null,null,null,null,null,null,null,null,null,null,null,null,null,null,null,null,null,null,null,null,null,null,null,null,null,null,null,null,null,null,null,null,null,null,null,null,null,null,null,null,null,null,null,null,null,null,null,null,null,null,null,null,null,null,null,null,null,null,null,null,{"$f":"IF(#REF!=\"\",\"\",#REF!)","v":{"$error":"#REF!"}},{"$f":"IF(#REF!=\"\",\"\",#REF!)","v":{"$error":"#REF!"}}]
[null,null,null,null,null,null,null,null,null,null,null,null,null,null,null,null,null,null,null,null,null,null,null,null,null,null,null,null,null,null,null,null,null,null,null,null,null,null,null,null,null,null,null,null,null,null,null,null,null,null,null,null,null,null,null,null,null,null,null,null,null,null,null,null,null,null,null,null,null,null,null,null,null,null,null,null,{"$f":"IF(#REF!=\"\",\"\",#REF!)","v":{"$error":"#REF!"}},{"$f":"IF(#REF!=\"\",\"\",#REF!)","v":{"$error":"#REF!"}}]
[null,null,null,null,null,null,null,null,null,null,null,null,null,null,null,null,null,null,null,null,null,null,null,null,null,null,null,null,null,null,null,null,null,null,null,null,null,null,null,null,null,null,null,null,null,null,null,null,null,null,null,null,null,null,null,null,null,null,null,null,null,null,null,null,null,null,null,null,null,null,null,null,null,null,null,null,{"$f":"IF(#REF!=\"\",\"\",#REF!)","v":{"$error":"#REF!"}},{"$f":"IF(#REF!=\"\",\"\",#REF!)","v":{"$error":"#REF!"}}]
[null,null,null,null,null,null,null,null,null,null,null,null,null,null,null,null,null,null,null,null,null,null,null,null,null,null,null,null,null,null,null,null,null,null,null,null,null,null,null,null,null,null,null,null,null,null,null,null,null,null,null,null,null,null,null,null,null,null,null,null,null,null,null,null,null,null,null,null,null,null,null,null,null,null,null,null,{"$f":"IF(#REF!=\"\",\"\",#REF!)","v":{"$error":"#REF!"}},{"$f":"IF(#REF!=\"\",\"\",#REF!)","v":{"$error":"#REF!"}}]
[null,null,null,null,null,null,null,null,null,null,null,null,null,null,null,null,null,null,null,null,null,null,null,null,null,null,null,null,null,null,null,null,null,null,null,null,null,null,null,null,null,null,null,null,null,null,null,null,null,null,null,null,null,null,null,null,null,null,null,null,null,null,null,null,null,null,null,null,null,null,null,null,null,null,null,null,{"$f":"IF(#REF!=\"\",\"\",#REF!)","v":{"$error":"#REF!"}},{"$f":"IF(#REF!=\"\",\"\",#REF!)","v":{"$error":"#REF!"}}]
[null,null,null,null,null,null,null,null,null,null,null,null,null,null,null,null,null,null,null,null,null,null,null,null,null,null,null,null,null,null,null,null,null,null,null,null,null,null,null,null,null,null,null,null,null,null,null,null,null,null,null,null,null,null,null,null,null,null,null,null,null,null,null,null,null,null,null,null,null,null,null,null,null,null,null,null,{"$f":"IF(#REF!=\"\",\"\",#REF!)","v":{"$error":"#REF!"}},{"$f":"IF(#REF!=\"\",\"\",#REF!)","v":{"$error":"#REF!"}}]
[null,null,null,null,null,null,null,null,null,null,null,null,null,null,null,null,null,null,null,null,null,null,null,null,null,null,null,null,null,null,null,null,null,null,null,null,null,null,null,null,null,null,null,null,null,null,null,null,null,null,null,null,null,null,null,null,null,null,null,null,null,null,null,null,null,null,null,null,null,null,null,null,null,null,null,null,{"$f":"IF(#REF!=\"\",\"\",#REF!)","v":{"$error":"#REF!"}},{"$f":"IF(#REF!=\"\",\"\",#REF!)","v":{"$error":"#REF!"}}]
[null,null,null,null,null,null,null,null,null,null,null,null,null,null,null,null,null,null,null,null,null,null,null,null,null,null,null,null,null,null,null,null,null,null,null,null,null,null,null,null,null,null,null,null,null,null,null,null,null,null,null,null,null,null,null,null,null,null,null,null,null,null,null,null,null,null,null,null,null,null,null,null,null,null,null,null,{"$f":"IF(#REF!=\"\",\"\",#REF!)","v":{"$error":"#REF!"}},{"$f":"IF(#REF!=\"\",\"\",#REF!)","v":{"$error":"#REF!"}}]
[null,null,null,null,null,null,null,null,null,null,null,null,null,null,null,null,null,null,null,null,null,null,null,null,null,null,null,null,null,null,null,null,null,null,null,null,null,null,null,null,null,null,null,null,null,null,null,null,null,null,null,null,null,null,null,null,null,null,null,null,null,null,null,null,null,null,null,null,null,null,null,null,null,null,null,null,{"$f":"IF(#REF!=\"\",\"\",#REF!)","v":{"$error":"#REF!"}},{"$f":"IF(#REF!=\"\",\"\",#REF!)","v":{"$error":"#REF!"}}]
[null,null,null,null,null,null,null,null,null,null,null,null,null,null,null,null,null,null,null,null,null,null,null,null,null,null,null,null,null,null,null,null,null,null,null,null,null,null,null,null,null,null,null,null,null,null,null,null,null,null,null,null,null,null,null,null,null,null,null,null,null,null,null,null,null,null,null,null,null,null,null,null,null,null,null,null,{"$f":"IF(#REF!=\"\",\"\",#REF!)","v":{"$error":"#REF!"}},{"$f":"IF(#REF!=\"\",\"\",#REF!)","v":{"$error":"#REF!"}}]
[null,null,null,null,null,null,null,null,null,null,null,null,null,null,null,null,null,null,null,null,null,null,null,null,null,null,null,null,null,null,null,null,null,null,null,null,null,null,null,null,null,null,null,null,null,null,null,null,null,null,null,null,null,null,null,null,null,null,null,null,null,null,null,null,null,null,null,null,null,null,null,null,null,null,null,null,{"$f":"IF(#REF!=\"\",\"\",#REF!)","v":{"$error":"#REF!"}},{"$f":"IF(#REF!=\"\",\"\",#REF!)","v":{"$error":"#REF!"}}]
[null,null,null,null,null,null,null,null,null,null,null,null,null,null,null,null,null,null,null,null,null,null,null,null,null,null,null,null,null,null,null,null,null,null,null,null,null,null,null,null,null,null,null,null,null,null,null,null,null,null,null,null,null,null,null,null,null,null,null,null,null,null,null,null,null,null,null,null,null,null,null,null,null,null,null,null,{"$f":"IF(#REF!=\"\",\"\",#REF!)","v":{"$error":"#REF!"}},{"$f":"IF(#REF!=\"\",\"\",#REF!)","v":{"$error":"#REF!"}}]
[null,null,null,null,null,null,null,null,null,null,null,null,null,null,null,null,null,null,null,null,null,null,null,null,null,null,null,null,null,null,null,null,null,null,null,null,null,null,null,null,null,null,null,null,null,null,null,null,null,null,null,null,null,null,null,null,null,null,null,null,null,null,null,null,null,null,null,null,null,null,null,null,null,null,null,null,{"$f":"IF(#REF!=\"\",\"\",#REF!)","v":{"$error":"#REF!"}},{"$f":"IF(#REF!=\"\",\"\",#REF!)","v":{"$error":"#REF!"}}]
[null,null,null,null,null,null,null,null,null,null,null,null,null,null,null,null,null,null,null,null,null,null,null,null,null,null,null,null,null,null,null,null,null,null,null,null,null,null,null,null,null,null,null,null,null,null,null,null,null,null,null,null,null,null,null,null,null,null,null,null,null,null,null,null,null,null,null,null,null,null,null,null,null,null,null,null,{"$f":"IF(#REF!=\"\",\"\",#REF!)","v":{"$error":"#REF!"}},{"$f":"IF(#REF!=\"\",\"\",#REF!)","v":{"$error":"#REF!"}}]
[null,null,null,null,null,null,null,null,null,null,null,null,null,null,null,null,null,null,null,null,null,null,null,null,null,null,null,null,null,null,null,null,null,null,null,null,null,null,null,null,null,null,null,null,null,null,null,null,null,null,null,null,null,null,null,null,null,null,null,null,null,null,null,null,null,null,null,null,null,null,null,null,null,null,null,null,{"$f":"IF(#REF!=\"\",\"\",#REF!)","v":{"$error":"#REF!"}},{"$f":"IF(#REF!=\"\",\"\",#REF!)","v":{"$error":"#REF!"}}]
[null,null,null,null,null,null,null,null,null,null,null,null,null,null,null,null,null,null,null,null,null,null,null,null,null,null,null,null,null,null,null,null,null,null,null,null,null,null,null,null,null,null,null,null,null,null,null,null,null,null,null,null,null,null,null,null,null,null,null,null,null,null,null,null,null,null,null,null,null,null,null,null,null,null,null,null,{"$f":"IF(#REF!=\"\",\"\",#REF!)","v":{"$error":"#REF!"}},{"$f":"IF(#REF!=\"\",\"\",#REF!)","v":{"$error":"#REF!"}}]
[null,null,null,null,null,null,null,null,null,null,null,null,null,null,null,null,null,null,null,null,null,null,null,null,null,null,null,null,null,null,null,null,null,null,null,null,null,null,null,null,null,null,null,null,null,null,null,null,null,null,null,null,null,null,null,null,null,null,null,null,null,null,null,null,null,null,null,null,null,null,null,null,null,null,null,null,{"$f":"IF(#REF!=\"\",\"\",#REF!)","v":{"$error":"#REF!"}},{"$f":"IF(#REF!=\"\",\"\",#REF!)","v":{"$error":"#REF!"}}]
[null,null,null,null,null,null,null,null,null,null,null,null,null,null,null,null,null,null,null,null,null,null,null,null,null,null,null,null,null,null,null,null,null,null,null,null,null,null,null,null,null,null,null,null,null,null,null,null,null,null,null,null,null,null,null,null,null,null,null,null,null,null,null,null,null,null,null,null,null,null,null,null,null,null,null,null,{"$f":"IF(#REF!=\"\",\"\",#REF!)","v":{"$error":"#REF!"}},{"$f":"IF(#REF!=\"\",\"\",#REF!)","v":{"$error":"#REF!"}}]
[null,null,null,null,null,null,null,null,null,null,null,null,null,null,null,null,null,null,null,null,null,null,null,null,null,null,null,null,null,null,null,null,null,null,null,null,null,null,null,null,null,null,null,null,null,null,null,null,null,null,null,null,null,null,null,null,null,null,null,null,null,null,null,null,null,null,null,null,null,null,null,null,null,null,null,null,{"$f":"IF(#REF!=\"\",\"\",#REF!)","v":{"$error":"#REF!"}},{"$f":"IF(#REF!=\"\",\"\",#REF!)","v":{"$error":"#REF!"}}]
[null,null,null,null,null,null,null,null,null,null,null,null,null,null,null,null,null,null,null,null,null,null,null,null,null,null,null,null,null,null,null,null,null,null,null,null,null,null,null,null,null,null,null,null,null,null,null,null,null,null,null,null,null,null,null,null,null,null,null,null,null,null,null,null,null,null,null,null,null,null,null,null,null,null,null,null,{"$f":"IF(#REF!=\"\",\"\",#REF!)","v":{"$error":"#REF!"}},{"$f":"IF(#REF!=\"\",\"\",#REF!)","v":{"$error":"#REF!"}}]
[null,null,null,null,null,null,null,null,null,null,null,null,null,null,null,null,null,null,null,null,null,null,null,null,null,null,null,null,null,null,null,null,null,null,null,null,null,null,null,null,null,null,null,null,null,null,null,null,null,null,null,null,null,null,null,null,null,null,null,null,null,null,null,null,null,null,null,null,null,null,null,null,null,null,null,null,{"$f":"IF(#REF!=\"\",\"\",#REF!)","v":{"$error":"#REF!"}},{"$f":"IF(#REF!=\"\",\"\",#REF!)","v":{"$error":"#REF!"}}]
[null,null,null,null,null,null,null,null,null,null,null,null,null,null,null,null,null,null,null,null,null,null,null,null,null,null,null,null,null,null,null,null,null,null,null,null,null,null,null,null,null,null,null,null,null,null,null,null,null,null,null,null,null,null,null,null,null,null,null,null,null,null,null,null,null,null,null,null,null,null,null,null,null,null,null,null,{"$f":"IF(#REF!=\"\",\"\",#REF!)","v":{"$error":"#REF!"}},{"$f":"IF(#REF!=\"\",\"\",#REF!)","v":{"$error":"#REF!"}}]
[null,null,null,null,null,null,null,null,null,null,null,null,null,null,null,null,null,null,null,null,null,null,null,null,null,null,null,null,null,null,null,null,null,null,null,null,null,null,null,null,null,null,null,null,null,null,null,null,null,null,null,null,null,null,null,null,null,null,null,null,null,null,null,null,null,null,null,null,null,null,null,null,null,null,null,null,{"$f":"IF(#REF!=\"\",\"\",#REF!)","v":{"$error":"#REF!"}},{"$f":"IF(#REF!=\"\",\"\",#REF!)","v":{"$error":"#REF!"}}]

{"sheet":"Source","index":15,"n_rows":2,"n_cols":5,"rows_kept":2,"cut":false,"hidden":false,"merged":[]}
["Author_Name","Author_email","Source_Agency","Source_Website","Data_Current_To"]
["George Macauley","office@macauley.ca","British Columbia Energy Regulator","www.bc-er.ca","November 2025"]

{"sheet":"Search","index":16,"n_rows":15388,"n_cols":8,"rows_kept":15388,"cut":false,"hidden":false,"merged":[]}
[1,{"$f":"IF(ISERROR(VLOOKUP($E$1+$A1-1,LU_Search_Main,2,0)),\"\",VLOOKUP($E$1+$A1-1,LU_Search_Main,2,0))","v":49886},{"$f":"IF($B1=\"\",\"\",VLOOKUP($E$1+$A1-1,LU_Search_Main,2)&\" - \"&VLOOKUP($E$1+$A1-1,LU_Search_Main,3))","v":"49886 - TOURMALINE  HZ TOWN C-G002-G/094-B-16"},"Start Position",{"$f":"SUM($E$2:$E21)","v":1},{"$f":"Summary!$E$2","v":"First 25 Wells"}]
[2,34329,"34329 - TOURMALINE  HZ NIG CREEK WEST A- 073-D/094-H-04",null,{"$f":"IF($F$1=$F2,1,0)","v":1},{"$f":"Summary!$CE$2","v":"First 25 Wells"},null,"SQL code"]
[3,34330,"34330 - TOURMALINE  HZ NIG CREEK WEST A-A073-D/094-H-04",null,{"$f":"IF($F$1=$F3,26,0)","v":0},{"$f":"Summary!$CE$3","v":"Wells 26-50"},null,"SELECT WA_NUM,WELL_NAME from WELL_SEARCH_INDEX where (OPERATOR like '%Tour%' or OPER_ABRV like '%Tour%')  and SPUD_MON >= 202401 and SPUD_MON <= 202511  and SURF_LAT_DEC_DEG >= 57 and SURF_LON_DEC_DEG >= -124 and SURF_LAT_DEC_DEG <= 60 and SURF_LON_DEC_DEG <= -116  order by GAS_PRODN_3_YR desc, WA_NUM desc; "]
[4,36126,"36126 - TOURMALINE  HZ AITKEN CREEK NORTH C- 065-D/094-H-04",null,{"$f":"IF($F$1=$F4,51,0)","v":0},{"$f":"Summary!$CE$4","v":"Wells 51-75"}]
[5,34331,"34331 - TOURMALINE  HZ NIG CREEK WEST A-B073-D/094-H-04",null,{"$f":"IF($F$1=$F5,76,0)","v":0},{"$f":"Summary!$CE$5","v":"Wells 76-100"}]
[6,36127,"36127 - TOURMALINE  HZ AITKEN CREEK NORTH C-A065-D/094-H-04",null,{"$f":"IF($F$1=$F6,101,0)","v":0},{"$f":"Summary!$CE$6","v":"Wells 101-125"}]
[7,36128,"36128 - TOURMALINE  HZ AITKEN CREEK NORTH C-B065-D/094-H-04",null,{"$f":"IF($F$1=$F7,126,0)","v":0},{"$f":"Summary!$CE$7","v":"Wells 126-150"}]
[8,49882,"49882 - TOURMALINE  HZ TOWN C-C002-G/094-B-16",null,{"$f":"IF($F$1=$F8,151,0)","v":0},{"$f":"Summary!$CE$8","v":"Wells 151-175"}]
[9,36129,"36129 - TOURMALINE  HZ AITKEN CREEK NORTH C-C065-D/094-H-04",null,{"$f":"IF($F$1=$F9,176,0)","v":0},{"$f":"Summary!$CE$9","v":"Wells 176-181"}]
[10,40535,"40535 - TOURMALINE  HZ TOWN A-N008-A/094-B-16",null,{"$f":"IF($F$1=$F10,201,0)","v":0},{"$f":"Summary!$CE$10","v":""}]
[11,40533,"40533 - TOURMALINE  HZ TOWN A-L008-A/094-B-16",null,{"$f":"IF($F$1=$F11,226,0)","v":0},{"$f":"Summary!$CE$11","v":""}]
[12,40532,"40532 - TOURMALINE  HZ TOWN A-K008-A/094-B-16",null,{"$f":"IF($F$1=$F12,251,0)","v":0},{"$f":"Summary!$CE$12","v":""}]
[13,50903,"50903 - TOURMALINE  HZ NIG CREEK C-B100-C/094-H-04",null,{"$f":"IF($F$1=$F13,276,0)","v":0},{"$f":"Summary!$CE$13","v":""}]
[14,49891,"49891 - TOURMALINE  HZ TOWN C-L002-G/094-B-16",null,{"$f":"IF($F$1=$F14,301,0)","v":0},{"$f":"Summary!$CE$14","v":""}]
[15,50904,"50904 - TOURMALINE  HZ NIG CREEK C-C100-C/094-H-04",null,{"$f":"IF($F$1=$F15,326,0)","v":0},{"$f":"Summary!$CE$15","v":""}]
[16,49884,"49884 - TOURMALINE  HZ TOWN C-E002-G/094-B-16",null,{"$f":"IF($F$1=$F16,351,0)","v":0},{"$f":"Summary!$CE$16","v":""}]
[17,49880,"49880 - TOURMALINE  HZ TOWN C-A002-G/094-B-16",null,{"$f":"IF($F$1=$F17,376,0)","v":0},{"$f":"Summary!$CE$17","v":""}]
[18,34328,"34328 - TOURMALINE  HZ NIG CREEK WEST B- 073-D/094-H-04",null,{"$f":"IF($F$1=$F18,401,0)","v":0},{"$f":"Summary!$CE$18","v":""}]
[19,50994,"50994 - TOURMALINE  HZ NIG CREEK D-C019-F/094-H-04",null,{"$f":"IF($F$1=$F19,426,0)","v":0},{"$f":"Summary!$CE$19","v":""}]
[20,50993,"50993 - TOURMALINE  HZ NIG CREEK D-B019-F/094-H-04",null,{"$f":"IF($F$1=$F20,451,0)","v":0},{"$f":"Summary!$CE$20","v":""}]
[21,50901,"50901 - TOURMALINE  HZ NIG CREEK C- 100-C/094-H-04",null,{"$f":"IF($F$1=$F21,476,0)","v":0},{"$f":"Summary!$CE$21","v":""}]
[22,50995,"50995 - TOURMALINE  HZ NIG CREEK D-D019-F/094-H-04"]
[23,50992,"50992 - TOURMALINE  HZ NIG CREEK D-A019-F/094-H-04"]
[24,42693,"42693 - TOURMALINE  HZ KOBES D-AD005-H/094-B-09","Total SearchNo.",null,"POSITION"]
[25,39493,"39493 - TOURMALINE ET AL HZ NIG CREEK A-H094-J/094-A-13",{"$f":"DCOUNTA(DB_SEARCH_WELL_NAME,\"POSITION\",F24:F25)","v":181},{"$f":"MAX(A29:A528)","v":181},">0"]
[null,null,null,null,null,{"$f":"IF(C27<>\"\",TRUE,FALSE)","v":false}]
[null,null,null,null,null,"Line 1",{"$f":"IF($F$26,\"More than 500 wells were returned. Only the last 500 are displayed. \",\"\")","v":""}]
["POSITION","WA_NUM","WELL_NAME",null,null,"Line 2",{"$f":"IF($F$26,\"Please refine your query if appropriate.\",\"\")","v":""}]
[{"$f":"IF($B29=\"\",\"\",1)","v":1},49886,"TOURMALINE  HZ TOWN C-G002-G/094-B-16"]
[{"$f":"IF($B30=\"\",\"\",$A29+1)","v":2},34329,"TOURMALINE  HZ NIG CREEK WEST A- 073-D/094-H-04"]
[{"$f":"IF($B31=\"\",\"\",$A30+1)","v":3},34330,"TOURMALINE  HZ NIG CREEK WEST A-A073-D/094-H-04"]
[4,36126,"TOURMALINE  HZ AITKEN CREEK NORTH C- 065-D/094-H-04"]
[5,34331,"TOURMALINE  HZ NIG CREEK WEST A-B073-D/094-H-04"]
[6,36127,"TOURMALINE  HZ AITKEN CREEK NORTH C-A065-D/094-H-04"]
[7,36128,"TOURMALINE  HZ AITKEN CREEK NORTH C-B065-D/094-H-04"]
[8,49882,"TOURMALINE  HZ TOWN C-C002-G/094-B-16"]
[9,36129,"TOURMALINE  HZ AITKEN CREEK NORTH C-C065-D/094-H-04"]
[10,40535,"TOURMALINE  HZ TOWN A-N008-A/094-B-16"]
[11,40533,"TOURMALINE  HZ TOWN A-L008-A/094-B-16"]
[12,40532,"TOURMALINE  HZ TOWN A-K008-A/094-B-16"]
[13,50903,"TOURMALINE  HZ NIG CREEK C-B100-C/094-H-04"]
[14,49891,"TOURMALINE  HZ TOWN C-L002-G/094-B-16"]
[15,50904,"TOURMALINE  HZ NIG CREEK C-C100-C/094-H-04"]
[16,49884,"TOURMALINE  HZ TOWN C-E002-G/094-B-16"]
[17,49880,"TOURMALINE  HZ TOWN C-A002-G/094-B-16"]
[18,34328,"TOURMALINE  HZ NIG CREEK WEST B- 073-D/094-H-04"]
[19,50994,"TOURMALINE  HZ NIG CREEK D-C019-F/094-H-04"]
[20,50993,"TOURMALINE  HZ NIG CREEK D-B019-F/094-H-04"]
[21,50901,"TOURMALINE  HZ NIG CREEK C- 100-C/094-H-04"]
[22,50995,"TOURMALINE  HZ NIG CREEK D-D019-F/094-H-04"]
[23,50992,"TOURMALINE  HZ NIG CREEK D-A019-F/094-H-04"]
[24,42693,"TOURMALINE  HZ KOBES D-AD005-H/094-B-09"]
[25,39493,"TOURMALINE ET AL HZ NIG CREEK A-H094-J/094-A-13"]
[26,47107,"TOURMALINE  HZ NIG CREEK A-K094-J/094-A-13"]
[27,47106,"TOURMALINE  HZ NIG CREEK A-J094-J/094-A-13"]
[28,50902,"TOURMALINE  HZ NIG CREEK C-A100-C/094-H-04"]
[29,49883,"TOURMALINE  HZ TOWN C-D002-G/094-B-16"]
[30,39494,"TOURMALINE ET AL HZ NIG CREEK A-I094-J/094-A-13"]
[31,40534,"TOURMALINE  HZ TOWN A-M008-A/094-B-16"]
[32,49893,"TOURMALINE  HZ TOWN C-N002-G/094-B-16"]
[33,39491,"TOURMALINE ET AL HZ NIG CREEK A-F094-J/094-A-13"]
[34,42691,"TOURMALINE  HZ KOBES D-AB005-H/094-B-09"]
[35,49888,"TOURMALINE  HZ TOWN C-I002-G/094-B-16"]
[36,42682,"TOURMALINE  HZ KOBES D-S005-H/094-B-09"]
[37,47446,"TOURMALINE  HZ SUNRISE I01-12-080-18"]
[38,39492,"TOURMALINE ET AL HZ NIG CREEK A-G094-J/094-A-13"]
[39,50659,"TOURMALINE  HZ SUNDOWN I04-23-077-17"]
[40,42690,"TOURMALINE  HZ KOBES D-AA005-H/094-B-09"]
[41,39957,"TOURMALINE  HZ BEG D-H066-I/094-B-16"]
[42,47444,"TOURMALINE  HZ SUNRISE G01-12-080-18"]
[43,35813,"TOURMALINE ET AL HZ LAPRISE C-H054-H/094-G-08"]
[44,39757,"TOURMALINE  HZ TOWN B-K054-I/094-B-09"]
[45,40530,"TOURMALINE  HZ TOWN A-I008-A/094-B-16"]
[46,41538,"TOURMALINE  HZ TOWN C-L031-H/094-B-09"]
[47,42688,"TOURMALINE  HZ KOBES D-Y005-H/094-B-09"]
[48,50660,"TOURMALINE  HZ SUNDOWN J04-23-077-17"]
[49,42778,"TOURMALINE SAGUARO HZ LAPRISE CREEK C-J054-H/094-G-08"]
[50,39960,"TOURMALINE  HZ BEG D-K066-I/094-B-16"]
[51,39958,"TOURMALINE  HZ BEG D-I066-I/094-B-16"]
[52,39951,"TOURMALINE  HZ BEG D-E066-I/094-B-16"]
[53,39774,"TOURMALINE ET AL HZ BIRCH C-A014-I/094-A-13"]
[54,29221,"TOURMALINE  HZ SUNDOWN E04-23-077-17"]
[55,40531,"TOURMALINE  HZ TOWN A-J008-A/094-B-16"]
[56,49887,"TOURMALINE  HZ TOWN C-H002-G/094-B-16"]
[57,47445,"TOURMALINE  HZ SUNRISE H01-12-080-18"]
[58,42685,"TOURMALINE  HZ KOBES D-V005-H/094-B-09"]
[59,39776,"TOURMALINE ET AL HZ BIRCH C-C014-I/094-A-13"]
[60,40028,"TOURMALINE  HZ BLUEBERRY WEST B-K052-I/094-B-09"]
[61,39950,"TOURMALINE  HZ BEG D-D066-I/094-B-16"]
[62,39751,"TOURMALINE  HZ TOWN B-I054-I/094-B-09"]
[63,46118,"TOURMALINE  HZ LAPRISE CREEK WEST A-F081-G/094-G-08"]
[64,42683,"TOURMALINE  HZ KOBES D-T005-H/094-B-09"]
[65,49885,"TOURMALINE  HZ TOWN C-F002-G/094-B-16"]
[66,42692,"TOURMALINE  HZ KOBES D-AC005-H/094-B-09"]
[{"$f":"IF($B95=\"\",\"\",$A94+1)","v":67},39747,"TOURMALINE  HZ TOWN B-E054-I/094-B-09"]
[68,47443,"TOURMALINE  HZ SUNRISE F01-12-080-18"]
[69,39956,"TOURMALINE  HZ BEG D-G066-I/094-B-16"]
[70,39949,"TOURMALINE  HZ BEG D-C066-I/094-B-16"]
[71,39749,"TOURMALINE  HZ TOWN B-G054-I/094-B-09"]
[72,39959,"TOURMALINE  HZ BEG D-J066-I/094-B-16"]
[73,42780,"TOURMALINE SAGUARO HZ LAPRISE CREEK C-L054-H/094-G-08"]
[74,35812,"TOURMALINE ET AL HZ LAPRISE C-I054-H/094-G-08"]
[75,42781,"TOURMALINE SAGUARO HZ LAPRISE CREEK C-M054-H/094-G-08"]
[76,42779,"TOURMALINE SAGUARO HZ LAPRISE CREEK C-K054-H/094-G-08"]
[77,42686,"TOURMALINE  HZ KOBES D-W005-H/094-B-09"]
[78,46117,"TOURMALINE  HZ LAPRISE CREEK WEST A-E081-G/094-G-08"]
[79,46116,"TOURMALINE  HZ LAPRISE CREEK WEST A-D081-G/094-G-08"]
[80,49879,"TOURMALINE  HZ TOWN C- 002-G/094-B-16"]
[81,42783,"TOURMALINE SAGUARO HZ LAPRISE CREEK C-O054-H/094-G-08"]
[82,29220,"TOURMALINE  HZ SUNDOWN D04-23-077-17"]
[83,39952,"TOURMALINE  HZ BEG D-F066-I/094-B-16"]
[84,41536,"TOURMALINE  HZ TOWN C-J031-H/094-B-09"]
[85,40528,"TOURMALINE  HZ TOWN A-G008-A/094-B-16"]
[86,41543,"TOURMALINE  HZ TOWN C-Q031-H/094-B-09"]
[87,40029,"TOURMALINE  HZ BLUEBERRY WEST B-J052-I/094-B-09"]
[88,42689,"TOURMALINE  HZ KOBES D-Z005-H/094-B-09"]
[89,49890,"TOURMALINE  HZ TOWN C-K002-G/094-B-16"]
[90,48001,"TOURMALINE  HZ NIG CREEK D-I024-F/094-H-04"]
[91,41539,"TOURMALINE  HZ TOWN C-M031-H/094-B-09"]
[92,39778,"TOURMALINE ET AL HZ BIRCH C-E014-I/094-A-13"]
[93,47999,"TOURMALINE  HZ NIG CREEK D-G024-F/094-H-04"]
[94,40204,"TOURMALINE  HZ DOE I04-04-080-15"]
[95,48000,"TOURMALINE  HZ NIG CREEK D-H024-F/094-H-04"]
[96,46470,"TOURMALINE  HZ BLUEBERRY WEST B-K051-I/094-B-09"]
[97,41485,"TOURMALINE  HZ NIG CREEK B-J009-G/094-H-04"]
[98,39779,"TOURMALINE ET AL HZ BIRCH C-F014-I/094-A-13"]
[99,40200,"TOURMALINE  HZ DOE E04-04-080-15"]
[100,40202,"TOURMALINE  HZ DOE G04-04-080-15"]
[101,41541,"TOURMALINE  HZ TOWN C-O031-H/094-B-09"]
[102,40197,"TOURMALINE  HZ DOE B04-04-080-15"]
[103,40203,"TOURMALINE  HZ DOE H04-04-080-15"]
[104,40198,"TOURMALINE  HZ DOE C04-04-080-15"]
[105,47996,"TOURMALINE  HZ NIG CREEK D-D024-F/094-H-04"]
[106,47998,"TOURMALINE  HZ NIG CREEK D-F024-F/094-H-04"]
[107,41542,"TOURMALINE  HZ TOWN C-P031-H/094-B-09"]
[108,41486,"TOURMALINE  HZ NIG CREEK B-K009-G/094-H-04"]
[109,46474,"TOURMALINE  HZ BLUEBERRY WEST B-O051-I/094-B-09"]
[110,42782,"TOURMALINE SAGUARO HZ LAPRISE CREEK C-N054-H/094-G-08"]
[111,39781,"TOURMALINE ET AL HZ BIRCH C-H014-I/094-A-13"]
[112,40195,"TOURMALINE  HZ DOE  04-04-080-15"]
[113,49889,"TOURMALINE  HZ TOWN C-J002-G/094-B-16"]
[114,40540,"TOURMALINE  HZ TOWN A-S008-A/094-B-16"]
[115,39746,"TOURMALINE  HZ TOWN B-D054-I/094-B-09"]
[116,41540,"TOURMALINE  HZ TOWN C-N031-H/094-B-09"]
[117,40027,"TOURMALINE  HZ BLUEBERRY WEST B-L052-I/094-B-09"]
[118,40201,"TOURMALINE  HZ DOE F04-04-080-15"]
[119,46115,"TOURMALINE  HZ LAPRISE CREEK WEST A-C081-G/094-G-08"]
[120,40538,"TOURMALINE  HZ TOWN A-Q008-A/094-B-16"]
[121,40199,"TOURMALINE  HZ DOE D04-04-080-15"]
[122,40529,"TOURMALINE  HZ TOWN A-H008-A/094-B-16"]
[123,47994,"TOURMALINE  HZ NIG CREEK D-B024-F/094-H-04"]
[124,39748,"TOURMALINE  HZ TOWN B-F054-I/094-B-09"]
[125,46114,"TOURMALINE  HZ LAPRISE CREEK WEST A-B081-G/094-G-08"]
[126,40536,"TOURMALINE  HZ TOWN A-O008-A/094-B-16"]
[127,40542,"TOURMALINE  HZ TOWN A-U008-A/094-B-16"]
[128,49892,"TOURMALINE  HZ TOWN C-M002-G/094-B-16"]
[129,48451,"TOURMALINE  HZ NIG CREEK B-M009-G/094-H-04"]
[130,48450,"TOURMALINE  HZ NIG CREEK B-L009-G/094-H-04"]
[{"$f":"IF($B159=\"\",\"\",$A158+1)","v":131},39777,"TOURMALINE ET AL HZ BIRCH C-D014-I/094-A-13"]
[132,47993,"TOURMALINE  HZ NIG CREEK D-A024-F/094-H-04"]
[133,39780,"TOURMALINE ET AL HZ BIRCH C-G014-I/094-A-13"]
[134,40196,"TOURMALINE  HZ DOE A04-04-080-15"]
[135,39752,"TOURMALINE  HZ TOWN B-J054-I/094-B-09"]
[136,48452,"TOURMALINE  HZ NIG CREEK B-N009-G/094-H-04"]
[137,47995,"TOURMALINE  HZ NIG CREEK D-C024-F/094-H-04"]
[138,42687,"TOURMALINE  HZ KOBES D-X005-H/094-B-09"]
[139,42684,"TOURMALINE  HZ KOBES D-U005-H/094-B-09"]
[140,39750,"TOURMALINE  HZ TOWN B-H054-I/094-B-09"]
[141,40539,"TOURMALINE  HZ TOWN A-R008-A/094-B-16"]
[142,39775,"TOURMALINE ET AL HZ BIRCH C-B014-I/094-A-13"]
[143,37549,"TOURMALINE  HZ MONIAS  09-18-082-21"]
[144,40537,"TOURMALINE  HZ TOWN A-P008-A/094-B-16"]
[145,46471,"TOURMALINE  HZ BLUEBERRY WEST B-L051-I/094-B-09"]
[146,46475,"TOURMALINE  HZ BLUEBERRY WEST B-P051-I/094-B-09"]
[147,40541,"TOURMALINE  HZ TOWN A-T008-A/094-B-16"]
[148,47997,"TOURMALINE  HZ NIG CREEK D-E024-F/094-H-04"]
[149,46473,"TOURMALINE  HZ BLUEBERRY WEST B-N051-I/094-B-09"]
[150,50561,"TOURMALINE  HZ LAPRISE CREEK A-G039-E/094-H-05"]
[151,37551,"TOURMALINE  HZ MONIAS B09-18-082-21"]
[152,50558,"TOURMALINE  HZ LAPRISE CREEK A-D039-E/094-H-05"]
[153,50560,"TOURMALINE  HZ LAPRISE CREEK A-F039-E/094-H-05"]
[154,50559,"TOURMALINE  HZ LAPRISE CREEK A-E039-E/094-H-05"]
[155,50557,"TOURMALINE  HZ LAPRISE CREEK A-C039-E/094-H-05"]
[156,46469,"TOURMALINE  HZ BLUEBERRY WEST B-J051-I/094-B-09"]
[157,37550,"TOURMALINE  HZ MONIAS A09-18-082-21"]
[158,50555,"TOURMALINE  HZ LAPRISE CREEK A-A039-E/094-H-05"]
[159,41537,"TOURMALINE  HZ TOWN C-K031-H/094-B-09"]
[160,50554,"TOURMALINE  HZ LAPRISE CREEK A- 039-E/094-H-05"]
[161,54334,"TOURMALINE TOURMALINE HZ AITKEN CREEK A-C068-D/094-H-04"]
[162,50556,"TOURMALINE  HZ LAPRISE CREEK A-B039-E/094-H-05"]
[163,54335,"TOURMALINE TOURMALINE HZ AITKEN CREEK A-D068-D/094-H-04"]
[164,54333,"TOURMALINE TOURMALINE HZ AITKEN CREEK A-B068-D/094-H-04"]
[165,54336,"TOURMALINE TOURMALINE HZ AITKEN CREEK A-E068-D/094-H-04"]
[166,39230,"TOURMALINE  HZ TOWN C-G086-I/094-B-09"]
[167,54332,"TOURMALINE TOURMALINE HZ AITKEN CREEK A-A068-D/094-H-04"]
[168,39228,"TOURMALINE  HZ TOWN C-E086-I/094-B-09"]
[169,39232,"TOURMALINE  HZ TOWN C-I086-I/094-B-09"]
[170,54331,"TOURMALINE TOURMALINE HZ AITKEN CREEK A- 068-D/094-H-04"]
[171,39234,"TOURMALINE  HZ TOWN C-K086-I/094-B-09"]
[172,49130,"TOURMALINE  HZ SEPTIMUS B05-27-081-18"]
[173,39235,"TOURMALINE  HZ TOWN C-L086-I/094-B-09"]
[174,49129,"TOURMALINE  HZ SEPTIMUS A05-27-081-18"]
[175,49128,"TOURMALINE  HZ SEPTIMUS  05-27-081-18"]
[176,39231,"TOURMALINE  HZ TOWN C-H086-I/094-B-09"]
[177,39229,"TOURMALINE  HZ TOWN C-F086-I/094-B-09"]
[178,49131,"TOURMALINE  HZ SEPTIMUS C05-27-081-18"]
[179,39782,"TOURMALINE ET AL HZ BIRCH D- 016-I/094-A-13"]
[180,39233,"TOURMALINE  HZ TOWN C-J086-I/094-B-09"]
[181,40638,"TOURMALINE   TOWN B-V024-I/094-B-09"]
[""]
[""]
[""]
[""]
[""]
[""]
[""]
[""]
[""]
[""]
[""]
[""]
[""]
[{"$f":"IF($B223=\"\",\"\",$A222+1)","v":""}]
[""]
[""]
[""]
[""]
[""]
[""]
[""]
[""]
[""]
[""]
[""]
[""]
[""]
[""]
[""]
[""]
[""]
[""]
[""]
[""]
[""]
[""]
[""]
[""]
[""]
[""]
[""]
[""]
[""]
[""]
[""]
[""]
[""]
[""]
[""]
[""]
[""]
[""]
[""]
[""]
[""]
[""]
[""]
[""]
[""]
[""]
[""]
[""]
[""]
[""]
[""]
[""]
[""]
[""]
[""]
[""]
[""]
[""]
[""]
[""]
[""]
[""]
[""]
[{"$f":"IF($B287=\"\",\"\",$A286+1)","v":""}]
[""]
[""]
[""]
[""]
[""]
[""]
[""]
[""]
[""]
[""]
[""]
[""]
[""]
[""]
[""]
[""]
[""]
[""]
[""]
[""]
[""]
[""]
[""]
[""]
[""]
[""]
[""]
[""]
[""]
[""]
[""]
[""]
[""]
[""]
[""]
[""]
[""]
[""]
[""]
[""]
[""]
[""]
[""]
[""]
[""]
[""]
[""]
[""]
[""]
[""]
[""]
[""]
[""]
[""]
[""]
[""]
[""]
[""]
[""]
[""]
[""]
[""]
[""]
[{"$f":"IF($B351=\"\",\"\",$A350+1)","v":""}]
[""]
[""]
[""]
[""]
[""]
[""]
[""]
[""]
[""]
[""]
[""]
[""]
[""]
[""]
[""]
[""]
[""]
[""]
[""]
[""]
[""]
[""]
[""]
[""]
[""]
[""]
[""]
[""]
[""]
[""]
[""]
[""]
[""]
[""]
[""]
[""]
[""]
[""]
[""]
[""]
[""]
[""]
[""]
[""]
[""]
[""]
[""]
[""]
[""]
[""]
[""]
[""]
[""]
[""]
[""]
[""]
[""]
[""]
[""]
[""]
[""]
[""]
[""]
[{"$f":"IF($B415=\"\",\"\",$A414+1)","v":""}]
[""]
[""]
[""]
[""]
[""]
[""]
[""]
[""]
[""]
[""]
[""]
[""]
[""]
[""]
[""]
[""]
[""]
[""]
[""]
[""]
[""]
[""]
[""]
[""]
[""]
[""]
[""]
[""]
[""]
[""]
[""]
[""]
[""]
[""]
[""]
[""]
[""]
[""]
[""]
[""]
[""]
[""]
[""]
[""]
[""]
[""]
[""]
[""]
[""]
[""]
[""]
[""]
[""]
[""]
[""]
[""]
[""]
[""]
[""]
[""]
[""]
[""]
[""]
[{"$f":"IF($B479=\"\",\"\",$A478+1)","v":""}]
[""]
[""]
[""]
[""]
[""]
[""]
[""]
[""]
[""]
[""]
[""]
[""]
[""]
[""]
[""]
[""]
[""]
[""]
[""]
[""]
[""]
[""]
[""]
[""]
[""]
[""]
[""]
[""]
[""]
[""]
[""]
[""]
[""]
[""]
[""]
[""]
[""]
[""]
[""]
[""]
[""]
[""]
[""]
[""]
[""]
[""]
[""]
[""]
[""]
[]
[]
[]
[]
[]
[]
[]
[]
[]
[]
[]
[]
[]
[]
[]
[]
[]
[]
[]
[]
[]
[]
[]
[]
[]
[]
[]
[]
[]
[]
[]
[]
[]
[]
[]
[]
[]
[]
[]
[]
[]
[]
[]
[]
[]
[]
[]
[]
[]
[]
[]
[]
[]
[]
[]
[]
[]
[]
[]
[]
[]
[]
[]
[]
[]
[]
[]
[]
[]
[]
[]
[]
[]
[]
[]
[]
[]
[]
[]
[]
[]
[]
[]
[]
[]
[]
[]
[]
[]
[]
[]
[]
[]
[]
[]
[]
[]
[]
[]
[]
[]
[]
[]
[]
[]
[]
[]
[]
[]
[]
[]
[]
[]
[]
[]
[]
[]
[]
[]
[]
[]
[]
[]
[]
[]
[]
[]
[]
[]
[]
[]
[]
[]
[]
[]
[]
[]
[]
[]
[]
[]
[]
[]
[]
[]
[]
[]
[]
[]
[]
[]
[]
[]
[]
[]
[]
[]
[]
[]
[]
[]
[]
[]
[]
[]
[]
[]
[]
[]
[]
[]
[]
[]
[]
[]
[]
[]
[]
[]
[]
[]
[]
[]
[]
[]
[]
[]
[]
[]
[]
[]
[]
[]
[]
[]
[]
[]
[]
[]
[]
[]
[]
[]
[]
[]
[]
[]
[]
[]
[]
[]
[]
[]
[]
[]
[]
[]
[]
[]
[]
[]
[]
[]
[]
[]
[]
[]
[]
[]
[]
[]
[]
[]
[]
[]
[]
[]
[]
[]
[]
[]
[]
[]
[]
[]
[]
[]
[]
[]
[]
[]
[]
[]
[]
[]
[]
[]
[]
[]
[]
[]
[]
[]
[]
[]
[]
[]
[]
[]
[]
[]
[]
[]
[]
[]
[]
[]
[]
[]
[]
[]
[]
[]
[]
[]
[]
[]
[]
[]
[]
[]
[]
[]
[]
[]
[]
[]
[]
[]
[]
[]
[]
[]
[]
[]
[]
[]
[]
[]
[]
[]
[]
[]
[]
[]
[]
[]
[]
[]
[]
[]
[]
[]
[]
[]
[]
[]
[]
[]
[]
[]
[]
[]
[]
[]
[]
[]
[]
[]
[]
[]
[]
[]
[]
[]
[]
[]
[]
[]
[]
[]
[]
[]
[]
[]
[]
[]
[]
[]
[]
[]
[]
[]
[]
[]
[]
[]
[]
[]
[]
[]
[]
[]
[]
[]
[]
[]
[]
[]
[]
[]
[]
[]
[]
[]
[]
[]
[]
[]
[]
[]
[]
[]
[]
[]
[]
[]
[]
[]
[]
[]
[]
[]
[]
[]
[]
[]
[]
[]
[]
[]
[]
[]
[]
[]
[]
[]
[]
[]
[]
[]
[]
[]
[]
[]
[]
[]
[]
[]
[]
[]
[]
[]
[]
[]
[]
[]
[]
[]
[]
[]
[]
[]
[]
[]
[]
[]
[]
[]
[]
[]
[]
[]
[]
[]
[]
[]
[]
[]
[]
[]
[]
[]
[]
[]
[]
[]
[]
[]
[]
[]
[]
[]
[]
[]
[]
[]
[]
[]
[]
[]
[]
[]
[]
[]
[]
[]
[]
[]
[]
[]
[]
[]
[]
[]
[]
[]
[]
[]
[]
[]
[]
[]
[]
[]
[]
[]
[]
[]
[]
[]
[]
[]
[]
[]
[]
[]
[]
[]
[]
[]
[]
[]
[]
[]
[]
[]
[]
[]
[]
[]
[]
[]
[]
[]
[]
[]
[]
[]
[]
[]
[]
[]
[]
[]
[]
[]
[]
[]
[]
[]
[]
[]
[]
[]
[]
[]
[]
[]
[]
[]
[]
[]
[]
[]
[]
[]
[]
[]
[]
[]
[]
[]
[]
[]
[]
[]
[]
[]
[]
[]
[]
[]
[]
[]
[]
[]
[]
[]
[]
[]
[]
[]
[]
[]
[]
[]
[]
[]
[]
[]
[]
[]
[]
[]
[]
[]
[]
[]
[]
[]
[]
[]
[]
[]
[]
[]
[]
[]
[]
[]
[]
[]
[]
[]
[]
[]
[]
[]
[]
[]
[]
[]
[]
[]
[]
[]
[]
[]
[]
[]
[]
[]
[]
[]
[]
[]
[]
[]
[]
[]
[]
[]
[]
[]
[]
[]
[]
[]
[]
[]
[]
[]
[]
[]
[]
[]
[]
[]
[]
[]
[]
[]
[]
[]
[]
[]
[]
[]
[]
[]
[]
[]
[]
[]
[]
[]
[]
[]
[]
[]
[]
[]
[]
[]
[]
[]
[]
[]
[]
[]
[]
[]
[]
[]
[]
[]
[]
[]
[]
[]
[]
[]
[]
[]
[]
[]
[]
[]
[]
[]
[]
[]
[]
[]
[]
[]
[]
[]
[]
[]
[]
[]
[]
[]
[]
[]
[]
[]
[]
[]
[]
[]
[]
[]
[]
[]
[]
[]
[]
[]
[]
[]
[]
[]
[]
[]
[]
[]
[]
[]
[]
[]
[]
[]
[]
[]
[]
[]
[]
[]
[]
[]
[]
[]
[]
[]
[]
[]
[]
[]
[]
[]
[]
[]
[]
[]
[]
[]
[]
[]
[]
[]
[]
[]
[]
[]
[]
[]
[]
[]
[]
[]
[]
[]
[]
[]
[]
[]
[]
[]
[]
[]
[]
[]
[]
[]
[]
[]
[]
[]
[]
[]
[]
[]
[]
[]
[]
[]
[]
[]
[]
[]
[]
[]
[]
[]
[]
[]
[]
[]
[]
[]
[]
[]
[]
[]
[]
[]
[]
[]
[]
[]
[]
[]
[]
[]
[]
[]
[]
[]
[]
[]
[]
[]
[]
[]
[]
[]
[]
[]
[]
[]
[]
[]
[]
[]
[]
[]
[]
[]
[]
[]
[]
[]
[]
[]
[]
[]
[]
[]
[]
[]
[]
[]
[]
[]
[]
[]
[]
[]
[]
[]
[]
[]
[]
[]
[]
[]
[]
[]
[]
[]
[]
[]
[]
[]
[]
[]
[]
[]
[]
[]
[]
[]
[]
[]
[]
[]
[]
[]
[]
[]
[]
[]
[]
[]
[]
[]
[]
[]
[]
[]
[]
[]
[]
[]
[]
[]
[]
[]
[]
[]
[]
[]
[]
[]
[]
[]
[]
[]
[]
[]
[]
[]
[]
[]
[]
[]
[]
[]
[]
[]
[]
[]
[]
[]
[]
[]
[]
[]
[]
[]
[]
[]
[]
[]
[]
[]
[]
[]
[]
[]
[]
[]
[]
[]
[]
[]
[]
[]
[]
[]
[]
[]
[]
[]
[]
[]
[]
[]
[]
[]
[]
[]
[]
[]
[]
[]
[]
[]
[]
[]
[]
[]
[]
[]
[]
[]
[]
[]
[]
[]
[]
[]
[]
[]
[]
[]
[]
[]
[]
[]
[]
[]
[]
[]
[]
[]
[]
[]
[]
[]
[]
[]
[]
[]
[]
[]
[]
[]
[]
[]
[]
[]
[]
[]
[]
[]
[]
[]
[]
[]
[]
[]
[]
[]
[]
[]
[]
[]
[]
[]
[]
[]
[]
[]
[]
[]
[]
[]
[]
[]
[]
[]
[]
[]
[]
[]
[]
[]
[]
[]
[]
[]
[]
[]
[]
[]
[]
[]
[]
[]
[]
[]
[]
[]
[]
[]
[]
[]
[]
[]
[]
[]
[]
[]
[]
[]
[]
[]
[]
[]
[]
[]
[]
[]
[]
[]
[]
[]
[]
[]
[]
[]
[]
[]
[]
[]
[]
[]
[]
[]
[]
[]
[]
[]
[]
[]
[]
[]
[]
[]
[]
[]
[]
[]
[]
[]
[]
[]
[]
[]
[]
[]
[]
[]
[]
[]
[]
[]
[]
[]
[]
[]
[]
[]
[]
[]
[]
[]
[]
[]
[]
[]
[]
[]
[]
[]
[]
[]
[]
[]
[]
[]
[]
[]
[]
[]
[]
[]
[]
[]
[]
[]
[]
[]
[]
[]
[]
[]
[]
[]
[]
[]
[]
[]
[]
[]
[]
[]
[]
[]
[]
[]
[]
[]
[]
[]
[]
[]
[]
[]
[]
[]
[]
[]
[]
[]
[]
[]
[]
[]
[]
[]
[]
[]
[]
[]
[]
[]
[]
[]
[]
[]
[]
[]
[]
[]
[]
[]
[]
[]
[]
[]
[]
[]
[]
[]
[]
[]
[]
[]
[]
[]
[]
[]
[]
[]
[]
[]
[]
[]
[]
[]
[]
[]
[]
[]
[]
[]
[]
[]
[]
[]
[]
[]
[]
[]
[]
[]
[]
[]
[]
[]
[]
[]
[]
[]
[]
[]
[]
[]
[]
[]
[]
[]
[]
[]
[]
[]
[]
[]
[]
[]
[]
[]
[]
[]
[]
[]
[]
[]
[]
[]
[]
[]
[]
[]
[]
[]
[]
[]
[]
[]
[]
[]
[]
[]
[]
[]
[]
[]
[]
[]
[]
[]
[]
[]
[]
[]
[]
[]
[]
[]
[]
[]
[]
[]
[]
[]
[]
[]
[]
[]
[]
[]
[]
[]
[]
[]
[]
[]
[]
[]
[]
[]
[]
[]
[]
[]
[]
[]
[]
[]
[]
[]
[]
[]
[]
[]
[]
[]
[]
[]
[]
[]
[]
[]
[]
[]
[]
[]
[]
[]
[]
[]
[]
[]
[]
[]
[]
[]
[]
[]
[]
[]
[]
[]
[]
[]
[]
[]
[]
[]
[]
[]
[]
[]
[]
[]
[]
[]
[]
[]
[]
[]
[]
[]
[]
[]
[]
[]
[]
[]
[]
[]
[]
[]
[]
[]
[]
[]
[]
[]
[]
[]
[]
[]
[]
[]
[]
[]
[]
[]
[]
[]
[]
[]
[]
[]
[]
[]
[]
[]
[]
[]
[]
[]
[]
[]
[]
[]
[]
[]
[]
[]
[]
[]
[]
[]
[]
[]
[]
[]
[]
[]
[]
[]
[]
[]
[]
[]
[]
[]
[]
[]
[]
[]
[]
[]
[]
[]
[]
[]
[]
[]
[]
[]
[]
[]
[]
[]
[]
[]
[]
[]
[]
[]
[]
[]
[]
[]
[]
[]
[]
[]
[]
[]
[]
[]
[]
[]
[]
[]
[]
[]
[]
[]
[]
[]
[]
[]
[]
[]
[]
[]
[]
[]
[]
[]
[]
[]
[]
[]
[]
[]
[]
[]
[]
[]
[]
[]
[]
[]
[]
[]
[]
[]
[]
[]
[]
[]
[]
[]
[]
[]
[]
[]
[]
[]
[]
[]
[]
[]
[]
[]
[]
[]
[]
[]
[]
[]
[]
[]
[]
[]
[]
[]
[]
[]
[]
[]
[]
[]
[]
[]
[]
[]
[]
[]
[]
[]
[]
[]
[]
[]
[]
[]
[]
[]
[]
[]
[]
[]
[]
[]
[]
[]
[]
[]
[]
[]
[]
[]
[]
[]
[]
[]
[]
[]
[]
[]
[]
[]
[]
[]
[]
[]
[]
[]
[]
[]
[]
[]
[]
[]
[]
[]
[]
[]
[]
[]
[]
[]
[]
[]
[]
[]
[]
[]
[]
[]
[]
[]
[]
[]
[]
[]
[]
[]
[]
[]
[]
[]
[]
[]
[]
[]
[]
[]
[]
[]
[]
[]
[]
[]
[]
[]
[]
[]
[]
[]
[]
[]
[]
[]
[]
[]
[]
[]
[]
[]
[]
[]
[]
[]
[]
[]
[]
[]
[]
[]
[]
[]
[]
[]
[]
[]
[]
[]
[]
[]
[]
[]
[]
[]
[]
[]
[]
[]
[]
[]
[]
[]
[]
[]
[]
[]
[]
[]
[]
[]
[]
[]
[]
[]
[]
[]
[]
[]
[]
[]
[]
[]
[]
[]
[]
[]
[]
[]
[]
[]
[]
[]
[]
[]
[]
[]
[]
[]
[]
[]
[]
[]
[]
[]
[]
[]
[]
[]
[]
[]
[]
[]
[]
[]
[]
[]
[]
[]
[]
[]
[]
[]
[]
[]
[]
[]
[]
[]
[]
[]
[]
[]
[]
[]
[]
[]
[]
[]
[]
[]
[]
[]
[]
[]
[]
[]
[]
[]
[]
[]
[]
[]
[]
[]
[]
[]
[]
[]
[]
[]
[]
[]
[]
[]
[]
[]
[]
[]
[]
[]
[]
[]
[]
[]
[]
[]
[]
[]
[]
[]
[]
[]
[]
[]
[]
[]
[]
[]
[]
[]
[]
[]
[]
[]
[]
[]
[]
[]
[]
[]
[]
[]
[]
[]
[]
[]
[]
[]
[]
[]
[]
[]
[]
[]
[]
[]
[]
[]
[]
[]
[]
[]
[]
[]
[]
[]
[]
[]
[]
[]
[]
[]
[]
[]
[]
[]
[]
[]
[]
[]
[]
[]
[]
[]
[]
[]
[]
[]
[]
[]
[]
[]
[]
[]
[]
[]
[]
[]
[]
[]
[]
[]
[]
[]
[]
[]
[]
[]
[]
[]
[]
[]
[]
[]
[]
[]
[]
[]
[]
[]
[]
[]
[]
[]
[]
[]
[]
[]
[]
[]
[]
[]
[]
[]
[]
[]
[]
[]
[]
[]
[]
[]
[]
[]
[]
[]
[]
[]
[]
[]
[]
[]
[]
[]
[]
[]
[]
[]
[]
[]
[]
[]
[]
[]
[]
[]
[]
[]
[]
[]
[]
[]
[]
[]
[]
[]
[]
[]
[]
[]
[]
[]
[]
[]
[]
[]
[]
[]
[]
[]
[]
[]
[]
[]
[]
[]
[]
[]
[]
[]
[]
[]
[]
[]
[]
[]
[]
[]
[]
[]
[]
[]
[]
[]
[]
[]
[]
[]
[]
[]
[]
[]
[]
[]
[]
[]
[]
[]
[]
[]
[]
[]
[]
[]
[]
[]
[]
[]
[]
[]
[]
[]
[]
[]
[]
[]
[]
[]
[]
[]
[]
[]
[]
[]
[]
[]
[]
[]
[]
[]
[]
[]
[]
[]
[]
[]
[]
[]
[]
[]
[]
[]
[]
[]
[]
[]
[]
[]
[]
[]
[]
[]
[]
[]
[]
[]
[]
[]
[]
[]
[]
[]
[]
[]
[]
[]
[]
[]
[]
[]
[]
[]
[]
[]
[]
[]
[]
[]
[]
[]
[]
[]
[]
[]
[]
[]
[]
[]
[]
[]
[]
[]
[]
[]
[]
[]
[]
[]
[]
[]
[]
[]
[]
[]
[]
[]
[]
[]
[]
[]
[]
[]
[]
[]
[]
[]
[]
[]
[]
[]
[]
[]
[]
[]
[]
[]
[]
[]
[]
[]
[]
[]
[]
[]
[]
[]
[]
[]
[]
[]
[]
[]
[]
[]
[]
[]
[]
[]
[]
[]
[]
[]
[]
[]
[]
[]
[]
[]
[]
[]
[]
[]
[]
[]
[]
[]
[]
[]
[]
[]
[]
[]
[]
[]
[]
[]
[]
[]
[]
[]
[]
[]
[]
[]
[]
[]
[]
[]
[]
[]
[]
[]
[]
[]
[]
[]
[]
[]
[]
[]
[]
[]
[]
[]
[]
[]
[]
[]
[]
[]
[]
[]
[]
[]
[]
[]
[]
[]
[]
[]
[]
[]
[]
[]
[]
[]
[]
[]
[]
[]
[]
[]
[]
[]
[]
[]
[]
[]
[]
[]
[]
[]
[]
[]
[]
[]
[]
[]
[]
[]
[]
[]
[]
[]
[]
[]
[]
[]
[]
[]
[]
[]
[]
[]
[]
[]
[]
[]
[]
[]
[]
[]
[]
[]
[]
[]
[]
[]
[]
[]
[]
[]
[]
[]
[]
[]
[]
[]
[]
[]
[]
[]
[]
[]
[]
[]
[]
[]
[]
[]
[]
[]
[]
[]
[]
[]
[]
[]
[]
[]
[]
[]
[]
[]
[]
[]
[]
[]
[]
[]
[]
[]
[]
[]
[]
[]
[]
[]
[]
[]
[]
[]
[]
[]
[]
[]
[]
[]
[]
[]
[]
[]
[]
[]
[]
[]
[]
[]
[]
[]
[]
[]
[]
[]
[]
[]
[]
[]
[]
[]
[]
[]
[]
[]
[]
[]
[]
[]
[]
[]
[]
[]
[]
[]
[]
[]
[]
[]
[]
[]
[]
[]
[]
[]
[]
[]
[]
[]
[]
[]
[]
[]
[]
[]
[]
[]
[]
[]
[]
[]
[]
[]
[]
[]
[]
[]
[]
[]
[]
[]
[]
[]
[]
[]
[]
[]
[]
[]
[]
[]
[]
[]
[]
[]
[]
[]
[]
[]
[]
[]
[]
[]
[]
[]
[]
[]
[]
[]
[]
[]
[]
[]
[]
[]
[]
[]
[]
[]
[]
[]
[]
[]
[]
[]
[]
[]
[]
[]
[]
[]
[]
[]
[]
[]
[]
[]
[]
[]
[]
[]
[]
[]
[]
[]
[]
[]
[]
[]
[]
[]
[]
[]
[]
[]
[]
[]
[]
[]
[]
[]
[]
[]
[]
[]
[]
[]
[]
[]
[]
[]
[]
[]
[]
[]
[]
[]
[]
[]
[]
[]
[]
[]
[]
[]
[]
[]
[]
[]
[]
[]
[]
[]
[]
[]
[]
[]
[]
[]
[]
[]
[]
[]
[]
[]
[]
[]
[]
[]
[]
[]
[]
[]
[]
[]
[]
[]
[]
[]
[]
[]
[]
[]
[]
[]
[]
[]
[]
[]
[]
[]
[]
[]
[]
[]
[]
[]
[]
[]
[]
[]
[]
[]
[]
[]
[]
[]
[]
[]
[]
[]
[]
[]
[]
[]
[]
[]
[]
[]
[]
[]
[]
[]
[]
[]
[]
[]
[]
[]
[]
[]
[]
[]
[]
[]
[]
[]
[]
[]
[]
[]
[]
[]
[]
[]
[]
[]
[]
[]
[]
[]
[]
[]
[]
[]
[]
[]
[]
[]
[]
[]
[]
[]
[]
[]
[]
[]
[]
[]
[]
[]
[]
[]
[]
[]
[]
[]
[]
[]
[]
[]
[]
[]
[]
[]
[]
[]
[]
[]
[]
[]
[]
[]
[]
[]
[]
[]
[]
[]
[]
[]
[]
[]
[]
[]
[]
[]
[]
[]
[]
[]
[]
[]
[]
[]
[]
[]
[]
[]
[]
[]
[]
[]
[]
[]
[]
[]
[]
[]
[]
[]
[]
[]
[]
[]
[]
[]
[]
[]
[]
[]
[]
[]
[]
[]
[]
[]
[]
[]
[]
[]
[]
[]
[]
[]
[]
[]
[]
[]
[]
[]
[]
[]
[]
[]
[]
[]
[]
[]
[]
[]
[]
[]
[]
[]
[]
[]
[]
[]
[]
[]
[]
[]
[]
[]
[]
[]
[]
[]
[]
[]
[]
[]
[]
[]
[]
[]
[]
[]
[]
[]
[]
[]
[]
[]
[]
[]
[]
[]
[]
[]
[]
[]
[]
[]
[]
[]
[]
[]
[]
[]
[]
[]
[]
[]
[]
[]
[]
[]
[]
[]
[]
[]
[]
[]
[]
[]
[]
[]
[]
[]
[]
[]
[]
[]
[]
[]
[]
[]
[]
[]
[]
[]
[]
[]
[]
[]
[]
[]
[]
[]
[]
[]
[]
[]
[]
[]
[]
[]
[]
[]
[]
[]
[]
[]
[]
[]
[]
[]
[]
[]
[]
[]
[]
[]
[]
[]
[]
[]
[]
[]
[]
[]
[]
[]
[]
[]
[]
[]
[]
[]
[]
[]
[]
[]
[]
[]
[]
[]
[]
[]
[]
[]
[]
[]
[]
[]
[]
[]
[]
[]
[]
[]
[]
[]
[]
[]
[]
[]
[]
[]
[]
[]
[]
[]
[]
[]
[]
[]
[]
[]
[]
[]
[]
[]
[]
[]
[]
[]
[]
[]
[]
[]
[]
[]
[]
[]
[]
[]
[]
[]
[]
[]
[]
[]
[]
[]
[]
[]
[]
[]
[]
[]
[]
[]
[]
[]
[]
[]
[]
[]
[]
[]
[]
[]
[]
[]
[]
[]
[]
[]
[]
[]
[]
[]
[]
[]
[]
[]
[]
[]
[]
[]
[]
[]
[]
[]
[]
[]
[]
[]
[]
[]
[]
[]
[]
[]
[]
[]
[]
[]
[]
[]
[]
[]
[]
[]
[]
[]
[]
[]
[]
[]
[]
[]
[]
[]
[]
[]
[]
[]
[]
[]
[]
[]
[]
[]
[]
[]
[]
[]
[]
[]
[]
[]
[]
[]
[]
[]
[]
[]
[]
[]
[]
[]
[]
[]
[]
[]
[]
[]
[]
[]
[]
[]
[]
[]
[]
[]
[]
[]
[]
[]
[]
[]
[]
[]
[]
[]
[]
[]
[]
[]
[]
[]
[]
[]
[]
[]
[]
[]
[]
[]
[]
[]
[]
[]
[]
[]
[]
[]
[]
[]
[]
[]
[]
[]
[]
[]
[]
[]
[]
[]
[]
[]
[]
[]
[]
[]
[]
[]
[]
[]
[]
[]
[]
[]
[]
[]
[]
[]
[]
[]
[]
[]
[]
[]
[]
[]
[]
[]
[]
[]
[]
[]
[]
[]
[]
[]
[]
[]
[]
[]
[]
[]
[]
[]
[]
[]
[]
[]
[]
[]
[]
[]
[]
[]
[]
[]
[]
[]
[]
[]
[]
[]
[]
[]
[]
[]
[]
[]
[]
[]
[]
[]
[]
[]
[]
[]
[]
[]
[]
[]
[]
[]
[]
[]
[]
[]
[]
[]
[]
[]
[]
[]
[]
[]
[]
[]
[]
[]
[]
[]
[]
[]
[]
[]
[]
[]
[]
[]
[]
[]
[]
[]
[]
[]
[]
[]
[]
[]
[]
[]
[]
[]
[]
[]
[]
[]
[]
[]
[]
[]
[]
[]
[]
[]
[]
[]
[]
[]
[]
[]
[]
[]
[]
[]
[]
[]
[]
[]
[]
[]
[]
[]
[]
[]
[]
[]
[]
[]
[]
[]
[]
[]
[]
[]
[]
[]
[]
[]
[]
[]
[]
[]
[]
[]
[]
[]
[]
[]
[]
[]
[]
[]
[]
[]
[]
[]
[]
[]
[]
[]
[]
[]
[]
[]
[]
[]
[]
[]
[]
[]
[]
[]
[]
[]
[]
[]
[]
[]
[]
[]
[]
[]
[]
[]
[]
[]
[]
[]
[]
[]
[]
[]
[]
[]
[]
[]
[]
[]
[]
[]
[]
[]
[]
[]
[]
[]
[]
[]
[]
[]
[]
[]
[]
[]
[]
[]
[]
[]
[]
[]
[]
[]
[]
[]
[]
[]
[]
[]
[]
[]
[]
[]
[]
[]
[]
[]
[]
[]
[]
[]
[]
[]
[]
[]
[]
[]
[]
[]
[]
[]
[]
[]
[]
[]
[]
[]
[]
[]
[]
[]
[]
[]
[]
[]
[]
[]
[]
[]
[]
[]
[]
[]
[]
[]
[]
[]
[]
[]
[]
[]
[]
[]
[]
[]
[]
[]
[]
[]
[]
[]
[]
[]
[]
[]
[]
[]
[]
[]
[]
[]
[]
[]
[]
[]
[]
[]
[]
[]
[]
[]
[]
[]
[]
[]
[]
[]
[]
[]
[]
[]
[]
[]
[]
[]
[]
[]
[]
[]
[]
[]
[]
[]
[]
[]
[]
[]
[]
[]
[]
[]
[]
[]
[]
[]
[]
[]
[]
[]
[]
[]
[]
[]
[]
[]
[]
[]
[]
[]
[]
[]
[]
[]
[]
[]
[]
[]
[]
[]
[]
[]
[]
[]
[]
[]
[]
[]
[]
[]
[]
[]
[]
[]
[]
[]
[]
[]
[]
[]
[]
[]
[]
[]
[]
[]
[]
[]
[]
[]
[]
[]
[]
[]
[]
[]
[]
[]
[]
[]
[]
[]
[]
[]
[]
[]
[]
[]
[]
[]
[]
[]
[]
[]
[]
[]
[]
[]
[]
[]
[]
[]
[]
[]
[]
[]
[]
[]
[]
[]
[]
[]
[]
[]
[]
[]
[]
[]
[]
[]
[]
[]
[]
[]
[]
[]
[]
[]
[]
[]
[]
[]
[]
[]
[]
[]
[]
[]
[]
[]
[]
[]
[]
[]
[]
[]
[]
[]
[]
[]
[]
[]
[]
[]
[]
[]
[]
[]
[]
[]
[]
[]
[]
[]
[]
[]
[]
[]
[]
[]
[]
[]
[]
[]
[]
[]
[]
[]
[]
[]
[]
[]
[]
[]
[]
[]
[]
[]
[]
[]
[]
[]
[]
[]
[]
[]
[]
[]
[]
[]
[]
[]
[]
[]
[]
[]
[]
[]
[]
[]
[]
[]
[]
[]
[]
[]
[]
[]
[]
[]
[]
[]
[]
[]
[]
[]
[]
[]
[]
[]
[]
[]
[]
[]
[]
[]
[]
[]
[]
[]
[]
[]
[]
[]
[]
[]
[]
[]
[]
[]
[]
[]
[]
[]
[]
[]
[]
[]
[]
[]
[]
[]
[]
[]
[]
[]
[]
[]
[]
[]
[]
[]
[]
[]
[]
[]
[]
[]
[]
[]
[]
[]
[]
[]
[]
[]
[]
[]
[]
[]
[]
[]
[]
[]
[]
[]
[]
[]
[]
[]
[]
[]
[]
[]
[]
[]
[]
[]
[]
[]
[]
[]
[]
[]
[]
[]
[]
[]
[]
[]
[]
[]
[]
[]
[]
[]
[]
[]
[]
[]
[]
[]
[]
[]
[]
[]
[]
[]
[]
[]
[]
[]
[]
[]
[]
[]
[]
[]
[]
[]
[]
[]
[]
[]
[]
[]
[]
[]
[]
[]
[]
[]
[]
[]
[]
[]
[]
[]
[]
[]
[]
[]
[]
[]
[]
[]
[]
[]
[]
[]
[]
[]
[]
[]
[]
[]
[]
[]
[]
[]
[]
[]
[]
[]
[]
[]
[]
[]
[]
[]
[]
[]
[]
[]
[]
[]
[]
[]
[]
[]
[]
[]
[]
[]
[]
[]
[]
[]
[]
[]
[]
[]
[]
[]
[]
[]
[]
[]
[]
[]
[]
[]
[]
[]
[]
[]
[]
[]
[]
[]
[]
[]
[]
[]
[]
[]
[]
[]
[]
[]
[]
[]
[]
[]
[]
[]
[]
[]
[]
[]
[]
[]
[]
[]
[]
[]
[]
[]
[]
[]
[]
[]
[]
[]
[]
[]
[]
[]
[]
[]
[]
[]
[]
[]
[]
[]
[]
[]
[]
[]
[]
[]
[]
[]
[]
[]
[]
[]
[]
[]
[]
[]
[]
[]
[]
[]
[]
[]
[]
[]
[]
[]
[]
[]
[]
[]
[]
[]
[]
[]
[]
[]
[]
[]
[]
[]
[]
[]
[]
[]
[]
[]
[]
[]
[]
[]
[]
[]
[]
[]
[]
[]
[]
[]
[]
[]
[]
[]
[]
[]
[]
[]
[]
[]
[]
[]
[]
[]
[]
[]
[]
[]
[]
[]
[]
[]
[]
[]
[]
[]
[]
[]
[]
[]
[]
[]
[]
[]
[]
[]
[]
[]
[]
[]
[]
[]
[]
[]
[]
[]
[]
[]
[]
[]
[]
[]
[]
[]
[]
[]
[]
[]
[]
[]
[]
[]
[]
[]
[]
[]
[]
[]
[]
[]
[]
[]
[]
[]
[]
[]
[]
[]
[]
[]
[]
[]
[]
[]
[]
[]
[]
[]
[]
[]
[]
[]
[]
[]
[]
[]
[]
[]
[]
[]
[]
[]
[]
[]
[]
[]
[]
[]
[]
[]
[]
[]
[]
[]
[]
[]
[]
[]
[]
[]
[]
[]
[]
[]
[]
[]
[]
[]
[]
[]
[]
[]
[]
[]
[]
[]
[]
[]
[]
[]
[]
[]
[]
[]
[]
[]
[]
[]
[]
[]
[]
[]
[]
[]
[]
[]
[]
[]
[]
[]
[]
[]
[]
[]
[]
[]
[]
[]
[]
[]
[]
[]
[]
[]
[]
[]
[]
[]
[]
[]
[]
[]
[]
[]
[]
[]
[]
[]
[]
[]
[]
[]
[]
[]
[]
[]
[]
[]
[]
[]
[]
[]
[]
[]
[]
[]
[]
[]
[]
[]
[]
[]
[]
[]
[]
[]
[]
[]
[]
[]
[]
[]
[]
[]
[]
[]
[]
[]
[]
[]
[]
[]
[]
[]
[]
[]
[]
[]
[]
[]
[]
[]
[]
[]
[]
[]
[]
[]
[]
[]
[]
[]
[]
[]
[]
[]
[]
[]
[]
[]
[]
[]
[]
[]
[]
[]
[]
[]
[]
[]
[]
[]
[]
[]
[]
[]
[]
[]
[]
[]
[]
[]
[]
[]
[]
[]
[]
[]
[]
[]
[]
[]
[]
[]
[]
[]
[]
[]
[]
[]
[]
[]
[]
[]
[]
[]
[]
[]
[]
[]
[]
[]
[]
[]
[]
[]
[]
[]
[]
[]
[]
[]
[]
[]
[]
[]
[]
[]
[]
[]
[]
[]
[]
[]
[]
[]
[]
[]
[]
[]
[]
[]
[]
[]
[]
[]
[]
[]
[]
[]
[]
[]
[]
[]
[]
[]
[]
[]
[]
[]
[]
[]
[]
[]
[]
[]
[]
[]
[]
[]
[]
[]
[]
[]
[]
[]
[]
[]
[]
[]
[]
[]
[]
[]
[]
[]
[]
[]
[]
[]
[]
[]
[]
[]
[]
[]
[]
[]
[]
[]
[]
[]
[]
[]
[]
[]
[]
[]
[]
[]
[]
[]
[]
[]
[]
[]
[]
[]
[]
[]
[]
[]
[]
[]
[]
[]
[]
[]
[]
[]
[]
[]
[]
[]
[]
[]
[]
[]
[]
[]
[]
[]
[]
[]
[]
[]
[]
[]
[]
[]
[]
[]
[]
[]
[]
[]
[]
[]
[]
[]
[]
[]
[]
[]
[]
[]
[]
[]
[]
[]
[]
[]
[]
[]
[]
[]
[]
[]
[]
[]
[]
[]
[]
[]
[]
[]
[]
[]
[]
[]
[]
[]
[]
[]
[]
[]
[]
[]
[]
[]
[]
[]
[]
[]
[]
[]
[]
[]
[]
[]
[]
[]
[]
[]
[]
[]
[]
[]
[]
[]
[]
[]
[]
[]
[]
[]
[]
[]
[]
[]
[]
[]
[]
[]
[]
[]
[]
[]
[]
[]
[]
[]
[]
[]
[]
[]
[]
[]
[]
[]
[]
[]
[]
[]
[]
[]
[]
[]
[]
[]
[]
[]
[]
[]
[]
[]
[]
[]
[]
[]
[]
[]
[]
[]
[]
[]
[]
[]
[]
[]
[]
[]
[]
[]
[]
[]
[]
[]
[]
[]
[]
[]
[]
[]
[]
[]
[]
[]
[]
[]
[]
[]
[]
[]
[]
[]
[]
[]
[]
[]
[]
[]
[]
[]
[]
[]
[]
[]
[]
[]
[]
[]
[]
[]
[]
[]
[]
[]
[]
[]
[]
[]
[]
[]
[]
[]
[]
[]
[]
[]
[]
[]
[]
[]
[]
[]
[]
[]
[]
[]
[]
[]
[]
[]
[]
[]
[]
[]
[]
[]
[]
[]
[]
[]
[]
[]
[]
[]
[]
[]
[]
[]
[]
[]
[]
[]
[]
[]
[]
[]
[]
[]
[]
[]
[]
[]
[]
[]
[]
[]
[]
[]
[]
[]
[]
[]
[]
[]
[]
[]
[]
[]
[]
[]
[]
[]
[]
[]
[]
[]
[]
[]
[]
[]
[]
[]
[]
[]
[]
[]
[]
[]
[]
[]
[]
[]
[]
[]
[]
[]
[]
[]
[]
[]
[]
[]
[]
[]
[]
[]
[]
[]
[]
[]
[]
[]
[]
[]
[]
[]
[]
[]
[]
[]
[]
[]
[]
[]
[]
[]
[]
[]
[]
[]
[]
[]
[]
[]
[]
[]
[]
[]
[]
[]
[]
[]
[]
[]
[]
[]
[]
[]
[]
[]
[]
[]
[]
[]
[]
[]
[]
[]
[]
[]
[]
[]
[]
[]
[]
[]
[]
[]
[]
[]
[]
[]
[]
[]
[]
[]
[]
[]
[]
[]
[]
[]
[]
[]
[]
[]
[]
[]
[]
[]
[]
[]
[]
[]
[]
[]
[]
[]
[]
[]
[]
[]
[]
[]
[]
[]
[]
[]
[]
[]
[]
[]
[]
[]
[]
[]
[]
[]
[]
[]
[]
[]
[]
[]
[]
[]
[]
[]
[]
[]
[]
[]
[]
[]
[]
[]
[]
[]
[]
[]
[]
[]
[]
[]
[]
[]
[]
[]
[]
[]
[]
[]
[]
[]
[]
[]
[]
[]
[]
[]
[]
[]
[]
[]
[]
[]
[]
[]
[]
[]
[]
[]
[]
[]
[]
[]
[]
[]
[]
[]
[]
[]
[]
[]
[]
[]
[]
[]
[]
[]
[]
[]
[]
[]
[]
[]
[]
[]
[]
[]
[]
[]
[]
[]
[]
[]
[]
[]
[]
[]
[]
[]
[]
[]
[]
[]
[]
[]
[]
[]
[]
[]
[]
[]
[]
[]
[]
[]
[]
[]
[]
[]
[]
[]
[]
[]
[]
[]
[]
[]
[]
[]
[]
[]
[]
[]
[]
[]
[]
[]
[]
[]
[]
[]
[]
[]
[]
[]
[]
[]
[]
[]
[]
[]
[]
[]
[]
[]
[]
[]
[]
[]
[]
[]
[]
[]
[]
[]
[]
[]
[]
[]
[]
[]
[]
[]
[]
[]
[]
[]
[]
[]
[]
[]
[]
[]
[]
[]
[]
[]
[]
[]
[]
[]
[]
[]
[]
[]
[]
[]
[]
[]
[]
[]
[]
[]
[]
[]
[]
[]
[]
[]
[]
[]
[]
[]
[]
[]
[]
[]
[]
[]
[]
[]
[]
[]
[]
[]
[]
[]
[]
[]
[]
[]
[]
[]
[]
[]
[]
[]
[]
[]
[]
[]
[]
[]
[]
[]
[]
[]
[]
[]
[]
[]
[]
[]
[]
[]
[]
[]
[]
[]
[]
[]
[]
[]
[]
[]
[]
[]
[]
[]
[]
[]
[]
[]
[]
[]
[]
[]
[]
[]
[]
[]
[]
[]
[]
[]
[]
[]
[]
[]
[]
[]
[]
[]
[]
[]
[]
[]
[]
[]
[]
[]
[]
[]
[]
[]
[]
[]
[]
[]
[]
[]
[]
[]
[]
[]
[]
[]
[]
[]
[]
[]
[]
[]
[]
[]
[]
[]
[]
[]
[]
[]
[]
[]
[]
[]
[]
[]
[]
[]
[]
[]
[]
[]
[]
[]
[]
[]
[]
[]
[]
[]
[]
[]
[]
[]
[]
[]
[]
[]
[]
[]
[]
[]
[]
[]
[]
[]
[]
[]
[]
[]
[]
[]
[]
[]
[]
[]
[]
[]
[]
[]
[]
[]
[]
[]
[]
[]
[]
[]
[]
[]
[]
[]
[]
[]
[]
[]
[]
[]
[]
[]
[]
[]
[]
[]
[]
[]
[]
[]
[]
[]
[]
[]
[]
[]
[]
[]
[]
[]
[]
[]
[]
[]
[]
[]
[]
[]
[]
[]
[]
[]
[]
[]
[]
[]
[]
[]
[]
[]
[]
[]
[]
[]
[]
[]
[]
[]
[]
[]
[]
[]
[]
[]
[]
[]
[]
[]
[]
[]
[]
[]
[]
[]
[]
[]
[]
[]
[]
[]
[]
[]
[]
[]
[]
[]
[]
[]
[]
[]
[]
[]
[]
[]
[]
[]
[]
[]
[]
[]
[]
[]
[]
[]
[]
[]
[]
[]
[]
[]
[]
[]
[]
[]
[]
[]
[]
[]
[]
[]
[]
[]
[]
[]
[]
[]
[]
[]
[]
[]
[]
[]
[]
[]
[]
[]
[]
[]
[]
[]
[]
[]
[]
[]
[]
[]
[]
[]
[]
[]
[]
[]
[]
[]
[]
[]
[]
[]
[]
[]
[]
[]
[]
[]
[]
[]
[]
[]
[]
[]
[]
[]
[]
[]
[]
[]
[]
[]
[]
[]
[]
[]
[]
[]
[]
[]
[]
[]
[]
[]
[]
[]
[]
[]
[]
[]
[]
[]
[]
[]
[]
[]
[]
[]
[]
[]
[]
[]
[]
[]
[]
[]
[]
[]
[]
[]
[]
[]
[]
[]
[]
[]
[]
[]
[]
[]
[]
[]
[]
[]
[]
[]
[]
[]
[]
[]
[]
[]
[]
[]
[]
[]
[]
[]
[]
[]
[]
[]
[]
[]
[]
[]
[]
[]
[]
[]
[]
[]
[]
[]
[]
[]
[]
[]
[]
[]
[]
[]
[]
[]
[]
[]
[]
[]
[]
[]
[]
[]
[]
[]
[]
[]
[]
[]
[]
[]
[]
[]
[]
[]
[]
[]
[]
[]
[]
[]
[]
[]
[]
[]
[]
[]
[]
[]
[]
[]
[]
[]
[]
[]
[]
[]
[]
[]
[]
[]
[]
[]
[]
[]
[]
[]
[]
[]
[]
[]
[]
[]
[]
[]
[]
[]
[]
[]
[]
[]
[]
[]
[]
[]
[]
[]
[]
[]
[]
[]
[]
[]
[]
[]
[]
[]
[]
[]
[]
[]
[]
[]
[]
[]
[]
[]
[]
[]
[]
[]
[]
[]
[]
[]
[]
[]
[]
[]
[]
[]
[]
[]
[]
[]
[]
[]
[]
[]
[]
[]
[]
[]
[]
[]
[]
[]
[]
[]
[]
[]
[]
[]
[]
[]
[]
[]
[]
[]
[]
[]
[]
[]
[]
[]
[]
[]
[]
[]
[]
[]
[]
[]
[]
[]
[]
[]
[]
[]
[]
[]
[]
[]
[]
[]
[]
[]
[]
[]
[]
[]
[]
[]
[]
[]
[]
[]
[]
[]
[]
[]
[]
[]
[]
[]
[]
[]
[]
[]
[]
[]
[]
[]
[]
[]
[]
[]
[]
[]
[]
[]
[]
[]
[]
[]
[]
[]
[]
[]
[]
[]
[]
[]
[]
[]
[]
[]
[]
[]
[]
[]
[]
[]
[]
[]
[]
[]
[]
[]
[]
[]
[]
[]
[]
[]
[]
[]
[]
[]
[]
[]
[]
[]
[]
[]
[]
[]
[]
[]
[]
[]
[]
[]
[]
[]
[]
[]
[]
[]
[]
[]
[]
[]
[]
[]
[]
[]
[]
[]
[]
[]
[]
[]
[]
[]
[]
[]
[]
[]
[]
[]
[]
[]
[]
[]
[]
[]
[]
[]
[]
[]
[]
[]
[]
[]
[]
[]
[]
[]
[]
[]
[]
[]
[]
[]
[]
[]
[]
[]
[]
[]
[]
[]
[]
[]
[]
[]
[]
[]
[]
[]
[]
[]
[]
[]
[]
[]
[]
[]
[]
[]
[]
[]
[]
[]
[]
[]
[]
[]
[]
[]
[]
[]
[]
[]
[]
[]
[]
[]
[]
[]
[]
[]
[]
[]
[]
[]
[]
[]
[]
[]
[]
[]
[]
[]
[]
[]
[]
[]
[]
[]
[]
[]
[]
[]
[]
[]
[]
[]
[]
[]
[]
[]
[]
[]
[]
[]
[]
[]
[]
[]
[]
[]
[]
[]
[]
[]
[]
[]
[]
[]
[]
[]
[]
[]
[]
[]
[]
[]
[]
[]
[]
[]
[]
[]
[]
[]
[]
[]
[]
[]
[]
[]
[]
[]
[]
[]
[]
[]
[]
[]
[]
[]
[]
[]
[]
[]
[]
[]
[]
[]
[]
[]
[]
[]
[]
[]
[]
[]
[]
[]
[]
[]
[]
[]
[]
[]
[]
[]
[]
[]
[]
[]
[]
[]
[]
[]
[]
[]
[]
[]
[]
[]
[]
[]
[]
[]
[]
[]
[]
[]
[]
[]
[]
[]
[]
[]
[]
[]
[]
[]
[]
[]
[]
[]
[]
[]
[]
[]
[]
[]
[]
[]
[]
[]
[]
[]
[]
[]
[]
[]
[]
[]
[]
[]
[]
[]
[]
[]
[]
[]
[]
[]
[]
[]
[]
[]
[]
[]
[]
[]
[]
[]
[]
[]
[]
[]
[]
[]
[]
[]
[]
[]
[]
[]
[]
[]
[]
[]
[]
[]
[]
[]
[]
[]
[]
[]
[]
[]
[]
[]
[]
[]
[]
[]
[]
[]
[]
[]
[]
[]
[]
[]
[]
[]
[]
[]
[]
[]
[]
[]
[]
[]
[]
[]
[]
[]
[]
[]
[]
[]
[]
[]
[]
[]
[]
[]
[]
[]
[]
[]
[]
[]
[]
[]
[]
[]
[]
[]
[]
[]
[]
[]
[]
[]
[]
[]
[]
[]
[]
[]
[]
[]
[]
[]
[]
[]
[]
[]
[]
[]
[]
[]
[]
[]
[]
[]
[]
[]
[]
[]
[]
[]
[]
[]
[]
[]
[]
[]
[]
[]
[]
[]
[]
[]
[]
[]
[]
[]
[]
[]
[]
[]
[]
[]
[]
[]
[]
[]
[]
[]
[]
[]
[]
[]
[]
[]
[]
[]
[]
[]
[]
[]
[]
[]
[]
[]
[]
[]
[]
[]
[]
[]
[]
[]
[]
[]
[]
[]
[]
[]
[]
[]
[]
[]
[]
[]
[]
[]
[]
[]
[]
[]
[]
[]
[]
[]
[]
[]
[]
[]
[]
[]
[]
[]
[]
[]
[]
[]
[]
[]
[]
[]
[]
[]
[]
[]
[]
[]
[]
[]
[]
[]
[]
[]
[]
[]
[]
[]
[]
[]
[]
[]
[]
[]
[]
[]
[]
[]
[]
[]
[]
[]
[]
[]
[]
[]
[]
[]
[]
[]
[]
[]
[]
[]
[]
[]
[]
[]
[]
[]
[]
[]
[]
[]
[]
[]
[]
[]
[]
[]
[]
[]
[]
[]
[]
[]
[]
[]
[]
[]
[]
[]
[]
[]
[]
[]
[]
[]
[]
[]
[]
[]
[]
[]
[]
[]
[]
[]
[]
[]
[]
[]
[]
[]
[]
[]
[]
[]
[]
[]
[]
[]
[]
[]
[]
[]
[]
[]
[]
[]
[]
[]
[]
[]
[]
[]
[]
[]
[]
[]
[]
[]
[]
[]
[]
[]
[]
[]
[]
[]
[]
[]
[]
[]
[]
[]
[]
[]
[]
[]
[]
[]
[]
[]
[]
[]
[]
[]
[]
[]
[]
[]
[]
[]
[]
[]
[]
[]
[]
[]
[]
[]
[]
[]
[]
[]
[]
[]
[]
[]
[]
[]
[]
[]
[]
[]
[]
[]
[]
[]
[]
[]
[]
[]
[]
[]
[]
[]
[]
[]
[]
[]
[]
[]
[]
[]
[]
[]
[]
[]
[]
[]
[]
[]
[]
[]
[]
[]
[]
[]
[]
[]
[]
[]
[]
[]
[]
[]
[]
[]
[]
[]
[]
[]
[]
[]
[]
[]
[]
[]
[]
[]
[]
[]
[]
[]
[]
[]
[]
[]
[]
[]
[]
[]
[]
[]
[]
[]
[]
[]
[]
[]
[]
[]
[]
[]
[]
[]
[]
[]
[]
[]
[]
[]
[]
[]
[]
[]
[]
[]
[]
[]
[]
[]
[]
[]
[]
[]
[]
[]
[]
[]
[]
[]
[]
[]
[]
[]
[]
[]
[]
[]
[]
[]
[]
[]
[]
[]
[]
[]
[]
[]
[]
[]
[]
[]
[]
[]
[]
[]
[]
[]
[]
[]
[]
[]
[]
[]
[]
[]
[]
[]
[]
[]
[]
[]
[]
[]
[]
[]
[]
[]
[]
[]
[]
[]
[]
[]
[]
[]
[]
[]
[]
[]
[]
[]
[]
[]
[]
[]
[]
[]
[]
[]
[]
[]
[]
[]
[]
[]
[]
[]
[]
[]
[]
[]
[]
[]
[]
[]
[]
[]
[]
[]
[]
[]
[]
[]
[]
[]
[]
[]
[]
[]
[]
[]
[]
[]
[]
[]
[]
[]
[]
[]
[]
[]
[]
[]
[]
[]
[]
[]
[]
[]
[]
[]
[]
[]
[]
[]
[]
[]
[]
[]
[]
[]
[]
[]
[]
[]
[]
[]
[]
[]
[]
[]
[]
[]
[]
[]
[]
[]
[]
[]
[]
[]
[]
[]
[]
[]
[]
[]
[]
[]
[]
[]
[]
[]
[]
[]
[]
[]
[]
[]
[]
[]
[]
[]
[]
[]
[]
[]
[]
[]
[]
[]
[]
[]
[]
[]
[]
[]
[]
[]
[]
[]
[]
[]
[]
[]
[]
[]
[]
[]
[]
[]
[]
[]
[]
[]
[]
[]
[]
[]
[]
[]
[]
[]
[]
[]
[]
[]
[]
[]
[]
[]
[]
[]
[]
[]
[]
[]
[]
[]
[]
[]
[]
[]
[]
[]
[]
[]
[]
[]
[]
[]
[]
[]
[]
[]
[]
[]
[]
[]
[]
[]
[]
[]
[]
[]
[]
[]
[]
[]
[]
[]
[]
[]
[]
[]
[]
[]
[]
[]
[]
[]
[]
[]
[]
[]
[]
[]
[]
[]
[]
[]
[]
[]
[]
[]
[]
[]
[]
[]
[]
[]
[]
[]
[]
[]
[]
[]
[]
[]
[]
[]
[]
[]
[]
[]
[]
[]
[]
[]
[]
[]
[]
[]
[]
[]
[]
[]
[]
[]
[]
[]
[]
[]
[]
[]
[]
[]
[]
[]
[]
[]
[]
[]
[]
[]
[]
[]
[]
[]
[]
[]
[]
[]
[]
[]
[]
[]
[]
[]
[]
[]
[]
[]
[]
[]
[]
[]
[]
[]
[]
[]
[]
[]
[]
[]
[]
[]
[]
[]
[]
[]
[]
[]
[]
[]
[]
[]
[]
[]
[]
[]
[]
[]
[]
[]
[]
[]
[]
[]
[]
[]
[]
[]
[]
[]
[]
[]
[]
[]
[]
[]
[]
[]
[]
[]
[]
[]
[]
[]
[]
[]
[]
[]
[]
[]
[]
[]
[]
[]
[]
[]
[]
[]
[]
[]
[]
[]
[]
[]
[]
[]
[]
[]
[]
[]
[]
[]
[]
[]
[]
[]
[]
[]
[]
[]
[]
[]
[]
[]
[]
[]
[]
[]
[]
[]
[]
[]
[]
[]
[]
[]
[]
[]
[]
[]
[]
[]
[]
[]
[]
[]
[]
[]
[]
[]
[]
[]
[]
[]
[]
[]
[]
[]
[]
[]
[]
[]
[]
[]
[]
[]
[]
[]
[]
[]
[]
[]
[]
[]
[]
[]
[]
[]
[]
[]
[]
[]
[]
[]
[]
[]
[]
[]
[]
[]
[]
[]
[]
[]
[]
[]
[]
[]
[]
[]
[]
[]
[]
[]
[]
[]
[]
[]
[]
[]
[]
[]
[]
[]
[]
[]
[]
[]
[]
[]
[]
[]
[]
[]
[]
[]
[]
[]
[]
[]
[]
[]
[]
[]
[]
[]
[]
[]
[]
[]
[]
[]
[]
[]
[]
[]
[]
[]
[]
[]
[]
[]
[]
[]
[]
[]
[]
[]
[]
[]
[]
[]
[]
[]
[]
[]
[]
[]
[]
[]
[]
[]
[]
[]
[]
[]
[]
[]
[]
[]
[]
[]
[]
[]
[]
[]
[]
[]
[]
[]
[]
[]
[]
[]
[]
[]
[]
[]
[]
[]
[]
[]
[]
[]
[]
[]
[]
[]
[]
[]
[]
[]
[]
[]
[]
[]
[]
[]
[]
[]
[]
[]
[]
[]
[]
[]
[]
[]
[]
[]
[]
[]
[]
[]
[]
[]
[]
[]
[]
[]
[]
[]
[]
[]
[]
[]
[]
[]
[]
[]
[]
[]
[]
[]
[]
[]
[]
[]
[]
[]
[]
[]
[]
[]
[]
[]
[]
[]
[]
[]
[]
[]
[]
[]
[]
[]
[]
[]
[]
[]
[]
[]
[]
[]
[]
[]
[]
[]
[]
[]
[]
[]
[]
[]
[]
[]
[]
[]
[]
[]
[]
[]
[]
[]
[]
[]
[]
[]
[]
[]
[]
[]
[]
[]
[]
[]
[]
[]
[]
[]
[]
[]
[]
[]
[]
[]
[]
[]
[]
[]
[]
[]
[]
[]
[]
[]
[]
[]
[]
[]
[]
[]
[]
[]
[]
[]
[]
[]
[]
[]
[]
[]
[]
[]
[]
[]
[]
[]
[]
[]
[]
[]
[]
[]
[]
[]
[]
[]
[]
[]
[]
[]
[]
[]
[]
[]
[]
[]
[]
[]
[]
[]
[]
[]
[]
[]
[]
[]
[]
[]
[]
[]
[]
[]
[]
[]
[]
[]
[]
[]
[]
[]
[]
[]
[]
[]
[]
[]
[]
[]
[]
[]
[]
[]
[]
[]
[]
[]
[]
[]
[]
[]
[]
[]
[]
[]
[]
[]
[]
[]
[]
[]
[]
[]
[]
[]
[]
[]
[]
[]
[]
[]
[]
[]
[]
[]
[]
[]
[]
[]
[]
[]
[]
[]
[]
[]
[]
[]
[]
[]
[]
[]
[]
[]
[]
[]
[]
[]
[]
[]
[]
[]
[]
[]
[]
[]
[]
[]
[]
[]
[]
[]
[]
[]
[]
[]
[]
[]
[]
[]
[]
[]
[]
[]
[]
[]
[]
[]
[]
[]
[]
[]
[]
[]
[]
[]
[]
[]
[]
[]
[]
[]
[]
[]
[]
[]
[]
[]
[]
[]
[]
[]
[]
[]
[]
[]
[]
[]
[]
[]
[]
[]
[]
[]
[]
[]
[]
[]
[]
[]
[]
[]
[]
[]
[]
[]
[]
[]
[]
[]
[]
[]
[]
[]
[]
[]
[]
[]
[]
[]
[]
[]
[]
[]
[]
[]
[]
[]
[]
[]
[]
[]
[]
[]
[]
[]
[]
[]
[]
[]
[]
[]
[]
[]
[]
[]
[]
[]
[]
[]
[]
[]
[]
[]
[]
[]
[]
[]
[]
[]
[]
[]
[]
[]
[]
[]
[]
[]
[]
[]
[]
[]
[]
[]
[]
[]
[]
[]
[]
[]
[]
[]
[]
[]
[]
[]
[]
[]
[]
[]
[]
[]
[]
[]
[]
[]
[]
[]
[]
[]
[]
[]
[]
[]
[]
[]
[]
[]
[]
[]
[]
[]
[]
[]
[]
[]
[]
[]
[]
[]
[]
[]
[]
[]
[]
[]
[]
[]
[]
[]
[]
[]
[]
[]
[]
[]
[]
[]
[]
[]
[]
[]
[]
[]
[]
[]
[]
[]
[]
[]
[]
[]
[]
[]
[]
[]
[]
[]
[]
[]
[]
[]
[]
[]
[]
[]
[]
[]
[]
[]
[]
[]
[]
[]
[]
[]
[]
[]
[]
[]
[]
[]
[]
[]
[]
[]
[]
[]
[]
[]
[]
[]
[]
[]
[]
[]
[]
[]
[]
[]
[]
[]
[]
[]
[]
[]
[]
[]
[]
[]
[]
[]
[]
[]
[]
[]
[]
[]
[]
[]
[]
[]
[]
[]
[]
[]
[]
[]
[]
[]
[]
[]
[]
[]
[]
[]
[]
[]
[]
[]
[]
[]
[]
[]
[]
[]
[]
[]
[]
[]
[]
[]
[]
[]
[]
[]
[]
[]
[]
[]
[]
[]
[]
[]
[]
[]
[]
[]
[]
[]
[]
[]
[]
[]
[]
[]
[]
[]
[]
[]
[]
[]
[]
[]
[]
[]
[]
[]
[]
[]
[]
[]
[]
[]
[]
[]
[]
[]
[]
[]
[]
[]
[]
[]
[]
[]
[]
[]
[]
[]
[]
[]
[]
[]
[]
[]
[]
[]
[]
[]
[]
[]
[]
[]
[]
[]
[]
[]
[]
[]
[]
[]
[]
[]
[]
[]
[]
[]
[]
[]
[]
[]
[]
[]
[]
[]
[]
[]
[]
[]
[]
[]
[]
[]
[]
[]
[]
[]
[]
[]
[]
[]
[]
[]
[]
[]
[]
[]
[]
[]
[]
[]
[]
[]
[]
[]
[]
[]
[]
[]
[]
[]
[]
[]
[]
[]
[]
[]
[]
[]
[]
[]
[]
[]
[]
[]
[]
[]
[]
[]
[]
[]
[]
[]
[]
[]
[]
[]
[]
[]
[]
[]
[]
[]
[]
[]
[]
[]
[]
[]
[]
[]
[]
[]
[]
[]
[]
[]
[]
[]
[]
[]
[]
[]
[]
[]
[]
[]
[]
[]
[]
[]
[]
[]
[]
[]
[]
[]
[]
[]
[]
[]
[]
[]
[]
[]
[]
[]
[]
[]
[]
[]
[]
[]
[]
[]
[]
[]
[]
[]
[]
[]
[]
[]
[]
[]
[]
[]
[]
[]
[]
[]
[]
[]
[]
[]
[]
[]
[]
[]
[]
[]
[]
[]
[]
[]
[]
[]
[]
[]
[]
[]
[]
[]
[]
[]
[]
[]
[]
[]
[]
[]
[]
[]
[]
[]
[]
[]
[]
[]
[]
[]
[]
[]
[]
[]
[]
[]
[]
[]
[]
[]
[]
[]
[]
[]
[]
[]
[]
[]
[]
[]
[]
[]
[]
[]
[]
[]
[]
[]
[]
[]
[]
[]
[]
[]
[]
[]
[]
[]
[]
[]
[]
[]
[]
[]
[]
[]
[]
[]
[]
[]
[]
[]
[]
[]
[]
[]
[]
[]
[]
[]
[]
[]
[]
[]
[]
[]
[]
[]
[]
[]
[]
[]
[]
[]
[]
[]
[]
[]
[]
[]
[]
[]
[]
[]
[]
[]
[]
[]
[]
[]
[]
[]
[]
[]
[]
[]
[]
[]
[]
[]
[]
[]
[]
[]
[]
[]
[]
[]
[]
[]
[]
[]
[]
[]
[]
[]
[]
[]
[]
[]
[]
[]
[]
[]
[]
[]
[]
[]
[]
[]
[]
[]
[]
[]
[]
[]
[]
[]
[]
[]
[]
[]
[]
[]
[]
[]
[]
[]
[]
[]
[]
[]
[]
[]
[]
[]
[]
[]
[]
[]
[]
[]
[]
[]
[]
[]
[]
[]
[]
[]
[]
[]
[]
[]
[]
[]
[]
[]
[]
[]
[]
[]
[]
[]
[]
[]
[]
[]
[]
[]
[]
[]
[]
[]
[]
[]
[]
[]
[]
[]
[]
[]
[]
[]
[]
[]
[]
[]
[]
[]
[]
[]
[]
[]
[]
[]
[]
[]
[]
[]
[]
[]
[]
[]
[]
[]
[]
[]
[]
[]
[]
[]
[]
[]
[]
[]
[]
[]
[]
[]
[]
[]
[]
[]
[]
[]
[]
[]
[]
[]
[]
[]
[]
[]
[]
[]
[]
[]
[]
[]
[]
[]
[]
[]
[]
[]
[]
[]
[]
[]
[]
[]
[]
[]
[]
[]
[]
[]
[]
[]
[]
[]
[]
[]
[]
[]
[]
[]
[]
[]
[]
[]
[]
[]
[]
[]
[]
[]
[]
[]
[]
[]
[]
[]
[]
[]
[]
[]
[]
[]
[]
[]
[]
[]
[]
[]
[]
[]
[]
[]
[]
[]
[]
[]
[]
[]
[]
[]
[]
[]
[]
[]
[]
[]
[]
[]
[]
[]
[]
[]
[]
[]
[]
[]
[]
[]
[]
[]
[]
[]
[]
[]
[]
[]
[]
[]
[]
[]
[]
[]
[]
[]
[]
[]
[]
[]
[]
[]
[]
[]
[]
[]
[]
[]
[]
[]
[]
[]
[]
[]
[]
[]
[]
[]
[]
[]
[]
[]
[]
[]
[]
[]
[]
[]
[]
[]
[]
[]
[]
[]
[]
[]
[]
[]
[]
[]
[]
[]
[]
[]
[]
[]
[]
[]
[]
[]
[]
[]
[]
[]
[]
[]
[]
[]
[]
[]
[]
[]
[]
[]
[]
[]
[]
[]
[]
[]
[]
[]
[]
[]
[]
[]
[]
[]
[]
[]
[]
[]
[]
[]
[]
[]
[]
[]
[]
[]
[]
[]
[]
[]
[]
[]
[]
[]
[]
[]
[]
[]
[]
[]
[]
[]
[]
[]
[]
[]
[]
[]
[]
[]
[]
[]
[]
[]
[]
[]
[]
[]
[]
[]
[]
[]
[]
[]
[]
[]
[]
[]
[]
[]
[]
[]
[]
[]
[]
[]
[]
[]
[]
[]
[]
[]
[]
[]
[]
[]
[]
[]
[]
[]
[]
[]
[]
[]
[]
[]
[]
[]
[]
[]
[]
[]
[]
[]
[]
[]
[]
[]
[]
[]
[]
[]
[]
[]
[]
[]
[]
[]
[]
[]
[]
[]
[]
[]
[]
[]
[]
[]
[]
[]
[]
[]
[]
[]
[]
[]
[]
[]
[]
[]
[]
[]
[]
[]
[]
[]
[]
[]
[]
[]
[]
[]
[]
[]
[]
[]
[]
[]
[]
[]
[]
[]
[]
[]
[]
[]
[]
[]
[]
[]
[]
[]
[]
[]
[]
[]
[]
[]
[]
[]
[]
[]
[]
[]
[]
[]
[]
[]
[]
[]
[]
[]
[]
[]
[]
[]
[]
[]
[]
[]
[]
[]
[]
[]
[]
[]
[]
[]
[]
[]
[]
[]
[]
[]
[]
[]
[]
[]
[]
[]
[]
[]
[]
[]
[]
[]
[]
[]
[]
[]
[]
[]
[]
[]
[]
[]
[]
[]
[]
[]
[]
[]
[]
[]
[]
[]
[]
[]
[]
[]
[]
[]
[]
[]
[]
[]
[]
[]
[]
[]
[]
[]
[]
[]
[]
[]
[]
[]
[]
[]
[]
[]
[]
[]
[]
[]
[]
[]
[]
[]
[]
[]
[]
[]
[]
[]
[]
[]
[]
[]
[]
[]
[]
[]
[]
[]
[]
[]
[]
[]
[]
[]
[]
[]
[]
[]
[]
[]
[]
[]
[]
[]
[]
[]
[]
[]
[]
[]
[]
[]
[]
[]
[]
[]
[]
[]
[]
[]
[]
[]
[]
[]
[]
[]
[]
[]
[]
[]
[]
[]
[]
[]
[]
[]
[]
[]
[]
[]
[]
[]
[]
[]
[]
[]
[]
[]
[]
[]
[]
[]
[]
[]
[]
[]
[]
[]
[]
[]
[]
[]
[]
[]
[]
[]
[]
[]
[]
[]
[]
[]
[]
[]
[]
[]
[]
[]
[]
[]
[]
[]
[]
[]
[]
[]
[]
[]
[]
[]
[]
[]
[]
[]
[]
[]
[]
[]
[]
[]
[]
[]
[]
[]
[]
[]
[]
[]
[]
[]
[]
[]
[]
[]
[]
[]
[]
[]
[]
[]
[]
[]
[]
[]
[]
[]
[]
[]
[]
[]
[]
[]
[]
[]
[]
[]
[]
[]
[]
[]
[]
[]
[]
[]
[]
[]
[]
[]
[]
[]
[]
[]
[]
[]
[]
[]
[]
[]
[]
[]
[]
[]
[]
[]
[]
[]
[]
[]
[]
[]
[]
[]
[]
[]
[]
[]
[]
[]
[]
[]
[]
[]
[]
[]
[]
[]
[]
[]
[]
[]
[]
[]
[]
[]
[]
[]
[]
[]
[]
[]
[]
[]
[]
[]
[]
[]
[]
[]
[]
[]
[]
[]
[]
[]
[]
[]
[]
[]
[]
[]
[]
[]
[]
[]
[]
[]
[]
[]
[]
[]
[]
[]
[]
[]
[]
[]
[]
[]
[]
[]
[]
[]
[]
[]
[]
[]
[]
[]
[]
[]
[]
[]
[]
[]
[]
[]
[]
[]
[]
[]
[]
[]
[]
[]
[]
[]
[]
[]
[]
[]
[]
[]
[]
[]
[]
[]
[]
[]
[]
[]
[]
[]
[]
[]
[]
[]
[]
[]
[]
[]
[]
[]
[]
[]
[]
[]
[]
[]
[]
[]
[]
[]
[]
[]
[]
[]
[]
[]
[]
[]
[]
[]
[]
[]
[]
[]
[]
[]
[]
[]
[]
[]
[]
[]
[]
[]
[]
[]
[]
[]
[]
[]
[]
[]
[]
[]
[]
[]
[]
[]
[]
[]
[]
[]
[]
[]
[]
[]
[]
[]
[]
[]
[]
[]
[]
[]
[]
[]
[]
[]
[]
[]
[]
[]
[]
[]
[]
[]
[]
[]
[]
[]
[]
[]
[]
[]
[]
[]
[]
[]
[]
[]
[]
[]
[]
[]
[]
[]
[]
[]
[]
[]
[]
[]
[]
[]
[]
[]
[]
[]
[]
[]
[]
[]
[]
[]
[]
[]
[]
[]
[]
[]
[]
[]
[]
[]
[]
[]
[]
[]
[]
[]
[]
[]
[]
[]
[]
[]
[]
[]
[]
[]
[]
[]
[]
[]
[]
[]
[]
[]
[]
[]
[]
[]
[]
[]
[]
[]
[]
[]
[]
[]
[]
[]
[]
[]
[]
[]
[]
[]
[]
[]
[]
[]
[]
[]
[]
[]
[]
[]
[]
[]
[]
[]
[]
[]
[]
[]
[]
[]
[]
[]
[]
[]
[]
[]
[]
[]
[]
[]
[]
[]
[]
[]
[]
[]
[]
[]
[]
[]
[]
[]
[]
[]
[]
[]
[]
[]
[]
[]
[]
[]
[]
[]
[]
[]
[]
[]
[]
[]
[]
[]
[]
[]
[]
[]
[]
[]
[]
[]
[]
[]
[]
[]
[]
[]
[]
[]
[]
[]
[]
[]
[]
[]
[]
[]
[]
[]
[]
[]
[]
[]
[]
[]
[]
[]
[]
[]
[]
[]
[]
[]
[]
[]
[]
[]
[]
[]
[]
[]
[]
[]
[]
[]
[]
[]
[]
[]
[]
[]
[]
[]
[]
[]
[]
[]
[]
[]
[]
[]
[]
[]
[]
[]
[]
[]
[]
[]
[]
[]
[]
[]
[]
[]
[]
[]
[]
[]
[]
[]
[]
[]
[]
[]
[]
[]
[]
[]
[]
[]
[]
[]
[]
[]
[]
[]
[]
[]
[]
[]
[]
[]
[]
[]
[]
[]
[]
[]
[]
[]
[]
[]
[]
[]
[]
[]
[]
[]
[]
[]
[]
[]
[]
[]
[]
[]
[]
[]
[]
[]
[]
[]
[]
[]
[]
[]
[]
[]
[]
[]
[]
[]
[]
[]
[]
[]
[]
[]
[]
[]
[]
[]
[]
[]
[]
[]
[]
[]
[]
[]
[]
[]
[]
[]
[]
[]
[]
[]
[]
[]
[]
[]
[]
[]
[]
[]
[]
[]
[]
[]
[]
[]
[]
[]
[]
[]
[]
[]
[]
[]
[]
[]
[]
[]
[]
[]
[]
[]
[]
[]
[]
[]
[]
[]
[]
[]
[]
[]
[]
[]
[]
[]
[]
[]
[]
[]
[]
[]
[]
[]
[]
[]
[]
[]
[]
[]
[]
[]
[]
[]
[]
[]
[]
[]
[]
[]
[]
[]
[]
[]
[]
[]
[]
[]
[]
[]
[]
[]
[]
[]
[]
[]
[]
[]
[]
[]
[]
[]
[]
[]
[]
[]
[]
[]
[]
[]
[]
[]
[]
[]
[]
[]
[]
[]
[]
[]
[]
[]
[]
[]
[]
[]
[]
[]
[]
[]
[]
[]
[]
[]
[]
[]
[]
[]
[]
[]
[]
[]
[]
[]
[]
[]
[]
[]
[]
[]
[]
[]
[]
[]
[]
[]
[]
[]
[]
[]
[]
[]
[]
[]
[]
[]
[]
[]
[]
[]
[]
[]
[]
[]
[]
[]
[]
[]
[]
[]
[]
[]
[]
[]
[]
[]
[]
[]
[]
[]
[]
[]
[]
[]
[]
[]
[]
[]
[]
[]
[]
[]
[]
[]
[]
[]
[]
[]
[]
[]
[]
[]
[]
[]
[]
[]
[]
[]
[]
[]
[]
[]
[]
[]
[]
[]
[]
[]
[]
[]
[]
[]
[]
[]
[]
[]
[]
[]
[]
[]
[]
[]
[]
[]
[]
[]
[]
[]
[]
[]
[]
[]
[]
[]
[]
[]
[]
[]
[]
[]
[]
[]
[]
[]
[]
[]
[]
[]
[]
[]
[]
[]
[]
[]
[]
[]
[]
[]
[]
[]
[]
[]
[]
[]
[]
[]
[]
[]
[]
[]
[]
[]
[]
[]
[]
[]
[]
[]
[]
[]
[]
[]
[]
[]
[]
[]
[]
[]
[]
[]
[]
[]
[]
[]
[]
[]
[]
[]
[]
[]
[]
[]
[]
[]
[]
[]
[]
[]
[]
[]
[]
[]
[]
[]
[]
[]
[]
[]
[]
[]
[]
[]
[]
[]
[]
[]
[]
[]
[]
[]
[]
[]
[]
[]
[]
[]
[]
[]
[]
[]
[]
[]
[]
[]
[]
[]
[]
[]
[]
[]
[]
[]
[]
[]
[]
[]
[]
[]
[]
[]
[]
[]
[]
[]
[]
[]
[]
[]
[]
[]
[]
[]
[]
[]
[]
[]
[]
[]
[]
[]
[]
[]
[]
[]
[]
[]
[]
[]
[]
[]
[]
[]
[]
[]
[]
[]
[]
[]
[]
[]
[]
[]
[]
[]
[]
[]
[]
[]
[]
[]
[]
[]
[]
[]
[]
[]
[]
[]
[]
[]
[]
[]
[]
[]
[]
[]
[]
[]
[]
[]
[]
[]
[]
[]
[]
[]
[]
[]
[]
[]
[]
[]
[]
[]
[]
[]
[]
[]
[]
[]
[]
[]
[]
[]
[]
[]
[]
[]
[]
[]
[]
[]
[]
[]
[]
[]
[]
[]
[]
[]
[]
[]
[]
[]
[]
[]
[]
[]
[]
[]
[]
[]
[]
[]
[]
[]
[]
[]
[]
[]
[]
[]
[]
[]
[]
[]
[]
[]
[]
[]
[]
[]
[]
[]
[]
[]
[]
[]
[]
[]
[]
[]
[]
[]
[]
[]
[]
[]
[]
[]
[]
[]
[]
[]
[]
[]
[]
[]
[]
[]
[]
[]
[]
[]
[]
[]
[]
[]
[]
[]
[]
[]
[]
[]
[]
[]
[]
[]
[]
[]
[]
[]
[]
[]
[]
[]
[]
[]
[]
[]
[]
[]
[]
[]
[]
[]
[]
[]
[]
[]
[]
[]
[]
[]
[]
[]
[]
[]
[]
[]
[]
[]
[]
[]
[]
[]
[]
[]
[]
[]
[]
[]
[]
[]
[]
[]
[]
[]
[]
[]
[]
[]
[]
[]
[]
[]
[]
[]
[]
[]
[]
[]
[]
[]
[]
[]
[]
[]
[]
[]
[]
[]
[]
[]
[]
[]
[]
[]
[]
[]
[]
[]
[]
[]
[]
[]
[]
[]
[]
[]
[]
[]
[]
[]
[]
[]
[]
[]
[]
[]
[]
[]
[]
[]
[]
[]
[]
[]
[]
[]
[]
[]
[]
[]
[]
[]
[]
[]
[]
[]
[]
[]
[]
[]
[]
[]
[]
[]
[]
[]
[]
[]
[]
[]
[]
[]
[]
[]
[]
[]
[]
[]
[]
[]
[]
[]
[]
[]
[]
[]
[]
[]
[]
[]
[]
[]
[]
[]
[]
[]
[]
[]
[]
[]
[]
[]
[]
[]
[]
[]
[]
[]
[]
[]
[]
[]
[]
[]
[]
[]
[]
[]
[]
[]
[]
[]
[]
[]
[]
[]
[]
[]
[]
[]
[]
[]
[]
[]
[]
[]
[]
[]
[]
[]
[]
[]
[]
[]
[]
[]
[]
[]
[]
[]
[]
[]
[]
[]
[]
[]
[]
[]
[]
[]
[]
[]
[]
[]
[]
[]
[]
[]
[]
[]
[]
[]
[]
[]
[]
[]
[]
[]
[]
[]
[]
[]
[]
[]
[]
[]
[]
[]
[]
[]
[]
[]
[]
[]
[]
[]
[]
[]
[]
[]
[]
[]
[]
[]
[]
[]
[]
[]
[]
[]
[]
[]
[]
[]
[]
[]
[]
[]
[]
[]
[]
[]
[]
[]
[]
[]
[]
[]
[]
[]
[]
[]
[]
[]
[]
[]
[]
[]
[]
[]
[]
[]
[]
[]
[]
[]
[]
[]
[]
[]
[]
[]
[]
[]
[]
[]
[]
[]
[]
[]
[]
[]
[]
[]
[]
[]
[]
[]
[]
[]
[]
[]
[]
[]
[]
[]
[]
[]
[]
[]
[]
[]
[]
[]
[]
[]
[]
[]
[]
[]
[]
[]
[]
[]
[]
[]
[]
[]
[]
[]
[]
[]
[]
[]
[]
[]
[]
[]
[]
[]
[]
[]
[]
[]
[]
[]
[]
[]
[]
[]
[]
[]
[]
[]
[]
[]
[]
[]
[]
[]
[]
[]
[]
[]
[]
[]
[]
[]
[]
[]
[]
[]
[]
[]
[]
[]
[]
[]
[]
[]
[]
[]
[]
[]
[]
[]
[]
[]
[]
[]
[]
[]
[]
[]
[]
[]
[]
[]
[]
[]
[]
[]
[]
[]
[]
[]
[]
[]
[]
[]
[]
[]
[]
[]
[]
[]
[]
[]
[]
[]
[]
[]
[]
[]
[]
[]
[]
[]
[]
[]
[]
[]
[]
[]
[]
[]
[]
[]
[]
[]
[]
[]
[]
[]
[]
[]
[]
[]
[]
[]
[]
[]
[]
[]
[]
[]
[]
[]
[]
[]
[]
[]
[]
[]
[]
[]
[]
[]
[]
[]
[]
[]
[]
[]
[]
[]
[]
[]
[]
[]
[]
[]
[]
[]
[]
[]
[]
[]
[]
[]
[]
[]
[]
[]
[]
[]
[]
[]
[]
[]
[]
[]
[]
[]
[]
[]
[]
[]
[]
[]
[]
[]
[]
[]
[]
[]
[]
[]
[]
[]
[]
[]
[]
[]
[]
[]
[]
[]
[]
[]
[]
[]
[]
[]
[]
[]
[]
[]
[]
[]
[]
[]
[]
[]
[]
[]
[]
[]
[]
[]
[]
[]
[]
[]
[]
[]
[]
[]
[]
[]
[]
[]
[]
[]
[]
[]
[]
[]
[]
[]
[]
[]
[]
[]
[]
[]
[]
[]
[]
[]
[]
[]
[]
[]
[]
[]
[]
[]
[]
[]
[]
[]
[]
[]
[]
[]
[]
[]
[]
[]
[]
[]
[]
[]
[]
[]
[]
[]
[]
[]
[]
[]
[]
[]
[]
[]
[]
[]
[]
[]
[]
[]
[]
[]
[]
[]
[]
[]
[]
[]
[]
[]
[]
[]
[]
[]
[]
[]
[]
[]
[]
[]
[]
[]
[]
[]
[]
[]
[]
[]
[]
[]
[]
[]
[]
[]
[]
[]
[]
[]
[]
[]
[]
[]
[]
[]
[]
[]
[]
[]
[]
[]
[]
[]
[]
[]
[]
[]
[]
[]
[]
[]
[]
[]
[]
[]
[]
[]
[]
[]
[]
[]
[]
[]
[]
[]
[]
[]
[]
[]
[]
[]
[]
[]
[]
[]
[]
[]
[]
[]
[]
[]
[]
[]
[]
[]
[]
[]
[]
[]
[]
[]
[]
[]
[]
[]
[]
[]
[]
[]
[]
[]
[]
[]
[]
[]
[]
[]
[]
[]
[]
[]
[]
[]
[]
[]
[]
[]
[]
[]
[]
[]
[]
[]
[]
[]
[]
[]
[]
[]
[]
[]
[]
[]
[]
[]
[]
[]
[]
[]
[]
[]
[]
[]
[]
[]
[]
[]
[]
[]
[]
[]
[]
[]
[]
[]
[]
[]
[]
[]
[]
[]
[]
[]
[]
[]
[]
[]
[]
[]
[]
[]
[]
[]
[]
[]
[]
[]
[]
[]
[]
[]
[]
[]
[]
[]
[]
[]
[]
[]
[]
[]
[]
[]
[]
[]
[]
[]
[]
[]
[]
[]
[]
[]
[]
[]
[]
[]
[]
[]
[]
[]
[]
[]
[]
[]
[]
[]
[]
[]
[]
[]
[]
[]
[]
[]
[]
[]
[]
[]
[]
[]
[]
[]
[]
[]
[]
[]
[]
[]
[]
[]
[]
[]
[]
[]
[]
[]
[]
[]
[]
[]
[]
[]
[]
[]
[]
[]
[]
[]
[]
[]
[]
[]
[]
[]
[]
[]
[]
[]
[]
[]
[]
[]
[]
[]
[]
[]
[]
[]
[]
[]
[]
[]
[]
[]
[]
[]
[]
[]
[]
[]
[]
[]
[]
[]
[]
[]
[]
[]
[]
[]
[]
[]
[]
[]
[]
[]
[]
[]
[]
[]
[]
[]
[]
[]
[]
[]
[]
[]
[]
[]
[]
[]
[]
[]
[]
[]
[]
[]
[]
[]
[]
[]
[]
[]
[]
[]
[]
[]
[]
[]
[]
[]
[]
[]
[]
[]
[]
[]
[]
[]
[]
[]
[]
[]
[]
[]
[]
[]
[]
[]
[]
[]
[]
[]
[]
[]
[]
[]
[]
[]
[]
[]
[]
[]
[]
[]
[]
[]
[]
[]
[]
[]
[]
[]
[]
[]
[]
[]
[]
[]
[]
[]
[]
[]
[]
[]
[]
[]
[]
[]
[]
[]
[]
[]
[]
[]
[]
[]
[]
[]
[]
[]
[]
[]
[]
[]
[]
[]
[]
[]
[]
[]
[]
[]
[]
[]
[]
[]
[]
[]
[]
[]
[]
[]
[]
[]
[]
[]
[]
[]
[]
[]
[]
[]
[]
[]
[]
[]
[]
[]
[]
[]
[]
[]
[]
[]
[]
[]
[]
[]
[]
[]
[]
[]
[]
[]
[]
[]
[]
[]
[]
[]
[]
[]
[]
[]
[]
[]
[]
[]
[]
[]
[]
[]
[]
[]
[]
[]
[]
[]
[]
[]
[]
[]
[]
[]
[]
[]
[]
[]
[]
[]
[]
[]
[]
[]
[]
[]
[]
[]
[]
[]
[]
[]
[]
[]
[]
[]
[]
[]
[]
[]
[]
[]
[]
[]
[]
[]
[]
[]
[]
[]
[]
[]
[]
[]
[]
[]
[]
[]
[]
[]
[]
[]
[]
[]
[]
[]
[]
[]
[]
[]
[]
[]
[]
[]
[]
[]
[]
[]
[]
[]
[]
[]
[]
[]
[]
[]
[]
[]
[]
[]
[]
[]
[]
[]
[]
[]
[]
[]
[]
[]
[]
[]
[]
[]
[]
[]
[]
[]
[]
[]
[]
[]
[]
[]
[]
[]
[]
[]
[]
[]
[]
[]
[]
[]
[]
[]
[]
[]
[]
[]
[]
[]
[]
[]
[]
[]
[]
[]
[]
[]
[]
[]
[]
[]
[]
[]
[]
[]
[]
[]
[]
[]
[]
[]
[]
[]
[]
[]
[]
[]
[]
[]
[]
[]
[]
[]
[]
[]
[]
[]
[]
[]
[]
[]
[]
[]
[]
[]
[]
[]
[]
[]
[]
[]
[]
[]
[]
[]
[]
[]
[]
[]
[]
[]
[]
[]
[]
[]
[]
[]
[]
[]
[]
[]
[]
[]
[]
[]
[]
[]
[]
[]
[]
[]
[]
[]
[]
[]
[]
[]
[]
[]
[]
[]
[]
[]
[]
[]
[]
[]
[]
[]
[]
[]
[]
[]
[]
[]
[]
[]
[]
[]
[]
[]
[]
[]
[]
[]
[]
[]
[]
[]
[]
[]
[]
[]
[]
[]
[]
[]
[]
[]
[]
[]
[]
[]
[]
[]
[]
[]
[]
[]
[]
[]
[]
[]
[]
[]
[]
[]
[]
[]
[]
[]
[]
[]
[]
[]
[]
[]
[]
[]
[]
[]
[]
[]
[]
[]
[]
[]
[]
[]
[]
[]
[]
[]
[]
[]
[]
[]
[]
[]
[]
[]
[]
[]
[]
[]
[]
[]
[]
[]
[]
[]
[]
[]
[]
[]
[]
[]
[]
[]
[]
[]
[]
[]
[]
[]
[]
[]
[]
[]
[]
[]
[]
[]
[]
[]
[]
[]
[]
[]
[]
[]
[]
[]
[]
[]
[]
[]
[]
[]
[]
[]
[]
[]
[]
[]
[]
[]
[]
[]
[]
[]
[]
[]
[]
[]
[]
[]
[]
[]
[]
[]
[]
[]
[]
[]
[]
[]
[]
[]
[]
[]
[]
[]
[]
[]
[]
[]
[]
[]
[]
[]
[]
[]
[]
[]
[]
[]
[]
[]
[]
[]
[]
[]
[]
[]
[]
[]
[]
[]
[]
[]
[]
[]
[]
[]
[]
[]
[]
[]
[]
[]
[]
[]
[]
[]
[]
[]
[]
[]
[]
[]
[]
[]
[]
[]
[]
[]
[]
[]
[]
[]
[]
[]
[]
[]
[]
[]
[]
[]
[]
[]
[]
[]
[]
[]
[]
[]
[]
[]
[]
[]
[]
[]
[]
[]
[]
[]
[]
[]
[]
[]
[]
[]
[]
[]
[]
[]
[]
[]
[]
[]
[]
[]
[]
[]
[]
[]
[]
[]
[]
[]
[]
[]
[]
[]
[]
[]
[]
[]
[]
[]
[]
[]
[]
[]
[]
[]
[]
[]
[]
[]
[]
[]
[]
[]
[]
[]
[]
[]
[]
[]
[]
[]
[]
[]
[]
[]
[]
[]
[]
[]
[]
[]
[]
[]
[]
[]
[]
[]
[]
[]
[]
[]
[]
[]
[]
[]
[]
[]
[]
[]
[]
[]
[]
[]
[]
[]
[]
[]
[]
[]
[]
[]
[]
[]
[]
[]
[]
[]
[]
[]
[]
[]
[]
[]
[]
[]
[]
[]
[]
[]
[]
[]
[]
[]
[]
[]
[]
[]
[]
[]
[]
[]
[]
[]
[]
[]
[]
[]
[]
[]
[]
[]
[]
[]
[]
[]
[]
[]
[]
[]
[]
[]
[]
[]
[]
[]
[]
[]
[]
[]
[]
[]
[]
[]
[]
[]
[]
[]
[]
[]
[]
[]
[]
[]
[]
[]
[]
[]
[]
[]
[]
[]
[]
[]
[]
[]
[]
[]
[]
[]
[]
[]
[]
[]
[]
[]
[]
[]
[]
[]
[]
[]
[]
[]
[]
[]
[]
[]
[]
[]
[]
[]
[]
[]
[]
[]
[]
[]
[]
[]
[]
[]
[]
[]
[]
[]
[]
[]
[]
[]
[]
[]
[]
[]
[]
[]
[]
[]
[]
[]
[]
[]
[]
[]
[]
[]
[]
[]
[]
[]
[]
[]
[]
[]
[]
[]
[]
[]
[]
[]
[]
[]
[]
[]
[]
[]
[]
[]
[]
[]
[]
[]
[]
[]
[]
[]
[]
[]
[]
[]
[]
[]
[]
[]
[]
[]
[]
[]
[]
[]
[]
[]
[]
[]
[]
[]
[]
[]
[]
[]
[]
[]
[]
[]
[]
[]
[]
[]
[]
[]
[]
[]
[]
[]
[]
[]
[]
[]
[]
[]
[]
[]
[]
[]
[]
[]
[]
[]
[]
[]
[]
[]
[]
[]
[]
[]
[]
[]
[]
[]
[]
[]
[]
[]
[]
[]
[]
[]
[]
[]
[]
[]
[]
[]
[]
[]
[]
[]
[]
[]
[]
[]
[]
[]
[]
[]
[]
[]
[]
[]
[]
[]
[]
[]
[]
[]
[]
[]
[]
[]
[]
[]
[]
[]
[]
[]
[]
[]
[]
[]
[]
[]
[]
[]
[]
[]
[]
[]
[]
[]
[]
[]
[]
[]
[]
[]
[]
[]
[]
[]
[]
[]
[]
[]
[]
[]
[]
[]
[]
[]
[]
[]
[]
[]
[]
[]
[]
[]
[]
[]
[]
[]
[]
[]
[]
[]
[]
[]
[]
[]
[]
[]
[]
[]
[]
[]
[]
[]
[]
[]
[]
[]
[]
[]
[]
[]
[]
[]
[]
[]
[]
[]
[]
[]
[]
[]
[]
[]
[]
[]
[]
[]
[]
[]
[]
[]
[]
[]
[]
[]
[]
[]
[]
[]
[]
[]
[]
[]
[]
[]
[]
[]
[]
[]
[]
[]
[]
[]
[]
[]
[]
[]
[]
[]
[]
[]
[]
[]
[]
[]
[]
[]
[]
[]
[]
[]
[]
[]
[]
[]
[]
[]
[]
[]
[]
[]
[]
[]
[]
[]
[]
[]
[]
[]
[]
[]
[]
[]
[]
[]
[]
[]
[]
[]
[]
[]
[]
[]
[]
[]
[]
[]
[]
[]
[]
[]
[]
[]
[]
[]
[]
[]
[]
[]
[]
[]
[]
[]
[]
[]
[]
[]
[]
[]
[]
[]
[]
[]
[]
[]
[]
[]
[]
[]
[]
[]
[]
[]
[]
[]
[]
[]
[]
[]
[]
[]
[]
[]
[]
[]
[]
[]
[]
[]
[]
[]
[]
[]
[]
[]
[]
[]
[]
[]
[]
[]
[]
[]
[]
[]
[]
[]
[]
[]
[]
[]
[]
[]
[]
[]
[]
[]
[]
[]
[]
[]
[]
[]
[]
[]
[]
[]
[]
[]
[]
[]
[]
[]
[]
[]
[]
[]
[]
[]
[]
[]
[]
[]
[]
[]
[]
[]
[]
[]
[]
[]
[]
[]
[]
[]
[]
[]
[]
[]
[]
[]
[]
[]
[]
[]
[]
[]
[]
[]
[]
[]
[]
[]
[]
[]
[]
[]
[]
[]
[]
[]
[]
[]
[]
[]
[]
[]
[]
[]
[]
[]
[]
[]
[]
[]
[]
[]
[]
[]
[]
[]
[]
[]
[]
[]
[]
[]
[]
[]
[]
[]
[]
[]
[]
[]
[]
[]
[]
[]
[]
[]
[]
[]
[]
[]
[]
[]
[]
[]
[]
[]
[]
[]
[]
[]
[]
[]
[]
[]
[]
[]
[]
[]
[]
[]
[]
[]
[]
[]
[]
[]
[]
[]
[]
[]
[]
[]
[]
[]
[]
[]
[]
[]
[]
[]
[]
[]
[]
[]
[]
[]
[]
[]
[]
[]
[]
[]
[]
[]
[]
[]
[]
[]
[]
[]
[]
[]
[]
[]
[]
[]
[]
[]
[]
[]
[]
[]
[]
[]
[]
[]
[]
[]
[]
[]
[]
[]
[]
[]
[]
[]
[]
[]
[]
[]
[]
[]
[]
[]
[]
[]
[]
[]
[]
[]
[]
[]
[]
[]
[]
[]
[]
[]
[]
[]
[]
[]
[]
[]
[]
[]
[]
[]
[]
[]
[]
[]
[]
[]
[]
[]
[]
[]
[]
[]
[]
[]
[]
[]
[]
[]
[]
[]
[]
[]
[]
[]
[]
[]
[]
[]
[]
[]
[]
[]
[]
[]
[]
[]
[]
[]
[]
[]
[]
[]
[]
[]
[]
[]
[]
[]
[]
[]
[]
[]
[]
[]
[]
[]
[]
[]
[]
[]
[]
[]
[]
[]
[]
[]
[]
[]
[]
[]
[]
[]
[]
[]
[]
[]
[]
[]
[]
[]
[]
[]
[]
[]
[]
[]
[]
[]
[]
[]
[]
[]
[]
[]
[]
[]
[]
[]
[]
[]
[]
[]
[]
[]
[]
[]
[]
[]
[]
[]
[]
[]
[]
[]
[]
[]
[]
[]
[]
[]
[]
[]
[]
[]
[]
[]
[]
[]
[]
[]
[]
[]
[]
[]
[]
[]
[]
[]
[]
[]
[]
[]
[]
[]
[]
[]
[]
[]
[]
[]
[]
[]
[]
[]
[]
[]
[]
[]
[]
[]
[]
[]
[]
[]
[]
[]
[]
[]
[]
[]
[]
[]
[]
[]
[]
[]
[]
[]
[]
[]
[]
[]
[]
[]
[]
[]
[]
[]
[]
[]
[]
[]
[]
[]
[]
[]
[]
[]
[]
[]
[]
[]
[]
[]
[]
[]
[]
[]
[]
[]
[]
[]
[]
[]
[]
[]
[]
[]
[]
[]
[]
[]
[]
[]
[]
[]
[]
[]
[]
[]
[]
[]
[]
[]
[]
[]
[]
[]
[]
[]
[]
[]
[]
[]
[]
[]
[]
[]
[]
[]
[]
[]
[]
[]
[]
[]
[]
[]
[]
[]
[]
[]
[]
[]
[]
[]
[]
[]
[]
[]
[]
[]
[]
[]
[]
[]
[]
[]
[]
[]
[]
[]
[]
[]
[]
[]
[]
[]
[]
[]
[]
[]
[]
[]
[]
[]
[]
[]
[]
[]
[]
[]
[]
[]
[]
[]
[]
[]
[]
[]
[]
[]
[]
[]
[]
[]
[]
[]
[]
[]
[]
[]
[]
[]
[]
[]
[]
[]
[]
[]
[]
[]
[]
[]
[]
[]
[]
[]
[]
[]
[]
[]
[]
[]
[]
[]
[]
[]
[]
[]
[]
[]
[]
[]
[]
[]
[]
[]
[]
[]
[]
[]
[]
[]
[]
[]
[]
[]
[]
[]
[]
[]
[]
[]
[]
[]
[]
[]
[]
[]
[]
[]
[]
[]
[]
[]
[]
[]
[]
[]
[]
[]
[]
[]
[]
[]
[]
[]
[]
[]
[]
[]
[]
[]
[]
[]
[]
[]
[]
[]
[]
[]
[]
[]
[]
[]
[]
[]
[]
[]
[]
[]
[]
[]
[]
[]
[]
[]
[]
[]
[]
[]
[]
[]
[]
[]
[]
[]
[]
[]
[]
[]
[]
[]
[]
[]
[]
[]
[]
[]
[]
[]
[]
[]
[]
[]
[]
[]
[]
[]
[]
[]
[]
[]
[]
[]
[]
[]
[]
[]
[]
[]
[]
[]
[]
[]
[]
[]
[]
[]
[]
[]
[]
[]
[]
[]
[]
[]
[]
[]
[]
[]
[]
[]
[]
[]
[]
[]
[]
[]
[]
[]
[]
[]
[]
[]
[]
[]
[]
[]
[]
[]
[]
[]
[]
[]
[]
[]
[]
[]
[]
[]
[]
[]
[]
[]
[]
[]
[]
[]
[]
[]
[]
[]
[]
[]
[]
[]
[]
[]
[]
[]
[]
[]
[]
[]
[]
[]
[]
[]
[]
[]
[]
[]
[]
[]
[]
[]
[]
[]
[]
[]
[]
[]
[]
[]
[]
[]
[]
[]
[]
[]
[]
[]
[]
[]
[]
[]
[]
[]
[]
[]
[]
[]
[]
[]
[]
[]
[]
[]
[]
[]
[]
[]
[]
[]
[]
[]
[]
[]
[]
[]
[]
[]
[]
[]
[]
[]
[]
[]
[]
[]
[]
[]
[]
[]
[]
[]
[]
[]
[]
[]
[]
[]
[]
[]
[]
[]
[]
[]
[]
[]
[]
[]
[]
[]
[]
[]
[]
[]
[]
[]
[]
[]
[]
[]
[]
[]
[]
[]
[]
[]
[]
[]
[]
[]
[]
[]
[]
[]
[]
[]
[]
[]
[]
[]
[]
[]
[]
[]
[]
[]
[]
[]
[]
[]
[]
[]
[]
[]
[]
[]
[]
[]
[]
[]
[]
[]
[]
[]
[]
[]
[]
[]
[]
[]
[]
[]
[]
[]
[]
[]
[]
[]
[]
[]
[]
[]
[]
[]
[]
[]
[]
[]
[]
[]
[]
[]
[]
[]
[]
[]
[]
[]
[]
[]
[]
[]
[]
[]
[]
[]
[]
[]
[]
[]
[]
[]
[]
[]
[]
[]
[]
[]
[]
[]
[]
[]
[]
[]
[]
[]
[]
[]
[]
[]
[]
[]
[]
[]
[]
[]
[]
[]
[]
[]
[]
[]
[]
[]
[]
[]
[]
[]
[]
[]
[]
[]
[]
[]
[]
[]
[]
[]
[]
[]
[]
[]
[]
[]
[]
[]
[]
[]
[]
[]
[]
[]
[]
[]
[]
[]
[]
[]
[]
[]
[]
[]
[]
[]
[]
[]
[]
[]
[]
[]
[]
[]
[]
[]
[]
[]
[]
[]
[]
[]
[]
[]
[]
[]
[]
[]
[]
[]
[]
[]
[]
[]
[]
[]
[]
[]
[]
[]
[]
[]
[]
[]
[]
[]
[]
[]
[]
[]
[]
[]
[]
[]
[]
[]
[]
[]
[]
[]
[]
[]
[]
[]
[]
[]
[]
[]
[]
[]
[]
[]
[]
[]
[]
[]
[]
[]
[]
[]
[]
[]
[]
[]
[]
[]
[]
[]
[]
[]
[]
[]
[]
[]
[]
[]
[]
[]
[]
[]
[]
[]
[]
[]
[]
[]
[]
[]
[]
[]
[]
[]
[]
[]
[]
[]
[]
[]
[]
[]
[]
[]
[]
[]
[]
[]
[]
[]
[]
[]
[]
[]
[]
[]
[]
[]
[]
[]
[]
[]
[]
[]
[]
[]
[]
[]
[]
[]
[]
[]
[]
[]
[]
[]
[]
[]
[]
[]
[]
[]
[]
[]
[]
[]
[]
[]
[]
[]
[]
[]
[]
[]
[]
[]
[]
[]
[]
[]
[]
[]
[]
[]
[]
[]
[]
[]
[]
[]
[]
[]
[]
[]
[]
[]
[]
[]
[]
[]
[]
[]
[]
[]
[]
[]
[]
[]
[]
[]
[]
[]
[]
[]
[]
[]
[]
[]
[]
[]
[]
[]
[]
[]
[]
[]
[]
[]
[]
[]
[]
[]
[]
[]
[]
[]
[]
[]
[]
[]
[]
[]
[]
[]
[]
[]
[]
[]
[]
[]
[]
[]
[]
[]
[]
[]
[]
[]
[]
[]
[]
[]
[]
[]
[]
[]
[]
[]
[]
[]
[]
[]
[]
[]
[]
[]
[]
[]
[]
[]
[]
[]
[]
[]
[]
[]
[]
[]
[]
[]
[]
[]
[]
[]
[]
[]
[]
[]
[]
[]
[]
[]
[]
[]
[]
[]
[]
[]
[]
[]
[]
[]
[]
[]
[]
[]
[]
[]
[]
[]
[]
[]
[]
[]
[]
[]
[]
[]
[]
[]
[]
[]
[]
[]
[]
[]
[]
[]
[]
[]
[]
[]
[]
[]
[]
[]
[]
[]
[]
[]
[]
[]
[]
[]
[]
[]
[]
[]
[]
[]
[]
[]
[]
[]
[]
[]
[]
[]
[]
[]
[]
[]
[]
[]
[]
[]
[]
[]
[]
[]
[]
[]
[]
[]
[]
[]
[]
[]
[]
[]
[]
[]
[]
[]
[]
[]
[]
[]
[]
[]
[]
[]
[]
[]
[]
[]
[]
[]
[]
[]
[]
[]
[]
[]
[]
[]
[]
[]
[]
[]
[]
[]
[]
[]
[]
[]
[]
[]
[]
[]
[]
[]
[]
[]
[]
[]
[]
[]
[]
[]
[]
[]
[]
[]
[]
[]
[]
[]
[]
[]
[]
[]
[]
[]
[]
[]
[]
[]
[]
[]
[]
[]
[]
[]
[]
[]
[]
[]
[]
[]
[]
[]
[]
[]
[]
[]
[]
[]
[]
[]
[]
[]
[]
[]
[]
[]
[]
[]
[]
[]
[]
[]
[]
[]
[]
[]
[]
[]
[]
[]
[]
[]
[]
[]
[]
[]
[]
[]
[]
[]
[]
[]
[]
[]
[]
[]
[]
[]
[]
[]
[]
[]
[]
[]
[]
[]
[]
[]
[]
[]
[]
[]
[]
[]
[]
[]
[]
[]
[]
[]
[]
[]
[]
[]
[]
[]
[]
[]
[]
[]
[]
[]
[]
[]
[]
[]
[]
[]
[]
[]
[]
[]
[]
[]
[]
[]
[]
[]
[]
[]
[]
[]
[]
[]
[]
[]
[]
[]
[]
[]
[]
[]
[]
[]
[]
[]
[]
[]
[]
[]
[]
[]
[]
[]
[]
[]
[]
[]
[]
[]
[]
[]
[]
[]
[]
[]
[]
[]
[]
[]
[]
[]
[]
[]
[]
[]
[]
[]
[]
[]
[]
[]
[]
[]
[]
[]
[]
[]
[]
[]
[]
[]
[]
[]
[]
[]
[]
[]
[]
[]
[]
[]
[]
[]
[]
[]
[]
[]
[]
[]
[]
[]
[]
[]
[]
[]
[]
[]
[]
[]
[]
[]
[]
[]
[]
[]
[]
[]
[]
[]
[]
[]
[]
[]
[]
[]
[]
[]
[]
[]
[]
[]
[]
[]
[]
[]
[]
[]
[]
[]
[]
[]
[]
[]
[]
[]
[]
[]
[]
[]
[]
[]
[]
[]
[]
[]
[]
[]
[]
[]
[]
[]
[]
[]
[]
[]
[]
[]
[]
[]
[]
[]
[]
[]
[]
[]
[]
[]
[]
[]
[]
[]
[]
[]
[]
[]
[]
[]
[]
[]
[]
[]
[]
[]
[]
[]
[]
[]
[]
[]
[]
[]
[]
[]
[]
[]
[]
[]
[]
[]
[]
[]
[]
[]
[]
[]
[]
[]
[]
[]
[]
[]
[]
[]
[]
[]
[]
[]
[]
[]
[]
[]
[]
[]
[]
[]
[]
[]
[]
[]
[]
[]
[]
[]
[]
[]
[]
[]
[]
[]
[]
[]
[]
[]
[]
[]
[]
[]
[]
[]
[]
[]
[]
[]
[]
[]
[]
[]
[]
[]
[]
[]
[]
[]
[]
[]
[]
[]
[]
[]
[]
[]
[]
[]
[]
[]
[]
[]
[]
[]
[]
[]
[]
[]
[]
[]
[]
[]
[]
[]
[]
[]
[]
[]
[]
[]
[]
[]
[]
[]
[]
[]
[]
[]
[]
[]
[]
[]
[]
[]
[]
[]
[]
[]
[]
[]
[]
[]
[]
[]
[]
[]
[]
[]
[]
[]
[]
[]
[]
[]
[]
[]
[]
[]
[]
[]
[]
[]
[]
[]
[]
[]
[]
[]
[]
[]
[]
[]
[]
[]
[]
[]
[]
[]
[]
[]
[]
[]
[]
[]
[]
[]
[]
[]
[]
[]
[]
[]
[]
[]
[]
[]
[]
[]
[]
[]
[]
[]
[]
[]
[]
[]
[]
[]
[]
[]
[]
[]
[]
[]
[]
[]
[]
[]
[]
[]
[]
[]
[]
[]
[]
[]
[]
[]
[]
[]
[]
[]
[]
[]
[]
[]
[]
[]
[]
[]
[]
[]
[]
[]
[]
[]
[]
[]
[]
[]
[]
[]
[]
[]
[]
[]
[]
[]
[]
[]
[]
[]
[]
[]
[]
[]
[]
[]
[]
[]
[]
[]
[]
[]
[]
[]
[]
[]
[]
[]
[]
[]
[]
[]
[]
[]
[]
[]
[]
[]
[]
[]
[]
[]
[]
[]
[]
[]
[]
[]
[]
[]
[]
[]
[]
[]
[]
[]
[]
[]
[]
[]
[]
[]
[]
[]
[]
[]
[]
[]
[]
[]
[]
[]
[]
[]
[]
[]
[]
[]
[]
[]
[]
[]
[]
[]
[]
[]
[]
[]
[]
[]
[]
[]
[]
[]
[]
[]
[]
[]
[]
[]
[]
[]
[]
[]
[]
[]
[]
[]
[]
[]
[]
[]
[]
[]
[]
[]
[]
[]
[]
[]
[]
[]
[]
[]
[]
[]
[]
[]
[]
[]
[]
[]
[]
[]
[]
[]
[]
[]
[]
[]
[]
[]
[]
[]
[]
[]
[]
[]
[]
[]
[]
[]
[]
[]
[]
[]
[]
[]
[]
[]
[]
[]
[]
[]
[]
[]
[]
[]
[]
[]
[]
[]
[]
[]
[]
[]
[]
[]
[]
[]
[]
[]
[]
[]
[]
[]
[]
[]
[]
[]
[]
[]
[]
[]
[]
[]
[]
[]
[]
[]
[]
[]
[]
[]
[]
[]
[]
[]
[]
[]
[]
[]
[]
[]
[]
[]
[]
[]
[]
[]
[]
[]
[]
[]
[]
[]
[]
[]
[]
[]
[]
[]
[]
[]
[]
[]
[]
[]
[]
[]
[]
[]
[]
[]
[]
[]
[]
[]
[]
[]
[]
[]
[]
[]
[]
[]
[]
[]
[]
[]
[]
[]
[]
[]
[]
[]
[]
[]
[]
[]
[]
[]
[]
[]
[]
[]
[]
[]
[]
[]
[]
[]
[]
[]
[]
[]
[]
[]
[]
[]
[]
[]
[]
[]
[]
[]
[]
[]
[]
[]
[]
[]
[]
[]
[]
[]
[]
[]
[]
[]
[]
[]
[]
[]
[]
[]
[]
[]
[]
[]
[]
[]
[]
[]
[]
[]
[]
[]
[]
[]
[]
[]
[]
[]
[]
[]
[]
[]
[]
[]
[]
[]
[]
[]
[]
[]
[]
[]
[]
[]
[]
[]
[]
[]
[]
[]
[]
[]
[]
[]
[]
[]
[]
[]
[]
[]
[]
[]
[]
[]
[]
[]
[]
[]
[]
[]
[]
[]
[]
[]
[]
[]
[]
[]
[]
[]
[]
[]
[]
[]
[]
[]
[]
[]
[]
[]
[]
[]
[]
[]
[]
[]
[]
[]
[]
[]
[]
[]
[]
[]
[]
[]
[]
[]
[]
[]
[]
[]
[]
[]
[]
[]
[]
[]
[]
[]
[]
[]
[]
[]
[]
[]
[]
[]
[]
[]
[]
[]
[]
[]
[]
[]
[]
[]
[]
[]
[]
[]
[]
[]
[]
[]
[]
[]
[]
[]
[]
[]
[]
[]
[]
[]
[]
[]
[]
[]
[]
[]
[]
[]
[]
[]
[]
[]
[]
[]
[]
[]
[]
[]
[]
[]
[]
[]
[]
[]
[]
[]
[]
[]
[]
[]
[]
[]
[null,null,null,null,null,"x"]